Workbook

Sheet Index
A1: Number | B1: Magazine Reference | C1: Title | D1: Microsoft Excel File | E1: Spreadsheet | F1: Dating Method | G1: MAXIMUM | H1: MINIMUM | I1: DIFFERENCE | J1: AVERAGE | K1: Model Age | L1: 4600 To 4999 | M1: 5000 To 5999 | N1: 6,000 To 9999 | O1: 10,000 To 19,999 | P1: Over 19,999 | Q1: Total
A2: 1 | B2: Contributions Mineral Petrology (1985) 90, Pages 162-171 | C2: Pre-Hercynian mantle lead transfer | D2: www.creationism/YEC/Excellent.xlsm | E2: Excellent_01 | F2: Pb-207/Pb-206 | G2: 5038.389195 | H2: 5021.354203 | I2: 17.03499179 | J2: 5026.166672 | K2: 3000 | M2: 16 | Q2: =SUM(L2:P2) -> 16
A3: 2 | B3: Mineralogy and Petrology (1993) 47, Pages 103-126 | C3: Sr, Nd and Pb Isotopic Compositions | D3: www.creationism/YEC/Excellent.xlsm | E3: Excellent_02 | F3: Pb-207/Pb-206 | G3: 4989.704795 | H3: 4984.66063 | I3: 5.044165468 | J3: 4986.933159 | K3: 5 | L3: 12 | Q3: 12
A4: 3 | B4: Contributions Mineral Petrology (1984) 85, Pages 376-390 | C4: Pb isotopic and REE geochemistry | D4: www.creationism/YEC/Excellent.xlsm | E4: Excellent_03 | F4: Pb-207/Pb-206 | G4: 4987.495393 | H4: 4904.868945 | I4: 82.62644756 | J4: 4931.930175 | K4: 155 | L4: 6 | Q4: 6
A5: 4 | B5: Mineralium Deposita (1999) 34, Pages 273-283 | C5: Damaran-Lufilian Fold Belt of Central Africa | D5: www.creationism/YEC/Excellent.xlsm | E5: Excellent_04 | F5: Pb-207/Pb-206 | G5: 5046.475897 | H5: 5028.505388 | I5: 17.97050909 | J5: 5040.722151 | K5: 456 | M5: 18 | Q5: 18
A6: 5 | B6: Mineralium Deposita (1999) 34, Pages 273-283 | C6: Damaran-Lufilian Fold Belt of Central Africa | D6: www.creationism/YEC/Excellent.xlsm | E6: Excellent_04 | F6: Pb-207/Pb-206 | G6: 5046.370915 | H6: 5043.396306 | I6: 2.974609382 | J6: 5044.719184 | K6: 456 | M6: 6 | Q6: 6
A7: 6 | B7: Chinese Journal Of Geochemistry, Volume 16, Number 1, 1997, Pages 80-85 | C7: Bayan Obo Deposit | D7: www.creationism/YEC/Excellent.xlsm | E7: Excellent_05 | F7: Pb-207/Pb-206 | G7: 5237.372407 | H7: 5065.113389 | I7: 172.2590186 | J7: 5151.242898 | K7: 700 | M7: 2 | Q7: 2
A8: 7 | B8: Isotope Geoscience, 1 (1983) Pages 23-38 | C8: U-Ph And Ph-Pb Dating Of Kimberlites | D8: www.creationism/YEC/Excellent.xlsm | E8: Excellent_06 | F8: Pb-207/Pb-206 | G8: 5075.775046 | H8: 4532.86719 | I8: 542.9078561 | J8: 4960.760249 | K8: 100 | L8: 5 | M8: 9 | Q8: 14
A9: 8 | B9: Chemical Geology 211 (2004) Pages 87–109 | C9: U–Pb Zircon Ages | D9: www.creationism/YEC/Excellent.xlsm | E9: Excellent_07 | F9: Pb-207/Pb-206 | G9: 5149.75968 | H9: 5039.962975 | I9: 109.7967052 | J9: 5078.553117 | K9: 100 | M9: 15 | Q9: 15
A10: 9 | B10: Earth and Planetary. Science Letters, 94 (1989) Pages 78-96 | C10: Cenozoic-Cretaceous Magmatism | D10: www.creationism/YEC/Excellent.xlsm | E10: Excellent_08 | F10: Pb-207/Pb-206 | G10: 6488.877883 | H10: 4930.38853 | I10: 1558.489353 | J10: 5017.956859 | K10: 100 | L10: 28 | M10: 3 | N10: 1 | Q10: 32
A11: 10 | B11: Chemical Geology 233 (2006) Pages 1–45 | C11: Lead Isotope Planetary Profiling | D11: www.creationism/YEC/Excellent.xlsm | E11: Excellent_09 | F11: Pb-207/Pb-206 | G11: 5493.360318 | H11: 4834.799635 | I11: 658.5606829 | J11: 5233.571334 | K11: 4420 | L11: 3 | M11: 10 | Q11: 13
A12: 11 | B12: Chemical Geology 236 (2007) Pages 27–41 | C12: U–Pb Step-Leaching Ages | D12: www.creationism/YEC/Excellent.xlsm | E12: Excellent_10 | F12: Pb-207/Pb-206 | G12: 5014.229252 | H12: 3978.446751 | I12: 1035.7825 | J12: 4671.248179 | K12: 280 | L12: 14 | M12: 4 | Q12: 18
A13: 12 | B13: Chemical Geology, 66 (1987) Pages 193-208 | C13: Pb-Pb Isotope Systematics | D13: www.creationism/YEC/Excellent.xlsm | E13: Excellent_11 | F13: Pb-207/Pb-206 | G13: 4756.496627 | H13: 4604.029662 | I13: 152.4669648 | J13: 4657.068403 | K13: 2700 | L13: 8 | Q13: 8
A14: 13 | B14: Chemical Geology, 66 (1987) Pages 193-208 | C14: Pb-Pb Isotope Systematics | D14: www.creationism/YEC/Excellent.xlsm | E14: Excellent_11 | F14: Pb-207/Pb-206 | G14: 5288.67515 | H14: 3719.159529 | I14: 1569.515621 | J14: 4606.260313 | K14: 2700 | L14: 2 | M14: 12 | Q14: 14
A15: 14 | B15: Chemical Geology, 66 (1987) Pages 193-208 | C15: Pb-Pb Isotope Systematics | D15: www.creationism/YEC/Excellent.xlsm | E15: Excellent_11 | F15: Pb-207/Pb-206 | G15: 5288.67515 | H15: 4925.133314 | I15: 363.5418361 | J15: 5124.407879 | K15: 2700 | L15: 2 | M15: 12 | Q15: 14
A16: 15 | B16: Chemical Geology, 66 (1987) Pages 193-208 | C16: Pb-Pb Isotope Systematics | D16: www.creationism/YEC/Excellent.xlsm | E16: Excellent_11 | F16: Pb-207/Pb-206 | G16: 5266.730276 | H16: 3829.387178 | I16: 1437.343098 | J16: 4470.951213 | K16: 2700 | L16: 1 | M16: 7 | Q16: 8
A17: 16 | B17: Chemical Geology, 93 (1991) Pages 231-243 | C17: Pb Isotopic Systematics Of Volcanic Rocks | D17: www.creationism/YEC/Excellent.xlsm | E17: Excellent_12 | F17: Pb-207/Pb-206 | G17: 4964.253304 | H17: 4909.339018 | I17: 54.91428575 | J17: 4934.492997 | K17: 20 | L17: 41 | Q17: 41
A18: 17 | B18: Earfh and Planetary Science Letters, 94 (1989) Pages 236-244 | C18: U/Pb Whole-Rock And Mineral Dating | D18: www.creationism/YEC/Excellent.xlsm | E18: Excellent_13 | F18: Pb-206/U-238 | G18: 15172.53998 | H18: 204.4056528 | I18: 14968.13432 | J18: 2182.375248 | K18: 320 | O18: 3 | Q18: 3
A19: 18 | B19: Earfh and Planetary Science Letters, 94 (1989) Pages 236-244 | C19: U/Pb Whole-Rock And Mineral Dating | D19: www.creationism/YEC/Excellent.xlsm | E19: Excellent_13 | F19: Pb-207/Pb-206 | G19: 5016.384572 | H19: 667.5413667 | I19: 4348.843205 | J19: 3643.556374 | K19: 320 | L19: 10 | M19: 3 | Q19: 13
A20: 19 | B20: Earth and Planetary Science Letters, 47 (1980) Pages 370-382 | C20: Speculations About The Age Of The Earth | D20: www.creationism/YEC/Excellent.xlsm | E20: Excellent_14 | F20: Pb-207/Pb-206 | G20: 5300.312251 | H20: 4373.888961 | I20: 926.4232902 | J20: 5078.741108 | K20: 2662 | L20: 6 | M20: 30 | Q20: 36
A21: 20 | B21: Earth and Planetary Science Letters, 47 (1980) Pages 370-382 | C21: Speculations About The Age Of The Earth | D21: www.creationism/YEC/Excellent.xlsm | E21: Excellent_14 | F21: Pb-207/Pb-206 | G21: 5271.903197 | H21: 4828.497548 | I21: 443.405649 | J21: 5169.7187 | K21: 2662 | L21: 1 | M21: 9 | Q21: 10
A22: 21 | B22: Earth and Planetary Science Letters, 47 (1980) Pages 370-382 | C22: Speculations About The Age Of The Earth | D22: www.creationism/YEC/Excellent.xlsm | E22: Excellent_14 | F22: Pb-207/Pb-206 | G22: 5254.468058 | H22: 5163.503751 | I22: 90.96430716 | J22: 5223.033282 | K22: 2662 | M22: 6 | Q22: 6
A23: 22 | B23: Earth and Planetary Science Letters, 42 (1979) Pages 368-378 | C23: Rb-Sr And U-Th-Pb Isotopic Study | D23: www.creationism/YEC/Excellent.xlsm | E23: Excellent_15 | F23: Pb-207/Pb-206 | G23: 5127.244714 | H23: 4845.352334 | I23: 281.8923801 | J23: 5035.002128 | K23: 2000 | L23: 5 | M23: 7 | Q23: 12
A24: 23 | B24: Earth and Planetarv Science Letters, 46 (1980) Pages 221-232 | C24: U-Pb Ages Of Uraniferous Opals | D24: www.creationism/YEC/Excellent.xlsm | E24: Excellent_16 | F24: Pb-207/Pb-206 | G24: 5039.62847 | H24: 4711.61124 | I24: 328.0172306 | J24: 4910.083141 | K24: 20 | L24: 18 | M24: 2 | Q24: 20
A25: 24 | B25: Earth and Planetary Science Letters 244 (2006) Page 251–269 | C25: The South Pacific Superplume Activity | D25: www.creationism/YEC/Excellent.xlsm | E25: Excellent_17 | F25: Pb-207/Pb-206 | G25: 5056.862759 | H25: 4838.276971 | I25: 218.585788 | J25: 4945.531714 | K25: 100 | L25: 17 | M25: 6 | Q25: 23
A26: 25 | B26: Gondwana Research 11 (2007) Page 69–91 | C26: Ivisaartoq Greenstone Belt | D26: www.creationism/YEC/Excellent.xlsm | E26: Excellent_18 | F26: Pb-207/U-235 | G26: 5406.571835 | H26: 5162.022237 | I26: 244.5495984 | J26: 5291.341709 | K26: 3075 | M26: 5 | Q26: 5
A27: 26 | B27: Gondwana Research 11 (2007) Page 382–395 | C27: The Genesis Of Pb–Zn Deposits | D27: www.creationism/YEC/Excellent.xlsm | E27: Excellent_19 | F27: Pb-207/Pb-206 | G27: 5071.701928 | H27: 5053.645576 | I27: 18.05635172 | J27: 5063.535624 | K27: 1000 | M27: 47 | Q27: 47
A28: 27 | B28: Gondwana Research 14 (2008) Page 644–662 | C28: Geochronological Problems | D28: www.creationism/YEC/Excellent.xlsm | E28: Excellent_20 | F28: Pb-207/Pb-206 | G28: 4897.891103 | H28: 2613.644242 | I28: 2284.246861 | J28: 4063.353958 | K28: 2020 | L28: 8 | Q28: 8
A29: 28 | B29: Geochemistry And Geophysics Geosystems, 2006, Volume 7, Number 8, Pages 1-29 | C29: Contribution Of Slab Melting | D29: www.creationism/YEC/Excellent.xlsm | E29: Excellent_21 | F29: Pb-207/Pb-206 | G29: 5008.874255 | H29: 4991.697772 | I29: 17.17648345 | J29: 5001.330769 | K29: 20 | L29: 13 | M29: 31 | Q29: 44
A30: 29 | B30: Earth and Planetary Science Letters, 42 (1979) Pages 368-378 | C30: Sr–Nd–Pb Isotopic Systematics Of Mafic Igneous Rocks | D30: www.creationism/YEC/Excellent.xlsm | E30: Excellent_22 | F30: Pb-207/Pb-206 | G30: 5127.244714 | H30: 4845.352334 | I30: 281.8923801 | J30: 5035.002128 | K30: 100 | L30: 5 | M30: 7 | Q30: 12
A31: 30 | B31: Earth and Planetarv Science Letters, 46 (1980) Pages 221-232 | C31: Lead Isotopic Study Of Young Volcanic Rocks | D31: www.creationism/YEC/Excellent.xlsm | E31: Excellent_23 | F31: Pb-207/Pb-206 | G31: 5039.62847 | H31: 4711.61124 | I31: 328.0172306 | J31: 4910.083141 | K31: 10 | L31: 18 | M31: 2 | Q31: 20
A32: 31 | B32: Earth and Planetary Science Letters 244 (2006) Page 251–269 | C32: Sr–Nd–Pb Isotopic Compositions | D32: www.creationism/YEC/Excellent.xlsm | E32: Excellent_24 | F32: Pb-207/Pb-206 | G32: 5056.862759 | H32: 4838.276971 | I32: 218.585788 | J32: 4945.531714 | K32: 120 | L32: 17 | M32: 6 | Q32: 23
A33: 32 | B33: Gondwana Research 11 (2007) Page 69–91 | C33: Sm–Nd, Rb–Sr, And Pb–Pb Isotopic Evidence | D33: www.creationism/YEC/Excellent.xlsm | E33: Excellent_25 | F33: Pb-207/U-235 | G33: 5406.571835 | H33: 5162.022237 | I33: 244.5495984 | J33: 5291.341709 | K33: 3000 | M33: 5 | Q33: 5
A34: 33 | B34: Gondwana Research 11 (2007) Page 382–395 | C34: High Precision U-Pb Geochronology | D34: www.creationism/YEC/Excellent.xlsm | E34: Excellent_26 | F34: Pb-207/Pb-206 | G34: 5071.701928 | H34: 5053.645576 | I34: 18.05635172 | J34: 5063.535624 | K34: 30 | M34: 47 | Q34: =SUM(L34:P34) -> 47
A35: 34 | B35: Gondwana Research 14 (2008) Page 644–662 | C35: Precise Lead Isotope Ratios | D35: www.creationism/YEC/Excellent.xlsm | E35: Excellent_27 | F35: Pb-207/Pb-206 | G35: 4897.891103 | H35: 2613.644242 | I35: 2284.246861 | J35: 4063.353958 | K35: 1700 | L35: 8 | Q35: 8
A36: 35 | B36: Geochemistry And Geophysics Geosystems, 2006, Volume 7, Number 8, Pages 1-29 | C36: Sr–Nd–Pb–O Isotopic Constraints | D36: www.creationism/YEC/Excellent.xlsm | E36: Excellent_28 | F36: Pb-207/Pb-206 | G36: 5008.874255 | H36: 4991.697772 | I36: 17.17648345 | J36: 5001.330769 | K36: 470 | L36: 13 | M36: 31 | Q36: 44
A37: 36 | B37: Contributions to Mineralogy and Petrology, Volume 114, 1993, Pages 171 - 188 | C37: Sr, Nd And Pb Isotope Evidence | D37: www.creationism/YEC/Excellent.xlsm | E37: Excellent_29 | F37: Pb-207/Pb-206 | G37: 5060.546668 | H37: 4929.525745 | I37: 131.0209237 | J37: 5008.551799 | K37: 2900 | L37: 8 | M37: 14 | Q37: 22
A38: 37 | B38: Nature, Volume 368, 1994, Page 514 - 519 | C38: Lead Isotope Ratios In Arc Magams | D38: www.creationism/YEC/Excellent.xlsm | E38: Excellent_30 | F38: Pb-207/Pb-206 | G38: 4976.054566 | H38: 4959.029868 | I38: 17.02469835 | J38: 4963.756658 | K38: 0 | L38: 23 | Q38: 23
A39: 38 | B39: Science, Volume 282, 1998, Page 1481 | C39: Pb Isotopic Variability In Melt Inclusions | D39: www.creationism/YEC/Excellent.xlsm | E39: Excellent_31 | F39: Pb-207/Pb-206 | G39: 4963.795973 | H39: 4742.979152 | I39: 220.8168201 | J39: 4886.667026 | K39: 0 | L39: 81 | Q39: 81
A40: 39 | B40: Earth and Planetary Science Letters, 59 (1982) Pages 327-342 | C40: Correlated Nd, Sr And Pb Isotope Variations | D40: www.creationism/YEC/Excellent.xlsm | E40: Excellent_32 | F40: Pb-207/Pb-206 | G40: 5060.758281 | H40: 5003.922048 | I40: 56.83623276 | J40: 5032.522484 | K40: 70 | M40: 9 | Q40: 9
A41: 40 | B41: Earth and Planetary Science Letters, 76 (1985) Pages 57-70 | C41: Sr, Nd And Pb Isotopes In Minor Elements | D41: www.creationism/YEC/Excellent.xlsm | E41: Excellent_33 | F41: Pb-207/Pb-206 | G41: 5163 | H41: 5014 | I41: 149 | J41: 5097.125 | K41: 100 | M41: 16 | Q41: 16
A42: 41 | B42: Geological Society Of London, Special Publications, 2004, Volume 229, Pages 133-150. | C42: Pin Procking The Elephant | D42: www.creationism/YEC/Excellent.xlsm | E42: Excellent_34 | F42: Pb-207/Pb-206 | G42: 5005.616685 | H42: 4941.790802 | I42: 63.82588315 | J42: 4986.874176 | K42: 100 | L42: 32 | M42: 8 | Q42: 40
A43: 42 | B43: Geological Society Of London, Special Publications, 2004, Volume 229, Pages 133-150. | C43: Pin Procking The Elephant | D43: www.creationism/YEC/Excellent.xlsm | E43: Excellent_34 | F43: Pb-208/Th-232 | G43: 14459.00659 | H43: 12090.24204 | I43: 2368.764547 | J43: 13131.43645 | K43: 100 | O43: 3 | Q43: 3
A44: 43 | B44: Geological Society Of London, Special Publications, 2004, Volume 229, Pages 133-150. | C44: Pin Procking The Elephant | D44: www.creationism/YEC/Excellent.xlsm | E44: Excellent_34 | F44: Pb-206/U-238 | G44: 6936 | H44: 4579 | I44: 2357 | J44: 5671 | K44: 100 | M44: 1 | N44: 1 | Q44: 2
A45: 44 | B45: Journal Analytical Atomic Spectrometry, 2002, Volume 17, Pages 922–928 | C45: The Use Of Pb Isotope Ratios | D45: www.creationism/YEC/Excellent.xlsm | E45: Excellent_35 | F45: Wrong | G45: Wrong | H45: Wrong | I45: Wrong | J45: Wrong | K45: Wrong | L45: 5 | M45: 21 | Q45: 26
A46: 45 | B46: Journal of Petrology, 2011, Volume 52, Number 2, Pages 401-430 | C46: Continental Intraplatevolcanism | D46: www.creationism/YEC/Excellent.xlsm | E46: Excellent_36 | F46: Pb-207/Pb-206 | G46: 4968.285153 | H46: 4919.84456 | I46: 48.44059313 | J46: 4950.339495 | K46: 20 | L46: 5 | Q46: 5
A47: 46 | B47: Journal Of Petrology, 1998, Volume 39 Number 11-12, Pages 1847–1864 | C47: Geochemical And Nd, Pb, And Sr Isotope Data | D47: www.creationism/YEC/Excellent.xlsm | E47: Excellent_37 | F47: Pb-207/Pb-206 | G47: 5019.159826 | H47: 4807.221272 | I47: 211.9385546 | J47: 4950.625318 | K47: 60 | L47: 14 | M47: 1 | Q47: 15
A48: 47 | B48: Ore Geology Reviews 31 (2007) Pages 337–359 | C48: Isotopic Characteristics Of The Jinding Zn–Pb Deposit | D48: www.creationism/YEC/Excellent.xlsm | E48: Excellent_38 | F48: Pb-207/Pb-206 | G48: 5009.89772 | H48: 4975.651285 | I48: 34.24643491 | J48: 5000.579295 | K48: 60 | L48: 40 | M48: 61 | Q48: 101
A49: 48 | B49: Journal Of Petrology, April 11, 2012, Pages 1-32 | C49: Chronology And Geochemistry Of Lavas | D49: www.creationism/YEC/Excellent.xlsm | E49: Excellent_39 | F49: Pb-208/Th-232 | G49: 23849.56676 | H49: 4129.335882 | I49: 19720.23088 | J49: 8325.003245 | K49: 30 | M49: 5 | N49: 12 | O49: 3 | P49: 1 | Q49: 21
A50: 49 | B50: Journal Of Petrology, April 11, 2012, Pages 1-32 | C50: Chronology And Geochemistry Of Lavas | D50: www.creationism/YEC/Excellent.xlsm | E50: Excellent_39 | F50: Pb-207/Pb-206 | G50: 4971.010904 | H50: 4880.697356 | I50: 90.31354862 | J50: 4919.212038 | K50: 30 | L50: 46 | Q50: 46
A51: 50 | B51: Journal Of Petrology, April 11, 2012, Pages 1-32 | C51: Chronology And Geochemistry Of Lavas | D51: www.creationism/YEC/Excellent.xlsm | E51: Excellent_39 | F51: Pb-206/U-238 | G51: 9644.596935 | H51: 1165.579048 | I51: 8479.017887 | J51: 3693.867514 | K51: 30 | N51: 3 | Q51: 3
A52: 51 | B52: Meteoritics & Planetary Science, 2004, Volume 39, Number 12, Pages 2033 - 2041 | C52: Ion microprobe U-Th-Pb dating | D52: www.creationism/YEC/Plot_Index.xlsm | E52: Iso_Plot_001 | F52: Pb-208/Th-232 | G52: 23837.24623 | H52: 2963.327975 | I52: 20873.91825 | J52: 10861.72026 | K52: 1150 | M52: 2 | N52: 4 | O52: 10 | P52: 1 | Q52: 17
A53: 52 | B53: Meteoritics & Planetary Science, 2004, Volume 39, Number 12, Pages 2033 - 2041 | C53: Ion microprobe U-Th-Pb dating | D53: www.creationism/YEC/Plot_Index.xlsm | E53: Iso_Plot_001 | F53: Pb-206⁄U-238 | G53: 11213.9226 | H53: 1841.714582 | I53: 9372.208018 | J53: 5179.563562 | K53: 1150 | L53: 3 | M53: 1 | N53: 5 | O53: 1 | Q53: 10
A54: 53 | B54: Meteoritics & Planetary Science, 2004, Volume 39, Number 12, Pages 2033 - 2041 | C54: Ion microprobe U-Th-Pb dating | D54: www.creationism/YEC/Plot_Index.xlsm | E54: Iso_Plot_001 | F54: Pb-207/Pb-206 | G54: 5347.740483 | H54: 3897.376286 | I54: 1450.364197 | J54: 4768.117445 | K54: 1150 | L54: 11 | M54: 5 | Q54: 16
A55: 54 | B55: Meteoritics & Planetary Science, 2007, Volume 42, Numbers 7/8, Pages 1337 - 1350 | C55: Pb-Isotopic Dates From Estacado | D55: www.creationism/YEC/Plot_Index.xlsm | E55: Iso_Plot_002 | F55: Pb-207/Pb-206 | G55: 5022.689092 | H55: 4561.879659 | I55: 460.8094327 | J55: 4769.104383 | K55: 4545 | L55: 25 | M55: 2 | Q55: 27
A56: 55 | B56: Meteoritics & Planetary Science, 2003, Volume 38, Number 11, Pages 1697 - 1703 | C56: Ion Microprobe U-Th-Pb Dating | D56: www.creationism/YEC/Plot_Index.xlsm | E56: Iso_Plot_003 | F56: Pb-206⁄U-238 | G56: 5650.411461 | H56: 2964.118062 | I56: 2686.293399 | J56: 4299.474308 | K56: 4000 | L56: 1 | M56: 3 | Q56: 4
A57: 56 | B57: Meteoritics & Planetary Science, 2003, Volume 38, Number 11, Pages 1697 - 1703 | C57: Ion Microprobe U-Th-Pb Dating | D57: www.creationism/YEC/Plot_Index.xlsm | E57: Iso_Plot_003 | F57: Pb-208/Th-232 | G57: 6110.39041 | H57: 2894.87674 | I57: 3215.513671 | J57: 4172.897248 | K57: 4000 | M57: 2 | N57: 1 | Q57: 3
A58: 57 | B58: Precambrian Research, 2002, Volume 117, Pages 119 - 143 | C58: 207pb–206pb And 40ar–39ar Ages | D58: www.creationism/YEC/Plot_Index.xlsm | E58: Iso_Plot_008 | F58: Pb-207/Pb-206 | G58: 5049.006386 | H58: 1848.213643 | I58: 3200.792743 | J58: 3768.9565 | K58: 2800 | L58: 3 | M58: 4 | Q58: =SUM(L58:P58) -> 7
A59: 58 | B59: Mereoritics And PIanetary Science, 2000, Volume 35, Pages 341 - 346 | C59: Uranium-Thorium-Lead Dating | D59: www.creationism/YEC/Plot_Index.xlsm | E59: Iso_Plot_012 | F59: Pb-207/Pb-206 | G59: 5122.990853 | H59: 4900.200529 | I59: 222.790324 | J59: 5012.009072 | K59: 200 | L59: 7 | M59: 6 | Q59: =SUM(L59:P59) -> 13
A60: 59 | B60: Chemical Geology, 2009, Volume 259, Pages 143 - 151 | C60: Pb–Pb Dating Of Chondrules | D60: www.creationism/YEC/Plot_Index.xlsm | E60: Iso_Plot_014 | F60: Pb-207/Pb-206 | G60: 5206.108213 | H60: 4577.403489 | I60: 628.7047246 | J60: 4910.819581 | K60: 4565 | L60: 26 | M60: 15 | Q60: =SUM(L60:P60) -> 41
A61: 60 | B61: Geochimica et Cosmochimica Acta, 2007, Volume 71, Pages 1583 - 1604 | C61: Pb–Pb Dating Constraints | D61: www.creationism/YEC/Plot_Index.xlsm | E61: Iso_Plot_015 | F61: Pb-207/Pb-206 | G61: 5378.606625 | H61: 4690.483526 | I61: 688.1230995 | J61: 5120.815807 | K61: 4568 | L61: 8 | M61: 17 | Q61: 25
A62: 61 | B62: Geochimica et Cosmochimica Acta, 2007, Volume 71, Pages 1583 - 1604 | C62: Pb–Pb Dating Constraints | D62: www.creationism/YEC/Plot_Index.xlsm | E62: Iso_Plot_015 | F62: Pb-207/Pb-206 | G62: 5359.045509 | H62: 4637.243488 | I62: 721.8020212 | J62: 4923.317079 | K62: 4568 | L62: 22 | M62: 9 | Q62: 31
A63: 62 | B63: Geochimica et Cosmochimica Acta, 2007, Volume 71, Pages 1583 - 1604 | C63: Pb–Pb Dating Constraints | D63: www.creationism/YEC/Plot_Index.xlsm | E63: Iso_Plot_015 | F63: Pb-207/Pb-206 | G63: 5022.656075 | H63: 4559.294333 | I63: 463.3617415 | J63: 4775.429259 | K63: 4568 | L63: 11 | M63: 4 | Q63: 15
A64: 63 | B64: Geochimica et Cosmochimica Acta, 2007, Volume 71, Pages 1583 - 1604 | C64: Pb–Pb Dating Constraints | D64: www.creationism/YEC/Plot_Index.xlsm | E64: Iso_Plot_015 | F64: Pb-207/Pb-206 | G64: 5132.679046 | H64: 4782.860644 | I64: 349.8184015 | J64: 5028.118177 | K64: 4568 | L64: 5 | M64: 9 | Q64: 14
A65: 64 | B65: Geochimica et Cosmochimica Acta, 2007, Volume 71, Pages 1583 - 1604 | C65: Pb–Pb Dating Constraints | D65: www.creationism/YEC/Plot_Index.xlsm | E65: Iso_Plot_015 | F65: Pb-207/Pb-206 | G65: 5259.100314 | H65: 4618.765866 | I65: 640.3344476 | J65: 5024.109064 | K65: 4568 | L65: 6 | M65: 11 | Q65: 17
A66: 65 | B66: Geochimica et Cosmochimica Acta, 2008, Volume 72, Pages 2067 - 2089 | C66: U–Th–Pb Dating Of Secondary Minerals | D66: www.creationism/YEC/Plot_Index.xlsm | E66: Iso_Plot_018 | F66: Pb-208/Th-232 | G66: 352962.1923 | H66: 2.268970373 | I66: 352959.9233 | J66: 9983.642069 | K66: 10 | M66: 1 | P66: 1 | Q66: =SUM(L66:P66) -> 2
A67: 66 | B67: Geochimica et Cosmochimica Acta, 2008, Volume 72, Pages 2067 - 2089 | C67: U–Th–Pb Dating Of Secondary Minerals | D67: www.creationism/YEC/Plot_Index.xlsm | E67: Iso_Plot_018 | F67: Pb-206/U-238 | G67: 31192.5545 | H67: 0.5701576211 | I67: 31191.98435 | J67: 4890.692168 | K67: 10 | L67: 2 | M67: 1 | N67: 5 | O67: 6 | P67: 4 | Q67: 18
A68: 67 | B68: Geochimica et Cosmochimica Acta, 2008, Volume 72, Pages 2067 - 2089 | C68: U–Th–Pb Dating Of Secondary Minerals | D68: www.creationism/YEC/Plot_Index.xlsm | E68: Iso_Plot_018 | F68: Pb-207/Pb-206 | G68: 8125.856407 | H68: 282.291782 | I68: 7843.564625 | J68: 3714.192498 | K68: 10 | L68: 14 | M68: 4 | N68: 1 | Q68: 19
A69: 68 | B69: Earth and Planetary Science Letters, 1983, Volume 62, Pages 132 - 146 | C69: 40ar/39ar And U-Th-Pb Dating | D69: www.creationism/YEC/Plot_Index.xlsm | E69: Iso_Plot_019 | F69: Pb-207/Pb-206 | G69: 5370.941308 | H69: 4410 | I69: 960.9413083 | J69: 4948.437496 | K69: 4580 | L69: 3 | M69: 10 | Q69: 13
A70: 69 | B70: Geochimica et Cosmochimica Acta, 1976, Volume 40, Pages 635 - 643 | C70: Isotopic Lead Investigations | D70: www.creationism/YEC/Plot_Index.xlsm | E70: Iso_Plot_020 | F70: Pb-207/Pb-206 | G70: 5345.618224 | H70: 4637.576867 | I70: 708.0413566 | J70: 5125.863023 | K70: 4565 | L70: 8 | M70: 19 | Q70: 27
A71: 70 | B71: Earth and Planetary Science Letters 301 (2011) 469–478 | C71: The Tethyan Realm Lamproites | D71: www.creationism/YEC/Research.xlsm | E71: Pb_207_01 | F71: Pb-207/Pb-206 | G71: 6194.367072 | H71: 969.7035437 | I71: 5224.663528 | J71: 4754.938813 | K71: 20 | L71: 16 | M71: 19 | N71: 2 | Q71: 37
A72: 71 | B72: Earth and Planetary Science Letters, 104 (1991) 1-15 | C72: Th, Pb, and Sr Isotope Variations | D72: www.creationism/YEC/Research.xlsm | E72: Pb_207_02 | F72: Pb-207/Pb-206 | G72: 5145.413482 | H72: 4947.453232 | I72: 197.9602503 | J72: 4983.751051 | K72: 300 | L72: 33 | M72: 4 | Q72: 37
A73: 72 | B73: Earth and Planetary Science Letters 245 (2006) 743–761 | C73: Comparison of Th, Sr, Nd and Pb isotopes | D73: www.creationism/YEC/Research.xlsm | E73: Pb_207_03 | F73: Pb-207/Pb-206 | G73: 4975.787742 | H73: 4893.977592 | I73: 81.81015051 | J73: 4929.258378 | K73: 0.3 | L73: 17 | Q73: 17
A74: 73 | B74: Earth and Planetary Science Letters 240 (2005) 605– 620 | C74: Pb Isotopic Variability in Melt Inclusions | D74: www.creationism/YEC/Research.xlsm | E74: Pb_207_04 | F74: Pb-207/Pb-206 | G74: 5049.006386 | H74: 4742.979152 | I74: 306.0272332 | J74: 4909.764277 | K74: 1 | L74: 88 | M74: 16 | Q74: 104
A75: 74 | B75: Earth and Planetary Science Letters 296 (2010) 267–277 | C75: Microanalysis Of Individual Fluid Inclusions | D75: www.creationism/YEC/Research.xlsm | E75: Pb_207_05 | F75: Pb-207/Pb-206 | G75: 5074.544863 | H75: 5069.453808 | I75: 5.091055319 | J75: 5071.163458 | K75: 1000 | M75: 36 | Q75: 36
A76: 75 | B76: Earth and Planetary Science Letters 306 (2011) 86–97 | C76: South Atlantic Mid-Ocean-Ridge | D76: www.creationism/YEC/Research.xlsm | E76: Pb_207_06 | F76: Pb-207/Pb-206 | G76: 6214.394049 | H76: 4923.675688 | I76: 1290.718361 | J76: 4990.388372 | K76: 10 | L76: 74 | M76: 21 | N76: 1 | Q76: 96
A77: 76 | B77: Earth And Planetary Science Letters 7 (1969) 141-147 | C77: Uranium, Thorium, And Lead Systematics | D77: www.creationism/YEC/Research.xlsm | E77: Pb_207_07 | F77: Pb-207/Pb-206 | G77: 4821.5498 | H77: 3279.347581 | I77: 1542.202219 | J77: 4213.715491 | K77: 2820 | L77: 1 | Q77: 1
A78: 77 | B78: Earth And Planetary Science Letters 7 (1969) 141-147 | C78: Uranium, Thorium, And Lead Systematics | D78: www.creationism/YEC/Research.xlsm | E78: Pb_207_07 | F78: Pb-206⁄U-238 | G78: 14794.01915 | H78: 12047.393 | I78: 2746.62615 | J78: 13298.86797 | K78: 2820 | O78: 8 | Q78: 8
A79: 78 | B79: Earth and Planetary Science Letters 165 (1999) 117–127 | C79: Iceland Pb-Isotopic Array | D79: www.creationism/YEC/Research.xlsm | E79: Pb_207_08 | F79: Pb-207/Pb-206 | G79: 4974.855842 | H79: 4932.502492 | I79: 42.35335005 | J79: 4939.38909 | K79: 10 | L79: 9 | Q79: 9
A80: 79 | B80: Earth and Planetary Science Letters 267 (2008) 236–246 | C80: U–Pb Dating Of Fossil Enamel | D80: www.creationism/YEC/Research.xlsm | E80: Pb_207_10 | F80: Pb-207/Pb-206 | G80: 5002.10558 | H80: 4852.091101 | I80: 150.0144791 | J80: 4956.050565 | K80: 4 | L80: 8 | M80: 1 | Q80: 9
A81: 80 | B81: Earth and Planetary Science Letters, 34 (1977) 419-431 | C81: Lead And Strontium Isotopes In Cretaceous Kimberlites | D81: www.creationism/YEC/Research.xlsm | E81: Pb_207_11 | F81: Pb-207/Pb-206 | G81: 5111.649363 | H81: 5109.109204 | I81: 2.540159605 | J81: 5110.223347 | K81: 100 | M81: 10 | Q81: 10
A82: 81 | B82: Earth and Planetary Science Letters, 34 (1977) 419-431 | C82: Lead And Strontium Isotopes In Cretaceous Kimberlites | D82: www.creationism/YEC/Research.xlsm | E82: Pb_207_11 | F82: Pb-207/Pb-206 | G82: 5050.256831 | H82: 4709.905945 | I82: 340.3508864 | J82: 4908.543496 | K82: 100 | L82: 11 | M82: 1 | Q82: 12
A83: 82 | B83: Earth and Planetary Science Letters, 34 (1977) 419-431 | C83: Lead And Strontium Isotopes In Cretaceous Kimberlites | D83: www.creationism/YEC/Research.xlsm | E83: Pb_207_11 | F83: Pb-207/Pb-206 | G83: 5038.824181 | H83: 4855.778989 | I83: 183.0451915 | J83: 4940.484927 | K83: 100 | L83: 3 | M83: 2 | Q83: 5
A84: 83 | B84: Earth and Planetary Science Letters, 34 (1977) 419-431 | C84: Lead And Strontium Isotopes In Cretaceous Kimberlites | D84: www.creationism/YEC/Research.xlsm | E84: Pb_207_11 | F84: Pb-207/Pb-206 | G84: 5060.586575 | H84: 4897.870607 | I84: 162.7159675 | J84: 4969.123779 | K84: 100 | L84: 7 | M84: 5 | Q84: 12
A85: 84 | B85: Earth and Planetary Science Letters 245 (2006) 137–152 | C85: Trace Element-Pb Isotope Enrichments | D85: www.creationism/YEC/Research.xlsm | E85: Pb_207_12 | F85: Pb-207/Pb-206 | G85: 5004.789546 | H85: 4958.996095 | I85: 45.7934508 | J85: 4987.928897 | K85: 0 | L85: 33 | M85: 3 | Q85: 36
A86: 85 | B86: Precambrian Research 162 (2008) 441–474 | C86: Iron Formations In The Black Hills | D86: www.creationism/YEC/Research.xlsm | E86: Pb_207_13 | F86: Pb-207/Pb-206 | G86: 5250.032554 | H86: 4006.905795 | I86: 1243.126759 | J86: 4776.559938 | K86: 2200 | L86: 39 | M86: 24 | Q86: 63
A87: 86 | B87: Precambrian Research 114 (2002) 277–294 | C87: Pb and Nd Isotope Systematics | D87: www.creationism/YEC/Research.xlsm | E87: Pb_207_14 | F87: Pb-207/Pb-206 | G87: 5318.754346 | H87: 4872.609634 | I87: 446.1447121 | J87: 5096.195617 | K87: 2700 | L87: 11 | M87: 32 | Q87: 43
A88: 87 | B88: Precambrian Research 78 (1996) 261-272 | C88: Whole-Rock Pb/Pb Isotopic Ages | D88: www.creationism/YEC/Research.xlsm | E88: Pb_207_15 | F88: Pb-207/Pb-206 | G88: 5338.975567 | H88: 4299.565566 | I88: 1039.410002 | J88: 5007.88714 | K88: 2700 | L88: 2 | M88: 15 | Q88: 17
A89: 88 | B89: Precambrian Research 78 (1996) 261-272 | C89: Whole-Rock Pb/Pb Isotopic Ages | D89: www.creationism/YEC/Research.xlsm | E89: Pb_207_15 | F89: Pb-207/Pb-206 | G89: 5190.498014 | H89: 4754.837861 | I89: 435.6601531 | J89: 5020.56049 | K89: 2700 | L89: 3 | M89: 10 | Q89: 13
A90: 89 | B90: Precambrian Research 113 (2002) 155–168 | C90: Ion Microprobe Pb–Pb Dating | D90: www.creationism/YEC/Research.xlsm | E90: Pb_207_16 | F90: Pb-207/Pb-206 | G90: 5122.990853 | H90: 4027.829019 | I90: 1095.161834 | J90: 4901.571839 | K90: 3250 | L90: 31 | M90: 15 | Q90: 46
A91: 90 | B91: Earth and Planetary Science Letters 258 (2007) 160–174 | C91: U–Pb and 40Ar/39Ar Dating | D91: www.creationism/YEC/Lead_206_207.xlsm | E91: Pb-206_01 | F91: Wrong | G91: Wrong | H91: Wrong | I91: Wrong | J91: Wrong | K91: Wrong
A92: 91 | B92: Earth and Planetary Science Letters 142 (1996) 501-512 | C92: Pb Isotope Constraints | D92: www.creationism/YEC/Lead_206_207.xlsm | E92: Pb-206_02 | F92: Pb-207/Pb-206 | G92: 5346.616532 | H92: 4861.767841 | I92: 484.8486918 | J92: 5180.140406 | K92: 1800 | L92: 8 | M92: 22 | Q92: =SUM(L92:P92) -> 30
A93: 92 | B93: Earth and Planetary Science Letters 300 (2010) 152–163 | C93: The Solar System Primordial Lead | D93: www.creationism/YEC/Lead_206_207.xlsm | E93: Pb-206_05 | F93: Pb-207/Pb-206 | G93: 5381.042629 | H93: 4964.451392 | I93: 416.5912368 | J93: 5259.109615 | K93: 4500 | L93: 3 | M93: 70 | Q93: =SUM(L93:P93) -> 73
A94: 93 | B94: Earth and Planetary Science Letters, 42 (1979) 58-70 | C94: Diamonds And Mantle-Derived Xenoliths | D94: www.creationism/YEC/Lead_206_207.xlsm | E94: Pb-206_06 | F94: Pb-207/Pb-206 | G94: 5248.732347 | H94: 4884.5053 | I94: 364.2270471 | J94: 4994.997779 | K94: 2500 | L94: 9 | M94: 5 | Q94: =SUM(L94:P94) -> 14
A95: 94 | B95: Earth and Planetary Science Letters, 107 (1991) 618-624 | C95: Complete Pb/U Analysis | D95: www.creationism/YEC/Lead_206_207.xlsm | E95: Pb-206_07 | F95: Wrong | G95: Wrong | H95: Wrong | I95: Wrong | J95: Wrong | K95: Wrong
A96: 95 | B96: Meteoritics & Planetary Science 46, Nr 1, 35–52 (2011) | C96: Disturbance Of Isotope Systematics | D96: www.creationism/YEC/Lead_206_207.xlsm | E96: Pb-206_08 | F96: Pb-206⁄U-238 | G96: 22145.50286 | H96: 2268.117264 | I96: 19877.38559 | J96: 8087.999424 | K96: 3300 | L96: 1 | M96: 2 | N96: 5 | O96: 2 | P96: 1 | Q96: =SUM(L96:P96) -> 11
A97: 96 | B97: Meteoritics & Planetary Science 46, Nr 1, 35–52 (2011) | C97: Disturbance Of Isotope Systematics | D97: www.creationism/YEC/Lead_206_207.xlsm | E97: Pb-206_08 | F97: Pb-207/Pb-206 | G97: 5110.634164 | H97: 4182.585678 | I97: 928.0484861 | J97: 4565.734757 | K97: 3300 | L97: 6 | M97: 2 | Q97: 8
A98: 97 | B98: Geochimica et Cosmochimica Acta, 1970, Vol. 34, pp. 1039 to 1106. | C98: Model Lead And Radiometric Ages | D98: www.creationism/YEC/Lead_206_207.xlsm | E98: Pb-206_09 | F98: Pb-207/Pb-206 | G98: 7797.378331 | H98: 5138.691402 | I98: 2658.686929 | J98: 5828.101363 | K98: 2030 | M98: 3 | N98: 1 | Q98: 4
A99: 98 | B99: Geochimica et Cosmochimica Acta, 1970, Vol. 34, pp. 1039 to 1106. | C99: Model Lead And Radiometric Ages | D99: www.creationism/YEC/Lead_206_207.xlsm | E99: Pb-206_09 | F99: Pb-207/Pb-206 | G99: 5226.392078 | H99: 5142.80037 | I99: 83.59170836 | J99: 5203.773215 | K99: 2030 | M99: 15 | Q99: 15
A100: 99 | B100: Geochimica et Cosmochimica Acta, 1970, Vol. 34, pp. 1039 to 1106. | C100: Model Lead And Radiometric Ages | D100: www.creationism/YEC/Lead_206_207.xlsm | E100: Pb-206_09 | F100: Pb-207/Pb-206 | G100: 5239.245885 | H100: 4845.553447 | I100: 393.6924382 | J100: 5160.900983 | K100: 2030 | L100: 1 | M100: 27 | Q100: 28
A101: 100 | B101: Geochimica et Cosmochimica Acta, 1970, Vol. 34, pp. 1039 to 1106. | C101: Model Lead And Radiometric Ages | D101: www.creationism/YEC/Lead_206_207.xlsm | E101: Pb-206_09 | F101: Pb-207/Pb-206 | G101: 6461.618858 | H101: 6338.489922 | I101: 123.1289358 | J101: 6385.837302 | K101: 2030 | N101: 32 | Q101: 32
A102: 101 | B102: Geochimica et Cosmochimica Acta, Vol. 45. pp. 635 to 645, 1981 | C102: U-Th-Pb Systematics | D102: www.creationism/YEC/Lead_206_207.xlsm | E102: Pb-206_12 | F102: Pb-207/Pb-206 | G102: 4747.166785 | H102: 2567.626082 | I102: 2179.540704 | J102: 3774.731199 | K102: 2030 | L102: 2 | Q102: 2
A103: 102 | B103: Geochimica et Cosmochimica Acta, Vol. 62, No. 21/22, pp. 3527–3540, 1998 | C103: The Influence of High U-Th | D103: www.creationism/YEC/Lead_206_207.xlsm | E103: Pb-206_13 | F103: Pb-208/Th-232 | G103: 37154.25956 | H103: 160.9635038 | I103: 36993.29606 | J103: 4084.078007 | K103: 500 | P103: 1 | Q103: 1
A104: 103 | B104: Geochimica et Cosmochimica Acta, Vol. 62, No. 21/22, pp. 3527–3540, 1998 | C104: The Influence of High U-Th | D104: www.creationism/YEC/Lead_206_207.xlsm | E104: Pb-206_13 | F104: Pb-206⁄U-238 | G104: 29040.11258 | H104: 270.4886227 | I104: 28769.62396 | J104: 5341.968525 | K104: 500 | N104: 2 | O104: 1 | P104: 1 | Q104: 4
A105: 104 | B105: Geochimica et Cosmochimica Acta, Vol. 62, No. 21/22, pp. 3527–3540, 1998 | C105: The Influence of High U-Th | D105: www.creationism/YEC/Lead_206_207.xlsm | E105: Pb-206_13 | F105: Pb-207/Pb-206 | G105: 5042.300457 | H105: 1325.158694 | I105: 3717.141763 | J105: 4179.655947 | K105: 500 | L105: 8 | M105: 1 | Q105: 9
A106: 105 | B106: Geochimica et Cosmochimica Acta, Vol. 62, No. 21/22, pp. 3527–3540, 1998 | C106: The Influence of High U-Th | D106: www.creationism/YEC/Lead_206_207.xlsm | E106: Pb-206_13 | F106: Pb-206⁄U-238 | G106: 14007.74335 | H106: 177.3488787 | I106: 13830.39447 | J106: 1620.738044 | K106: 500 | O106: 1 | Q106: 1
A107: 106 | B107: Geochimica et Cosmochimica Acta, Vol. 62, No. 21/22, pp. 3527–3540, 1998 | C107: The Influence of High U-Th | D107: www.creationism/YEC/Lead_206_207.xlsm | E107: Pb-206_13 | F107: Pb-208/Th-232 | G107: 14316.14094 | H107: 287.9090841 | I107: 14028.23186 | J107: 3578.807917 | K107: 500 | O107: 2 | Q107: 2
A108: 107 | B108: Geochimica et Cosmochimica Acta, Vol. 62, No. 21/22, pp. 3527–3540, 1998 | C108: The Influence of High U-Th | D108: www.creationism/YEC/Lead_206_207.xlsm | E108: Pb-206_13 | F108: Pb-207/Pb-206 | G108: 4999.781335 | H108: 3923.956871 | I108: 1075.824465 | J108: 4708.883051 | K108: 500 | L108: 9 | Q108: 9
A109: 108 | B109: Geochimica et Cosmochimica Acta, Vol. 63, No. 3/4, pp. 473–488, 1999 | C109: Pb-Pb and Sm-Nd Isotope Results | D109: www.creationism/YEC/Lead_206_207.xlsm | E109: Pb-206_14 | F109: Pb-207/Pb-206 | G109: 5402.485252 | H109: 4342.063203 | I109: 1060.422049 | J109: 5173.115208 | K109: 2800 | L109: 4 | M109: 26 | Q109: 30
A110: 109 | B110: Geochimica et Cosmochimica Acta, Vol. 61, No. 8, pp. 1713-1731, 1997 | C110: Ages Of Basaltic Achondrites | D110: www.creationism/YEC/Lead_206_207.xlsm | E110: Pb-206_15 | F110: Pb-207/Pb-206 | G110: 5135.139442 | H110: 4556.750763 | I110: 578.388679 | J110: 4940.851958 | K110: 4480 | L110: 19 | M110: 7 | Q110: 26
A111: 110 | B111: Geochimica et Cosmochimica Acta, Vol. 61, No. 8, pp. 1713-1731, 1997 | C111: Ages Of Basaltic Achondrites | D111: www.creationism/YEC/Lead_206_207.xlsm | E111: Pb-206_15 | F111: Pb-207/Pb-206 | G111: 5081.418707 | H111: 4370.528155 | I111: 710.8905522 | J111: 4685.629756 | K111: 4480 | L111: 14 | M111: 3 | Q111: 17
A112: 111 | B112: Geochimica et Cosmochimica Acta, 1992, Vol. 56, pp. 347-368 | C112: New Aspects Of Dating Eclogites | D112: www.creationism/YEC/Lead_206_207.xlsm | E112: Pb-206_16 | F112: Pb-207/Pb-206 | G112: 5066.498794 | H112: 4986.922194 | I112: 79.57660029 | J112: 5016.166887 | K112: 150 | L112: 11 | M112: 11 | Q112: 22
A113: 112 | B113: Geochimica et Cosmochimica Acta, Vol. 61, No. 23, pp. 5005-5022, 1997 | C113: Dating Scheelite Stages | D113: www.creationism/YEC/Lead_206_207.xlsm | E113: Pb-206_17 | F113: Pb-207/Pb-206 | G113: 5025.904928 | H113: 3830.537865 | I113: 1195.367063 | J113: 4914.361575 | K113: 600 | L113: 4 | M113: 13 | Q113: 17
A114: 113 | B114: Earth and Planetary Sctence Letters, 113 (1992) 107-128 | C114: Sr, Nd, and Pb Isotopes | D114: www.creationism/YEC/Lead_206_207.xlsm | E114: Pb-206_18 | F114: Pb-206⁄U-238 | G114: 22200.70461 | H114: 58.13189039 | I114: 22142.57272 | J114: 6853.117731 | K114: 3300 | L114: 2 | M114: 5 | N114: 16 | O114: 5 | P114: 2 | Q114: 30
A115: 114 | B115: Earth and Planetary Sctence Letters, 113 (1992) 107-128 | C115: Sr, Nd, and Pb Isotopes | D115: www.creationism/YEC/Lead_206_207.xlsm | E115: Pb-206_18 | F115: Pb-207/Pb-206 | G115: 5076.583029 | H115: 4945.156008 | I115: 131.4270206 | J115: 5013.656546 | K115: 3300 | L115: 18 | M115: 32 | Q115: 50
A116: 115 | B116: Earth and Planetary Science Letters 174 (1999) 75-80 | C116: U-Pb Dating Of A Fossil Tooth | D116: www.creationism/YEC/Lead_206_207.xlsm | E116: Pb-206_19 | F116: Wrong | G116: Wrong | H116: Wrong | I116: Wrong | J116: Wrong | K116: Wrong
A117: 116 | B117: Geochimica et Cosmochimica Acta 73 (2009) 469–488 | C117: Pb/Pb Geochronology | D117: www.creationism/YEC/Lead_206_207.xlsm | E117: Pb-206_22 | F117: Pb-207/Pb-206 | G117: 5860.201579 | H117: 4397.017993 | I117: 1463.183587 | J117: 5506.994909 | K117: 3710 | M117: 22 | Q117: =SUM(L117:P117) -> 22
A118: 117 | B118: Geochimica et Cosmochimica Acta 72 (2008) 5799–5818 | C118: U, Th And Pb Isotope Compositions | D118: www.creationism/YEC/Lead_206_207.xlsm | E118: Pb-206_23 | F118: Pb-208/Th-232 | G118: 42037.68124 | H118: 1938.689533 | I118: 40098.9917 | J118: 8096.51606 | K118: 2.588 | L118: 1 | M118: 1 | O118: 4 | P118: 2 | Q118: 8
A119: 118 | B119: Geochimica et Cosmochimica Acta 72 (2008) 5799–5818 | C119: U, Th And Pb Isotope Compositions | D119: www.creationism/YEC/Lead_206_207.xlsm | E119: Pb-206_23 | F119: Pb-207/Pb-206 | G119: 5007.992406 | H119: 4871.481281 | I119: 136.511125 | J119: 4915.273431 | K119: 2.588 | L119: 22 | M119: 3 | Q119: 25
A120: 119 | B120: Geochimica et Cosmochimica Acta 72 (2008) 5799–5818 | C120: U, Th And Pb Isotope Compositions | D120: www.creationism/YEC/Lead_206_207.xlsm | E120: Pb-206_23 | F120: Pb-206⁄U-238 | G120: 15306.78499 | H120: 1436.962903 | I120: 13869.82208 | J120: 4270.628329 | K120: 2.588 | M120: 1 | N120: 1 | O120: 3 | Q120: 5
A121: 120 | B121: Geochimica et Cosmochimica Acta, Vol. 62, No. 16, pp. 2823–2835, 1998 | C121: Using The U-Pb System | D121: www.creationism/YEC/Lead_206_207.xlsm | E121: Pb-206_24 | F121: Pb-207/Pb-206 | G121: 4982.058295 | H121: 4024.356321 | I121: 957.7019739 | J121: 4615.922594 | K121: 220 | L121: 34 | Q121: 34
A122: 121 | B122: Geochimica et Cosmochimica Acta 71 (2007) 5514–5527 | C122: Pb Isotopic Compositions Of Rocks | D122: www.creationism/YEC/Lead_206_207.xlsm | E122: Pb-206_25 | F122: Pb-207/Pb-206 | G122: 5265.041568 | H122: 5054.790103 | I122: 210.2514652 | J122: 5243.360864 | K122: 2010 | M122: 113 | Q122: 113
A123: 122 | B123: Earth and Planetary Science Letters 319-320 (2012) 197–206 | C123: U–Th–Pb Isotope Data | D123: www.creationism/YEC/Research.xlsm | E123: Th_232_01 | F123: Pb-206⁄U-238 | G123: 31005.38527 | H123: 7137.593565 | I123: 23867.79171 | J123: 15192.07831 | K123: 3300 | N123: 2 | O123: 8 | P123: 2 | Q123: 12
A124: 123 | B124: Earth and Planetary Science Letters 319-320 (2012) 197–206 | C124: U–Th–Pb Isotope Data | D124: www.creationism/YEC/Research.xlsm | E124: Th_232_01 | F124: Pb-208/Th-232 | G124: 100601.1795 | H124: 24979.57154 | I124: 75621.60799 | J124: 56975.513 | K124: 3300 | P124: 12 | Q124: 12
A125: 124 | B125: Earth and Planetary Science Letters 319-320 (2012) 197–206 | C125: U–Th–Pb Isotope Data | D125: www.creationism/YEC/Research.xlsm | E125: Th_232_01 | F125: Pb-207/Pb-206 | G125: 5403.170217 | H125: 5222.336113 | I125: 180.8341036 | J125: 5325.2282 | K125: 3300 | M125: 13 | Q125: 13
A126: 125 | B126: Earth and Planetary Science Letters 183 (2000) 93-106 | C126: The Age Of The Lithospheric Mantle | D126: www.creationism/YEC/Research.xlsm | E126: Th_232_02 | F126: Pb-207/Pb-206 | G126: 5235.002558 | H126: 5076.99591 | I126: 158.0066481 | J126: 5161.231745 | K126: 267 | M126: 3 | Q126: 3
A127: 126 | B127: Earth and Planetary Science Letters 183 (2000) 93-106 | C127: The Age Of The Lithospheric Mantle | D127: www.creationism/YEC/Research.xlsm | E127: Th_232_02 | F127: Pb-208/Th-232 | G127: 4677.965723 | H127: 169.9945126 | I127: 4507.97121 | J127: 1785.832126 | K127: 267 | L127: 1 | Q127: 1
A128: 127 | B128: Earth and Planetary Science Letters 134 (1995) 169-185 | C128: Evolution Of Reunion Hotspot Mantle | D128: www.creationism/YEC/Research.xlsm | E128: Th_232_03 | F128: Pb-206⁄U-238 | G128: 6285.48251 | H128: 3009.915661 | I128: 3275.56685 | J128: 4449.350323 | K128: 66 | L128: 2 | M128: 3 | N128: 2 | Q128: 7
A129: 128 | B129: Earth and Planetary Science Letters 134 (1995) 169-185 | C129: Evolution Of Reunion Hotspot Mantle | D129: www.creationism/YEC/Research.xlsm | E129: Th_232_03 | F129: Pb-208/Th-232 | G129: 13286.71038 | H129: 5641.171063 | I129: 7645.539317 | J129: 8078.806169 | K129: 66 | M129: 2 | N129: 14 | O129: 4 | Q129: 20
A130: 129 | B130: Earth and Planetary Science Letters 134 (1995) 169-185 | C130: Evolution Of Reunion Hotspot Mantle | D130: www.creationism/YEC/Research.xlsm | E130: Th_232_03 | F130: Pb-207/Pb-206 | G130: 5015.84652 | H130: 4952.643131 | I130: 63.20338883 | J130: 4976.298047 | K130: 66 | L130: 19 | M130: 1 | Q130: 20
A131: 130 | B131: Precambrian Research 72 ( 1995 ) 247-261 | C131: Carbonate Pb-Pb ages of the Wittenoom Formation | D131: www.creationism/YEC/Research.xlsm | E131: U_238_01 | F131: Pb-207/Pb-206 | G131: 6590.578713 | H131: 3959.403895 | I131: 2631.174818 | J131: 5593.608361 | K131: 2400 | L131: 6 | M131: 2 | N131: 17 | Q131: 25
A132: 131 | B132: Precambrian Research 117 (2002) 185-24 | C132: Dating Of Zircon-Free Protoliths | D132: www.creationism/YEC/Research.xlsm | E132: U_238_02 | F132: Wrong | G132: Wrong | H132: Wrong | I132: Wrong | J132: Wrong | K132: Wrong
A133: 132 | B133: Precambrian Research 90 (1998) 203-238 | C133: The Broken Hill Pb-Zn-Ag Orebody, Australia | D133: www.creationism/YEC/Research.xlsm | E133: U_238_03 | F133: Wrong | G133: Wrong | H133: Wrong | I133: Wrong | J133: Wrong | K133: Wrong
A134: 133 | B134: http://geosphere.gsapubs.org/content/suppl/2010/09/29/6.5.663.DC1/530_supp1.xls | C134: Hydrothermal Zebra Dolomite, Geosphere, October 2010, Volume 6, Number 5, Pages 663-690 | D134: =("www.creationism/YEC/" & E134 & ".xls") -> www.creationism/YEC/Very_Old_A.xls | E134: Very_Old_A | F134: Pb-208/Th-232 | G134: 277726.6262 | H134: 6643.450942 | I134: 271083.1753 | J134: 90689.60717 | K134: 416 | N134: 1 | O134: 1 | P134: 235 | Q134: =SUM(L134:P134) -> 237
A135: 134 | B135: www.geokem.com/files/Av-Andesite2.xls | C135: None | D135: =("www.creationism/YEC/" & E135 & ".xls") -> www.creationism/YEC/Very_Old_A_1.xls | E135: Very_Old_A_1 | F135: Pb-207/Pb-206 | G135: 5107.990543 | H135: 4951.827381 | I135: 156.1631622 | J135: 4994.766653 | K135: 0 | L135: 12 | M135: 6 | Q135: 18
A136: 135 | B136: http://www1.tecnet.or.jp/lab/data/db_sci/MORB.xls | C136: None | D136: =("www.creationism/YEC/" & E136 & ".xls") -> www.creationism/YEC/Very_Old_A_2.xls | E136: Very_Old_A_2 | F136: Pb-207/Pb-206 | G136: 5071 | H136: 4907 | I136: 164 | J136: 5011.256579 | K136: 0 | L136: 52 | M136: 100 | Q136: 152
A137: 136 | B137: http://www1.tecnet.or.jp/lab/data/db_sci/OIB.XLS | C137: None | D137: =("www.creationism/YEC/" & E137 & ".xls") -> www.creationism/YEC/Very_Old_A_3.xls | E137: Very_Old_A_3 | F137: Pb-207/Pb-206 | G137: 5060.758281 | H137: 4824.373811 | I137: 236.3844701 | J137: 4971.69124 | K137: 0 | L137: 68 | M137: 25 | Q137: 93
A138: 137 | B138: Earth and Planetary Science Letters, Volume 94 (1989) Pages 239 | C138: U/Pb Whole-Rock and Mineral Dating | D138: =("www.creationism/YEC/" & E138 & ".xls") -> www.creationism/YEC/Very_Old_A_4.xls | E138: Very_Old_A_4 | F138: Pb-207/Pb-206 | G138: 5016.384572 | H138: 667.5413667 | I138: 4348.843205 | J138: 3643.556374 | K138: 316 | L138: 10 | M138: 3 | Q138: 13
A139: 138 | B139: www.nature.com/ngeo/journal/v5/n4/extref/ngeo1432-s2.xls | C139: The East African Rift, Nature Geoscience, 2012, Volume 5, Pages 289–294 | D139: =("www.creationism/YEC/" & E139 & ".xls") -> www.creationism/YEC/Very_Old_A_5.xls | E139: Very_Old_A_5 | F139: Pb-207/Pb-206 | G139: 4895.052575 | H139: 4512.857043 | I139: 382.195532 | J139: 4672.608739 | K139: 25 | L139: 13 | Q139: 13
A140: 139 | B140: http://geosphere.gsapubs.org/content/suppl/2012/03/19/GES00728.1.DC1/GS728_SuppT02.xls | C140: Cenozoic Volcanism, Geosphere, April 2012, Volume 8, Number 2, Pages 265-291 | D140: =("www.creationism/YEC/" & E140 & ".xls") -> www.creationism/YEC/Very_Old_A_6.xls | E140: Very_Old_A_6 | F140: Pb-207/Pb-206 | G140: 5093.769213 | H140: 4889.818429 | I140: 203.950784 | J140: 4974.71207 | K140: 20 | L140: 366 | M140: 31 | Q140: 397
A141: 140 | B141: http://geosphere.gsapubs.org/content/suppl/2009/02/18/4.5.829.DC1/10.1130_GES00166-S1.xls | C141: The Sierra Nevada Lithosphere, Geosphere, October 2008, Volume 4, Number 5, Pages 829-853 | D141: =("www.creationism/YEC/" & E141 & ".xls") -> www.creationism/YEC/Very_Old_A_7.xls | E141: Very_Old_A_7 | F141: Pb-207/Pb-206 | G141: 5603.411481 | H141: 4952.482366 | I141: 650.929115 | J141: 4970.679927 | K141: 30 | L141: 84 | M141: 1 | Q141: 85
A142: 141 | B142: http://www.nature.com/nature/journal/v485/n7400/extref/nature11140-s3.xls | C142: Continental Growth 3.2 Gyr Ago, Nature, 2012, Volume 485, Pages 627–630 | D142: =("www.creationism/YEC/" & E142 & ".xls") -> www.creationism/YEC/Very_Old_A_8.xls | E142: Very_Old_A_8 | F142: Pb-208/Th-232 | G142: 11517.37782 | H142: -24295.18185 | I142: 11059.86254 | J142: 3334.00713 | K142: 3200 | L142: 10 | M142: 9 | N142: 1 | O142: 1 | Q142: 21
A143: 142 | B143: http://pubs.usgs.gov/of/2008/1142/tables/table04.xls | C143: Uranium-Lead Zircon Ages | D143: =("www.creationism/YEC/" & E143 & ".xls") -> www.creationism/YEC/Very_Old_A_9.xls | E143: Very_Old_A_9 | F143: Pb-206⁄U-238 | G143: 23420.82389 | H143: 3108.390029 | I143: 20312.43386 | J143: 11159.30983 | K143: 250 | L143: 1 | M143: 2 | N143: 6 | O143: 7 | P143: 2 | Q143: 18
A144: 143 | B144: http://pubs.usgs.gov/of/2008/1142/tables/table04.xls | C144: Uranium-Lead Zircon Ages | D144: =("www.creationism/YEC/" & E144 & ".xls") -> www.creationism/YEC/Very_Old_A_9.xls | E144: Very_Old_A_9 | F144: Pb-208/Th-232 | G144: 55110.33562 | H144: 6129.91643 | I144: 48980.41919 | J144: 17193.12578 | K144: 250 | N144: 6 | O144: 9 | P144: 5 | Q144: 20
A145: 144 | B145: http://pubs.usgs.gov/of/2008/1142/tables/table04.xls | C145: Uranium-Lead Zircon Ages | D145: =("www.creationism/YEC/" & E145 & ".xls") -> www.creationism/YEC/Very_Old_A_9.xls | E145: Very_Old_A_9 | F145: Pb-207/Pb-206 | G145: 4997.396229 | H145: 4798.849441 | I145: 198.5467876 | J145: 4932.673269 | K145: 250 | L145: 20 | Q145: 20
A146: 145 | B146: http://www.geo.uu.nl/~kikeb/thesis/database/upb/KB746.xls | C146: Pilbara Craton in Western Australia | D146: =("www.creationism/YEC/" & E146 & ".xls") -> www.creationism/YEC/Very_Old_B.xls | E146: Very_Old_B | F146: Pb-208/Th-232 | G146: 8728 | H146: 3334 | I146: 5394 | J146: 5538.55 | K146: 3200 | L146: 3 | M146: 7 | N146: 6 | Q146: 16
A147: 146 | B147: www.geo.uu.nl/~kikeb/thesis/database/upb/KB770.xls | C147: Pilbara Craton in Western Australia | D147: =("www.creationism/YEC/" & E147 & ".xls") -> www.creationism/YEC/Very_Old_C.xls | E147: Very_Old_C | F147: Pb-208/Th-232 | G147: 17500 | H147: 535 | I147: 16965 | J147: 6286.356436 | K147: 3200 | L147: 5 | M147: 17 | N147: 35 | O147: 11 | Q147: 68
A148: 147 | B148: www.ldeo.columbia.edu/~cai/Pb.xls | C148: None | D148: =("www.creationism/YEC/" & E148 & ".xls") -> www.creationism/YEC/Very_Old_D.xls | E148: Very_Old_D | F148: Pb-207/Pb-206 | G148: 7812.818105 | H148: 4972.139276 | I148: 2840.678828 | J148: 5522.072234 | K148: 0 | L148: 23 | M148: 30 | N148: 19 | Q148: 72
A149: 148 | B149: http://geosphere.gsapubs.org/content/suppl/2009/02/18/3.6.683.DC1/00138_App3.xls | C149: Timing of sedimentation, metamorphism, and plutonism | D149: =("www.creationism/YEC/" & E149 & ".xls") -> www.creationism/YEC/Very_Old_E.xls | E149: Very_Old_E | F149: Pb-208/Th-232 | G149: 80531.81235 | H149: 488.9463458 | I149: 80042.86601 | J149: 19539.45797 | K149: 478 | N149: 1 | O149: 5 | P149: 22 | Q149: 28
A150: 149 | B150: http://geosphere.gsapubs.org/content/suppl/2009/02/18/3.6.683.DC1/00138_App3.xls | C150: Timing of sedimentation, metamorphism, and plutonism | D150: =("www.creationism/YEC/" & E150 & ".xls") -> www.creationism/YEC/Very_Old_E.xls | E150: Very_Old_E | F150: Pb-208/Th-232 | G150: 80531.81235 | H150: 488.9463458 | I150: 80042.86601 | J150: 15661.20178 | K150: 478 | N150: 1 | O150: 75 | P150: 22 | Q150: =SUM(L150:P150) -> 98
A151: 150 | B151: http://geosphere.gsapubs.org/content/suppl/2009/02/18/3.6.683.DC1/00138_App3.xls | C151: Timing of sedimentation, metamorphism, and plutonism | D151: =("www.creationism/YEC/" & E151 & ".xls") -> www.creationism/YEC/Very_Old_E.xls | E151: Very_Old_E | F151: Pb-207/Pb-206 | G151: 5206.834706 | H151: 5198.832721 | I151: 8.001984886 | J151: 5202.380713 | K151: 478 | M151: 70 | Q151: 70
A152: 151 | B152: http://geosphere.gsapubs.org/content/suppl/2009/02/18/3.6.683.DC1/00138_App3.xls | C152: Timing of sedimentation, metamorphism, and plutonism | D152: =("www.creationism/YEC/" & E152 & ".xls") -> www.creationism/YEC/Very_Old_E.xls | E152: Very_Old_E | F152: Pb-206/U-238 | G152: 5100.69249 | H152: 4497.154071 | I152: 603.5384193 | J152: 4695.640208 | K152: 478 | L152: 52 | M152: 5 | Q152: 57
A153: 152 | B153: http://petrology.oxfordjournals.org/content/suppl/2011/05/11/egr022.DC1/Appendix_table_1.xls | C153: Two Primary Basalt Magma Types, Journal Petrology, June 1, 2011, Volume 52, Number 6, Pages 1143-1183 | D153: =("www.creationism/YEC/" & E153 & ".xls") -> www.creationism/YEC/Very_Old_F.xls | E153: Very_Old_F | F153: Pb-207/Pb-206 | G153: 4977.089883 | H153: 4966.31535 | I153: 10.7745335 | J153: 4970.506754 | K153: 7 | L153: 10 | Q153: 10
A154: 153 | B154: http://petrology.oxfordjournals.org/content/suppl/2004/09/24/egh060.DC1/Table_3.xls | C154: U–Th and U–Pb Systematics in Zircons, Journal Petrology, January 1, 2005, volume 46, Number 1, Pages 3-32 | D154: =("www.creationism/YEC/" & E154 & ".xls") -> www.creationism/YEC/Very_Old_G.xls | E154: Very_Old_G | F154: Pb-208/Th-232 | G154: 41459.77337 | H154: 11390.29784 | I154: 30069.47553 | J154: 22846.94083 | K154: 500 | O154: 16 | P154: 29 | Q154: 45
A155: 154 | B155: http://petrology.oxfordjournals.org/content/suppl/2007/02/14/egl079.DC1/egl079-jpet-may-06-0042-File004.xls | C155: Using LA-ICPMS Mapping, Journal Of Petrology, February 9, 2007, Pages 1 -18 | D155: =("www.creationism/YEC/" & E155 & ".xls") -> www.creationism/YEC/Very_Old_H.xls | E155: Very_Old_H | F155: Pb-207/Pb-206 | G155: 5012.347856 | H155: 4962.741566 | I155: 49.60628952 | J155: 4978.444411 | K155: 1250 | L155: 17 | M155: 3 | Q155: 20
A156: 155 | B156: www.geo.unibe.ch/isotopegeology/homepbnd.xls | C156: None | D156: =("www.creationism/YEC/" & E156 & ".xls") -> www.creationism/YEC/Very_Old_J.xls | E156: Very_Old_J | F156: Pb-207/Pb-206 | G156: 5454 | H156: 4945 | I156: 509 | J156: 5267.234848 | K156: 0 | L156: 15 | M156: 249 | Q156: 264
A157: 156 | B157: www.geology.cwu.edu/facstaff/wendy/ecrafc/Longvalley.xls | C157: None | D157: =("www.creationism/YEC/" & E157 & ".xls") -> www.creationism/YEC/Very_Old_K.xls | E157: Very_Old_K | F157: Pb-207/Pb-206 | G157: 4959.481397 | H157: 4950.917803 | I157: 8.563593557 | J157: 4954.018845 | K157: 0 | L157: 11 | Q157: 11
A158: 157 | B158: www.nyecounty.com/RID_data/rid4391.xls | C158: None | D158: =("www.creationism/YEC/" & E158 & ".xls") -> www.creationism/YEC/Very_Old_L.xls | E158: Very_Old_L | F158: Pb-207/Pb-206 | G158: 5015.261968 | H158: 4981.161642 | I158: 34.10032627 | J158: 4996.239706 | K158: 0 | L158: 6 | M158: 4 | Q158: 10
A159: 158 | B159: http://petrology.oxfordjournals.org/content/suppl/2008/03/20/egn018.DC1/jpet-jun-07-0081-File027.xls | C159: Geochemistry of the Volcan de l’ Androy Basalt, Journal Of Petrology April 19, 2008 | D159: =("www.creationism/YEC/" & E159 & ".xls") -> www.creationism/YEC/Very_Old_M.xls | E159: Very_Old_M | F159: Pb-207/Pb-206 | G159: 5052.75948 | H159: 4980.249943 | I159: 72.50953725 | J159: 5005.517745 | K159: 85 | L159: 19 | M159: 27 | Q159: 46
A160: 159 | B160: http://petrology.oxfordjournals.org/content/suppl/2006/12/23/egl053.DC1/Electronic_Appendices_1-5.xls | C160: The Somuncura Large Igneous Province, Journal Of Petrology, September 21, 2006 | D160: =("www.creationism/YEC/" & E160 & ".xls") -> www.creationism/YEC/Very_Old_N.xls | E160: Very_Old_N | F160: Pb-207/Pb-206 | G160: 5021.477145 | H160: 4944.582141 | I160: 76.89500397 | J160: 5001.337955 | K160: 30 | L160: 6 | M160: 9 | Q160: 15
A161: 160 | B161: http://petrology.oxfordjournals.org/content/suppl/2011/05/11/egr024.DC1/Suppl_Table_1.xls | C161: Geochemical Composition of K-rich Lavas, Journal Of Petrology, (2011) 52 (6): 1185-1206. | D161: =("www.creationism/YEC/" & E161 & ".xls") -> www.creationism/YEC/Very_Old_P.xls | E161: Very_Old_P | F161: Pb-207/Pb-206 | G161: 5037.74905 | H161: 5020.974682 | I161: 16.77436798 | J161: 5028.50093 | K161: 0 | M161: 32 | Q161: 32
A162: 161 | B162: http://ir.library.oregonstate.edu/xmlui/bitstream/handle/1957/12572/APPENDIX 2 geochem.xls | C162: None | D162: =("www.creationism/YEC/" & E162 & ".xls") -> www.creationism/YEC/Very_Old_Q.xls | E162: Very_Old_Q | F162: Pb-207/Pb-206 | G162: 4970.810453 | H162: 4963.090941 | I162: 7.719511952 | J162: 4966.53071 | K162: 0 | L162: 11 | Q162: 11
A163: 162 | B163: www.ruf.rice.edu/~ctlee/BOXMODEL.xls | C163: Box Model | D163: =("www.creationism/YEC/" & E163 & ".xls") -> www.creationism/YEC/Very_Old_R.xls | E163: Very_Old_R | F163: Pb-208/Th-232 | G163: 24919.30958 | H163: 9366.995126 | I163: 15552.31445 | J163: 17080.26318 | K163: 1500 | N163: 4 | O163: 318 | P163: 119 | Q163: 441
A164: 163 | B164: www.ruf.rice.edu/~ctlee/BOXMODEL.xls | C164: Box Model | D164: =("www.creationism/YEC/" & E164 & ".xls") -> www.creationism/YEC/Very_Old_R.xls | E164: Very_Old_R | F164: Pb-207/Pb-206 | G164: 5511 | H164: 4946 | I164: 565 | J164: 5274.569161 | K164: 1500 | L164: 23 | M164: 418 | Q164: 441
A165: 164 | B165: www.ruf.rice.edu/~ctlee/BOXMODEL.xls | C165: Box Model | D165: =("www.creationism/YEC/" & E165 & ".xls") -> www.creationism/YEC/Very_Old_R.xls | E165: Very_Old_R | F165: Pb-207/U-235 | G165: 5606.480813 | H165: 841.7915911 | I165: 4764.689222 | J165: 3118.409401 | K165: 1500 | L165: 42 | M165: 30 | Q165: 72
A166: 165 | B166: www.ruf.rice.edu/~ctlee/BOXMODEL.xls | C166: Box Model | D166: =("www.creationism/YEC/" & E166 & ".xls") -> www.creationism/YEC/Very_Old_R.xls | E166: Very_Old_R | F166: Pb-206/U-238 | G166: 7630.559589 | H166: 2040.11984 | I166: 5590.43975 | J166: 4419.134578 | K166: 1500 | L166: 42 | M166: 105 | N166: 51 | Q166: 198
A167: 166 | B167: http://petrology.oxfordjournals.org/content/suppl/2007/11/12/egm059.DC1/jpet-jul-07-0097-File018.xls | C167: Rocks in the Western Carpathian Arc, Journal Petrology, December 1, 2007, Volume 48, Number 12, Pages 2261-2287 | D167: =("www.creationism/YEC/" & E167 & ".xls") -> www.creationism/YEC/Very_Old_S.xls | E167: Very_Old_S | F167: Pb-207/Pb-206 | G167: 4987.137463 | H167: 4952.041643 | I167: 35.09581949 | J167: 4976.165061 | K167: 16 | L167: 28 | Q167: 28
A168: 167 | B168: http://petrology.oxfordjournals.org/content/suppl/2000/06/26/41.7.951.DC1/egd056SUPPLEM.xls | C168: Palaeogene Continental to Oceanic, Journal Of Petrology, 2000, Volume 41, Number 7, Pages 951-966 | D168: =("www.creationism/YEC/" & E168 & ".xls") -> www.creationism/YEC/Very_Old_T.xls | E168: Very_Old_T | F168: Pb-207/Pb-206 | G168: 5315.722521 | H168: 5009.846714 | I168: 305.8758066 | J168: 5125.552687 | K168: 50 | M168: 29 | Q168: 29
A169: 168 | B169: http://petrology.oxfordjournals.org/content/suppl/2004/04/19/45.5.1069.DC1/egh004supp.xls | C169: East African Rift System, Journal Petrology, May 1, 2004, Volume 45, Number 5, Pages 1069-1088 | D169: =("www.creationism/YEC/" & E169 & ".xls") -> www.creationism/YEC/Very_Old_U.xls | E169: Very_Old_U | F169: Pb-207/Pb-206 | G169: 4985.76926 | H169: 4910.90418 | I169: 74.86507929 | J169: 4956.768602 | K169: 30 | L169: 17 | Q169: 17
A170: 169 | B170: http://petrology.oxfordjournals.org/content/suppl/2010/03/31/egq009.DC1/ElecApp_A12_TephraFromOutsideIzuBonin.xls | C170: Sr–Nd–Pb–Hf Isotope Evolution, Journal Of Petrology, 2010, Volume 51, Number 5, Pages 993-1026 | D170: =("www.creationism/YEC/" & E170 & ".xls") -> www.creationism/YEC/Very_Old_V.xls | E170: Very_Old_V | F170: Pb-207/Pb-206 | G170: 5008.212688 | H170: 5004.030633 | I170: 4.182054967 | J170: 5005.796843 | K170: 50 | M170: 6 | Q170: 6
A171: 170 | B171: http://petrology.oxfordjournals.org/content/suppl/2007/08/13/egm050v1.DC1/jpet-jul-07-0104-File002.xls | C171: Development of a Continental Volcanic Field, Journal of Petrology, October 3, 2007 | D171: =("www.creationism/YEC/" & E171 & ".xls") -> www.creationism/YEC/Very_Old_W.xls | E171: Very_Old_W | F171: Pb-207/Pb-206 | G171: 5089.839171 | H171: 5017.933995 | I171: 71.90517614 | J171: 5050.893329 | K171: 10 | M171: 29 | Q171: 29
A172: 171 | B172: http://petrology.oxfordjournals.org/content/suppl/1999/12/17/40.6.873.DC1/morriso.xls | C172: Tertiary Mull Volcano, Western Scotland, Journal of Petrology, 1999, Volume 40, Number 6, Pages 873-908 | D172: =("www.creationism/YEC/" & E172 & ".xls") -> www.creationism/YEC/Very_Old_X.xls | E172: Very_Old_X | F172: Pb-207/Pb-206 | G172: 5173.81025 | H172: 4987.335464 | I172: 186.4747855 | J172: 5053.938825 | K172: 60 | L172: 1 | M172: 6 | Q172: 7
A173: 172 | B173: http://petrology.oxfordjournals.org/content/suppl/2007/02/15/egl078.DC1/jpet-aug-06-0094-File006.xls | C173: Mantle Composition, Journal Of Petrology, 2007, Volume 48, Number 4, Pages 693-709 | D173: =("www.creationism/YEC/" & E173 & ".xls") -> www.creationism/YEC/Very_Old_Y.xls | E173: Very_Old_Y | F173: Pb-207/Pb-206 | G173: 5115.202146 | H173: 3918.022835 | I173: 1197.17931 | J173: 4969.274026 | K173: 0 | L173: 1073 | M173: 471 | Q173: 1544
A174: 173 | B174: http://pubs.usgs.gov/of/2008/1142/pdf/OF08-1142_508.pdf | C174: Uranium-Lead Zircon Ages | D174: =("www.creationism/YEC/" & E174 & ".xls") -> www.creationism/YEC/Very_Old_A.xls | E174: Very_Old_A | F174: Pb-206⁄U-238 | G174: 23420.82389 | H174: 1714.841773 | I174: 21705.98211 | J174: 11352.88129 | K174: 416 | M174: 1 | N174: 7 | O174: 10 | P174: 1 | Q174: =SUM(L174:P174) -> 19
A175: 174 | B175: http://pubs.usgs.gov/of/2008/1142/pdf/OF08-1142_508.pdf | C175: Uranium-Lead Zircon Ages | D175: =("www.creationism/YEC/" & E175 & ".xls") -> www.creationism/YEC/Very_Old_A.xls | E175: Very_Old_A | F175: Pb-208/Th-232 | G175: 55110.33562 | H175: 6129.91643 | I175: 48980.41919 | J175: 17193.12578 | K175: 416 | N175: 6 | O175: 9 | P175: 5 | Q175: 20
A176: 175 | B176: http://pubs.usgs.gov/of/2008/1142/pdf/OF08-1142_508.pdf | C176: Uranium-Lead Zircon Ages | D176: =("www.creationism/YEC/" & E176 & ".xls") -> www.creationism/YEC/Very_Old_A.xls | E176: Very_Old_A | F176: Pb-207⁄Pb-206 | G176: 4997.441905 | H176: 4798.877724 | I176: 198.5641809 | J176: 4932.677801 | K176: 416 | L176: 20 | Q176: 20
A177: 176 | B177: www.nature.com/ngeo/journal/v4/n12/extref/ngeo1331-s2.xls | C177: Origin of Indian Ocean Seamount Province, Nature Geoscience, 2011, Volume 4, Pages 883-887 | D177: =("www.creationism/YEC/" & E177 & ".xls") -> www.creationism/YEC/Very_Old_B_1.xls | E177: Very_Old_B_1 | F177: Pb-207/Pb-206 | G177: 5087.354282 | H177: 4921.396132 | I177: 165.9581498 | J177: 5015.467732 | K177: 6 | L177: 26 | M177: 37 | Q177: 63
A178: 177 | B178: www.nature.com/ngeo/journal/v4/n12/extref/ngeo1331-s2.xls | C178: Origin of Indian Ocean Seamount Province, Nature Geoscience, 2011, Volume 4, Pages 883-887 | D178: =("www.creationism/YEC/" & E178 & ".xls") -> www.creationism/YEC/Very_Old_B_1.xls | E178: Very_Old_B_1 | F178: Pb-206/U-238 | G178: 18209.96405 | H178: 889.7232116 | I178: 17320.24084 | J178: 5191.16108 | K178: 6 | L178: 2 | M178: 11 | N178: 9 | O178: 8 | Q178: 30
A179: 178 | B179: www.nature.com/ngeo/journal/v4/n12/extref/ngeo1331-s2.xls | C179: Origin of Indian Ocean Seamount Province, Nature Geoscience, 2011, Volume 4, Pages 883-887 | D179: =("www.creationism/YEC/" & E179 & ".xls") -> www.creationism/YEC/Very_Old_B_1.xls | E179: Very_Old_B_1 | F179: Pb-208/Th-232 | G179: 28677.02802 | H179: 1943.20652 | I179: 26733.8215 | J179: 7739.957353 | K179: 6 | L179: 6 | M179: 4 | N179: 25 | O179: 16 | P179: 1 | Q179: 52
A180: 179 | B180: www.nature.com/nature/journal/v476/n7361/extref/nature10321-s2.xls | C180: The Hawaiian Mantle Plume, Nature, 2011, Volume 476, Pages 434–437 | D180: =("www.creationism/YEC/" & E180 & ".xls") -> www.creationism/YEC/Very_Old_B_2.xls | E180: Very_Old_B_2 | F180: Pb-207/Pb-206 | G180: 5033.212828 | H180: 4951.664643 | I180: 81.54818505 | J180: 5000.416384 | K180: 1000 | L180: 52 | M180: 56 | Q180: 108
A181: 180 | B181: www.nature.com/nature/journal/v476/n7361/extref/nature10321-s2.xls | C181: The Hawaiian Mantle Plume, Nature, 2011, Volume 476, Pages 434–437 | D181: =("www.creationism/YEC/" & E181 & ".xls") -> www.creationism/YEC/Very_Old_B_2.xls | E181: Very_Old_B_2 | F181: Pb-207/Pb-206 | G181: 5045.765239 | H181: 4927.066857 | I181: 118.6983816 | J181: 5000.797277 | K181: 1000 | L181: 104 | M181: 126 | Q181: 230
A182: 181 | B182: www.nature.com/nature/journal/v434/n7035/extref/nature03402-s1.xls | C182: The Hawaiian Mantle Plume, Nature, 2005, Volume 434, Pages 851-856 | D182: =("www.creationism/YEC/" & E182 & ".xls") -> www.creationism/YEC/Very_Old_B_3.xls | E182: Very_Old_B_3 | F182: Pb-207/Pb-206 | G182: 5034.731679 | H182: 4972.267977 | I182: 62.46370171 | J182: 5009.042844 | K182: 0.55 | L182: 37 | M182: 56 | Q182: 93
A183: 182 | B183: www.nature.com/nature/journal/v485/n7400/extref/nature11140-s3.xls | C183: Continental Growth 3.2 Gyr Ago, Nature, 2012, Volume 485, Pages 627–630 | D183: =("www.creationism/YEC/" & E183 & ".xls") -> www.creationism/YEC/Very_Old_B_4.xls | E183: Very_Old_B_4 | F183: Pb-208/Th-232 | G183: 11517.37782 | H183: 457.5152838 | I183: 11059.86254 | J183: 3334.00713 | K183: 3200 | L183: 10 | M183: 9 | N183: 1 | O183: 1 | Q183: =SUM(L183:P183) -> 21
A184: 183 | B184: www.nature.com/ngeo/journal/v4/n12/extref/ngeo1263-s1.xls | C184: Pacific Hotspots, Nature Geoscience, 2011, Volume 4, Pages 874–878 | D184: =("www.creationism/YEC/" & E184 & ".xls") -> www.creationism/YEC/Very_Old_B_5.xls | E184: Very_Old_B_5 | F184: Pb-207/Pb-206 | G184: 4962.737138 | H184: 4930.33291 | I184: 32.40422735 | J184: 4940.42982 | L184: 82 | Q184: 82
A185: 184 | B185: www.nature.com/ngeo/journal/v4/n12/extref/ngeo1263-s1.xls | C185: Pacific Hotspots, Nature Geoscience, 2011, Volume 4, Pages 874–878 | D185: =("www.creationism/YEC/" & E185 & ".xls") -> www.creationism/YEC/Very_Old_B_5.xls | E185: Very_Old_B_5 | F185: Pb-207/Pb-206 | G185: 5035.768061 | H185: 4871.337946 | I185: 164.4301152 | J185: 4939.821584 | L185: 78 | M185: 1 | Q185: 79
A186: 185 | B186: www.nature.com/ngeo/journal/v4/n12/extref/ngeo1263-s1.xls | C186: Pacific Hotspots, Nature Geoscience, 2011, Volume 4, Pages 874–878 | D186: =("www.creationism/YEC/" & E186 & ".xls") -> www.creationism/YEC/Very_Old_B_5.xls | E186: Very_Old_B_5 | F186: Pb-207/Pb-206 | G186: 5031.989629 | H186: 4974.105728 | I186: 57.8839008 | J186: 4997.436941 | L186: 186 | M186: 93 | Q186: 279
A187: 186 | B187: www.nature.com/nature/journal/v447/n7148/extref/nature05920-s2.xls | C187: The Earth's Upper Mantle, Nature, 2007, Volume 447, Pages 1069-1074 | D187: =("www.creationism/YEC/" & E187 & ".xls") -> www.creationism/YEC/Very_Old_B_6.xls | E187: Very_Old_B_6 | F187: Pb-207/Pb-206 | G187: 5129.3025 | H187: 4882.176415 | I187: 247.1260848 | J187: 4996.055496 | L187: 585 | M187: 494 | Q187: 1079
A188: 187 | B188: http://www.navdat.org/NavdatSearch | C188: None | D188: =("www.creationism/YEC/" & E188 & ".xls") -> www.creationism/YEC/Very_Old_B_7.xls | E188: Very_Old_B_7 | F188: Pb-207/Pb-206 | G188: 5843.006345 | H188: 4598.157538 | I188: 1244.848807 | J188: 4987.086068 | K188: 0 | L188: 2384 | M188: 937 | Q188: =SUM(L188:P188) -> 3321
A189: 188 | B189: http://georoc.mpch-mainz.gwdg.de/georoc/webseite/Expert%20Datasets/Lustrino_Wilson09.xls | C189: None | D189: =("www.creationism/YEC/" & E189 & ".xls") -> www.creationism/YEC/Very_Old_B_8.xls | E189: Very_Old_B_8 | F189: Pb-207/Pb-206 | G189: 5083.930534 | H189: 4838.507722 | I189: 245.4228124 | J189: 4935.983288 | K189: 0 | L189: 981 | M189: 30 | Q189: 1011
A190: 189 | B190: http://georoc.mpch-mainz.gwdg.de/georoc/ | C190: None | D190: =("www.creationism/YEC/" & E190 & ".xls") -> www.creationism/YEC/Very_Old_B_9.xls | E190: Very_Old_B_9 | F190: Pb-207/Pb-206 | G190: 5060.758281 | H190: 4908.403206 | I190: 152.355075 | J190: 5020.654501 | K190: 0 | L190: 10 | M190: 34 | Q190: 44
A191: 190 | B191: http://www.earthchem.org/deeplith/search | C191: None | D191: =("www.creationism/YEC/" & E191 & ".xls") -> www.creationism/YEC/Very_Old_C_1.xls | E191: Very_Old_C_1 | F191: Pb-207/Pb-206 | G191: 5247.97303 | H191: 4711.957286 | I191: 536.015744 | J191: 4991.941453 | K191: 0 | L191: 139 | M191: 79 | Q191: 218
A192: 191 | B192: http://www.earthchem.org/deeplith/search | C192: None | D192: =("www.creationism/YEC/" & E192 & ".xls") -> www.creationism/YEC/Very_Old_C_1.xls | E192: Very_Old_C_1 | F192: Pb-206/U-238 | G192: 12617.7803 | H192: 653.4834372 | I192: 11964.29686 | J192: 5278.02166 | K192: 0 | L192: 3 | M192: 8 | N192: 15 | O192: 3 | Q192: 29
A193: 192 | B193: http://www.earthchem.org/deeplith/search | C193: None | D193: =("www.creationism/YEC/" & E193 & ".xls") -> www.creationism/YEC/Very_Old_C_1.xls | E193: Very_Old_C_1 | F193: Pb-208/Th-232 | G193: 35177.37575 | H193: 1806.084833 | I193: 33371.29092 | J193: 13644.43785 | K193: 0 | M193: 1 | N193: 1 | O193: 7 | P193: 1 | Q193: 10
A194: 193 | B194: http://pubs.usgs.gov/of/1987/0259/report.pdf | C194: Pb Isotope Database | D194: =("www.creationism/YEC/" & E194 & ".xls") -> www.creationism/YEC/Very_Old_C_2.xls | E194: Very_Old_C_2 | F194: Pb-207/Pb-206 | G194: 5149.959486 | H194: 4848.52476 | I194: 301.4347266 | J194: 4975.490669 | L194: 154 | M194: 53 | Q194: =SUM(L194:P194) -> 207
A195: 194 | B195: http://earthref.org/ERDA/download:147/ | C195: Geochemistry Geophysics Geosystems, 2003, Volume 4, Page 1089, | D195: =("www.creationism/YEC/" & E195 & ".xls") -> www.creationism/YEC/Very_Old_C_3.xls | E195: Very_Old_C_3 | F195: Pb-206/U-238 | G195: 38340 | H195: 3125 | I195: 35215 | J195: 15345.2381 | K195: 100 | L195: 1 | M195: 3 | N195: 11 | O195: 15 | P195: 11 | Q195: 41
A196: 195 | B196: http://earthref.org/ERDA/download:147/ | C196: Geochemistry Geophysics Geosystems, 2003, Volume 4, Page 1089, | D196: =("www.creationism/YEC/" & E196 & ".xls") -> www.creationism/YEC/Very_Old_C_3.xls | E196: Very_Old_C_3 | F196: Pb-207/U-235 | G196: 10872 | H196: 4385 | I196: 6487 | J196: 7019.375 | K196: 100 | L196: 3 | M196: 10 | N196: 23 | O196: 3 | Q196: 39
A197: 196 | B197: http://earthref.org/ERDA/download:147/ | C197: Geochemistry Geophysics Geosystems, 2003, Volume 4, Page 1089, | D197: =("www.creationism/YEC/" & E197 & ".xls") -> www.creationism/YEC/Very_Old_C_3.xls | E197: Very_Old_C_3 | F197: Pb-207/Pb-206 | G197: 5043.007487 | H197: 4759.912027 | I197: 283.0954604 | J197: 4935.721475 | K197: 100 | L197: 88 | M197: 14 | Q197: 102
A198: 197 | B198: http://earthref.org/ERDA/download:147/ | C198: Geochemistry Geophysics Geosystems, 2003, Volume 4, Page 1089, | D198: =("www.creationism/YEC/" & E198 & ".xls") -> www.creationism/YEC/Very_Old_C_3.xls | E198: Very_Old_C_3 | F198: Pb-208/Th-232 | G198: 82865 | H198: 5577 | I198: 77288 | J198: 39068.26087 | K198: 100 | M198: 2 | N198: 4 | O198: 2 | P198: 15 | Q198: 23
A199: 198 | B199: ftp://rock.geosociety.org/pub/reposit/2008/2008019.xls | C199: None | D199: =("www.creationism/YEC/" & E199 & ".xls") -> www.creationism/YEC/Very_Old_C_4.xls | E199: Very_Old_C_4 | F199: Pb-207/Pb-206 | G199: 5022.183716 | H199: 4897.260899 | I199: 124.9228168 | J199: 4968.822586 | L199: 132 | M199: 14 | Q199: =SUM(L199:P199) -> 146
A200: 199 | B200: ftp://rock.geosociety.org/pub/reposit/2006/2006049.xls | C200: None | D200: =("www.creationism/YEC/" & E200 & ".xls") -> www.creationism/YEC/Very_Old_C_5.xls | E200: Very_Old_C_5 | F200: Pb-207/Pb-206 | G200: 4988.573482 | H200: 4915.420498 | I200: 73.15298351 | J200: 4968.364788 | L200: 184 | Q200: =SUM(L200:P200) -> 184
... 30 more rows

Sheet 4600_4999
A1: Number | B1: Magazine Reference | C1: Title | D1: Microsoft Excel File | E1: Spreadsheet | F1: Dating Method | G1: MAXIMUM | H1: MINIMUM | I1: DIFFERENCE | J1: AVERAGE | K1: Model Age | L1: 4600 To 4999 | M1: 5000 To 5999 | N1: 6,000 To 9999 | O1: 10,000 To 19,999 | P1: Over 19,999 | Q1: Total
A2: 1 | B2: Chemical Geology, 66 (1987) Pages 193-208 | C2: Pb-Pb Isotope Systematics | D2: www.creationism/YEC/Excellent.xlsm | E2: Excellent_11 | F2: Pb-207/Pb-206 | G2: 5266.730276 | H2: 3829.387178 | I2: 1437.343098 | J2: 4470.951213 | K2: 2700 | L2: 1 | M2: 7 | Q2: =SUM(L2:P2) -> 8 | R2: =LEN(D2) -> 34 | S2: =LEN(P2) -> 0 | T2: =(S2-R2) -> -34 | U2: =RIGHT(P2,T2) ->  | V2: =("www.creationism.com/YEC/" & U2) -> 
A3: 2 | B3: Earth and Planetary Science Letters, 47 (1980) Pages 370-382 | C3: Speculations About The Age Of The Earth | D3: www.creationism/YEC/Excellent.xlsm | E3: Excellent_14 | F3: Pb-207/Pb-206 | G3: 5271.903197 | H3: 4828.497548 | I3: 443.405649 | J3: 5169.7187 | K3: 2662 | L3: 1 | M3: 9 | Q3: 10
A4: 3 | B4: Meteoritics & Planetary Science, 2003, Volume 38, Number 11, Pages 1697 - 1703 | C4: Ion Microprobe U-Th-Pb Dating | D4: www.creationism/YEC/Plot_Index.xlsm | E4: Iso_Plot_003 | F4: Pb-206⁄U-238 | G4: 5650.411461 | H4: 2964.118062 | I4: 2686.293399 | J4: 4299.474308 | K4: 4000 | L4: 1 | M4: 3 | Q4: 4
A5: 4 | B5: Earth And Planetary Science Letters 7 (1969) 141-147 | C5: Uranium, Thorium, And Lead Systematics | D5: www.creationism/YEC/Research.xlsm | E5: Pb_207_07 | F5: Pb-207/Pb-206 | G5: 4821.5498 | H5: 3279.347581 | I5: 1542.202219 | J5: 4213.715491 | K5: 2820 | L5: 1 | Q5: 1
A6: 5 | B6: Meteoritics & Planetary Science 46, Nr 1, 35–52 (2011) | C6: Disturbance Of Isotope Systematics | D6: www.creationism/YEC/206_207.xlsm | E6: Pb-206_08 | F6: Pb-206⁄U-238 | G6: 22145.50286 | H6: 2268.117264 | I6: 19877.38559 | J6: 8087.999424 | K6: 3300 | L6: 1 | M6: 2 | N6: 5 | O6: 2 | P6: 1 | Q6: 11
A7: 6 | B7: Geochimica et Cosmochimica Acta, 1970, Vol. 34, pp. 1039 to 1106. | C7: Model Lead And Radiometric Ages | D7: www.creationism/YEC/206_207.xlsm | E7: Pb-206_09 | F7: Pb-207/Pb-206 | G7: 5239.245885 | H7: 4845.553447 | I7: 393.6924382 | J7: 5160.900983 | K7: 2030 | L7: 1 | M7: 27 | Q7: 28
A8: 7 | B8: Geochimica et Cosmochimica Acta 72 (2008) 5799–5818 | C8: U, Th And Pb Isotope Compositions | D8: www.creationism/YEC/206_207.xlsm | E8: Pb-206_23 | F8: Pb-208/Th-232 | G8: 42037.68124 | H8: 1938.689533 | I8: 40098.9917 | J8: 8096.51606 | K8: 2.588 | L8: 1 | M8: 1 | O8: 4 | P8: 2 | Q8: 8
A9: 8 | B9: Earth and Planetary Science Letters 183 (2000) 93-106 | C9: The Age Of The Lithospheric Mantle | D9: www.creationism/YEC/Research.xlsm | E9: Th_232_02 | F9: Pb-208/Th-232 | G9: 4677.965723 | H9: 169.9945126 | I9: 4507.97121 | J9: 1785.832126 | K9: 267 | L9: 1 | Q9: 1
A10: 9 | B10: http://pubs.usgs.gov/of/2008/1142/tables/table04.xls | C10: Uranium-Lead Zircon Ages | D10: www.creationism/YEC/Very_Old_A_9.xls | E10: Very_Old_A_9 | F10: Pb-206⁄U-238 | G10: 23420.82389 | H10: 3108.390029 | I10: 20312.43386 | J10: 11159.30983 | K10: 250 | L10: 1 | M10: 2 | N10: 6 | O10: 7 | P10: 2 | Q10: 18
A11: 10 | B11: http://petrology.oxfordjournals.org/content/suppl/1999/12/17/40.6.873.DC1/morriso.xls | C11: Tertiary Mull Volcano, Western Scotland, Journal of Petrology, 1999, Volume 40, Number 6, Pages 873-908 | D11: www.creationism/YEC/Very_Old_X.xls | E11: Very_Old_X | F11: Pb-207/Pb-206 | G11: 5173.81025 | H11: 4987.335464 | I11: 186.4747855 | J11: 5053.938825 | K11: 60 | L11: 1 | M11: 6 | Q11: 7
A12: 11 | B12: http://earthref.org/ERDA/download:147/ | C12: Geochemistry Geophysics Geosystems, 2003, Volume 4, Page 1089, | D12: www.creationism/YEC/Very_Old_C_3.xls | E12: Very_Old_C_3 | F12: Pb-206/U-238 | G12: 38340 | H12: 3125 | I12: 35215 | J12: 15345.2381 | K12: 100 | L12: 1 | M12: 3 | N12: 11 | O12: 15 | P12: 11 | Q12: 41
A13: 12 | B13: Chemical Geology, 66 (1987) Pages 193-208 | C13: Pb-Pb Isotope Systematics | D13: www.creationism/YEC/Excellent.xlsm | E13: Excellent_11 | F13: Pb-207/Pb-206 | G13: 5288.67515 | H13: 3719.159529 | I13: 1569.515621 | J13: 4606.260313 | K13: 2700 | L13: 2 | M13: 12 | Q13: 14
A14: 13 | B14: Chemical Geology, 66 (1987) Pages 193-208 | C14: Pb-Pb Isotope Systematics | D14: www.creationism/YEC/Excellent.xlsm | E14: Excellent_11 | F14: Pb-207/Pb-206 | G14: 5288.67515 | H14: 4925.133314 | I14: 363.5418361 | J14: 5124.407879 | K14: 2700 | L14: 2 | M14: 12 | Q14: 14
A15: 14 | B15: Geochimica et Cosmochimica Acta, 2008, Volume 72, Pages 2067 - 2089 | C15: U–Th–Pb Dating Of Secondary Minerals | D15: www.creationism/YEC/Plot_Index.xlsm | E15: Iso_Plot_018 | F15: Pb-206/U-238 | G15: 31192.5545 | H15: 0.5701576211 | I15: 31191.98435 | J15: 4890.692168 | K15: 10 | L15: 2 | M15: 1 | N15: 5 | O15: 6 | P15: 4 | Q15: 18
A16: 15 | B16: Precambrian Research 78 (1996) 261-272 | C16: Whole-Rock Pb/Pb Isotopic Ages | D16: www.creationism/YEC/Research.xlsm | E16: Pb_207_15 | F16: Pb-207/Pb-206 | G16: 5338.975567 | H16: 4299.565566 | I16: 1039.410002 | J16: 5007.88714 | K16: 2700 | L16: 2 | M16: 15 | Q16: 17
A17: 16 | B17: Geochimica et Cosmochimica Acta, Vol. 45. pp. 635 to 645, 1981 | C17: U-Th-Pb Systematics | D17: www.creationism/YEC/206_207.xlsm | E17: Pb-206_12 | F17: Pb-207/Pb-206 | G17: 4747.166785 | H17: 2567.626082 | I17: 2179.540704 | J17: 3774.731199 | K17: 2030 | L17: 2 | Q17: 2
A18: 17 | B18: Earth and Planetary Sctence Letters, 113 (1992) 107-128 | C18: Sr, Nd, and Pb Isotopes | D18: www.creationism/YEC/206_207.xlsm | E18: Pb-206_18 | F18: Pb-206⁄U-238 | G18: 22200.70461 | H18: 58.13189039 | I18: 22142.57272 | J18: 6853.117731 | K18: 3300 | L18: 2 | M18: 5 | N18: 16 | O18: 5 | P18: 2 | Q18: 30
A19: 18 | B19: Earth and Planetary Science Letters 134 (1995) 169-185 | C19: Evolution Of Reunion Hotspot Mantle | D19: www.creationism/YEC/Research.xlsm | E19: Th_232_03 | F19: Pb-206⁄U-238 | G19: 6285.48251 | H19: 3009.915661 | I19: 3275.56685 | J19: 4449.350323 | K19: 66 | L19: 2 | M19: 3 | N19: 2 | Q19: 7
A20: 19 | B20: www.nature.com/ngeo/journal/v4/n12/extref/ngeo1331-s2.xls | C20: Origin of Indian Ocean Seamount Province, Nature Geoscience, 2011, Volume 4, Pages 883-887 | D20: www.creationism/YEC/Very_Old_B_1.xls | E20: Very_Old_B_1 | F20: Pb-206/U-238 | G20: 18209.96405 | H20: 889.7232116 | I20: 17320.24084 | J20: 5191.16108 | K20: 6 | L20: 2 | M20: 11 | N20: 9 | O20: 8 | Q20: 30
A21: 20 | B21: Chemical Geology 233 (2006) Pages 1–45 | C21: Lead Isotope Planetary Profiling | D21: www.creationism/YEC/Excellent.xlsm | E21: Excellent_09 | F21: Pb-207/Pb-206 | G21: 5493.360318 | H21: 4834.799635 | I21: 658.5606829 | J21: 5233.571334 | K21: 4420 | L21: 3 | M21: 10 | Q21: 13
A22: 21 | B22: Meteoritics & Planetary Science, 2004, Volume 39, Number 12, Pages 2033 - 2041 | C22: Ion microprobe U-Th-Pb dating | D22: www.creationism/YEC/Plot_Index.xlsm | E22: Iso_Plot_001 | F22: Pb-206⁄U-238 | G22: 11213.9226 | H22: 1841.714582 | I22: 9372.208018 | J22: 5179.563562 | K22: 1150 | L22: 3 | M22: 1 | N22: 5 | O22: 1 | Q22: 10
A23: 22 | B23: Precambrian Research, 2002, Volume 117, Pages 119 - 143 | C23: 207pb–206pb And 40ar–39ar Ages | D23: www.creationism/YEC/Plot_Index.xlsm | E23: Iso_Plot_008 | F23: Pb-207/Pb-206 | G23: 5049.006386 | H23: 1848.213643 | I23: 3200.792743 | J23: 3768.9565 | K23: 2800 | L23: 3 | M23: 4 | Q23: 7
A24: 23 | B24: Earth and Planetary Science Letters, 1983, Volume 62, Pages 132 - 146 | C24: 40ar/39ar And U-Th-Pb Dating | D24: www.creationism/YEC/Plot_Index.xlsm | E24: Iso_Plot_019 | F24: Pb-207/Pb-206 | G24: 5370.941308 | H24: 4410 | I24: 960.9413083 | J24: 4948.437496 | K24: 4580 | L24: 3 | M24: 10 | Q24: 13
A25: 24 | B25: Earth and Planetary Science Letters, 34 (1977) 419-431 | C25: Lead And Strontium Isotopes In Cretaceous Kimberlites | D25: www.creationism/YEC/Research.xlsm | E25: Pb_207_11 | F25: Pb-207/Pb-206 | G25: 5038.824181 | H25: 4855.778989 | I25: 183.0451915 | J25: 4940.484927 | K25: 100 | L25: 3 | M25: 2 | Q25: 5
A26: 25 | B26: Precambrian Research 78 (1996) 261-272 | C26: Whole-Rock Pb/Pb Isotopic Ages | D26: www.creationism/YEC/Research.xlsm | E26: Pb_207_15 | F26: Pb-207/Pb-206 | G26: 5190.498014 | H26: 4754.837861 | I26: 435.6601531 | J26: 5020.56049 | K26: 2700 | L26: 3 | M26: 10 | Q26: 13
A27: 26 | B27: Earth and Planetary Science Letters 300 (2010) 152–163 | C27: The Solar System Primordial Lead | D27: www.creationism/YEC/206_207.xlsm | E27: Pb-206_05 | F27: Pb-207/Pb-206 | G27: 5381.042629 | H27: 4964.451392 | I27: 416.5912368 | J27: 5259.109615 | K27: 4500 | L27: 3 | M27: 70 | Q27: 73
A28: 27 | B28: http://www.geo.uu.nl/~kikeb/thesis/database/upb/KB746.xls | C28: Pilbara Craton in Western Australia | D28: www.creationism/YEC/Very_Old_B.xls | E28: Very_Old_B | F28: Pb-208/Th-232 | G28: 8728 | H28: 3334 | I28: 5394 | J28: 5538.55 | K28: 3200 | L28: 3 | M28: 7 | N28: 6 | Q28: 16
A29: 28 | B29: http://www.earthchem.org/deeplith/search | C29: None | D29: www.creationism/YEC/Very_Old_C_1.xls | E29: Very_Old_C_1 | F29: Pb-206/U-238 | G29: 12617.7803 | H29: 653.4834372 | I29: 11964.29686 | J29: 5278.02166 | K29: 0 | L29: 3 | M29: 8 | N29: 15 | O29: 3 | Q29: 29
A30: 29 | B30: http://earthref.org/ERDA/download:147/ | C30: Geochemistry Geophysics Geosystems, 2003, Volume 4, Page 1089, | D30: www.creationism/YEC/Very_Old_C_3.xls | E30: Very_Old_C_3 | F30: Pb-207/U-235 | G30: 10872 | H30: 4385 | I30: 6487 | J30: 7019.375 | K30: 100 | L30: 3 | M30: 10 | N30: 23 | O30: 3 | Q30: 39
A31: 30 | B31: Geochimica et Cosmochimica Acta, Vol. 63, No. 3/4, pp. 473–488, 1999 | C31: Pb-Pb and Sm-Nd Isotope Results | D31: www.creationism/YEC/206_207.xlsm | E31: Pb-206_14 | F31: Pb-207/Pb-206 | G31: 5402.485252 | H31: 4342.063203 | I31: 1060.422049 | J31: 5173.115208 | K31: 2800 | L31: 4 | M31: 26 | Q31: 30
A32: 31 | B32: Geochimica et Cosmochimica Acta, Vol. 61, No. 23, pp. 5005-5022, 1997 | C32: Dating Scheelite Stages | D32: www.creationism/YEC/206_207.xlsm | E32: Pb-206_17 | F32: Pb-207/Pb-206 | G32: 5025.904928 | H32: 3830.537865 | I32: 1195.367063 | J32: 4914.361575 | K32: 600 | L32: 4 | M32: 13 | Q32: 17
A33: 32 | B33: Isotope Geoscience, 1 (1983) Pages 23-38 | C33: U-Ph And Ph-Pb Dating Of Kimberlites | D33: www.creationism/YEC/Excellent.xlsm | E33: Excellent_06 | F33: Pb-207/Pb-206 | G33: 5075.775046 | H33: 4532.86719 | I33: 542.9078561 | J33: 4960.760249 | K33: 100 | L33: 5 | M33: 9 | Q33: 14
A34: 33 | B34: Earth and Planetary Science Letters, 42 (1979) Pages 368-378 | C34: Rb-Sr And U-Th-Pb Isotopic Study | D34: www.creationism/YEC/Excellent.xlsm | E34: Excellent_15 | F34: Pb-207/Pb-206 | G34: 5127.244714 | H34: 4845.352334 | I34: 281.8923801 | J34: 5035.002128 | K34: 2000 | L34: 5 | M34: 7 | Q34: =SUM(L34:P34) -> 12
A35: 34 | B35: Earth and Planetary Science Letters, 42 (1979) Pages 368-378 | C35: Sr–Nd–Pb Isotopic Systematics Of Mafic Igneous Rocks | D35: www.creationism/YEC/Excellent.xlsm | E35: Excellent_22 | F35: Pb-207/Pb-206 | G35: 5127.244714 | H35: 4845.352334 | I35: 281.8923801 | J35: 5035.002128 | K35: 100 | L35: 5 | M35: 7 | Q35: 12
A36: 35 | B36: Journal Analytical Atomic Spectrometry, 2002, Volume 17, Pages 922–928 | C36: The Use Of Pb Isotope Ratios | D36: www.creationism/YEC/Excellent.xlsm | E36: Excellent_35 | F36: Wrong | G36: Wrong | H36: Wrong | I36: Wrong | J36: Wrong | K36: Wrong | L36: 5 | M36: 21 | Q36: 26
A37: 36 | B37: Journal of Petrology, 2011, Volume 52, Number 2, Pages 401-430 | C37: Continental Intraplatevolcanism | D37: www.creationism/YEC/Excellent.xlsm | E37: Excellent_36 | F37: Pb-207/Pb-206 | G37: 4968.285153 | H37: 4919.84456 | I37: 48.44059313 | J37: 4950.339495 | K37: 20 | L37: 5 | Q37: 5
A38: 37 | B38: Geochimica et Cosmochimica Acta, 2007, Volume 71, Pages 1583 - 1604 | C38: Pb–Pb Dating Constraints | D38: www.creationism/YEC/Plot_Index.xlsm | E38: Iso_Plot_015 | F38: Pb-207/Pb-206 | G38: 5132.679046 | H38: 4782.860644 | I38: 349.8184015 | J38: 5028.118177 | K38: 4568 | L38: 5 | M38: 9 | Q38: 14
A39: 38 | B39: www.geo.uu.nl/~kikeb/thesis/database/upb/KB770.xls | C39: Pilbara Craton in Western Australia | D39: www.creationism/YEC/Very_Old_C.xls | E39: Very_Old_C | F39: Pb-208/Th-232 | G39: 17500 | H39: 535 | I39: 16965 | J39: 6286.356436 | K39: 3200 | L39: 5 | M39: 17 | N39: 35 | O39: 11 | Q39: 68
A40: 39 | B40: Contributions Mineral Petrology (1984) 85, Pages 376-390 | C40: Pb isotopic and REE geochemistry | D40: www.creationism/YEC/Excellent.xlsm | E40: Excellent_03 | F40: Pb-207/Pb-206 | G40: 4987.495393 | H40: 4904.868945 | I40: 82.62644756 | J40: 4931.930175 | K40: 155 | L40: 6 | Q40: 6
A41: 40 | B41: Earth and Planetary Science Letters, 47 (1980) Pages 370-382 | C41: Speculations About The Age Of The Earth | D41: www.creationism/YEC/Excellent.xlsm | E41: Excellent_14 | F41: Pb-207/Pb-206 | G41: 5300.312251 | H41: 4373.888961 | I41: 926.4232902 | J41: 5078.741108 | K41: 2662 | L41: 6 | M41: 30 | Q41: 36
A42: 41 | B42: Geochimica et Cosmochimica Acta, 2007, Volume 71, Pages 1583 - 1604 | C42: Pb–Pb Dating Constraints | D42: www.creationism/YEC/Plot_Index.xlsm | E42: Iso_Plot_015 | F42: Pb-207/Pb-206 | G42: 5259.100314 | H42: 4618.765866 | I42: 640.3344476 | J42: 5024.109064 | K42: 4568 | L42: 6 | M42: 11 | Q42: 17
A43: 42 | B43: Meteoritics & Planetary Science 46, Nr 1, 35–52 (2011) | C43: Disturbance Of Isotope Systematics | D43: www.creationism/YEC/206_207.xlsm | E43: Pb-206_08 | F43: Pb-207/Pb-206 | G43: 5110.634164 | H43: 4182.585678 | I43: 928.0484861 | J43: 4565.734757 | K43: 3300 | L43: 6 | M43: 2 | Q43: 8
A44: 43 | B44: Precambrian Research 72 ( 1995 ) 247-261 | C44: Carbonate Pb-Pb ages of the Wittenoom Formation | D44: www.creationism/YEC/Research.xlsm | E44: U_238_01 | F44: Pb-207/Pb-206 | G44: 6590.578713 | H44: 3959.403895 | I44: 2631.174818 | J44: 5593.608361 | K44: 2400 | L44: 6 | M44: 2 | N44: 17 | Q44: 25
A45: 44 | B45: www.nyecounty.com/RID_data/rid4391.xls | C45: None | D45: www.creationism/YEC/Very_Old_L.xls | E45: Very_Old_L | F45: Pb-207/Pb-206 | G45: 5015.261968 | H45: 4981.161642 | I45: 34.10032627 | J45: 4996.239706 | K45: 0 | L45: 6 | M45: 4 | Q45: 10
A46: 45 | B46: http://petrology.oxfordjournals.org/content/suppl/2006/12/23/egl053.DC1/Electronic_Appendices_1-5.xls | C46: The Somuncura Large Igneous Province, Journal Of Petrology, September 21, 2006 | D46: www.creationism/YEC/Very_Old_N.xls | E46: Very_Old_N | F46: Pb-207/Pb-206 | G46: 5021.477145 | H46: 4944.582141 | I46: 76.89500397 | J46: 5001.337955 | K46: 30 | L46: 6 | M46: 9 | Q46: 15
A47: 46 | B47: www.nature.com/ngeo/journal/v4/n12/extref/ngeo1331-s2.xls | C47: Origin of Indian Ocean Seamount Province, Nature Geoscience, 2011, Volume 4, Pages 883-887 | D47: www.creationism/YEC/Very_Old_B_1.xls | E47: Very_Old_B_1 | F47: Pb-208/Th-232 | G47: 28677.02802 | H47: 1943.20652 | I47: 26733.8215 | J47: 7739.957353 | K47: 6 | L47: 6 | M47: 4 | N47: 25 | O47: 16 | P47: 1 | Q47: 52
A48: 47 | B48: Mereoritics And PIanetary Science, 2000, Volume 35, Pages 341 - 346 | C48: Uranium-Thorium-Lead Dating | D48: www.creationism/YEC/Plot_Index.xlsm | E48: Iso_Plot_012 | F48: Pb-207/Pb-206 | G48: 5122.990853 | H48: 4900.200529 | I48: 222.790324 | J48: 5012.009072 | K48: 200 | L48: 7 | M48: 6 | Q48: 13
A49: 48 | B49: Earth and Planetary Science Letters, 34 (1977) 419-431 | C49: Lead And Strontium Isotopes In Cretaceous Kimberlites | D49: www.creationism/YEC/Research.xlsm | E49: Pb_207_11 | F49: Pb-207/Pb-206 | G49: 5060.586575 | H49: 4897.870607 | I49: 162.7159675 | J49: 4969.123779 | K49: 100 | L49: 7 | M49: 5 | Q49: 12
A50: 49 | B50: Chemical Geology, 66 (1987) Pages 193-208 | C50: Pb-Pb Isotope Systematics | D50: www.creationism/YEC/Excellent.xlsm | E50: Excellent_11 | F50: Pb-207/Pb-206 | G50: 4756.496627 | H50: 4604.029662 | I50: 152.4669648 | J50: 4657.068403 | K50: 2700 | L50: 8 | Q50: 8
A51: 50 | B51: Gondwana Research 14 (2008) Page 644–662 | C51: Geochronological Problems | D51: www.creationism/YEC/Excellent.xlsm | E51: Excellent_20 | F51: Pb-207/Pb-206 | G51: 4897.891103 | H51: 2613.644242 | I51: 2284.246861 | J51: 4063.353958 | K51: 2020 | L51: 8 | Q51: 8
A52: 51 | B52: Gondwana Research 14 (2008) Page 644–662 | C52: Precise Lead Isotope Ratios | D52: www.creationism/YEC/Excellent.xlsm | E52: Excellent_27 | F52: Pb-207/Pb-206 | G52: 4897.891103 | H52: 2613.644242 | I52: 2284.246861 | J52: 4063.353958 | K52: 1700 | L52: 8 | Q52: 8
A53: 52 | B53: Contributions to Mineralogy and Petrology, Volume 114, 1993, Pages 171 - 188 | C53: Sr, Nd And Pb Isotope Evidence | D53: www.creationism/YEC/Excellent.xlsm | E53: Excellent_29 | F53: Pb-207/Pb-206 | G53: 5060.546668 | H53: 4929.525745 | I53: 131.0209237 | J53: 5008.551799 | K53: 2900 | L53: 8 | M53: 14 | Q53: 22
A54: 53 | B54: Geochimica et Cosmochimica Acta, 2007, Volume 71, Pages 1583 - 1604 | C54: Pb–Pb Dating Constraints | D54: www.creationism/YEC/Plot_Index.xlsm | E54: Iso_Plot_015 | F54: Pb-207/Pb-206 | G54: 5378.606625 | H54: 4690.483526 | I54: 688.1230995 | J54: 5120.815807 | K54: 4568 | L54: 8 | M54: 17 | Q54: 25
A55: 54 | B55: Geochimica et Cosmochimica Acta, 1976, Volume 40, Pages 635 - 643 | C55: Isotopic Lead Investigations | D55: www.creationism/YEC/Plot_Index.xlsm | E55: Iso_Plot_020 | F55: Pb-207/Pb-206 | G55: 5345.618224 | H55: 4637.576867 | I55: 708.0413566 | J55: 5125.863023 | K55: 4565 | L55: 8 | M55: 19 | Q55: 27
A56: 55 | B56: Earth and Planetary Science Letters 267 (2008) 236–246 | C56: U–Pb Dating Of Fossil Enamel | D56: www.creationism/YEC/Research.xlsm | E56: Pb_207_10 | F56: Pb-207/Pb-206 | G56: 5002.10558 | H56: 4852.091101 | I56: 150.0144791 | J56: 4956.050565 | K56: 4 | L56: 8 | M56: 1 | Q56: 9
A57: 56 | B57: Earth and Planetary Science Letters 142 (1996) 501-512 | C57: Pb Isotope Constraints | D57: www.creationism/YEC/206_207.xlsm | E57: Pb-206_02 | F57: Pb-207/Pb-206 | G57: 5346.616532 | H57: 4861.767841 | I57: 484.8486918 | J57: 5180.140406 | K57: 1800 | L57: 8 | M57: 22 | Q57: 30
A58: 57 | B58: Geochimica et Cosmochimica Acta, Vol. 62, No. 21/22, pp. 3527–3540, 1998 | C58: The Influence of High U-Th | D58: www.creationism/YEC/206_207.xlsm | E58: Pb-206_13 | F58: Pb-207/Pb-206 | G58: 5042.300457 | H58: 1325.158694 | I58: 3717.141763 | J58: 4179.655947 | K58: 500 | L58: 8 | M58: 1 | Q58: 9
A59: 58 | B59: Earth and Planetary Science Letters 165 (1999) 117–127 | C59: Iceland Pb-Isotopic Array | D59: www.creationism/YEC/Research.xlsm | E59: Pb_207_08 | F59: Pb-207/Pb-206 | G59: 4974.855842 | H59: 4932.502492 | I59: 42.35335005 | J59: 4939.38909 | K59: 10 | L59: 9 | Q59: 9
A60: 59 | B60: Earth and Planetary Science Letters, 42 (1979) 58-70 | C60: Diamonds And Mantle-Derived Xenoliths | D60: www.creationism/YEC/206_207.xlsm | E60: Pb-206_06 | F60: Pb-207/Pb-206 | G60: 5248.732347 | H60: 4884.5053 | I60: 364.2270471 | J60: 4994.997779 | K60: 2500 | L60: 9 | M60: 5 | Q60: 14
A61: 60 | B61: Geochimica et Cosmochimica Acta, Vol. 62, No. 21/22, pp. 3527–3540, 1998 | C61: The Influence of High U-Th | D61: www.creationism/YEC/206_207.xlsm | E61: Pb-206_13 | F61: Pb-207/Pb-206 | G61: 4999.781335 | H61: 3923.956871 | I61: 1075.824465 | J61: 4708.883051 | K61: 500 | L61: 9 | Q61: 9
A62: 61 | B62: Earfh and Planetary Science Letters, 94 (1989) Pages 236-244 | C62: U/Pb Whole-Rock And Mineral Dating | D62: www.creationism/YEC/Excellent.xlsm | E62: Excellent_13 | F62: Pb-207/Pb-206 | G62: 5016.384572 | H62: 667.5413667 | I62: 4348.843205 | J62: 3643.556374 | K62: 320 | L62: 10 | M62: 3 | Q62: 13
A63: 62 | B63: Earth and Planetary Science Letters, Volume 94 (1989) Pages 239 | C63: U/Pb Whole-Rock and Mineral Dating | D63: www.creationism/YEC/Very_Old_A_4.xls | E63: Very_Old_A_4 | F63: Pb-207/Pb-206 | G63: 5016.384572 | H63: 667.5413667 | I63: 4348.843205 | J63: 3643.556374 | K63: 316 | L63: 10 | M63: 3 | Q63: 13
A64: 63 | B64: http://www.nature.com/nature/journal/v485/n7400/extref/nature11140-s3.xls | C64: Continental Growth 3.2 Gyr Ago, Nature, 2012, Volume 485, Pages 627–630 | D64: www.creationism/YEC/Very_Old_A_8.xls | E64: Very_Old_A_8 | F64: Pb-208/Th-232 | G64: 11517.37782 | H64: -24295.18185 | I64: 11059.86254 | J64: 3334.00713 | K64: 3200 | L64: 10 | M64: 9 | N64: 1 | O64: 1 | Q64: 21
A65: 64 | B65: http://petrology.oxfordjournals.org/content/suppl/2011/05/11/egr022.DC1/Appendix_table_1.xls | C65: Two Primary Basalt Magma Types, Journal Petrology, June 1, 2011, Volume 52, Number 6, Pages 1143-1183 | D65: www.creationism/YEC/Very_Old_F.xls | E65: Very_Old_F | F65: Pb-207/Pb-206 | G65: 4977.089883 | H65: 4966.31535 | I65: 10.7745335 | J65: 4970.506754 | K65: 7 | L65: 10 | Q65: 10
A66: 65 | B66: www.nature.com/nature/journal/v485/n7400/extref/nature11140-s3.xls | C66: Continental Growth 3.2 Gyr Ago, Nature, 2012, Volume 485, Pages 627–630 | D66: www.creationism/YEC/Very_Old_B_4.xls | E66: Very_Old_B_4 | F66: Pb-208/Th-232 | G66: 11517.37782 | H66: 457.5152838 | I66: 11059.86254 | J66: 3334.00713 | K66: 3200 | L66: 10 | M66: 9 | N66: 1 | O66: 1 | P66: 0 | Q66: =SUM(L66:P66) -> 21
A67: 66 | B67: http://georoc.mpch-mainz.gwdg.de/georoc/ | C67: None | D67: www.creationism/YEC/Very_Old_B_9.xls | E67: Very_Old_B_9 | F67: Pb-207/Pb-206 | G67: 5060.758281 | H67: 4908.403206 | I67: 152.355075 | J67: 5020.654501 | K67: 0 | L67: 10 | M67: 34 | Q67: 44
A68: 67 | B68: Meteoritics & Planetary Science, 2004, Volume 39, Number 12, Pages 2033 - 2041 | C68: Ion microprobe U-Th-Pb dating | D68: www.creationism/YEC/Plot_Index.xlsm | E68: Iso_Plot_001 | F68: Pb-207/Pb-206 | G68: 5347.740483 | H68: 3897.376286 | I68: 1450.364197 | J68: 4768.117445 | K68: 1150 | L68: 11 | M68: 5 | Q68: 16
A69: 68 | B69: Geochimica et Cosmochimica Acta, 2007, Volume 71, Pages 1583 - 1604 | C69: Pb–Pb Dating Constraints | D69: www.creationism/YEC/Plot_Index.xlsm | E69: Iso_Plot_015 | F69: Pb-207/Pb-206 | G69: 5022.656075 | H69: 4559.294333 | I69: 463.3617415 | J69: 4775.429259 | K69: 4568 | L69: 11 | M69: 4 | Q69: 15
A70: 69 | B70: Earth and Planetary Science Letters, 34 (1977) 419-431 | C70: Lead And Strontium Isotopes In Cretaceous Kimberlites | D70: www.creationism/YEC/Research.xlsm | E70: Pb_207_11 | F70: Pb-207/Pb-206 | G70: 5050.256831 | H70: 4709.905945 | I70: 340.3508864 | J70: 4908.543496 | K70: 100 | L70: 11 | M70: 1 | Q70: 12
A71: 70 | B71: Precambrian Research 114 (2002) 277–294 | C71: Pb and Nd Isotope Systematics | D71: www.creationism/YEC/Research.xlsm | E71: Pb_207_14 | F71: Pb-207/Pb-206 | G71: 5318.754346 | H71: 4872.609634 | I71: 446.1447121 | J71: 5096.195617 | K71: 2700 | L71: 11 | M71: 32 | Q71: 43
A72: 71 | B72: Geochimica et Cosmochimica Acta, 1992, Vol. 56, pp. 347-368 | C72: New Aspects Of Dating Eclogites | D72: www.creationism/YEC/206_207.xlsm | E72: Pb-206_16 | F72: Pb-207/Pb-206 | G72: 5066.498794 | H72: 4986.922194 | I72: 79.57660029 | J72: 5016.166887 | K72: 150 | L72: 11 | M72: 11 | Q72: 22
A73: 72 | B73: www.geology.cwu.edu/facstaff/wendy/ecrafc/Longvalley.xls | C73: None | D73: www.creationism/YEC/Very_Old_K.xls | E73: Very_Old_K | F73: Pb-207/Pb-206 | G73: 4959.481397 | H73: 4950.917803 | I73: 8.563593557 | J73: 4954.018845 | K73: 0 | L73: 11 | Q73: 11
A74: 73 | B74: http://ir.library.oregonstate.edu/xmlui/bitstream/handle/1957/12572/APPENDIX 2 geochem.xls | C74: None | D74: www.creationism/YEC/Very_Old_Q.xls | E74: Very_Old_Q | F74: Pb-207/Pb-206 | G74: 4970.810453 | H74: 4963.090941 | I74: 7.719511952 | J74: 4966.53071 | K74: 0 | L74: 11 | Q74: 11
A75: 74 | B75: Mineralogy and Petrology (1993) 47, Pages 103-126 | C75: Sr, Nd and Pb Isotopic Compositions | D75: www.creationism/YEC/Excellent.xlsm | E75: Excellent_02 | F75: Pb-207/Pb-206 | G75: 4989.704795 | H75: 4984.66063 | I75: 5.044165468 | J75: 4986.933159 | K75: 5 | L75: 12 | Q75: 12
A76: 75 | B76: www.geokem.com/files/Av-Andesite2.xls | C76: None | D76: www.creationism/YEC/Very_Old_A_1.xls | E76: Very_Old_A_1 | F76: Pb-207/Pb-206 | G76: 5107.990543 | H76: 4951.827381 | I76: 156.1631622 | J76: 4994.766653 | K76: 0 | L76: 12 | M76: 6 | Q76: 18
A77: 76 | B77: Geochemistry And Geophysics Geosystems, 2006, Volume 7, Number 8, Pages 1-29 | C77: Contribution Of Slab Melting | D77: www.creationism/YEC/Excellent.xlsm | E77: Excellent_21 | F77: Pb-207/Pb-206 | G77: 5008.874255 | H77: 4991.697772 | I77: 17.17648345 | J77: 5001.330769 | K77: 20 | L77: 13 | M77: 31 | Q77: 44
A78: 77 | B78: Geochemistry And Geophysics Geosystems, 2006, Volume 7, Number 8, Pages 1-29 | C78: Sr–Nd–Pb–O Isotopic Constraints | D78: www.creationism/YEC/Excellent.xlsm | E78: Excellent_28 | F78: Pb-207/Pb-206 | G78: 5008.874255 | H78: 4991.697772 | I78: 17.17648345 | J78: 5001.330769 | K78: 470 | L78: 13 | M78: 31 | Q78: 44
A79: 78 | B79: www.nature.com/ngeo/journal/v5/n4/extref/ngeo1432-s2.xls | C79: The East African Rift, Nature Geoscience, 2012, Volume 5, Pages 289–294 | D79: www.creationism/YEC/Very_Old_A_5.xls | E79: Very_Old_A_5 | F79: Pb-207/Pb-206 | G79: 4895.052575 | H79: 4512.857043 | I79: 382.195532 | J79: 4672.608739 | K79: 25 | L79: 13 | Q79: 13
A80: 79 | B80: Chemical Geology 236 (2007) Pages 27–41 | C80: U–Pb Step-Leaching Ages | D80: www.creationism/YEC/Excellent.xlsm | E80: Excellent_10 | F80: Pb-207/Pb-206 | G80: 5014.229252 | H80: 3978.446751 | I80: 1035.7825 | J80: 4671.248179 | K80: 280 | L80: 14 | M80: 4 | Q80: 18
A81: 80 | B81: Journal Of Petrology, 1998, Volume 39 Number 11-12, Pages 1847–1864 | C81: Geochemical And Nd, Pb, And Sr Isotope Data | D81: www.creationism/YEC/Excellent.xlsm | E81: Excellent_37 | F81: Pb-207/Pb-206 | G81: 5019.159826 | H81: 4807.221272 | I81: 211.9385546 | J81: 4950.625318 | K81: 60 | L81: 14 | M81: 1 | Q81: 15
A82: 81 | B82: Geochimica et Cosmochimica Acta, 2008, Volume 72, Pages 2067 - 2089 | C82: U–Th–Pb Dating Of Secondary Minerals | D82: www.creationism/YEC/Plot_Index.xlsm | E82: Iso_Plot_018 | F82: Pb-207/Pb-206 | G82: 8125.856407 | H82: 282.291782 | I82: 7843.564625 | J82: 3714.192498 | K82: 10 | L82: 14 | M82: 4 | N82: 1 | Q82: 19
A83: 82 | B83: Geochimica et Cosmochimica Acta, Vol. 61, No. 8, pp. 1713-1731, 1997 | C83: Ages Of Basaltic Achondrites | D83: www.creationism/YEC/206_207.xlsm | E83: Pb-206_15 | F83: Pb-207/Pb-206 | G83: 5081.418707 | H83: 4370.528155 | I83: 710.8905522 | J83: 4685.629756 | K83: 4480 | L83: 14 | M83: 3 | Q83: 17
A84: 83 | B84: www.geo.unibe.ch/isotopegeology/homepbnd.xls | C84: None | D84: www.creationism/YEC/Very_Old_J.xls | E84: Very_Old_J | F84: Pb-207/Pb-206 | G84: 5454 | H84: 4945 | I84: 509 | J84: 5267.234848 | K84: 0 | L84: 15 | M84: 249 | Q84: 264
A85: 84 | B85: Earth and Planetary Science Letters 301 (2011) 469–478 | C85: The Tethyan Realm Lamproites | D85: www.creationism/YEC/Research.xlsm | E85: Pb_207_01 | F85: Pb-207/Pb-206 | G85: 6194.367072 | H85: 969.7035437 | I85: 5224.663528 | J85: 4754.938813 | K85: 20 | L85: 16 | M85: 19 | N85: 2 | Q85: 37
A86: 85 | B86: Earth and Planetary Science Letters 244 (2006) Page 251–269 | C86: The South Pacific Superplume Activity | D86: www.creationism/YEC/Excellent.xlsm | E86: Excellent_17 | F86: Pb-207/Pb-206 | G86: 5056.862759 | H86: 4838.276971 | I86: 218.585788 | J86: 4945.531714 | K86: 100 | L86: 17 | M86: 6 | Q86: 23
A87: 86 | B87: Earth and Planetary Science Letters 244 (2006) Page 251–269 | C87: Sr–Nd–Pb Isotopic Compositions | D87: www.creationism/YEC/Excellent.xlsm | E87: Excellent_24 | F87: Pb-207/Pb-206 | G87: 5056.862759 | H87: 4838.276971 | I87: 218.585788 | J87: 4945.531714 | K87: 120 | L87: 17 | M87: 6 | Q87: 23
A88: 87 | B88: Earth and Planetary Science Letters 245 (2006) 743–761 | C88: Comparison of Th, Sr, Nd and Pb isotopes | D88: www.creationism/YEC/Research.xlsm | E88: Pb_207_03 | F88: Pb-207/Pb-206 | G88: 4975.787742 | H88: 4893.977592 | I88: 81.81015051 | J88: 4929.258378 | K88: 0.3 | L88: 17 | Q88: 17
A89: 88 | B89: http://petrology.oxfordjournals.org/content/suppl/2007/02/14/egl079.DC1/egl079-jpet-may-06-0042-File004.xls | C89: Using LA-ICPMS Mapping, Journal Of Petrology, February 9, 2007, Pages 1 -18 | D89: www.creationism/YEC/Very_Old_H.xls | E89: Very_Old_H | F89: Pb-207/Pb-206 | G89: 5012.347856 | H89: 4962.741566 | I89: 49.60628952 | J89: 4978.444411 | K89: 1250 | L89: 17 | M89: 3 | Q89: 20
A90: 89 | B90: http://petrology.oxfordjournals.org/content/suppl/2004/04/19/45.5.1069.DC1/egh004supp.xls | C90: East African Rift System, Journal Petrology, May 1, 2004, Volume 45, Number 5, Pages 1069-1088 | D90: www.creationism/YEC/Very_Old_U.xls | E90: Very_Old_U | F90: Pb-207/Pb-206 | G90: 4985.76926 | H90: 4910.90418 | I90: 74.86507929 | J90: 4956.768602 | K90: 30 | L90: 17 | Q90: 17
A91: 90 | B91: Earth and Planetarv Science Letters, 46 (1980) Pages 221-232 | C91: U-Pb Ages Of Uraniferous Opals | D91: www.creationism/YEC/Excellent.xlsm | E91: Excellent_16 | F91: Pb-207/Pb-206 | G91: 5039.62847 | H91: 4711.61124 | I91: 328.0172306 | J91: 4910.083141 | K91: 20 | L91: 18 | M91: 2 | Q91: 20
A92: 91 | B92: Earth and Planetarv Science Letters, 46 (1980) Pages 221-232 | C92: Lead Isotopic Study Of Young Volcanic Rocks | D92: www.creationism/YEC/Excellent.xlsm | E92: Excellent_23 | F92: Pb-207/Pb-206 | G92: 5039.62847 | H92: 4711.61124 | I92: 328.0172306 | J92: 4910.083141 | K92: 10 | L92: 18 | M92: 2 | Q92: 20
A93: 92 | B93: Earth and Planetary Sctence Letters, 113 (1992) 107-128 | C93: Sr, Nd, and Pb Isotopes | D93: www.creationism/YEC/206_207.xlsm | E93: Pb-206_18 | F93: Pb-207/Pb-206 | G93: 5076.583029 | H93: 4945.156008 | I93: 131.4270206 | J93: 5013.656546 | K93: 3300 | L93: 18 | M93: 32 | Q93: 50
A94: 93 | B94: Geochimica et Cosmochimica Acta, Vol. 61, No. 8, pp. 1713-1731, 1997 | C94: Ages Of Basaltic Achondrites | D94: www.creationism/YEC/206_207.xlsm | E94: Pb-206_15 | F94: Pb-207/Pb-206 | G94: 5135.139442 | H94: 4556.750763 | I94: 578.388679 | J94: 4940.851958 | K94: 4480 | L94: 19 | M94: 7 | Q94: 26
A95: 94 | B95: Earth and Planetary Science Letters 134 (1995) 169-185 | C95: Evolution Of Reunion Hotspot Mantle | D95: www.creationism/YEC/Research.xlsm | E95: Th_232_03 | F95: Pb-207/Pb-206 | G95: 5015.84652 | H95: 4952.643131 | I95: 63.20338883 | J95: 4976.298047 | K95: 66 | L95: 19 | M95: 1 | Q95: 20
A96: 95 | B96: http://petrology.oxfordjournals.org/content/suppl/2008/03/20/egn018.DC1/jpet-jun-07-0081-File027.xls | C96: Geochemistry of the Volcan de l’ Androy Basalt, Journal Of Petrology April 19, 2008 | D96: www.creationism/YEC/Very_Old_M.xls | E96: Very_Old_M | F96: Pb-207/Pb-206 | G96: 5052.75948 | H96: 4980.249943 | I96: 72.50953725 | J96: 5005.517745 | K96: 85 | L96: 19 | M96: 27 | Q96: 46
A97: 96 | B97: http://pubs.usgs.gov/of/2008/1142/tables/table04.xls | C97: Uranium-Lead Zircon Ages | D97: www.creationism/YEC/Very_Old_A_9.xls | E97: Very_Old_A_9 | F97: Pb-207/Pb-206 | G97: 4997.396229 | H97: 4798.849441 | I97: 198.5467876 | J97: 4932.673269 | K97: 250 | L97: 20 | Q97: 20
A98: 97 | B98: http://pubs.usgs.gov/of/2008/1142/pdf/OF08-1142_508.pdf | C98: Uranium-Lead Zircon Ages | D98: www.creationism/YEC/Very_Old_A.xls | E98: Very_Old_A | F98: Pb-207⁄Pb-206 | G98: 4997.441905 | H98: 4798.877724 | I98: 198.5641809 | J98: 4932.677801 | K98: 416 | L98: 20 | Q98: =SUM(L98:P98) -> 20
A99: 98 | B99: Geochimica et Cosmochimica Acta, 2007, Volume 71, Pages 1583 - 1604 | C99: Pb–Pb Dating Constraints | D99: www.creationism/YEC/Plot_Index.xlsm | E99: Iso_Plot_015 | F99: Pb-207/Pb-206 | G99: 5359.045509 | H99: 4637.243488 | I99: 721.8020212 | J99: 4923.317079 | K99: 4568 | L99: 22 | M99: 9 | Q99: 31
A100: 99 | B100: Geochimica et Cosmochimica Acta 72 (2008) 5799–5818 | C100: U, Th And Pb Isotope Compositions | D100: www.creationism/YEC/206_207.xlsm | E100: Pb-206_23 | F100: Pb-207/Pb-206 | G100: 5007.992406 | H100: 4871.481281 | I100: 136.511125 | J100: 4915.273431 | K100: 2.588 | L100: 22 | M100: 3 | Q100: 25
A101: 100 | B101: Nature, Volume 368, 1994, Page 514 - 519 | C101: Lead Isotope Ratios In Arc Magams | D101: www.creationism/YEC/Excellent.xlsm | E101: Excellent_30 | F101: Pb-207/Pb-206 | G101: 4976.054566 | H101: 4959.029868 | I101: 17.02469835 | J101: 4963.756658 | K101: 0 | L101: 23 | Q101: 23
A102: 101 | B102: www.ldeo.columbia.edu/~cai/Pb.xls | C102: None | D102: www.creationism/YEC/Very_Old_D.xls | E102: Very_Old_D | F102: Pb-207/Pb-206 | G102: 7812.818105 | H102: 4972.139276 | I102: 2840.678828 | J102: 5522.072234 | K102: 0 | L102: 23 | M102: 30 | N102: 19 | Q102: 72
A103: 102 | B103: www.ruf.rice.edu/~ctlee/BOXMODEL.xls | C103: Box Model | D103: www.creationism/YEC/Very_Old_R.xls | E103: Very_Old_R | F103: Pb-207/Pb-206 | G103: 5511 | H103: 4946 | I103: 565 | J103: 5274.569161 | K103: 1500 | L103: 23 | M103: 418 | Q103: 441
A104: 103 | B104: Meteoritics & Planetary Science, 2007, Volume 42, Numbers 7/8, Pages 1337 - 1350 | C104: Pb-Isotopic Dates From Estacado | D104: www.creationism/YEC/Plot_Index.xlsm | E104: Iso_Plot_002 | F104: Pb-207/Pb-206 | G104: 5022.689092 | H104: 4561.879659 | I104: 460.8094327 | J104: 4769.104383 | K104: 4545 | L104: 25 | M104: 2 | Q104: 27
A105: 104 | B105: Chemical Geology, 2009, Volume 259, Pages 143 - 151 | C105: Pb–Pb Dating Of Chondrules | D105: www.creationism/YEC/Plot_Index.xlsm | E105: Iso_Plot_014 | F105: Pb-207/Pb-206 | G105: 5206.108213 | H105: 4577.403489 | I105: 628.7047246 | J105: 4910.819581 | K105: 4565 | L105: 26 | M105: 15 | Q105: 41
A106: 105 | B106: www.nature.com/ngeo/journal/v4/n12/extref/ngeo1331-s2.xls | C106: Origin of Indian Ocean Seamount Province, Nature Geoscience, 2011, Volume 4, Pages 883-887 | D106: www.creationism/YEC/Very_Old_B_1.xls | E106: Very_Old_B_1 | F106: Pb-207/Pb-206 | G106: 5087.354282 | H106: 4921.396132 | I106: 165.9581498 | J106: 5015.467732 | K106: 6 | L106: 26 | M106: 37 | Q106: 63
A107: 106 | B107: Earth and Planetary. Science Letters, 94 (1989) Pages 78-96 | C107: Cenozoic-Cretaceous Magmatism | D107: www.creationism/YEC/Excellent.xlsm | E107: Excellent_08 | F107: Pb-207/Pb-206 | G107: 6488.877883 | H107: 4930.38853 | I107: 1558.489353 | J107: 5017.956859 | K107: 100 | L107: 28 | M107: 3 | N107: 1 | Q107: 32
A108: 107 | B108: http://petrology.oxfordjournals.org/content/suppl/2007/11/12/egm059.DC1/jpet-jul-07-0097-File018.xls | C108: Rocks in the Western Carpathian Arc, Journal Petrology, December 1, 2007, Volume 48, Number 12, Pages 2261-2287 | D108: www.creationism/YEC/Very_Old_S.xls | E108: Very_Old_S | F108: Pb-207/Pb-206 | G108: 4987.137463 | H108: 4952.041643 | I108: 35.09581949 | J108: 4976.165061 | K108: 16 | L108: 28 | Q108: 28
A109: 108 | B109: Precambrian Research 113 (2002) 155–168 | C109: Ion Microprobe Pb–Pb Dating | D109: www.creationism/YEC/Research.xlsm | E109: Pb_207_16 | F109: Pb-207/Pb-206 | G109: 5122.990853 | H109: 4027.829019 | I109: 1095.161834 | J109: 4901.571839 | K109: 3250 | L109: 31 | M109: 15 | Q109: 46
A110: 109 | B110: Geological Society Of London, Special Publications, 2004, Volume 229, Pages 133-150. | C110: Pin Procking The Elephant | D110: www.creationism/YEC/Excellent.xlsm | E110: Excellent_34 | F110: Pb-207/Pb-206 | G110: 5005.616685 | H110: 4941.790802 | I110: 63.82588315 | J110: 4986.874176 | K110: 100 | L110: 32 | M110: 8 | Q110: 40
A111: 110 | B111: Earth and Planetary Science Letters, 104 (1991) 1-15 | C111: Th, Pb, and Sr Isotope Variations | D111: www.creationism/YEC/Research.xlsm | E111: Pb_207_02 | F111: Pb-207/Pb-206 | G111: 5145.413482 | H111: 4947.453232 | I111: 197.9602503 | J111: 4983.751051 | K111: 300 | L111: 33 | M111: 4 | Q111: 37
A112: 111 | B112: Earth and Planetary Science Letters 245 (2006) 137–152 | C112: Trace Element-Pb Isotope Enrichments | D112: www.creationism/YEC/Research.xlsm | E112: Pb_207_12 | F112: Pb-207/Pb-206 | G112: 5004.789546 | H112: 4958.996095 | I112: 45.7934508 | J112: 4987.928897 | K112: 0 | L112: 33 | M112: 3 | Q112: 36
A113: 112 | B113: Geochimica et Cosmochimica Acta, Vol. 62, No. 16, pp. 2823–2835, 1998 | C113: Using The U-Pb System | D113: www.creationism/YEC/206_207.xlsm | E113: Pb-206_24 | F113: Pb-207/Pb-206 | G113: 4982.058295 | H113: 4024.356321 | I113: 957.7019739 | J113: 4615.922594 | K113: 220 | L113: 34 | Q113: 34
A114: 113 | B114: www.nature.com/nature/journal/v434/n7035/extref/nature03402-s1.xls | C114: The Hawaiian Mantle Plume, Nature, 2005, Volume 434, Pages 851-856 | D114: www.creationism/YEC/Very_Old_B_3.xls | E114: Very_Old_B_3 | F114: Pb-207/Pb-206 | G114: 5034.731679 | H114: 4972.267977 | I114: 62.46370171 | J114: 5009.042844 | K114: 0.55 | L114: 37 | M114: 56 | Q114: 93
A115: 114 | B115: Precambrian Research 162 (2008) 441–474 | C115: Iron Formations In The Black Hills | D115: www.creationism/YEC/Research.xlsm | E115: Pb_207_13 | F115: Pb-207/Pb-206 | G115: 5250.032554 | H115: 4006.905795 | I115: 1243.126759 | J115: 4776.559938 | K115: 2200 | L115: 39 | M115: 24 | Q115: 63
A116: 115 | B116: Ore Geology Reviews 31 (2007) Pages 337–359 | C116: Isotopic Characteristics Of The Jinding Zn–Pb Deposit | D116: www.creationism/YEC/Excellent.xlsm | E116: Excellent_38 | F116: Pb-207/Pb-206 | G116: 5009.89772 | H116: 4975.651285 | I116: 34.24643491 | J116: 5000.579295 | K116: 60 | L116: 40 | M116: 61 | Q116: 101
A117: 116 | B117: Chemical Geology, 93 (1991) Pages 231-243 | C117: Pb Isotopic Systematics Of Volcanic Rocks | D117: www.creationism/YEC/Excellent.xlsm | E117: Excellent_12 | F117: Pb-207/Pb-206 | G117: 4964.253304 | H117: 4909.339018 | I117: 54.91428575 | J117: 4934.492997 | K117: 20 | L117: 41 | Q117: 41
A118: 117 | B118: www.ruf.rice.edu/~ctlee/BOXMODEL.xls | C118: Box Model | D118: www.creationism/YEC/Very_Old_R.xls | E118: Very_Old_R | F118: Pb-207/U-235 | G118: 5606.480813 | H118: 841.7915911 | I118: 4764.689222 | J118: 3118.409401 | K118: 1500 | L118: 42 | M118: 30 | Q118: 72
A119: 118 | B119: www.ruf.rice.edu/~ctlee/BOXMODEL.xls | C119: Box Model | D119: www.creationism/YEC/Very_Old_R.xls | E119: Very_Old_R | F119: Pb-206/U-238 | G119: 7630.559589 | H119: 2040.11984 | I119: 5590.43975 | J119: 4419.134578 | K119: 1500 | L119: 42 | M119: 105 | N119: 51 | Q119: 198
A120: 119 | B120: Journal Of Petrology, April 11, 2012, Pages 1-32 | C120: Chronology And Geochemistry Of Lavas | D120: www.creationism/YEC/Excellent.xlsm | E120: Excellent_39 | F120: Pb-207/Pb-206 | G120: 4971.010904 | H120: 4880.697356 | I120: 90.31354862 | J120: 4919.212038 | K120: 30 | L120: 46 | Q120: 46
A121: 120 | B121: http://www1.tecnet.or.jp/lab/data/db_sci/MORB.xls | C121: None | D121: www.creationism/YEC/Very_Old_A_2.xls | E121: Very_Old_A_2 | F121: Pb-207/Pb-206 | G121: 5071 | H121: 4907 | I121: 164 | J121: 5011.256579 | K121: 0 | L121: 52 | M121: 100 | Q121: 152
A122: 121 | B122: http://geosphere.gsapubs.org/content/suppl/2009/02/18/3.6.683.DC1/00138_App3.xls | C122: Timing of sedimentation, metamorphism, and plutonism | D122: www.creationism/YEC/Very_Old_E.xls | E122: Very_Old_E | F122: Pb-206/U-238 | G122: 5100.69249 | H122: 4497.154071 | I122: 603.5384193 | J122: 4695.640208 | K122: 478 | L122: 52 | M122: 5 | Q122: 57
A123: 122 | B123: www.nature.com/nature/journal/v476/n7361/extref/nature10321-s2.xls | C123: The Hawaiian Mantle Plume, Nature, 2011, Volume 476, Pages 434–437 | D123: www.creationism/YEC/Very_Old_B_2.xls | E123: Very_Old_B_2 | F123: Pb-207/Pb-206 | G123: 5033.212828 | H123: 4951.664643 | I123: 81.54818505 | J123: 5000.416384 | K123: 1000 | L123: 52 | M123: 56 | Q123: 108
A124: 123 | B124: http://www1.tecnet.or.jp/lab/data/db_sci/OIB.XLS | C124: None | D124: www.creationism/YEC/Very_Old_A_3.xls | E124: Very_Old_A_3 | F124: Pb-207/Pb-206 | G124: 5060.758281 | H124: 4824.373811 | I124: 236.3844701 | J124: 4971.69124 | K124: 0 | L124: 68 | M124: 25 | Q124: 93
A125: 124 | B125: Earth and Planetary Science Letters 306 (2011) 86–97 | C125: South Atlantic Mid-Ocean-Ridge | D125: www.creationism/YEC/Research.xlsm | E125: Pb_207_06 | F125: Pb-207/Pb-206 | G125: 6214.394049 | H125: 4923.675688 | I125: 1290.718361 | J125: 4990.388372 | K125: 10 | L125: 74 | M125: 21 | N125: 1 | Q125: 96
A126: 125 | B126: www.nature.com/ngeo/journal/v4/n12/extref/ngeo1263-s1.xls | C126: Pacific Hotspots, Nature Geoscience, 2011, Volume 4, Pages 874–878 | D126: www.creationism/YEC/Very_Old_B_5.xls | E126: Very_Old_B_5 | F126: Pb-207/Pb-206 | G126: 5035.768061 | H126: 4871.337946 | I126: 164.4301152 | J126: 4939.821584 | L126: 78 | M126: 1 | Q126: 79
A127: 126 | B127: Science, Volume 282, 1998, Page 1481 | C127: Pb Isotopic Variability In Melt Inclusions | D127: www.creationism/YEC/Excellent.xlsm | E127: Excellent_31 | F127: Pb-207/Pb-206 | G127: 4963.795973 | H127: 4742.979152 | I127: 220.8168201 | J127: 4886.667026 | K127: 0 | L127: 81 | Q127: 81
A128: 127 | B128: www.nature.com/ngeo/journal/v4/n12/extref/ngeo1263-s1.xls | C128: Pacific Hotspots, Nature Geoscience, 2011, Volume 4, Pages 874–878 | D128: www.creationism/YEC/Very_Old_B_5.xls | E128: Very_Old_B_5 | F128: Pb-207/Pb-206 | G128: 4962.737138 | H128: 4930.33291 | I128: 32.40422735 | J128: 4940.42982 | L128: 82 | Q128: 82
A129: 128 | B129: http://geosphere.gsapubs.org/content/suppl/2009/02/18/4.5.829.DC1/10.1130_GES00166-S1.xls | C129: The Sierra Nevada Lithosphere, Geosphere, October 2008, Volume 4, Number 5, Pages 829-853 | D129: www.creationism/YEC/Very_Old_A_7.xls | E129: Very_Old_A_7 | F129: Pb-207/Pb-206 | G129: 5603.411481 | H129: 4952.482366 | I129: 650.929115 | J129: 4970.679927 | K129: 30 | L129: 84 | M129: 1 | Q129: 85
A130: 129 | B130: Earth and Planetary Science Letters 240 (2005) 605– 620 | C130: Pb Isotopic Variability in Melt Inclusions | D130: www.creationism/YEC/Research.xlsm | E130: Pb_207_04 | F130: Pb-207/Pb-206 | G130: 5049.006386 | H130: 4742.979152 | I130: 306.0272332 | J130: 4909.764277 | K130: 1 | L130: 88 | M130: 16 | Q130: =SUM(L130:P130) -> 104
A131: 130 | B131: http://earthref.org/ERDA/download:147/ | C131: Geochemistry Geophysics Geosystems, 2003, Volume 4, Page 1089, | D131: www.creationism/YEC/Very_Old_C_3.xls | E131: Very_Old_C_3 | F131: Pb-207/Pb-206 | G131: 5043.007487 | H131: 4759.912027 | I131: 283.0954604 | J131: 4935.721475 | K131: 100 | L131: 88 | M131: 14 | Q131: 102
A132: 131 | B132: www.nature.com/nature/journal/v476/n7361/extref/nature10321-s2.xls | C132: The Hawaiian Mantle Plume, Nature, 2011, Volume 476, Pages 434–437 | D132: www.creationism/YEC/Very_Old_B_2.xls | E132: Very_Old_B_2 | F132: Pb-207/Pb-206 | G132: 5045.765239 | H132: 4927.066857 | I132: 118.6983816 | J132: 5000.797277 | K132: 1000 | L132: 104 | M132: 126 | Q132: 230
A133: 132 | B133: ftp://rock.geosociety.org/pub/reposit/2008/2008019.xls | C133: None | D133: www.creationism/YEC/Very_Old_C_4.xls | E133: Very_Old_C_4 | F133: Pb-207/Pb-206 | G133: 5022.183716 | H133: 4897.260899 | I133: 124.9228168 | J133: 4968.822586 | L133: 132 | M133: 14 | Q133: 146
A134: 133 | B134: http://www.earthchem.org/deeplith/search | C134: None | D134: www.creationism/YEC/Very_Old_C_1.xls | E134: Very_Old_C_1 | F134: Pb-207/Pb-206 | G134: 5247.97303 | H134: 4711.957286 | I134: 536.015744 | J134: 4991.941453 | K134: 0 | L134: 139 | M134: 79 | Q134: 218
A135: 134 | B135: http://pubs.usgs.gov/of/1987/0259/report.pdf | C135: Pb Isotope Database | D135: www.creationism/YEC/Very_Old_C_2.xls | E135: Very_Old_C_2 | F135: Pb-207/Pb-206 | G135: 5149.959486 | H135: 4848.52476 | I135: 301.4347266 | J135: 4975.490669 | L135: 154 | M135: 53 | Q135: 207
A136: 135 | B136: ftp://rock.geosociety.org/pub/reposit/2006/2006049.xls | C136: None | D136: www.creationism/YEC/Very_Old_C_5.xls | E136: Very_Old_C_5 | F136: Pb-207/Pb-206 | G136: 4988.573482 | H136: 4915.420498 | I136: 73.15298351 | J136: 4968.364788 | L136: 184 | Q136: 184
A137: 136 | B137: www.nature.com/ngeo/journal/v4/n12/extref/ngeo1263-s1.xls | C137: Pacific Hotspots, Nature Geoscience, 2011, Volume 4, Pages 874–878 | D137: www.creationism/YEC/Very_Old_B_5.xls | E137: Very_Old_B_5 | F137: Pb-207/Pb-206 | G137: 5031.989629 | H137: 4974.105728 | I137: 57.8839008 | J137: 4997.436941 | L137: 186 | M137: 93 | Q137: 279
A138: 137 | B138: http://geosphere.gsapubs.org/content/suppl/2012/03/19/GES00728.1.DC1/GS728_SuppT02.xls | C138: Cenozoic Volcanism, Geosphere, April 2012, Volume 8, Number 2, Pages 265-291 | D138: www.creationism/YEC/Very_Old_A_6.xls | E138: Very_Old_A_6 | F138: Pb-207/Pb-206 | G138: 5093.769213 | H138: 4889.818429 | I138: 203.950784 | J138: 4974.71207 | K138: 20 | L138: 366 | M138: 31 | Q138: 397
A139: 138 | B139: www.nature.com/nature/journal/v447/n7148/extref/nature05920-s2.xls | C139: The Earth's Upper Mantle, Nature, 2007, Volume 447, Pages 1069-1074 | D139: www.creationism/YEC/Very_Old_B_6.xls | E139: Very_Old_B_6 | F139: Pb-207/Pb-206 | G139: 5129.3025 | H139: 4882.176415 | I139: 247.1260848 | J139: 4996.055496 | L139: 585 | M139: 494 | Q139: 1079
A140: 139 | B140: http://georoc.mpch-mainz.gwdg.de/georoc/webseite/Expert%20Datasets/Lustrino_Wilson09.xls | C140: None | D140: www.creationism/YEC/Very_Old_B_8.xls | E140: Very_Old_B_8 | F140: Pb-207/Pb-206 | G140: 5083.930534 | H140: 4838.507722 | I140: 245.4228124 | J140: 4935.983288 | K140: 0 | L140: 981 | M140: 30 | Q140: 1011
A141: 140 | B141: http://petrology.oxfordjournals.org/content/suppl/2007/02/15/egl078.DC1/jpet-aug-06-0094-File006.xls | C141: Mantle Composition, Journal Of Petrology, 2007, Volume 48, Number 4, Pages 693-709 | D141: www.creationism/YEC/Very_Old_Y.xls | E141: Very_Old_Y | F141: Pb-207/Pb-206 | G141: 5115.202146 | H141: 3918.022835 | I141: 1197.17931 | J141: 4969.274026 | K141: 0 | L141: 1073 | M141: 471 | Q141: 1544
A142: 182 | B142: http://www.navdat.org/NavdatSearch | C142: None | D142: www.creationism/YEC/Very_Old_B_7.xls | E142: Very_Old_B_7 | F142: Pb-207/Pb-206 | G142: 5843.006345 | H142: 4598.157538 | I142: 1244.848807 | J142: 4987.086068 | K142: 0 | L142: 2384 | M142: 937 | Q142: 3321
L143: =SUM(L2:L129) -> 2103 | M143: 2089 | N143: 257 | O143: 83 | P143: 23 | Q143: 4555
L144: 4600 To 4999 | M144: 5000 To 5999 | N144: 6,000 To 9999 | O144: 10,000 To 19,999 | P144: Over 19,999 | Q144: Total

Sheet 5000_5999
A1: Number | B1: Magazine Reference | C1: Title | D1: Microsoft Excel File | E1: Spreadsheet | F1: Dating Method | G1: MAXIMUM | H1: MINIMUM | I1: DIFFERENCE | J1: AVERAGE | K1: Model Age | L1: 4600 To 4999 | M1: 5000 To 5999 | N1: 6,000 To 9999 | O1: 10,000 To 19,999 | P1: Over 19,999 | Q1: Total
A2: 1 | B2: Meteoritics & Planetary Science, 2004, Volume 39, Number 12, Pages 2033 - 2041 | C2: Ion microprobe U-Th-Pb dating | D2: www.creationism/YEC/Plot_Index.xlsm | E2: Iso_Plot_001 | F2: Pb-206⁄U-238 | G2: 11213.9226 | H2: 1841.714582 | I2: 9372.208018 | J2: 5179.563562 | K2: 1150 | L2: 3 | M2: 1 | N2: 5 | O2: 1 | Q2: =SUM(L2:P2) -> 10 | R2: =(A2) -> 1 | S2: =(C2 & ", " & B2) -> Ion microprobe U-Th-Pb dating, Meteoritics & Planetary Science, 2004, Volume 39, Number 12, Pages 2033 - 2041
A3: 2 | B3: Meteoritics & Planetary Science, 2004, Volume 39, Number 12, Pages 2033 - 2041 | C3: Ion microprobe U-Th-Pb dating | D3: www.creationism/YEC/Plot_Index.xlsm | E3: Iso_Plot_001 | F3: Pb-208/Th-232 | G3: 23837.24623 | H3: 2963.327975 | I3: 20873.91825 | J3: 10861.72026 | K3: 1150 | M3: 2 | N3: 4 | O3: 10 | P3: 1 | Q3: 17 | R3: =(A3) -> 2 | S3: =(C3 & ", " & B3) -> Ion microprobe U-Th-Pb dating, Meteoritics & Planetary Science, 2004, Volume 39, Number 12, Pages 2033 - 2041
A4: 3 | B4: Meteoritics & Planetary Science, 2004, Volume 39, Number 12, Pages 2033 - 2041 | C4: Ion microprobe U-Th-Pb dating | D4: www.creationism/YEC/Plot_Index.xlsm | E4: Iso_Plot_001 | F4: Pb-207/Pb-206 | G4: 5347.740483 | H4: 3897.376286 | I4: 1450.364197 | J4: 4768.117445 | K4: 1150 | L4: 11 | M4: 5 | Q4: 16 | R4: =(A4) -> 3 | S4: =(C4 & ", " & B4) -> Ion microprobe U-Th-Pb dating, Meteoritics & Planetary Science, 2004, Volume 39, Number 12, Pages 2033 - 2041
A5: 4 | B5: Meteoritics & Planetary Science, 2007, Volume 42, Numbers 7/8, Pages 1337 - 1350 | C5: Pb-Isotopic Dates From Estacado | D5: www.creationism/YEC/Plot_Index.xlsm | E5: Iso_Plot_002 | F5: Pb-207/Pb-206 | G5: 5022.689092 | H5: 4561.879659 | I5: 460.8094327 | J5: 4769.104383 | K5: 4500 | L5: 25 | M5: 2 | Q5: 27 | R5: =(A5) -> 4 | S5: =(C5 & ", " & B5) -> Pb-Isotopic Dates From Estacado, Meteoritics & Planetary Science, 2007, Volume 42, Numbers 7/8, Pages 1337 - 1350
A6: 5 | B6: Meteoritics & Planetary Science, 2003, Volume 38, Number 11, Pages 1697 - 1703 | C6: Ion Microprobe U-Th-Pb Dating | D6: www.creationism/YEC/Plot_Index.xlsm | E6: Iso_Plot_003 | F6: Pb-208/Th-232 | G6: 6110.39041 | H6: 2894.87674 | I6: 3215.513671 | J6: 4172.897248 | K6: 4000 | M6: 2 | N6: 1 | Q6: 3 | R6: =(A6) -> 5 | S6: =(C6 & ", " & B6) -> Ion Microprobe U-Th-Pb Dating, Meteoritics & Planetary Science, 2003, Volume 38, Number 11, Pages 1697 - 1703
A7: 6 | B7: Meteoritics & Planetary Science, 2003, Volume 38, Number 11, Pages 1697 - 1703 | C7: Ion Microprobe U-Th-Pb Dating | D7: www.creationism/YEC/Plot_Index.xlsm | E7: Iso_Plot_003 | F7: Pb-206⁄U-238 | G7: 5650.411461 | H7: 2964.118062 | I7: 2686.293399 | J7: 4299.474308 | K7: 4000 | L7: 1 | M7: 3 | Q7: 4 | R7: =(A7) -> 6 | S7: =(C7 & ", " & B7) -> Ion Microprobe U-Th-Pb Dating, Meteoritics & Planetary Science, 2003, Volume 38, Number 11, Pages 1697 - 1703
A8: 7 | B8: Precambrian Research, 2002, Volume 117, Pages 119 - 143 | C8: 207pb–206pb And 40ar–39ar Ages | D8: www.creationism/YEC/Plot_Index.xlsm | E8: Iso_Plot_008 | F8: Pb-207/Pb-206 | G8: 5049.006386 | H8: 1848.213643 | I8: 3200.792743 | J8: 3768.9565 | K8: 1800 | L8: 3 | M8: 4 | Q8: 7 | R8: =(A8) -> 7 | S8: =(C8 & ", " & B8) -> 207pb–206pb And 40ar–39ar Ages, Precambrian Research, 2002, Volume 117, Pages 119 - 143
A9: 8 | B9: Mereoritics And PIanetary Science, 2000, Volume 35, Pages 341 - 346 | C9: Uranium-Thorium-Lead Dating | D9: www.creationism/YEC/Plot_Index.xlsm | E9: Iso_Plot_012 | F9: Pb-207/Pb-206 | G9: 5122.990853 | H9: 4900.200529 | I9: 222.790324 | J9: 5012.009072 | K9: 300 | L9: 7 | M9: 6 | Q9: 13 | R9: =(A9) -> 8 | S9: =(C9 & ", " & B9) -> Uranium-Thorium-Lead Dating, Mereoritics And PIanetary Science, 2000, Volume 35, Pages 341 - 346
A10: 9 | B10: Chemical Geology, 2009, Volume 259, Pages 143 - 151 | C10: Pb–Pb Dating Of Chondrules | D10: www.creationism/YEC/Plot_Index.xlsm | E10: Iso_Plot_014 | F10: Pb-207/Pb-206 | G10: 5206.108213 | H10: 4577.403489 | I10: 628.7047246 | J10: 4910.819581 | K10: 4565 | L10: 26 | M10: 15 | Q10: 41 | R10: =(A10) -> 9 | S10: =(C10 & ", " & B10) -> Pb–Pb Dating Of Chondrules, Chemical Geology, 2009, Volume 259, Pages 143 - 151
A11: 10 | B11: Geochimica et Cosmochimica Acta, 2007, Volume 71, Pages 1583 - 1604 | C11: Pb–Pb Dating Constraints | D11: www.creationism/YEC/Plot_Index.xlsm | E11: Iso_Plot_015 | F11: Pb-207/Pb-206 | G11: 5022.656075 | H11: 4559.294333 | I11: 463.3617415 | J11: 4775.429259 | K11: 4568 | L11: 11 | M11: 4 | Q11: 15 | R11: =(A11) -> 10 | S11: =(C11 & ", " & B11) -> Pb–Pb Dating Constraints, Geochimica et Cosmochimica Acta, 2007, Volume 71, Pages 1583 - 1604
A12: 11 | B12: Geochimica et Cosmochimica Acta, 2007, Volume 71, Pages 1583 - 1604 | C12: Pb–Pb Dating Constraints | D12: www.creationism/YEC/Plot_Index.xlsm | E12: Iso_Plot_015 | F12: Pb-207/Pb-206 | G12: 5359.045509 | H12: 4637.243488 | I12: 721.8020212 | J12: 4923.317079 | K12: 4568 | L12: 22 | M12: 9 | Q12: 31 | R12: =(A12) -> 11 | S12: =(C12 & ", " & B12) -> Pb–Pb Dating Constraints, Geochimica et Cosmochimica Acta, 2007, Volume 71, Pages 1583 - 1604
A13: 12 | B13: Geochimica et Cosmochimica Acta, 2007, Volume 71, Pages 1583 - 1604 | C13: Pb–Pb Dating Constraints | D13: www.creationism/YEC/Plot_Index.xlsm | E13: Iso_Plot_015 | F13: Pb-207/Pb-206 | G13: 5132.679046 | H13: 4782.860644 | I13: 349.8184015 | J13: 5028.118177 | K13: 4568 | L13: 5 | M13: 9 | Q13: 14 | R13: =(A13) -> 12 | S13: =(C13 & ", " & B13) -> Pb–Pb Dating Constraints, Geochimica et Cosmochimica Acta, 2007, Volume 71, Pages 1583 - 1604
A14: 13 | B14: Geochimica et Cosmochimica Acta, 2007, Volume 71, Pages 1583 - 1604 | C14: Pb–Pb Dating Constraints | D14: www.creationism/YEC/Plot_Index.xlsm | E14: Iso_Plot_015 | F14: Pb-207/Pb-206 | G14: 5259.100314 | H14: 4618.765866 | I14: 640.3344476 | J14: 5024.109064 | K14: 4568 | L14: 6 | M14: 11 | Q14: 17 | R14: =(A14) -> 13 | S14: =(C14 & ", " & B14) -> Pb–Pb Dating Constraints, Geochimica et Cosmochimica Acta, 2007, Volume 71, Pages 1583 - 1604
A15: 14 | B15: Geochimica et Cosmochimica Acta, 2007, Volume 71, Pages 1583 - 1604 | C15: Pb–Pb Dating Constraints | D15: www.creationism/YEC/Plot_Index.xlsm | E15: Iso_Plot_015 | F15: Pb-207/Pb-206 | G15: 5378.606625 | H15: 4690.483526 | I15: 688.1230995 | J15: 5120.815807 | K15: 4568 | L15: 8 | M15: 17 | Q15: 25 | R15: =(A15) -> 14 | S15: =(C15 & ", " & B15) -> Pb–Pb Dating Constraints, Geochimica et Cosmochimica Acta, 2007, Volume 71, Pages 1583 - 1604
A16: 15 | B16: Geochimica et Cosmochimica Acta, 2008, Volume 72, Pages 2067 - 2089 | C16: U–Th–Pb Dating Of Secondary Minerals | D16: www.creationism/YEC/Plot_Index.xlsm | E16: Iso_Plot_018 | F16: Pb-206/U-238 | G16: 31192.5545 | H16: 0.5701576211 | I16: 31191.98435 | J16: 4890.692168 | K16: 12 | L16: 2 | M16: 1 | N16: 5 | O16: 6 | P16: 4 | Q16: 18 | R16: =(A16) -> 15 | S16: =(C16 & ", " & B16) -> U–Th–Pb Dating Of Secondary Minerals, Geochimica et Cosmochimica Acta, 2008, Volume 72, Pages 2067 - 2089
A17: 16 | B17: Geochimica et Cosmochimica Acta, 2008, Volume 72, Pages 2067 - 2089 | C17: U–Th–Pb Dating Of Secondary Minerals | D17: www.creationism/YEC/Plot_Index.xlsm | E17: Iso_Plot_018 | F17: Pb-208/Th-232 | G17: 352962.1923 | H17: 2.268970373 | I17: 352959.9233 | J17: 9983.642069 | K17: 12 | M17: 1 | P17: 1 | Q17: 2 | R17: =(A17) -> 16 | S17: =(C17 & ", " & B17) -> U–Th–Pb Dating Of Secondary Minerals, Geochimica et Cosmochimica Acta, 2008, Volume 72, Pages 2067 - 2089
A18: 17 | B18: Geochimica et Cosmochimica Acta, 2008, Volume 72, Pages 2067 - 2089 | C18: U–Th–Pb Dating Of Secondary Minerals | D18: www.creationism/YEC/Plot_Index.xlsm | E18: Iso_Plot_018 | F18: Pb-207/Pb-206 | G18: 8125.856407 | H18: 282.291782 | I18: 7843.564625 | J18: 3714.192498 | K18: 12 | L18: 14 | M18: 4 | N18: 1 | Q18: 19 | R18: =(A18) -> 17 | S18: =(C18 & ", " & B18) -> U–Th–Pb Dating Of Secondary Minerals, Geochimica et Cosmochimica Acta, 2008, Volume 72, Pages 2067 - 2089
A19: 18 | B19: Earth and Planetary Science, Volume 1983, Volume 62, Pages 132 - 146 | C19: 40ar/39ar And U-Th-Pb Dating | D19: www.creationism/YEC/Plot_Index.xlsm | E19: Iso_Plot_019 | F19: Pb-207/Pb-206 | G19: 5370.941308 | H19: 4410 | I19: 960.9413083 | J19: 4948.437496 | K19: 4500 | L19: 3 | M19: 10 | Q19: 13 | R19: =(A19) -> 18 | S19: =(C19 & ", " & B19) -> 40ar/39ar And U-Th-Pb Dating, Earth and Planetary Science, Volume 1983, Volume 62, Pages 132 - 146
A20: 19 | B20: Geochimica et Cosmochimica Acta, 1976, Volume 40, Pages 635 - 643 | C20: Isotopic Lead Investigations | D20: www.creationism/YEC/Plot_Index.xlsm | E20: Iso_Plot_020 | F20: Pb-207/Pb-206 | G20: 5345.618224 | H20: 4637.576867 | I20: 708.0413566 | J20: 5125.863023 | K20: 4500 | L20: 8 | M20: 19 | Q20: 27 | R20: =(A20) -> 19 | S20: =(C20 & ", " & B20) -> Isotopic Lead Investigations, Geochimica et Cosmochimica Acta, 1976, Volume 40, Pages 635 - 643
A21: 20 | B21: http://www.geokem.com/files/Av-Andesite2.xls | C21: None | D21: www.creationism/YEC/Very_Old_A_1.xls | E21: Very_Old_A_1 | F21: Pb-207/Pb-206 | G21: 5107.990543 | H21: 4951.827381 | I21: 156.1631622 | J21: 4994.766653 | L21: 12 | M21: 6 | Q21: 18 | R21: =(A21) -> 20 | S21: =(C21 & ", " & B21) -> None, http://www.geokem.com/files/Av-Andesite2.xls
A22: 21 | B22: http://www1.tecnet.or.jp/lab/data/db_sci/MORB.xls | C22: None | D22: www.creationism/YEC/Very_Old_A_2.xls | E22: Very_Old_A_2 | F22: Pb-207/Pb-206 | G22: 5071 | H22: 4907 | I22: 164 | J22: 5011.256579 | L22: 52 | M22: 100 | Q22: 152 | R22: =(A22) -> 21 | S22: =(C22 & ", " & B22) -> None, http://www1.tecnet.or.jp/lab/data/db_sci/MORB.xls
A23: 22 | B23: http://www1.tecnet.or.jp/lab/data/db_sci/OIB.XLS | C23: None | D23: www.creationism/YEC/Very_Old_A_3.xls | E23: Very_Old_A_3 | F23: Pb-207/Pb-206 | G23: 5060.758281 | H23: 4824.373811 | I23: 236.3844701 | J23: 4971.69124 | L23: 68 | M23: 25 | Q23: 93 | R23: =(A23) -> 22 | S23: =(C23 & ", " & B23) -> None, http://www1.tecnet.or.jp/lab/data/db_sci/OIB.XLS
A24: 23 | B24: Earth and Planetary Science Letters, Volume 94 (1989) Pages 239 | C24: U/Pb Whole-Rock and Mineral Dating | D24: www.creationism/YEC/Very_Old_A_4.xls | E24: Very_Old_A_4 | F24: Pb-207/Pb-206 | G24: 5016.384572 | H24: 667.5413667 | I24: 4348.843205 | J24: 3643.556374 | K24: 320 | L24: 10 | M24: 3 | Q24: 13 | R24: =(A24) -> 23 | S24: =(C24 & ", " & B24) -> U/Pb Whole-Rock and Mineral Dating, Earth and Planetary Science Letters, Volume 94 (1989) Pages 239
A25: 24 | B25: http://geosphere.gsapubs.org/content/suppl/2012/03/19/GES00728.1.DC1/GS728_SuppT02.xls | C25: Geosphere, April 2012, Volume 8, Number 2, Pages 265-291 | D25: www.creationism/YEC/Very_Old_A_6.xls | E25: Very_Old_A_6 | F25: Pb-207/Pb-206 | G25: 5093.769213 | H25: 4889.818429 | I25: 203.950784 | J25: 4974.71207 | K25: 18 | L25: 366 | M25: 31 | Q25: 397 | R25: =(A25) -> 24 | S25: =(C25 & ", " & B25) -> Geosphere, April 2012, Volume 8, Number 2, Pages 265-291, http://geosphere.gsapubs.org/content/suppl/2012/03/19/GES00728.1.DC1/GS728_SuppT02.xls
A26: 25 | B26: http://geosphere.gsapubs.org/content/suppl/2009/02/18/4.5.829.DC1/10.1130_GES00166-S1.xls | C26: Geosphere, October 2008, Volume 4, Number 5, Pages 829-853 | D26: www.creationism/YEC/Very_Old_A_7.xls | E26: Very_Old_A_7 | F26: Pb-207/Pb-206 | G26: 5603.411481 | H26: 4952.482366 | I26: 650.929115 | J26: 4970.679927 | K26: 30 | L26: 84 | M26: 1 | Q26: 85 | R26: =(A26) -> 25 | S26: =(C26 & ", " & B26) -> Geosphere, October 2008, Volume 4, Number 5, Pages 829-853, http://geosphere.gsapubs.org/content/suppl/2009/02/18/4.5.829.DC1/10.1130_GES00166-S1.xls
A27: 26 | B27: http://www.nature.com/nature/journal/v485/n7400/extref/nature11140-s3.xls | C27: Continental Growth 3.2 Gyr Ago, Nature, 2012, Volume 485, Pages 627–630 | D27: www.creationism/YEC/Very_Old_A_8.xls | E27: Very_Old_A_8 | F27: Pb-208/Th-232 | G27: 11517.37782 | H27: -24295.18185 | I27: 11059.86254 | J27: 3334.00713 | K27: 3200 | L27: 10 | M27: 9 | N27: 1 | O27: 1 | Q27: 21 | R27: =(A27) -> 26 | S27: =(C27 & ", " & B27) -> Continental Growth 3.2 Gyr Ago, Nature, 2012, Volume 485, Pages 627–630, http://www.nature.com/nature/journal/v485/n7400/extref/nature11140-s3.xls
A28: 27 | B28: http://pubs.usgs.gov/of/2008/1142/tables/table04.xls | C28: Uranium-Lead Zircon Ages | D28: www.creationism/YEC/Very_Old_A_9.xls | E28: Very_Old_A_9 | F28: Pb-206/U-238 | G28: 27999.7918 | H28: 5165.77329 | I28: 22834.01851 | J28: 14820.31615 | K28: 250 | M28: 1 | N28: 5 | O28: 9 | P28: 5 | Q28: 20 | R28: =(A28) -> 27 | S28: =(C28 & ", " & B28) -> Uranium-Lead Zircon Ages, http://pubs.usgs.gov/of/2008/1142/tables/table04.xls
A29: 28 | B29: http://www.geo.uu.nl/~kikeb/thesis/database/upb/KB746.xls | C29: Pilbara Craton in Western Australia | D29: www.creationism/YEC/Very_Old_B.xls | E29: Very_Old_B | F29: Pb-208/Th-232 | G29: 8728 | H29: 3334 | I29: 5394 | J29: 5538.55 | K29: 3200 | L29: 3 | M29: 7 | N29: 6 | Q29: 16 | R29: =(A29) -> 28 | S29: =(C29 & ", " & B29) -> Pilbara Craton in Western Australia, http://www.geo.uu.nl/~kikeb/thesis/database/upb/KB746.xls
A30: 29 | B30: http://www.geo.uu.nl/~kikeb/thesis/database/upb/KB770.xls | C30: Pilbara Craton in Western Australia | D30: www.creationism/YEC/Very_Old_C.xls | E30: Very_Old_C | F30: Pb-208/Th-232 | G30: 17500 | H30: 535 | I30: 16965 | J30: 6286.356436 | K30: 3200 | L30: 5 | M30: 17 | N30: 35 | O30: 11 | Q30: 68 | R30: =(A30) -> 29 | S30: =(C30 & ", " & B30) -> Pilbara Craton in Western Australia, http://www.geo.uu.nl/~kikeb/thesis/database/upb/KB770.xls
A31: 30 | B31: http://www.ldeo.columbia.edu/~cai/Pb.xls | C31: Pb Axiom Masterbook | D31: www.creationism/YEC/Very_Old_D.xls | E31: Very_Old_D | F31: Pb-207/Pb-206 | G31: 7812.818105 | H31: 4972.139276 | I31: 2840.678828 | J31: 5522.072234 | L31: 23 | M31: 30 | N31: 19 | Q31: 72 | R31: =(A31) -> 30 | S31: =(C31 & ", " & B31) -> Pb Axiom Masterbook, http://www.ldeo.columbia.edu/~cai/Pb.xls
A32: 31 | B32: http://geosphere.gsapubs.org/content/suppl/2009/02/18/3.6.683.DC1/00138_App3.xls | C32: Timing of sedimentation, metamorphism, and plutonism | D32: www.creationism/YEC/Very_Old_E.xls | E32: Very_Old_E | F32: Pb-206/U-238 | G32: 5100.69249 | H32: 4497.154071 | I32: 603.5384193 | J32: 4695.640208 | K32: 478 | L32: 52 | M32: 5 | Q32: 57 | R32: =(A32) -> 31 | S32: =(C32 & ", " & B32) -> Timing of sedimentation, metamorphism, and plutonism, http://geosphere.gsapubs.org/content/suppl/2009/02/18/3.6.683.DC1/00138_App3.xls
A33: 32 | B33: http://geosphere.gsapubs.org/content/suppl/2009/02/18/3.6.683.DC1/00138_App3.xls | C33: Timing of sedimentation, metamorphism, and plutonism | D33: www.creationism/YEC/Very_Old_E.xls | E33: Very_Old_E | F33: Pb-207/Pb-206 | G33: 5206.834706 | H33: 5198.832721 | I33: 8.001984886 | J33: 5202.380713 | K33: 478 | M33: 70 | Q33: 70 | R33: =(A33) -> 32 | S33: =(C33 & ", " & B33) -> Timing of sedimentation, metamorphism, and plutonism, http://geosphere.gsapubs.org/content/suppl/2009/02/18/3.6.683.DC1/00138_App3.xls
A34: 33 | B34: http://petrology.oxfordjournals.org/content/suppl/2007/02/14/egl079.DC1/egl079-jpet-may-06-0042-File004.xls | C34: Using LA-ICPMS Mapping, Journal Of Petrology, February 9, 2007, Pages 1 -18 | D34: www.creationism/YEC/Very_Old_H.xls | E34: Very_Old_H | F34: Pb-207/Pb-206 | G34: 5012.347856 | H34: 4962.741566 | I34: 49.60628952 | J34: 4978.444411 | K34: 1250 | L34: 17 | M34: 3 | Q34: =SUM(L34:P34) -> 20 | R34: =(A34) -> 33 | S34: =(C34 & ", " & B34) -> Using LA-ICPMS Mapping, Journal Of Petrology, February 9, 2007, Pages 1 -18, http://petrology.oxfordjournals.org/content/suppl/2007/02/14/egl079.DC1/egl079-jpet-may-06-0042-File004.xls
A35: 34 | B35: www.geo.unibe.ch/isotopegeology/homepbnd.xls | C35: None | D35: www.creationism/YEC/Very_Old_J.xls | E35: Very_Old_J | F35: Pb-207/Pb-206 | G35: 5454 | H35: 4945 | I35: 509 | J35: 5267.234848 | L35: 15 | M35: 249 | Q35: 264 | R35: =(A35) -> 34 | S35: =(C35 & ", " & B35) -> None, www.geo.unibe.ch/isotopegeology/homepbnd.xls
A36: 35 | B36: www.nyecounty.com/RID_data/rid4391.xls | C36: None | D36: www.creationism/YEC/Very_Old_L.xls | E36: Very_Old_L | F36: Pb-207/Pb-206 | G36: 5015.261968 | H36: 4981.161642 | I36: 34.10032627 | J36: 4996.239706 | L36: 6 | M36: 4 | Q36: 10 | R36: =(A36) -> 35 | S36: =(C36 & ", " & B36) -> None, www.nyecounty.com/RID_data/rid4391.xls
A37: 36 | B37: http://petrology.oxfordjournals.org/content/suppl/2008/03/20/egn018.DC1/jpet-jun-07-0081-File027.xls | C37: Geochemistry of the Volcan de l’ Androy Basalt, Journal Of Petrology April 19, 2008 | D37: www.creationism/YEC/Very_Old_M.xls | E37: Very_Old_M | F37: Pb-207/Pb-206 | G37: 5052.75948 | H37: 4980.249943 | I37: 72.50953725 | J37: 5005.517745 | K37: 85 | L37: 19 | M37: 27 | Q37: 46 | R37: =(A37) -> 36 | S37: =(C37 & ", " & B37) -> Geochemistry of the Volcan de l’ Androy Basalt, Journal Of Petrology April 19, 2008, http://petrology.oxfordjournals.org/content/suppl/2008/03/20/egn018.DC1/jpet-jun-07-0081-File027.xls
A38: 37 | B38: http://petrology.oxfordjournals.org/content/suppl/2006/12/23/egl053.DC1/Electronic_Appendices_1-5.xls | C38: The Somuncura Large Igneous Province, Journal Of Petrology, September 21, 2006 | D38: www.creationism/YEC/Very_Old_N.xls | E38: Very_Old_N | F38: Pb-207/Pb-206 | G38: 5021.477145 | H38: 4944.582141 | I38: 76.89500397 | J38: 5001.337955 | K38: 30 | L38: 6 | M38: 9 | Q38: 15 | R38: =(A38) -> 37 | S38: =(C38 & ", " & B38) -> The Somuncura Large Igneous Province, Journal Of Petrology, September 21, 2006, http://petrology.oxfordjournals.org/content/suppl/2006/12/23/egl053.DC1/Electronic_Appendices_1-5.xls
A39: 38 | B39: http://petrology.oxfordjournals.org/content/suppl/2011/05/11/egr024.DC1/Suppl_Table_1.xls | C39: Geochemical Composition of K-rich Lavas, Journal Of Petrology, (2011) 52 (6): 1185-1206. | D39: www.creationism/YEC/Very_Old_P.xls | E39: Very_Old_P | F39: Pb-207/Pb-206 | G39: 5037.74905 | H39: 5020.974682 | I39: 16.77436798 | J39: 5028.50093 | M39: 32 | Q39: 32 | R39: =(A39) -> 38 | S39: =(C39 & ", " & B39) -> Geochemical Composition of K-rich Lavas, Journal Of Petrology, (2011) 52 (6): 1185-1206. , http://petrology.oxfordjournals.org/content/suppl/2011/05/11/egr024.DC1/Suppl_Table_1.xls
A40: 39 | B40: www.ruf.rice.edu/~ctlee/BOXMODEL.xls | C40: None | D40: www.creationism/YEC/Very_Old_R.xls | E40: Very_Old_R | F40: Pb-207/Pb-206 | G40: 5511 | H40: 4946 | I40: 565 | J40: 5274.569161 | L40: 23 | M40: 418 | Q40: 441 | R40: =(A40) -> 39 | S40: =(C40 & ", " & B40) -> None, www.ruf.rice.edu/~ctlee/BOXMODEL.xls
A41: 40 | B41: http://petrology.oxfordjournals.org/content/suppl/2000/06/26/41.7.951.DC1/egd056SUPPLEM.xls | C41: Palaeogene Continental to Oceanic, Journal Of Petrology, 2000, Volume 41, Number 7, Pages 951-966 | D41: www.creationism/YEC/Very_Old_T.xls | E41: Very_Old_T | F41: Pb-207/Pb-206 | G41: 5315.722521 | H41: 5009.846714 | I41: 305.8758066 | J41: 5125.552687 | K41: 53 | M41: 29 | Q41: 29 | R41: =(A41) -> 40 | S41: =(C41 & ", " & B41) -> Palaeogene Continental to Oceanic, Journal Of Petrology, 2000, Volume 41, Number 7, Pages 951-966, http://petrology.oxfordjournals.org/content/suppl/2000/06/26/41.7.951.DC1/egd056SUPPLEM.xls
A42: 41 | B42: http://petrology.oxfordjournals.org/content/suppl/2010/03/31/egq009.DC1/ElecApp_A12_TephraFromOutsideIzuBonin.xls | C42: Sr–Nd–Pb–Hf Isotope Evolution, Journal Of Petrology, 2010, Volume 51, Number 5, Pages 993-1026 | D42: www.creationism/YEC/Very_Old_V.xls | E42: Very_Old_V | F42: Pb-207/Pb-206 | G42: 5008.212688 | H42: 5004.030633 | I42: 4.182054967 | J42: 5005.796843 | K42: 40 | M42: 6 | Q42: 6 | R42: =(A42) -> 41 | S42: =(C42 & ", " & B42) -> Sr–Nd–Pb–Hf Isotope Evolution, Journal Of Petrology, 2010, Volume 51, Number 5, Pages 993-1026 , http://petrology.oxfordjournals.org/content/suppl/2010/03/31/egq009.DC1/ElecApp_A12_TephraFromOutsideIzuBonin.xls
A43: 42 | B43: http://petrology.oxfordjournals.org/content/suppl/2007/08/13/egm050v1.DC1/jpet-jul-07-0104-File002.xls | C43: Development of a Continental Volcanic Field, Journal of Petrology, October 3, 2007 | D43: www.creationism/YEC/Very_Old_W.xls | E43: Very_Old_W | F43: Pb-207/Pb-206 | G43: 5089.839171 | H43: 5017.933995 | I43: 71.90517614 | J43: 5050.893329 | K43: 5 | M43: 29 | Q43: 29 | R43: =(A43) -> 42 | S43: =(C43 & ", " & B43) -> Development of a Continental Volcanic Field, Journal of Petrology, October 3, 2007 , http://petrology.oxfordjournals.org/content/suppl/2007/08/13/egm050v1.DC1/jpet-jul-07-0104-File002.xls
A44: 43 | B44: http://petrology.oxfordjournals.org/content/suppl/1999/12/17/40.6.873.DC1/morriso.xls | C44: Tertiary Mull Volcano, Western Scotland, Journal of Petrology, 1999, Volume 40, Number 6, Pages 873-908 | D44: www.creationism/YEC/Very_Old_X.xls | E44: Very_Old_X | F44: Pb-207/Pb-206 | G44: 5173.81025 | H44: 4987.335464 | I44: 186.4747855 | J44: 5053.938825 | K44: 60 | L44: 1 | M44: 6 | Q44: 7 | R44: =(A44) -> 43 | S44: =(C44 & ", " & B44) -> Tertiary Mull Volcano, Western Scotland, Journal of Petrology, 1999, Volume 40, Number 6, Pages 873-908 , http://petrology.oxfordjournals.org/content/suppl/1999/12/17/40.6.873.DC1/morriso.xls
A45: 44 | B45: http://petrology.oxfordjournals.org/content/suppl/2007/02/15/egl078.DC1/jpet-aug-06-0094-File006.xls | C45: Mantle Composition, Journal Of Petrology, 2007, Volume 48, Number 4, Pages 693-709 | D45: www.creationism/YEC/Very_Old_Y.xls | E45: Very_Old_Y | F45: Pb-207/Pb-206 | G45: 5115.202146 | H45: 3918.022835 | I45: 1197.17931 | J45: 4969.274026 | L45: 1073 | M45: 471 | Q45: 1544 | R45: =(A45) -> 44 | S45: =(C45 & ", " & B45) -> Mantle Composition, Journal Of Petrology, 2007, Volume 48, Number 4, Pages 693-709 , http://petrology.oxfordjournals.org/content/suppl/2007/02/15/egl078.DC1/jpet-aug-06-0094-File006.xls
A46: 45 | B46: Contributions Mineral Petrology (1985) , Volume 90, Pages 162-171 | C46: Pre-Hercynian mantle lead transfer | D46: www.creationism/YEC/Excellent.xlsm | E46: Excellent_01 | F46: Pb-207/Pb-206 | G46: 5038.389195 | H46: 5021.354203 | I46: 17.03499179 | J46: 5026.166672 | K46: 3000 | M46: 16 | Q46: 16 | R46: =(A46) -> 45 | S46: =(C46 & ", " & B46) -> Pre-Hercynian mantle lead transfer, Contributions Mineral Petrology (1985) , Volume 90, Pages 162-171
A47: 46 | B47: Mineralium Deposita (1999) , Volume 34, Pages 273-283 | C47: Damaran-Lufilian Fold Belt of Central Africa | D47: www.creationism/YEC/Excellent.xlsm | E47: Excellent_04 | F47: Pb-207/Pb-206 | G47: 5046.475897 | H47: 5028.505388 | I47: 17.97050909 | J47: 5040.722151 | K47: 456 | M47: 18 | Q47: 18 | R47: =(A47) -> 46 | S47: =(C47 & ", " & B47) -> Damaran-Lufilian Fold Belt of Central Africa, Mineralium Deposita (1999) , Volume 34, Pages 273-283
A48: 47 | B48: Chinese Journal Of Geochemistry, Volume 16, Number 1, 1997, Pages 80-85 | C48: Bayan Obo Deposit | D48: www.creationism/YEC/Excellent.xlsm | E48: Excellent_05 | F48: Pb-207/Pb-206 | G48: 5237.372407 | H48: 5065.113389 | I48: 172.2590186 | J48: 5151.242898 | K48: 600 | M48: 2 | Q48: 2 | R48: =(A48) -> 47 | S48: =(C48 & ", " & B48) -> Bayan Obo Deposit, Chinese Journal Of Geochemistry, Volume 16, Number 1, 1997, Pages 80-85
A49: 48 | B49: Isotope Geoscience, Volume 1 (1983) Pages 23-38 | C49: U-Ph And Ph-Pb Dating Of Kimberlites | D49: www.creationism/YEC/Excellent.xlsm | E49: Excellent_06 | F49: Pb-207/Pb-206 | G49: 5075.775046 | H49: 4532.86719 | I49: 542.9078561 | J49: 4960.760249 | K49: 100 | L49: 5 | M49: 9 | Q49: 14 | R49: =(A49) -> 48 | S49: =(C49 & ", " & B49) -> U-Ph And Ph-Pb Dating Of Kimberlites, Isotope Geoscience, Volume 1 (1983) Pages 23-38
A50: 49 | B50: Chemical Geology, Volume 211 (2004) Pages 87–109 | C50: U–Pb Zircon Ages | D50: www.creationism/YEC/Excellent.xlsm | E50: Excellent_07 | F50: Pb-207/Pb-206 | G50: 5149.75968 | H50: 5039.962975 | I50: 109.7967052 | J50: 5078.553117 | K50: 150 | M50: 15 | Q50: 15 | R50: =(A50) -> 49 | S50: =(C50 & ", " & B50) -> U–Pb Zircon Ages, Chemical Geology, Volume 211 (2004) Pages 87–109
A51: 50 | B51: Earth and Planetary. Science, Volume 94 (1989) Pages 78-96 | C51: Cenozoic-Cretaceous Magmatism | D51: www.creationism/YEC/Excellent.xlsm | E51: Excellent_08 | F51: Pb-207/Pb-206 | G51: 6488.877883 | H51: 4930.38853 | I51: 1558.489353 | J51: 5017.956859 | K51: 20 | L51: 28 | M51: 3 | N51: 1 | Q51: 32 | R51: =(A51) -> 50 | S51: =(C51 & ", " & B51) -> Cenozoic-Cretaceous Magmatism, Earth and Planetary. Science, Volume 94 (1989) Pages 78-96
A52: 51 | B52: Chemical Geology, Volume 233 (2006) Pages 1–45 | C52: Lead Isotope Planetary Profiling | D52: www.creationism/YEC/Excellent.xlsm | E52: Excellent_09 | F52: Pb-207/Pb-206 | G52: 5493.360318 | H52: 4834.799635 | I52: 658.5606829 | J52: 5233.571334 | K52: 2500 | L52: 3 | M52: 10 | Q52: 13 | R52: =(A52) -> 51 | S52: =(C52 & ", " & B52) -> Lead Isotope Planetary Profiling, Chemical Geology, Volume 233 (2006) Pages 1–45
A53: 52 | B53: Chemical Geology, Volume 236 (2007) Pages 27–41 | C53: U–Pb Step-Leaching Ages | D53: www.creationism/YEC/Excellent.xlsm | E53: Excellent_10 | F53: Pb-207/Pb-206 | G53: 5014.229252 | H53: 3978.446751 | I53: 1035.7825 | J53: 4671.248179 | K53: 300 | L53: 14 | M53: 4 | Q53: 18 | R53: =(A53) -> 52 | S53: =(C53 & ", " & B53) -> U–Pb Step-Leaching Ages, Chemical Geology, Volume 236 (2007) Pages 27–41
A54: 53 | B54: Chemical Geology, Volume 236 (2007) Pages 27–41 | C54: U–Pb Step-Leaching Ages | D54: www.creationism/YEC/Excellent.xlsm | E54: Excellent_10 | F54: Pb-206/U-238 | G54: 17743.02024 | H54: 505.699842 | I54: 17237.3204 | J54: 4150.281927 | K54: 300 | L54: 1 | M54: 3 | N54: 6 | O54: 3 | Q54: =SUM(L54:P54) -> 13
A55: 54 | B55: Chemical Geology, Volume 66 (1987) Pages 193-208 | C55: Pb-Pb Isotope Systematics | D55: www.creationism/YEC/Excellent.xlsm | E55: Excellent_11 | F55: Pb-207/Pb-206 | G55: 5266.730276 | H55: 3829.387178 | I55: 1437.343098 | J55: 4470.951213 | K55: 2700 | L55: 1 | M55: 7 | Q55: 8 | R55: =(A55) -> 54 | S55: =(C55 & ", " & B55) -> Pb-Pb Isotope Systematics, Chemical Geology, Volume 66 (1987) Pages 193-208
A56: 55 | B56: Chemical Geology, Volume 66 (1987) Pages 193-208 | C56: Pb-Pb Isotope Systematics | D56: www.creationism/YEC/Excellent.xlsm | E56: Excellent_11 | F56: Pb-207/Pb-206 | G56: 5288.67515 | H56: 3719.159529 | I56: 1569.515621 | J56: 4606.260313 | K56: 2700 | L56: 2 | M56: 12 | Q56: 14 | R56: =(A56) -> 55 | S56: =(C56 & ", " & B56) -> Pb-Pb Isotope Systematics, Chemical Geology, Volume 66 (1987) Pages 193-208
A57: 56 | B57: Chemical Geology, Volume 66 (1987) Pages 193-208 | C57: Pb-Pb Isotope Systematics | D57: www.creationism/YEC/Excellent.xlsm | E57: Excellent_11 | F57: Pb-207/Pb-206 | G57: 5288.67515 | H57: 4925.133314 | I57: 363.5418361 | J57: 5124.407879 | K57: 2700 | L57: 2 | M57: 12 | Q57: 14 | R57: =(A57) -> 56 | S57: =(C57 & ", " & B57) -> Pb-Pb Isotope Systematics, Chemical Geology, Volume 66 (1987) Pages 193-208
A58: 57 | B58: Earfh and Planetary Science, Volume 94 (1989) Pages 236-244 | C58: U/Pb Whole-Rock And Mineral Dating | D58: www.creationism/YEC/Excellent.xlsm | E58: Excellent_13 | F58: Pb-207/Pb-206 | G58: 5016.384572 | H58: 667.5413667 | I58: 4348.843205 | J58: 3643.556374 | K58: 300 | L58: 10 | M58: 3 | Q58: 13 | R58: =(A58) -> 57 | S58: =(C58 & ", " & B58) -> U/Pb Whole-Rock And Mineral Dating, Earfh and Planetary Science, Volume 94 (1989) Pages 236-244
A59: 58 | B59: Earth and Planetary Science, Volume 47 (1980) Pages 370-382 | C59: Speculations About The Age Of The Earth | D59: www.creationism/YEC/Excellent.xlsm | E59: Excellent_14 | F59: Pb-207/Pb-206 | G59: 5254.468058 | H59: 5163.503751 | I59: 90.96430716 | J59: 5223.033282 | K59: 2000 | M59: 6 | Q59: 6 | R59: =(A59) -> 58 | S59: =(C59 & ", " & B59) -> Speculations About The Age Of The Earth, Earth and Planetary Science, Volume 47 (1980) Pages 370-382
A60: 59 | B60: Earth and Planetary Science, Volume 47 (1980) Pages 370-382 | C60: Speculations About The Age Of The Earth | D60: www.creationism/YEC/Excellent.xlsm | E60: Excellent_14 | F60: Pb-207/Pb-206 | G60: 5271.903197 | H60: 4828.497548 | I60: 443.405649 | J60: 5169.7187 | K60: 2000 | L60: 1 | M60: 9 | Q60: 10 | R60: =(A60) -> 59 | S60: =(C60 & ", " & B60) -> Speculations About The Age Of The Earth, Earth and Planetary Science, Volume 47 (1980) Pages 370-382
A61: 60 | B61: Earth and Planetary Science, Volume 47 (1980) Pages 370-382 | C61: Speculations About The Age Of The Earth | D61: www.creationism/YEC/Excellent.xlsm | E61: Excellent_14 | F61: Pb-207/Pb-206 | G61: 5300.312251 | H61: 4373.888961 | I61: 926.4232902 | J61: 5078.741108 | K61: 2000 | L61: 6 | M61: 30 | Q61: 36 | R61: =(A61) -> 60 | S61: =(C61 & ", " & B61) -> Speculations About The Age Of The Earth, Earth and Planetary Science, Volume 47 (1980) Pages 370-382
A62: 61 | B62: Earth and Planetary Science, Volume 42 (1979) Pages 368-378 | C62: Rb-Sr And U-Th-Pb Isotopic Study | D62: www.creationism/YEC/Excellent.xlsm | E62: Excellent_15 | F62: Pb-207/Pb-206 | G62: 5127.244714 | H62: 4845.352334 | I62: 281.8923801 | J62: 5035.002128 | K62: 2000 | L62: 5 | M62: 7 | Q62: 12 | R62: =(A62) -> 61 | S62: =(C62 & ", " & B62) -> Rb-Sr And U-Th-Pb Isotopic Study, Earth and Planetary Science, Volume 42 (1979) Pages 368-378
A63: 62 | B63: Earth and Planetarv Science Letters, Volume 46 (1980) Pages 221-232 | C63: U-Pb Ages Of Uraniferous Opals | D63: www.creationism/YEC/Excellent.xlsm | E63: Excellent_16 | F63: Pb-207/Pb-206 | G63: 5039.62847 | H63: 4711.61124 | I63: 328.0172306 | J63: 4910.083141 | K63: 15 | L63: 18 | M63: 2 | Q63: 20 | R63: =(A63) -> 62 | S63: =(C63 & ", " & B63) -> U-Pb Ages Of Uraniferous Opals, Earth and Planetarv Science Letters, Volume 46 (1980) Pages 221-232
A64: 63 | B64: Earth and Planetary Science Letters, Volume 244 (2006) Page 251–269 | C64: The South Pacific Superplume Activity | D64: www.creationism/YEC/Excellent.xlsm | E64: Excellent_17 | F64: Pb-207/Pb-206 | G64: 5056.862759 | H64: 4838.276971 | I64: 218.585788 | J64: 4945.531714 | K64: 50 | L64: 17 | M64: 6 | Q64: 23 | R64: =(A64) -> 63 | S64: =(C64 & ", " & B64) -> The South Pacific Superplume Activity, Earth and Planetary Science Letters, Volume 244 (2006) Page 251–269
A65: 64 | B65: Gondwana Research, Volume 11 (2007) Page 69–91 | C65: Ivisaartoq Greenstone Belt | D65: www.creationism/YEC/Excellent.xlsm | E65: Excellent_18 | F65: Pb-207/U-235 | G65: 5406.571835 | H65: 5162.022237 | I65: 244.5495984 | J65: 5291.341709 | K65: 3000 | M65: 5 | Q65: 5 | R65: =(A65) -> 64 | S65: =(C65 & ", " & B65) -> Ivisaartoq Greenstone Belt, Gondwana Research, Volume 11 (2007) Page 69–91
A66: 65 | B66: Gondwana Research, Volume 11 (2007) Page 382–395 | C66: The Genesis Of Pb–Zn Deposits | D66: www.creationism/YEC/Excellent.xlsm | E66: Excellent_19 | F66: Pb-207/Pb-206 | G66: 5071.701928 | H66: 5053.645576 | I66: 18.05635172 | J66: 5063.535624 | K66: 1000 | M66: 47 | Q66: =SUM(L66:P66) -> 47 | R66: =(A66) -> 65 | S66: =(C66 & ", " & B66) -> The Genesis Of Pb–Zn Deposits, Gondwana Research, Volume 11 (2007) Page 382–395
A67: 66 | B67: Geochemistry And Geophysics Geosystems, 2006, Volume 7, Number 8, Pages 1-29 | C67: Contribution Of Slab Melting | D67: www.creationism/YEC/Excellent.xlsm | E67: Excellent_21 | F67: Pb-207/Pb-206 | G67: 5008.874255 | H67: 4991.697772 | I67: 17.17648345 | J67: 5001.330769 | K67: 20 | L67: 13 | M67: 31 | Q67: 44 | R67: =(A67) -> 66 | S67: =(C67 & ", " & B67) -> Contribution Of Slab Melting, Geochemistry And Geophysics Geosystems, 2006, Volume 7, Number 8, Pages 1-29
A68: 67 | B68: Earth and Planetary Science, Volume 42 (1979) Pages 368-378 | C68: Sr–Nd–Pb Isotopic Systematics Of Mafic Igneous Rocks | D68: www.creationism/YEC/Excellent.xlsm | E68: Excellent_22 | F68: Pb-207/Pb-206 | G68: 5127.244714 | H68: 4845.352334 | I68: 281.8923801 | J68: 5035.002128 | K68: 100 | L68: 5 | M68: 7 | Q68: 12 | R68: =(A68) -> 67 | S68: =(C68 & ", " & B68) -> Sr–Nd–Pb Isotopic Systematics Of Mafic Igneous Rocks, Earth and Planetary Science, Volume 42 (1979) Pages 368-378
A69: 68 | B69: Earth and Planetarv Science Letters, Volume 46 (1980) Pages 221-232 | C69: Lead Isotopic Study Of Young Volcanic Rocks | D69: www.creationism/YEC/Excellent.xlsm | E69: Excellent_23 | F69: Pb-207/Pb-206 | G69: 5039.62847 | H69: 4711.61124 | I69: 328.0172306 | J69: 4910.083141 | K69: 10 | L69: 18 | M69: 2 | Q69: 20 | R69: =(A69) -> 68 | S69: =(C69 & ", " & B69) -> Lead Isotopic Study Of Young Volcanic Rocks, Earth and Planetarv Science Letters, Volume 46 (1980) Pages 221-232
A70: 69 | B70: Earth and Planetary Science Letters, Volume 244 (2006) Page 251–269 | C70: Sr–Nd–Pb Isotopic Compositions | D70: www.creationism/YEC/Excellent.xlsm | E70: Excellent_24 | F70: Pb-207/Pb-206 | G70: 5056.862759 | H70: 4838.276971 | I70: 218.585788 | J70: 4945.531714 | K70: 120 | L70: 17 | M70: 6 | Q70: 23 | R70: =(A70) -> 69 | S70: =(C70 & ", " & B70) -> Sr–Nd–Pb Isotopic Compositions, Earth and Planetary Science Letters, Volume 244 (2006) Page 251–269
A71: 70 | B71: Gondwana Research, Volume 11 (2007) Page 69–91 | C71: Sm–Nd, Rb–Sr, And Pb–Pb Isotopic Evidence | D71: www.creationism/YEC/Excellent.xlsm | E71: Excellent_25 | F71: Pb-207/U-235 | G71: 5406.571835 | H71: 5162.022237 | I71: 244.5495984 | J71: 5291.341709 | K71: 3000 | M71: 5 | Q71: 5 | R71: =(A71) -> 70 | S71: =(C71 & ", " & B71) -> Sm–Nd, Rb–Sr, And Pb–Pb Isotopic Evidence, Gondwana Research, Volume 11 (2007) Page 69–91
A72: 71 | B72: Gondwana Research, Volume 11 (2007) Page 382–395 | C72: High Precision U-Pb Geochronology | D72: www.creationism/YEC/Excellent.xlsm | E72: Excellent_26 | F72: Pb-207/Pb-206 | G72: 5071.701928 | H72: 5053.645576 | I72: 18.05635172 | J72: 5063.535624 | K72: 30 | M72: 47 | Q72: 47 | R72: =(A72) -> 71 | S72: =(C72 & ", " & B72) -> High Precision U-Pb Geochronology, Gondwana Research, Volume 11 (2007) Page 382–395
A73: 72 | B73: Geochemistry And Geophysics Geosystems, 2006, Volume 7, Number 8, Pages 1-29 | C73: Sr–Nd–Pb–O Isotopic Constraints | D73: www.creationism/YEC/Excellent.xlsm | E73: Excellent_28 | F73: Pb-207/Pb-206 | G73: 5008.874255 | H73: 4991.697772 | I73: 17.17648345 | J73: 5001.330769 | K73: 470 | L73: 13 | M73: 31 | Q73: 44 | R73: =(A73) -> 72 | S73: =(C73 & ", " & B73) -> Sr–Nd–Pb–O Isotopic Constraints, Geochemistry And Geophysics Geosystems, 2006, Volume 7, Number 8, Pages 1-29
A74: 73 | B74: Contributions to Mineralogy and Petrology, Volume 114, 1993, Pages 171 - 188 | C74: Sr, Nd And Pb Isotope Evidence | D74: www.creationism/YEC/Excellent.xlsm | E74: Excellent_29 | F74: Pb-207/Pb-206 | G74: 5060.546668 | H74: 4929.525745 | I74: 131.0209237 | J74: 5008.551799 | K74: 2900 | L74: 8 | M74: 14 | Q74: 22 | R74: =(A74) -> 73 | S74: =(C74 & ", " & B74) -> Sr, Nd And Pb Isotope Evidence, Contributions to Mineralogy and Petrology, Volume 114, 1993, Pages 171 - 188
A75: 74 | B75: Earth and Planetary Science, Volume 59 (1982) Pages 327-342 | C75: Correlated Nd, Sr And Pb Isotope Variations | D75: www.creationism/YEC/Excellent.xlsm | E75: Excellent_32 | F75: Pb-207/Pb-206 | G75: 5060.758281 | H75: 5003.922048 | I75: 56.83623276 | J75: 5032.522484 | K75: 70 | M75: 9 | Q75: 9 | R75: =(A75) -> 74 | S75: =(C75 & ", " & B75) -> Correlated Nd, Sr And Pb Isotope Variations, Earth and Planetary Science, Volume 59 (1982) Pages 327-342
A76: 75 | B76: Earth and Planetary Science, Volume 76 (1985) Pages 57-70 | C76: Sr, Nd And Pb Isotopes In Minor Elements | D76: www.creationism/YEC/Excellent.xlsm | E76: Excellent_33 | F76: Pb-207/Pb-206 | G76: 5163 | H76: 5014 | I76: 149 | J76: 5097.125 | K76: 1000 | M76: 16 | Q76: 16 | R76: =(A76) -> 75 | S76: =(C76 & ", " & B76) -> Sr, Nd And Pb Isotopes In Minor Elements, Earth and Planetary Science, Volume 76 (1985) Pages 57-70
A77: 76 | B77: Geological Society Of London, Special Publications, 2004, Volume 229, Pages 133-150. | C77: Pin Procking The Elephant | D77: www.creationism/YEC/Excellent.xlsm | E77: Excellent_34 | F77: Pb-206/U-238 | G77: 6936 | H77: 4579 | I77: 2357 | J77: 5671 | K77: 120 | M77: 1 | N77: 1 | Q77: 2 | R77: =(A77) -> 76 | S77: =(C77 & ", " & B77) -> Pin Procking The Elephant, Geological Society Of London, Special Publications, 2004, Volume 229, Pages 133-150.
A78: 77 | B78: Geological Society Of London, Special Publications, 2004, Volume 229, Pages 133-150. | C78: Pin Procking The Elephant | D78: www.creationism/YEC/Excellent.xlsm | E78: Excellent_34 | F78: Pb-207/Pb-206 | G78: 5005.616685 | H78: 4941.790802 | I78: 63.82588315 | J78: 4986.874176 | K78: 120 | L78: 32 | M78: 8 | Q78: 40 | R78: =(A78) -> 77 | S78: =(C78 & ", " & B78) -> Pin Procking The Elephant, Geological Society Of London, Special Publications, 2004, Volume 229, Pages 133-150.
A79: 78 | B79: Journal Of Petrology, 1998, Volume 39 Number 11-12, Pages 1847–1864 | C79: Geochemical And Nd, Pb, And Sr Isotope Data | D79: www.creationism/YEC/Excellent.xlsm | E79: Excellent_37 | F79: Pb-207/Pb-206 | G79: 5019.159826 | H79: 4807.221272 | I79: 211.9385546 | J79: 4950.625318 | K79: 60 | L79: 14 | M79: 1 | Q79: 15 | R79: =(A79) -> 78 | S79: =(C79 & ", " & B79) -> Geochemical And Nd, Pb, And Sr Isotope Data, Journal Of Petrology, 1998, Volume 39 Number 11-12, Pages 1847–1864
A80: 79 | B80: Ore Geology Reviews 31 (2007) Pages 337–359 | C80: Isotopic Characteristics Of The Jinding Zn–Pb Deposit | D80: www.creationism/YEC/Excellent.xlsm | E80: Excellent_38 | F80: Pb-207/Pb-206 | G80: 5009.89772 | H80: 4975.651285 | I80: 34.24643491 | J80: 5000.579295 | K80: 62 | L80: 40 | M80: 61 | Q80: 101 | R80: =(A80) -> 79 | S80: =(C80 & ", " & B80) -> Isotopic Characteristics Of The Jinding Zn–Pb Deposit, Ore Geology Reviews 31 (2007) Pages 337–359
A81: 80 | B81: Journal Of Petrology, April 11, 2012, Pages 1-32 | C81: Chronology And Geochemistry Of Lavas | D81: www.creationism/YEC/Excellent.xlsm | E81: Excellent_39 | F81: Pb-208/Th-232 | G81: 23849.56676 | H81: 4129.335882 | I81: 19720.23088 | J81: 8325.003245 | K81: 20 | M81: 5 | N81: 12 | O81: 3 | P81: 1 | Q81: 21 | R81: =(A81) -> 80 | S81: =(C81 & ", " & B81) -> Chronology And Geochemistry Of Lavas, Journal Of Petrology, April 11, 2012, Pages 1-32
A82: 81 | B82: Earth and Planetary Science Letters, Volume 301 (2011) 469–478 | C82: The Tethyan Realm Lamproites | D82: www.creationism/YEC/Research.xlsm | E82: Pb_207_01 | F82: Pb-207/Pb-206 | G82: 6194.367072 | H82: 969.7035437 | I82: 5224.663528 | J82: 4754.938813 | K82: 30 | L82: 16 | M82: 19 | N82: 2 | Q82: 37 | R82: =(A82) -> 81 | S82: =(C82 & ", " & B82) -> The Tethyan Realm Lamproites, Earth and Planetary Science Letters, Volume 301 (2011) 469–478
A83: 82 | B83: Earth and Planetary Science, Volume 104 (1991) 1-15 | C83: Th, Pb, and Sr Isotope Variations | D83: www.creationism/YEC/Research.xlsm | E83: Pb_207_02 | F83: Pb-207/Pb-206 | G83: 5145.413482 | H83: 4947.453232 | I83: 197.9602503 | J83: 4983.751051 | K83: 300 | L83: 33 | M83: 4 | Q83: 37 | R83: =(A83) -> 82 | S83: =(C83 & ", " & B83) -> Th, Pb, and Sr Isotope Variations, Earth and Planetary Science, Volume 104 (1991) 1-15
A84: 83 | B84: Earth and Planetary Science Letters, Volume 240 (2005) 605– 620 | C84: Pb Isotopic Variability in Melt Inclusions | D84: www.creationism/YEC/Research.xlsm | E84: Pb_207_04 | F84: Pb-207/Pb-206 | G84: 5049.006386 | H84: 4742.979152 | I84: 306.0272332 | J84: 4909.764277 | K84: 20 | L84: 88 | M84: 16 | Q84: 104 | R84: =(A84) -> 83 | S84: =(C84 & ", " & B84) -> Pb Isotopic Variability in Melt Inclusions, Earth and Planetary Science Letters, Volume 240 (2005) 605– 620
A85: 84 | B85: Earth and Planetary Science Letters 296 (2010) 267–277 | C85: Microanalysis Of Individual Fluid Inclusions | D85: www.creationism/YEC/Research.xlsm | E85: Pb_207_05 | F85: Pb-207/Pb-206 | G85: 5074.544863 | H85: 5069.453808 | I85: 5.091055319 | J85: 5071.163458 | K85: 1800 | M85: 36 | Q85: 36 | R85: =(A85) -> 84 | S85: =(C85 & ", " & B85) -> Microanalysis Of Individual Fluid Inclusions, Earth and Planetary Science Letters 296 (2010) 267–277
A86: 85 | B86: Earth and Planetary Science Letters, Volume 306 (2011) 86–97 | C86: South Atlantic Mid-Ocean-Ridge | D86: www.creationism/YEC/Research.xlsm | E86: Pb_207_06 | F86: Pb-207/Pb-206 | G86: 6214.394049 | H86: 4923.675688 | I86: 1290.718361 | J86: 4990.388372 | K86: 50 | L86: 74 | M86: 21 | N86: 1 | Q86: 96 | R86: =(A86) -> 85 | S86: =(C86 & ", " & B86) -> South Atlantic Mid-Ocean-Ridge, Earth and Planetary Science Letters, Volume 306 (2011) 86–97
A87: 86 | B87: Earth and Planetary Science Letters, Volume 267 (2008) 236–246 | C87: U–Pb Dating Of Fossil Enamel | D87: www.creationism/YEC/Research.xlsm | E87: Pb_207_10 | F87: Pb-207/Pb-206 | G87: 5002.10558 | H87: 4852.091101 | I87: 150.0144791 | J87: 4956.050565 | K87: 4 | L87: 8 | M87: 1 | Q87: 9 | R87: =(A87) -> 86 | S87: =(C87 & ", " & B87) -> U–Pb Dating Of Fossil Enamel, Earth and Planetary Science Letters, Volume 267 (2008) 236–246
A88: 87 | B88: Earth and Planetary Science Letters, Volume 34 (1977) 419-431 | C88: Lead And Strontium Isotopes In Cretaceous Kimberlites | D88: www.creationism/YEC/Research.xlsm | E88: Pb_207_11 | F88: Pb-207/Pb-206 | G88: 5050.256831 | H88: 4709.905945 | I88: 340.3508864 | J88: 4908.543496 | K88: 90 | L88: 11 | M88: 1 | Q88: 12 | R88: =(A88) -> 87 | S88: =(C88 & ", " & B88) -> Lead And Strontium Isotopes In Cretaceous Kimberlites, Earth and Planetary Science Letters, Volume 34 (1977) 419-431
A89: 88 | B89: Earth and Planetary Science Letters, Volume 34 (1977) 419-431 | C89: Lead And Strontium Isotopes In Cretaceous Kimberlites | D89: www.creationism/YEC/Research.xlsm | E89: Pb_207_11 | F89: Pb-207/Pb-206 | G89: 5038.824181 | H89: 4855.778989 | I89: 183.0451915 | J89: 4940.484927 | K89: 90 | L89: 3 | M89: 2 | Q89: 5 | R89: =(A89) -> 88 | S89: =(C89 & ", " & B89) -> Lead And Strontium Isotopes In Cretaceous Kimberlites, Earth and Planetary Science Letters, Volume 34 (1977) 419-431
A90: 89 | B90: Earth and Planetary Science, Volume 34 (1977) 419-431 | C90: Lead And Strontium Isotopes In Cretaceous Kimberlites | D90: www.creationism/YEC/Research.xlsm | E90: Pb_207_11 | F90: Pb-207/Pb-206 | G90: 5060.586575 | H90: 4897.870607 | I90: 162.7159675 | J90: 4969.123779 | K90: 90 | L90: 7 | M90: 5 | Q90: 12 | R90: =(A90) -> 89 | S90: =(C90 & ", " & B90) -> Lead And Strontium Isotopes In Cretaceous Kimberlites, Earth and Planetary Science, Volume 34 (1977) 419-431
A91: 90 | B91: Earth and Planetary Science, Volume 34 (1977) 419-431 | C91: Lead And Strontium Isotopes In Cretaceous Kimberlites | D91: www.creationism/YEC/Research.xlsm | E91: Pb_207_11 | F91: Pb-207/Pb-206 | G91: 5111.649363 | H91: 5109.109204 | I91: 2.540159605 | J91: 5110.223347 | K91: 90 | M91: 10 | Q91: 10 | R91: =(A91) -> 90 | S91: =(C91 & ", " & B91) -> Lead And Strontium Isotopes In Cretaceous Kimberlites, Earth and Planetary Science, Volume 34 (1977) 419-431
A92: 91 | B92: Earth and Planetary Science Letters, Volume 245 (2006) 137–152 | C92: Trace Element-Pb Isotope Enrichments | D92: www.creationism/YEC/Research.xlsm | E92: Pb_207_12 | F92: Pb-207/Pb-206 | G92: 5004.789546 | H92: 4958.996095 | I92: 45.7934508 | J92: 4987.928897 | K92: 1940 | L92: 33 | M92: 3 | Q92: 36 | R92: =(A92) -> 91 | S92: =(C92 & ", " & B92) -> Trace Element-Pb Isotope Enrichments, Earth and Planetary Science Letters, Volume 245 (2006) 137–152
A93: 92 | B93: Precambrian Research, Volume 162 (2008) 441–474 | C93: Iron Formations In The Black Hills | D93: www.creationism/YEC/Research.xlsm | E93: Pb_207_13 | F93: Pb-207/Pb-206 | G93: 5250.032554 | H93: 4006.905795 | I93: 1243.126759 | J93: 4776.559938 | K93: 2200 | L93: 39 | M93: 24 | Q93: 63 | R93: =(A93) -> 92 | S93: =(C93 & ", " & B93) -> Iron Formations In The Black Hills, Precambrian Research, Volume 162 (2008) 441–474
A94: 93 | B94: Precambrian Research, Volume 114 (2002) 277–294 | C94: Pb and Nd Isotope Systematics | D94: www.creationism/YEC/Research.xlsm | E94: Pb_207_14 | F94: Pb-207/Pb-206 | G94: 5318.754346 | H94: 4872.609634 | I94: 446.1447121 | J94: 5096.195617 | K94: 2700 | L94: 11 | M94: 32 | Q94: 43 | R94: =(A94) -> 93 | S94: =(C94 & ", " & B94) -> Pb and Nd Isotope Systematics, Precambrian Research, Volume 114 (2002) 277–294
A95: 94 | B95: Precambrian Research, Volume 78 (1996) 261-272 | C95: Whole-Rock Pb/Pb Isotopic Ages | D95: www.creationism/YEC/Research.xlsm | E95: Pb_207_15 | F95: Pb-207/Pb-206 | G95: 5190.498014 | H95: 4754.837861 | I95: 435.6601531 | J95: 5020.56049 | K95: 2700 | L95: 3 | M95: 10 | Q95: 13 | R95: =(A95) -> 94 | S95: =(C95 & ", " & B95) -> Whole-Rock Pb/Pb Isotopic Ages, Precambrian Research, Volume 78 (1996) 261-272
A96: 95 | B96: Precambrian Research, Volume 78 (1996) 261-272 | C96: Whole-Rock Pb/Pb Isotopic Ages | D96: www.creationism/YEC/Research.xlsm | E96: Pb_207_15 | F96: Pb-207/Pb-206 | G96: 5338.975567 | H96: 4299.565566 | I96: 1039.410002 | J96: 5007.88714 | K96: 2700 | L96: 2 | M96: 15 | Q96: 17 | R96: =(A96) -> 95 | S96: =(C96 & ", " & B96) -> Whole-Rock Pb/Pb Isotopic Ages, Precambrian Research, Volume 78 (1996) 261-272
A97: 96 | B97: Precambrian Research, Volume 113 (2002) 155–168 | C97: Ion Microprobe Pb–Pb Dating | D97: www.creationism/YEC/Research.xlsm | E97: Pb_207_16 | F97: Pb-207/Pb-206 | G97: 5122.990853 | H97: 4027.829019 | I97: 1095.161834 | J97: 4901.571839 | K97: 2500 | L97: 31 | M97: 15 | Q97: =SUM(L97:P97) -> 46 | R97: =(A97) -> 96 | S97: =(C97 & ", " & B97) -> Ion Microprobe Pb–Pb Dating, Precambrian Research, Volume 113 (2002) 155–168
A98: 97 | B98: Earth and Planetary Science Letters 142 (1996) 501-512 | C98: Pb Isotope Constraints | D98: www.creationism/YEC/Lead_206_207.xlsm | E98: Pb-206_02 | F98: Pb-207/Pb-206 | G98: 5346.616532 | H98: 4861.767841 | I98: 484.8486918 | J98: 5180.140406 | K98: 1600 | L98: 8 | M98: 22 | Q98: 30 | R98: =(A98) -> 97 | S98: =(C98 & ", " & B98) -> Pb Isotope Constraints, Earth and Planetary Science Letters 142 (1996) 501-512
A99: 98 | B99: Earth and Planetary Science Letters 300 (2010) 152–163 | C99: The Solar System Primordial Lead | D99: www.creationism/YEC/Lead_206_207.xlsm | E99: Pb-206_05 | F99: Pb-207/Pb-206 | G99: 5381.042629 | H99: 4964.451392 | I99: 416.5912368 | J99: 5259.109615 | K99: 4500 | L99: 3 | M99: 70 | Q99: 73 | R99: =(A99) -> 98 | S99: =(C99 & ", " & B99) -> The Solar System Primordial Lead, Earth and Planetary Science Letters 300 (2010) 152–163
A100: 99 | B100: Earth and Planetary Science, Volume 42 (1979) 58-70 | C100: Diamonds And Mantle-Derived Xenoliths | D100: www.creationism/YEC/Lead_206_207.xlsm | E100: Pb-206_06 | F100: Pb-207/Pb-206 | G100: 5248.732347 | H100: 4884.5053 | I100: 364.2270471 | J100: 4994.997779 | K100: 2500 | L100: 9 | M100: 5 | Q100: 14 | R100: =(A100) -> 99 | S100: =(C100 & ", " & B100) -> Diamonds And Mantle-Derived Xenoliths, Earth and Planetary Science, Volume 42 (1979) 58-70
A101: 100 | B101: Meteoritics & Planetary Science, Volume 46, Nr 1, 35–52 (2011) | C101: Disturbance Of Isotope Systematics | D101: www.creationism/YEC/Lead_206_207.xlsm | E101: Pb-206_08 | F101: Pb-207/Pb-206 | G101: 5110.634164 | H101: 4182.585678 | I101: 928.0484861 | J101: 4565.734757 | K101: 3678 | L101: 6 | M101: 2 | Q101: 8 | R101: =(A101) -> 100 | S101: =(C101 & ", " & B101) -> Disturbance Of Isotope Systematics, Meteoritics & Planetary Science, Volume 46, Nr 1, 35–52 (2011)
A102: 101 | B102: Meteoritics & Planetary Science, Volume 46, Nr 1, 35–52 (2011) | C102: Disturbance Of Isotope Systematics | D102: www.creationism/YEC/Lead_206_207.xlsm | E102: Pb-206_08 | F102: Pb-206⁄U-238 | G102: 22145.50286 | H102: 2268.117264 | I102: 19877.38559 | J102: 8087.999424 | K102: 3678 | L102: 1 | M102: 2 | N102: 5 | O102: 2 | P102: 1 | Q102: 11 | R102: =(A102) -> 101 | S102: =(C102 & ", " & B102) -> Disturbance Of Isotope Systematics, Meteoritics & Planetary Science, Volume 46, Nr 1, 35–52 (2011)
A103: 102 | B103: Geochimica et Cosmochimica Acta, Volume 1970, Volume 34, pp. 1039 to 1106. | C103: Model Lead And Radiometric Ages | D103: www.creationism/YEC/Lead_206_207.xlsm | E103: Pb-206_09 | F103: Pb-207/Pb-206 | G103: 7797.378331 | H103: 5138.691402 | I103: 2658.686929 | J103: 5828.101363 | K103: 2000 | M103: 3 | N103: 1 | Q103: 4 | R103: =(A103) -> 102 | S103: =(C103 & ", " & B103) -> Model Lead And Radiometric Ages, Geochimica et Cosmochimica Acta, Volume 1970, Volume 34, pp. 1039 to 1106.
A104: 103 | B104: Geochimica et Cosmochimica Acta, 1970, Volume 34, pp. 1039 to 1106. | C104: Model Lead And Radiometric Ages | D104: www.creationism/YEC/Lead_206_207.xlsm | E104: Pb-206_09 | F104: Pb-207/Pb-206 | G104: 5226.392078 | H104: 5142.80037 | I104: 83.59170836 | J104: 5203.773215 | K104: 2000 | M104: 15 | Q104: 15 | R104: =(A104) -> 103 | S104: =(C104 & ", " & B104) -> Model Lead And Radiometric Ages, Geochimica et Cosmochimica Acta, 1970, Volume 34, pp. 1039 to 1106.
A105: 104 | B105: Geochimica et Cosmochimica Acta, 1970, Volume 34, pp. 1039 to 1106. | C105: Model Lead And Radiometric Ages | D105: www.creationism/YEC/Lead_206_207.xlsm | E105: Pb-206_09 | F105: Pb-207/Pb-206 | G105: 5239.245885 | H105: 4845.553447 | I105: 393.6924382 | J105: 5160.900983 | K105: 2000 | L105: 1 | M105: 27 | Q105: 28 | R105: =(A105) -> 104 | S105: =(C105 & ", " & B105) -> Model Lead And Radiometric Ages, Geochimica et Cosmochimica Acta, 1970, Volume 34, pp. 1039 to 1106.
A106: 105 | B106: Geochimica et Cosmochimica Acta, Volume 62, No. 21/22, pp. 3527–3540, 1998 | C106: The Influence of High U-Th | D106: www.creationism/YEC/Lead_206_207.xlsm | E106: Pb-206_13 | F106: Pb-207/Pb-206 | G106: 5042.300457 | H106: 1325.158694 | I106: 3717.141763 | J106: 4179.655947 | K106: 500 | L106: 8 | M106: 1 | Q106: 9 | R106: =(A106) -> 105 | S106: =(C106 & ", " & B106) -> The Influence of High U-Th, Geochimica et Cosmochimica Acta, Volume 62, No. 21/22, pp. 3527–3540, 1998
A107: 106 | B107: Geochimica et Cosmochimica Acta, Volume 63, No. 3/4, pp. 473–488, 1999 | C107: Pb-Pb and Sm-Nd Isotope Results | D107: www.creationism/YEC/Lead_206_207.xlsm | E107: Pb-206_14 | F107: Pb-207/Pb-206 | G107: 5402.485252 | H107: 4342.063203 | I107: 1060.422049 | J107: 5173.115208 | K107: 3700 | L107: 4 | M107: 26 | Q107: 30 | R107: =(A107) -> 106 | S107: =(C107 & ", " & B107) -> Pb-Pb and Sm-Nd Isotope Results, Geochimica et Cosmochimica Acta, Volume 63, No. 3/4, pp. 473–488, 1999
A108: 107 | B108: Geochimica et Cosmochimica Acta, Volume Volume 61, No. 8, pp. 1713-1731, 1997 | C108: Ages Of Basaltic Achondrites | D108: www.creationism/YEC/Lead_206_207.xlsm | E108: Pb-206_15 | F108: Pb-207/Pb-206 | G108: 5081.418707 | H108: 4370.528155 | I108: 710.8905522 | J108: 4685.629756 | K108: 4500 | L108: 14 | M108: 3 | Q108: 17 | R108: =(A108) -> 107 | S108: =(C108 & ", " & B108) -> Ages Of Basaltic Achondrites, Geochimica et Cosmochimica Acta, Volume Volume 61, No. 8, pp. 1713-1731, 1997
A109: 108 | B109: Geochimica et Cosmochimica Acta, Volume 61, No. 8, pp. 1713-1731, 1997 | C109: Ages Of Basaltic Achondrites | D109: www.creationism/YEC/Lead_206_207.xlsm | E109: Pb-206_15 | F109: Pb-207/Pb-206 | G109: 5135.139442 | H109: 4556.750763 | I109: 578.388679 | J109: 4940.851958 | K109: 4500 | L109: 19 | M109: 7 | Q109: 26 | R109: =(A109) -> 108 | S109: =(C109 & ", " & B109) -> Ages Of Basaltic Achondrites, Geochimica et Cosmochimica Acta, Volume 61, No. 8, pp. 1713-1731, 1997
A110: 109 | B110: Geochimica et Cosmochimica Acta, 1992, Volume 56, pp. 347-368 | C110: New Aspects Of Dating Eclogites | D110: www.creationism/YEC/Lead_206_207.xlsm | E110: Pb-206_16 | F110: Pb-207/Pb-206 | G110: 5066.498794 | H110: 4986.922194 | I110: 79.57660029 | J110: 5016.166887 | K110: 253 | L110: 11 | M110: 11 | Q110: 22 | R110: =(A110) -> 109 | S110: =(C110 & ", " & B110) -> New Aspects Of Dating Eclogites, Geochimica et Cosmochimica Acta, 1992, Volume 56, pp. 347-368
A111: 110 | B111: Geochimica et Cosmochimica Acta, Volume 61, No. 23, pp. 5005-5022, 1997 | C111: Dating Scheelite Stages | D111: www.creationism/YEC/Lead_206_207.xlsm | E111: Pb-206_17 | F111: Pb-207/Pb-206 | G111: 5025.904928 | H111: 3830.537865 | I111: 1195.367063 | J111: 4914.361575 | K111: 500 | L111: 4 | M111: 13 | Q111: 17 | R111: =(A111) -> 110 | S111: =(C111 & ", " & B111) -> Dating Scheelite Stages, Geochimica et Cosmochimica Acta, Volume 61, No. 23, pp. 5005-5022, 1997
A112: 111 | B112: Earth and Planetary Sctence, Volume 113 (1992) 107-128 | C112: Sr, Nd, and Pb Isotopes | D112: www.creationism/YEC/Lead_206_207.xlsm | E112: Pb-206_18 | F112: Pb-206⁄U-238 | G112: 22200.70461 | H112: 58.13189039 | I112: 22142.57272 | J112: 6853.117731 | K112: 36 | L112: 2 | M112: 5 | N112: 16 | O112: 5 | P112: 2 | Q112: 30 | R112: =(A112) -> 111 | S112: =(C112 & ", " & B112) -> Sr, Nd, and Pb Isotopes, Earth and Planetary Sctence, Volume 113 (1992) 107-128
A113: 112 | B113: Earth and Planetary Sctence, Volume 113 (1992) 107-128 | C113: Sr, Nd, and Pb Isotopes | D113: www.creationism/YEC/Lead_206_207.xlsm | E113: Pb-206_18 | F113: Pb-207/Pb-206 | G113: 5076.583029 | H113: 4945.156008 | I113: 131.4270206 | J113: 5013.656546 | K113: 36 | L113: 18 | M113: 32 | Q113: 50 | R113: =(A113) -> 112 | S113: =(C113 & ", " & B113) -> Sr, Nd, and Pb Isotopes, Earth and Planetary Sctence, Volume 113 (1992) 107-128
A114: 113 | B114: Geochimica et Cosmochimica, Volume 73 (2009) 469–488 | C114: Pb/Pb Geochronology | D114: www.creationism/YEC/Lead_206_207.xlsm | E114: Pb-206_22 | F114: Pb-207/Pb-206 | G114: 5860.201579 | H114: 4397.017993 | I114: 1463.183587 | J114: 5506.994909 | K114: 3700 | M114: 22 | Q114: 22 | R114: =(A114) -> 113 | S114: =(C114 & ", " & B114) -> Pb/Pb Geochronology, Geochimica et Cosmochimica, Volume 73 (2009) 469–488
A115: 114 | B115: Geochimica et Cosmochimica Acta, Volume 72 (2008) 5799–5818 | C115: U, Th And Pb Isotope Compositions | D115: www.creationism/YEC/Lead_206_207.xlsm | E115: Pb-206_23 | F115: Pb-208/Th-232 | G115: 42037.68124 | H115: 1938.689533 | I115: 40098.9917 | J115: 8096.51606 | K115: 2.588 | L115: 1 | M115: 1 | O115: 4 | P115: 2 | Q115: 8 | R115: =(A115) -> 114 | S115: =(C115 & ", " & B115) -> U, Th And Pb Isotope Compositions, Geochimica et Cosmochimica Acta, Volume 72 (2008) 5799–5818
A116: 115 | B116: Geochimica et Cosmochimica Acta, Volume 72 (2008) 5799–5818 | C116: U, Th And Pb Isotope Compositions | D116: www.creationism/YEC/Lead_206_207.xlsm | E116: Pb-206_23 | F116: Pb-206⁄U-238 | G116: 15306.78499 | H116: 1436.962903 | I116: 13869.82208 | J116: 4270.628329 | K116: 2.588 | M116: 1 | N116: 1 | O116: 3 | Q116: 5 | R116: =(A116) -> 115 | S116: =(C116 & ", " & B116) -> U, Th And Pb Isotope Compositions, Geochimica et Cosmochimica Acta, Volume 72 (2008) 5799–5818
A117: 116 | B117: Geochimica et Cosmochimica, Volume 72 (2008) 5799–5818 | C117: U, Th And Pb Isotope Compositions | D117: www.creationism/YEC/Lead_206_207.xlsm | E117: Pb-206_23 | F117: Pb-207/Pb-206 | G117: 5007.992406 | H117: 4871.481281 | I117: 136.511125 | J117: 4915.273431 | K117: 2.588 | L117: 22 | M117: 3 | Q117: 25 | R117: =(A117) -> 116 | S117: =(C117 & ", " & B117) -> U, Th And Pb Isotope Compositions, Geochimica et Cosmochimica, Volume 72 (2008) 5799–5818
A118: 117 | B118: Geochimica et Cosmochimica Acta 71 (2007) 5514–5527 | C118: Pb Isotopic Compositions Of Rocks | D118: www.creationism/YEC/Lead_206_207.xlsm | E118: Pb-206_25 | F118: Pb-207/Pb-206 | G118: 5265.041568 | H118: 5054.790103 | I118: 210.2514652 | J118: 5243.360864 | K118: 2000 | M118: 113 | Q118: 113 | R118: =(A118) -> 117 | S118: =(C118 & ", " & B118) -> Pb Isotopic Compositions Of Rocks, Geochimica et Cosmochimica Acta 71 (2007) 5514–5527
A119: 118 | B119: Earth and Planetary Science Letters, Volume 319-320 (2012) 197–206 | C119: U–Th–Pb Isotope Data | D119: www.creationism/YEC/Research.xlsm | E119: Th_232_01 | F119: Pb-207/Pb-206 | G119: 5403.170217 | H119: 5222.336113 | I119: 180.8341036 | J119: 5325.2282 | K119: 3400 | M119: 13 | Q119: 13 | R119: =(A119) -> 118 | S119: =(C119 & ", " & B119) -> U–Th–Pb Isotope Data, Earth and Planetary Science Letters, Volume 319-320 (2012) 197–206
A120: 119 | B120: Earth and Planetary Science Letters, Volume 183 (2000) 93-106 | C120: The Age Of The Lithospheric Mantle | D120: www.creationism/YEC/Research.xlsm | E120: Th_232_02 | F120: Pb-207/Pb-206 | G120: 5235.002558 | H120: 5076.99591 | I120: 158.0066481 | J120: 5161.231745 | K120: 267 | M120: 3 | Q120: 3 | R120: =(A120) -> 119 | S120: =(C120 & ", " & B120) -> The Age Of The Lithospheric Mantle, Earth and Planetary Science Letters, Volume 183 (2000) 93-106
A121: 120 | B121: Earth and Planetary Science Letters, Volume 134 (1995) 169-185 | C121: Evolution Of Reunion Hotspot Mantle | D121: www.creationism/YEC/Research.xlsm | E121: Th_232_03 | F121: Pb-207/Pb-206 | G121: 5015.84652 | H121: 4952.643131 | I121: 63.20338883 | J121: 4976.298047 | K121: 66 | L121: 19 | M121: 1 | Q121: 20 | R121: =(A121) -> 120 | S121: =(C121 & ", " & B121) -> Evolution Of Reunion Hotspot Mantle, Earth and Planetary Science Letters, Volume 134 (1995) 169-185
A122: 121 | B122: Earth and Planetary Science Letters, Volume 134 (1995) 169-185 | C122: Evolution Of Reunion Hotspot Mantle | D122: www.creationism/YEC/Research.xlsm | E122: Th_232_03 | F122: Pb-208/Th-232 | G122: 13286.71038 | H122: 5641.171063 | I122: 7645.539317 | J122: 8078.806169 | K122: 66 | M122: 2 | N122: 14 | O122: 4 | Q122: 20 | R122: =(A122) -> 121 | S122: =(C122 & ", " & B122) -> Evolution Of Reunion Hotspot Mantle, Earth and Planetary Science Letters, Volume 134 (1995) 169-185
A123: 122 | B123: Earth and Planetary Science Letters, Volume 134 (1995) 169-185 | C123: Evolution Of Reunion Hotspot Mantle | D123: www.creationism/YEC/Research.xlsm | E123: Th_232_03 | F123: Pb-206⁄U-238 | G123: 6285.48251 | H123: 3009.915661 | I123: 3275.56685 | J123: 4449.350323 | K123: 66 | L123: 2 | M123: 3 | N123: 2 | Q123: 7 | R123: =(A123) -> 122 | S123: =(C123 & ", " & B123) -> Evolution Of Reunion Hotspot Mantle, Earth and Planetary Science Letters, Volume 134 (1995) 169-185
A124: 123 | B124: Precambrian Research, Volume 72 ( 1995 ) 247-261 | C124: Carbonate Pb-Pb ages of the Wittenoom Formation | D124: www.creationism/YEC/Research.xlsm | E124: U_238_01 | F124: Pb-207/Pb-206 | G124: 6590.578713 | H124: 3959.403895 | I124: 2631.174818 | J124: 5593.608361 | K124: 2500 | L124: 6 | M124: 2 | N124: 17 | Q124: 25 | R124: =(A124) -> 123 | S124: =(C124 & ", " & B124) -> Carbonate Pb-Pb ages of the Wittenoom Formation, Precambrian Research, Volume 72 ( 1995 ) 247-261
A125: 124 | B125: www.nature.com/ngeo/journal/v4/n12/extref/ngeo1331-s2.xls | C125: Origin of Indian Ocean Seamount Province, Nature Geoscience, 2011, Volume 4, Pages 883-887 | D125: www.creationism/YEC/Very_Old_B_1.xls | E125: Very_Old_B_1 | F125: Pb-207/Pb-206 | G125: 5087.354282 | H125: 4921.396132 | I125: 165.9581498 | J125: 5015.467732 | K125: 130 | L125: 26 | M125: 37 | Q125: =SUM(L125:P125) -> 63 | R125: =(A125) -> 124 | S125: =(C125 & ", " & B125) -> Origin of Indian Ocean Seamount Province, Nature Geoscience, 2011, Volume 4, Pages 883-887, www.nature.com/ngeo/journal/v4/n12/extref/ngeo1331-s2.xls
A126: 125 | B126: www.nature.com/ngeo/journal/v4/n12/extref/ngeo1331-s2.xls | C126: Origin of Indian Ocean Seamount Province, Nature Geoscience, 2011, Volume 4, Pages 883-887 | D126: www.creationism/YEC/Very_Old_B_1.xls | E126: Very_Old_B_1 | F126: Pb-206/U-238 | G126: 18209.96405 | H126: 889.7232116 | I126: 17320.24084 | J126: 5191.16108 | K126: 130 | L126: 2 | M126: 11 | N126: 9 | O126: 8 | Q126: 30 | R126: =(A126) -> 125 | S126: =(C126 & ", " & B126) -> Origin of Indian Ocean Seamount Province, Nature Geoscience, 2011, Volume 4, Pages 883-887, www.nature.com/ngeo/journal/v4/n12/extref/ngeo1331-s2.xls
A127: 126 | B127: www.nature.com/ngeo/journal/v4/n12/extref/ngeo1331-s2.xls | C127: Origin of Indian Ocean Seamount Province, Nature Geoscience, 2011, Volume 4, Pages 883-887 | D127: www.creationism/YEC/Very_Old_B_1.xls | E127: Very_Old_B_1 | F127: Pb-208/Th-232 | G127: 28677.02802 | H127: 1943.20652 | I127: 26733.8215 | J127: 7739.957353 | K127: 130 | L127: 6 | M127: 4 | N127: 25 | O127: 16 | P127: 1 | Q127: 52 | R127: =(A127) -> 126 | S127: =(C127 & ", " & B127) -> Origin of Indian Ocean Seamount Province, Nature Geoscience, 2011, Volume 4, Pages 883-887, www.nature.com/ngeo/journal/v4/n12/extref/ngeo1331-s2.xls
A128: 127 | B128: www.nature.com/nature/journal/v476/n7361/extref/nature10321-s2.xls | C128: The Hawaiian Plume, Nature, 2011, Volume 476, Pages 434–437 | D128: www.creationism/YEC/Very_Old_B_2.xls | E128: Very_Old_B_2 | F128: Pb-207/Pb-206 | G128: 5033.212828 | H128: 4951.664643 | I128: 81.54818505 | J128: 5000.416384 | K128: 650 | L128: 52 | M128: 56 | Q128: 108 | R128: =(A128) -> 127 | S128: =(C128 & ", " & B128) -> The Hawaiian Plume, Nature, 2011, Volume 476, Pages 434–437, www.nature.com/nature/journal/v476/n7361/extref/nature10321-s2.xls
A129: 128 | B129: www.nature.com/nature/journal/v476/n7361/extref/nature10321-s2.xls | C129: The Hawaiian Plume, Nature, 2011, Volume 476, Pages 434–437 | D129: www.creationism/YEC/Very_Old_B_2.xls | E129: Very_Old_B_2 | F129: Pb-207/Pb-206 | G129: 5045.765239 | H129: 4927.066857 | I129: 118.6983816 | J129: 5000.797277 | K129: 650 | L129: 104 | M129: 126 | Q129: 230 | R129: =(A129) -> 128 | S129: =(C129 & ", " & B129) -> The Hawaiian Plume, Nature, 2011, Volume 476, Pages 434–437, www.nature.com/nature/journal/v476/n7361/extref/nature10321-s2.xls
A130: 129 | B130: www.nature.com/nature/journal/v434/n7035/extref/nature03402-s1.xls | C130: The Hawaiian Mantle Plume, Nature, 2005, Volume 434, Pages 851-856 | D130: www.creationism/YEC/Very_Old_B_3.xls | E130: Very_Old_B_3 | F130: Pb-207/Pb-206 | G130: 5034.731679 | H130: 4972.267977 | I130: 62.46370171 | J130: 5009.042844 | K130: 0.55 | L130: 37 | M130: 56 | Q130: 93 | R130: =(A130) -> 129 | S130: =(C130 & ", " & B130) -> The Hawaiian Mantle Plume, Nature, 2005, Volume 434, Pages 851-856, www.nature.com/nature/journal/v434/n7035/extref/nature03402-s1.xls
A131: 130 | B131: www.nature.com/nature/journal/v485/n7400/extref/nature11140-s3.xls | C131: Continental Growth 3.2 Gyr Ago, Nature, 2012, Volume 485, Pages 627–630 | D131: www.creationism/YEC/Very_Old_B_4.xls | E131: Very_Old_B_4 | F131: Pb-208/Th-232 | G131: 11517.37782 | H131: 457.5152838 | I131: 11059.86254 | J131: 3334.00713 | K131: 3200 | L131: 10 | M131: 9 | N131: 1 | O131: 1 | P131: 0 | Q131: =SUM(L131:P131) -> 21 | R131: =(A131) -> 130 | S131: =(C131 & ", " & B131) -> Continental Growth 3.2 Gyr Ago, Nature, 2012, Volume 485, Pages 627–630, www.nature.com/nature/journal/v485/n7400/extref/nature11140-s3.xls
A132: 131 | B132: www.nature.com/ngeo/journal/v4/n12/extref/ngeo1263-s1.xls | C132: Pacific Hotspots, Nature Geoscience, 2011, Volume 4, Pages 874–878 | D132: www.creationism/YEC/Very_Old_B_5.xls | E132: Very_Old_B_5 | F132: Pb-207/Pb-206 | G132: 5035.768061 | H132: 4871.337946 | I132: 164.4301152 | J132: 4939.821584 | L132: 78 | M132: 1 | Q132: 79 | R132: =(A132) -> 131 | S132: =(C132 & ", " & B132) -> Pacific Hotspots, Nature Geoscience, 2011, Volume 4, Pages 874–878, www.nature.com/ngeo/journal/v4/n12/extref/ngeo1263-s1.xls
A133: 132 | B133: www.nature.com/ngeo/journal/v4/n12/extref/ngeo1263-s1.xls | C133: Pacific Hotspots, Nature Geoscience, 2011, Volume 4, Pages 874–878 | D133: www.creationism/YEC/Very_Old_B_5.xls | E133: Very_Old_B_5 | F133: Pb-207/Pb-206 | G133: 5031.989629 | H133: 4974.105728 | I133: 57.8839008 | J133: 4997.436941 | L133: 186 | M133: 93 | Q133: 279 | R133: =(A133) -> 132 | S133: =(C133 & ", " & B133) -> Pacific Hotspots, Nature Geoscience, 2011, Volume 4, Pages 874–878, www.nature.com/ngeo/journal/v4/n12/extref/ngeo1263-s1.xls
A134: 133 | B134: www.nature.com/nature/journal/v447/n7148/extref/nature05920-s2.xls | C134: The Earth's Upper Mantle, Nature, 2007, Volume 447, Pages 1069-1074 | D134: www.creationism/YEC/Very_Old_B_6.xls | E134: Very_Old_B_6 | F134: Pb-207/Pb-206 | G134: 5129.3025 | H134: 4882.176415 | I134: 247.1260848 | J134: 4996.055496 | L134: 585 | M134: 494 | Q134: 1079 | R134: =(A134) -> 133 | S134: =(C134 & ", " & B134) -> The Earth's Upper Mantle, Nature, 2007, Volume 447, Pages 1069-1074, www.nature.com/nature/journal/v447/n7148/extref/nature05920-s2.xls
A135: 134 | B135: http://www.navdat.org/NavdatSearch | C135: None | D135: www.creationism/YEC/Very_Old_B_7.xls | E135: Very_Old_B_7 | F135: Pb-207/Pb-206 | G135: 5843.006345 | H135: 4598.157538 | I135: 1244.848807 | J135: 4987.086068 | L135: 2384 | M135: 937 | Q135: =SUM(L135:P135) -> 3321 | R135: =(A135) -> 134 | S135: =(C135 & ", " & B135) -> None, http://www.navdat.org/NavdatSearch
A136: 135 | B136: http://georoc.mpch-mainz.gwdg.de/georoc/webseite/Expert%20Datasets/Lustrino_Wilson09.xls | C136: None | D136: www.creationism/YEC/Very_Old_B_8.xls | E136: Very_Old_B_8 | F136: Pb-207/Pb-206 | G136: 5083.930534 | H136: 4838.507722 | I136: 245.4228124 | J136: 4935.983288 | L136: 981 | M136: 30 | Q136: 1011 | R136: =(A136) -> 135 | S136: =(C136 & ", " & B136) -> None, http://georoc.mpch-mainz.gwdg.de/georoc/webseite/Expert%20Datasets/Lustrino_Wilson09.xls
A137: 136 | B137: http://georoc.mpch-mainz.gwdg.de/georoc/ | C137: None | D137: www.creationism/YEC/Very_Old_B_9.xls | E137: Very_Old_B_9 | F137: Pb-207/Pb-206 | G137: 5060.758281 | H137: 4908.403206 | I137: 152.355075 | J137: 5020.654501 | L137: 10 | M137: 34 | Q137: 44 | R137: =(A137) -> 136 | S137: =(C137 & ", " & B137) -> None, http://georoc.mpch-mainz.gwdg.de/georoc/
A138: 137 | B138: http://www.earthchem.org/deeplith/search | C138: None | D138: www.creationism/YEC/Very_Old_C_1.xls | E138: Very_Old_C_1 | F138: Pb-207/Pb-206 | G138: 5247.97303 | H138: 4711.957286 | I138: 536.015744 | J138: 4991.941453 | L138: 139 | M138: 79 | Q138: 218 | R138: =(A138) -> 137 | S138: =(C138 & ", " & B138) -> None, http://www.earthchem.org/deeplith/search
A139: 138 | B139: http://www.earthchem.org/deeplith/search | C139: None | D139: www.creationism/YEC/Very_Old_C_1.xls | E139: Very_Old_C_1 | F139: Pb-206/U-238 | G139: 12617.7803 | H139: 653.4834372 | I139: 11964.29686 | J139: 5278.02166 | L139: 3 | M139: 8 | N139: 15 | O139: 3 | Q139: 29 | R139: =(A139) -> 138 | S139: =(C139 & ", " & B139) -> None, http://www.earthchem.org/deeplith/search
A140: 139 | B140: http://www.earthchem.org/deeplith/search | C140: None | D140: www.creationism/YEC/Very_Old_C_1.xls | E140: Very_Old_C_1 | F140: Pb-208/Th-232 | G140: 35177.37575 | H140: 1806.084833 | I140: 33371.29092 | J140: 13644.43785 | M140: 1 | N140: 1 | O140: 7 | P140: 1 | Q140: 10 | R140: =(A140) -> 139 | S140: =(C140 & ", " & B140) -> None, http://www.earthchem.org/deeplith/search
A141: 140 | B141: http://pubs.usgs.gov/of/1987/0259/report.pdf | C141: Pb Isotope Database | D141: www.creationism/YEC/Very_Old_C_2.xls | E141: Very_Old_C_2 | F141: Pb-207/Pb-206 | G141: 5149.959486 | H141: 4848.52476 | I141: 301.4347266 | J141: 4975.490669 | K141: 200 | L141: 154 | M141: 53 | Q141: =SUM(L141:P141) -> 207 | R141: =(A141) -> 140 | S141: =(C141 & ", " & B141) -> Pb Isotope Database, http://pubs.usgs.gov/of/1987/0259/report.pdf
A142: 141 | B142: http://earthref.org/ERDA/download:147/ | C142: Geochemistry Geophysics Geosystems, 2003, Volume 4, Page 1089, | D142: www.creationism/YEC/Very_Old_C_3.xls | E142: Very_Old_C_3 | F142: Pb-206/U-238 | G142: 38340 | H142: 3125 | I142: 35215 | J142: 15345.2381 | K142: 100 | L142: 1 | M142: 3 | N142: 11 | O142: 15 | P142: 11 | Q142: =SUM(L142:P142) -> 41 | R142: =(A142) -> 141 | S142: =(C142 & ", " & B142) -> Geochemistry Geophysics Geosystems, 2003, Volume 4, Page 1089, , http://earthref.org/ERDA/download:147/
A143: 142 | B143: http://earthref.org/ERDA/download:147/ | C143: Geochemistry Geophysics Geosystems, 2003, Volume 4, Page 1089, | D143: www.creationism/YEC/Very_Old_C_3.xls | E143: Very_Old_C_3 | F143: Pb-207/U-235 | G143: 10872 | H143: 4385 | I143: 6487 | J143: 7019.375 | K143: 100 | L143: 3 | M143: 10 | N143: 23 | O143: 3 | Q143: 39 | R143: =(A143) -> 142 | S143: =(C143 & ", " & B143) -> Geochemistry Geophysics Geosystems, 2003, Volume 4, Page 1089, , http://earthref.org/ERDA/download:147/
A144: 143 | B144: http://earthref.org/ERDA/download:147/ | C144: Geochemistry Geophysics Geosystems, 2003, Volume 4, Page 1089, | D144: www.creationism/YEC/Very_Old_C_3.xls | E144: Very_Old_C_3 | F144: Pb-207/Pb-206 | G144: 5043.007487 | H144: 4759.912027 | I144: 283.0954604 | J144: 4935.721475 | K144: 100 | L144: 88 | M144: 14 | Q144: 102 | R144: =(A144) -> 143 | S144: =(C144 & ", " & B144) -> Geochemistry Geophysics Geosystems, 2003, Volume 4, Page 1089, , http://earthref.org/ERDA/download:147/
A145: 144 | B145: http://earthref.org/ERDA/download:147/ | C145: Geochemistry Geophysics Geosystems, 2003, Volume 4, Page 1089, | D145: www.creationism/YEC/Very_Old_C_3.xls | E145: Very_Old_C_3 | F145: Pb-208/Th-232 | G145: 82865 | H145: 5577 | I145: 77288 | J145: 39068.26087 | K145: 100 | M145: 2 | N145: 4 | O145: 2 | P145: 15 | Q145: 23 | R145: =(A145) -> 144 | S145: =(C145 & ", " & B145) -> Geochemistry Geophysics Geosystems, 2003, Volume 4, Page 1089, , http://earthref.org/ERDA/download:147/
A146: 145 | B146: ftp://rock.geosociety.org/pub/reposit/2008/2008019.xls | C146: None | D146: www.creationism/YEC/Very_Old_C_4.xls | E146: Very_Old_C_4 | F146: Pb-207/Pb-206 | G146: 5022.183716 | H146: 4897.260899 | I146: 124.9228168 | J146: 4968.822586 | L146: 132 | M146: 14 | Q146: =SUM(L146:P146) -> 146 | R146: =(A146) -> 145 | S146: =(C146 & ", " & B146) -> None, ftp://rock.geosociety.org/pub/reposit/2008/2008019.xls
A147: 146 | L147: =SUM(L1:L124) -> 2790 | M147: 2805 | N147: 161 | O147: 62 | P147: 17 | Q147: 5835
L148: 4600 To 4999 | M148: 5000 To 5999 | N148: 6,000 To 9999 | O148: 10,000 To 19,999 | P148: Over 19,999 | Q148: Total
F151: Spreadsheet | G151: MAXIMUM | H151: MINIMUM | I151: AVERAGE
F152: Iso_Plot_001 | G152: =(G2/K2)*100 -> 975.1237043 | H152: =(H2/K2)*100 -> 160.1490941 | I152: =(J2/K2)*100 -> 450.3968315
F153: Iso_Plot_001 | G153: =(G3/K3)*100 -> 2072.80402 | H153: =(H3/K3)*100 -> 257.6806935 | I153: =(J3/K3)*100 -> 944.4974138
F154: Iso_Plot_001 | G154: 465.0209116 | H154: 338.9022857 | I154: 414.6189083
F155: Iso_Plot_002 | G155: 111.6153132 | H155: 101.3751035 | I155: 105.9800974
F156: Iso_Plot_003 | G156: 152.7597603 | H156: 72.37191849 | I156: 104.3224312
F157: Iso_Plot_003 | G157: 141.2602865 | H157: 74.10295154 | I157: 107.4868577
F158: Iso_Plot_008 | G158: 280.5003548 | H158: 102.6785357 | I158: 209.3864722
F159: Iso_Plot_012 | G159: 1707.663618 | H159: 1633.400176 | I159: 1670.669691
F160: Iso_Plot_014 | G160: 114.0439915 | H160: 100.2717084 | I160: 107.5754563
F161: Iso_Plot_015 | G161: 109.9530664 | H161: 99.80942061 | I161: 104.5409207
F162: Iso_Plot_015 | G162: 117.3171083 | H162: 101.5158382 | I162: 107.7783949
F163: Iso_Plot_015 | G163: 112.3616253 | H163: 104.7036043 | I163: 110.0726396
F164: Iso_Plot_015 | G164: 115.1291662 | H164: 101.1113368 | I164: 109.9848744
F165: Iso_Plot_015 | G165: 117.7453289 | H165: 102.6813381 | I165: 112.1019222
F166: Iso_Plot_018 | G166: 259937.9542 | H166: 4.751313509 | I166: 40755.76806
F167: Iso_Plot_018 | G167: 2941351.602 | H167: 18.90808645 | I167: 83197.01724
F168: Iso_Plot_018 | G168: 67715.47006 | H168: 2352.431517 | I168: 30951.60415
F169: Iso_Plot_019 | G169: 119.3542513 | H169: 98 | I169: 109.9652777
F170: Iso_Plot_020 | G170: 118.7915161 | H170: 103.0572637 | I170: 113.9080672
F171: Very_Old_A_1
F172: Very_Old_A_2
F173: Very_Old_A_3
F174: Very_Old_A_4 | G174: 1567.620179 | H174: 208.6066771 | I174: 1138.611367
F175: Very_Old_A_6 | G175: 28298.71785 | H175: 27165.65794 | I175: 27637.28928
F176: Very_Old_A_7 | G176: 18678.03827 | H176: 16508.27455 | I176: 16568.93309
F177: Very_Old_A_8 | G177: 359.9180569 | H177: -759.2244329 | I177: 104.1877228
F178: Very_Old_A_9 | G178: 11199.91672 | H178: 2066.309316 | I178: 5928.126459
F179: Very_Old_B | G179: 272.75 | H179: 104.1875 | I179: 173.0796875
F180: Very_Old_C | G180: 546.875 | H180: 16.71875 | I180: 196.4486386
F181: Very_Old_D
F182: Very_Old_E | G182: 1067.090479 | H182: 940.8272115 | I182: 982.351508
F183: Very_Old_E | G183: 1089.295964 | H183: 1087.621908 | I183: 1088.364166
F184: Very_Old_H | G184: 400.9878285 | H184: 397.0193253 | I184: 398.2755529
F185: Very_Old_J
F186: Very_Old_L
F187: Very_Old_M | G187: 5944.422918 | H187: 5859.11758 | I187: 5888.844406
F188: Very_Old_N | G188: 16738.25715 | H188: 16481.94047 | I188: 16671.12652
F189: Very_Old_P
F190: Very_Old_R
F191: Very_Old_T | G191: 10029.66513 | H191: 9452.54097 | I191: 9670.854127
F192: Very_Old_V | G192: 12520.53172 | H192: 12510.07658 | I192: 12514.49211
F193: Very_Old_W | G193: 101796.7834 | H193: 100358.6799 | I193: 101017.8666
F194: Very_Old_X | G194: 8623.017083 | H194: 8312.225774 | I194: 8423.231374
F195: Very_Old_Y
F196: Excellent_01 | G196: 167.9463065 | H196: 167.3784734 | I196: 167.5388891
F197: Excellent_04 | G197: 1106.683311 | H197: 1102.74241 | I197: 1105.421524
F198: Excellent_05 | G198: 872.8954012 | H198: 844.1855648 | I198: 858.540483
F199: Excellent_06 | G199: 5075.775046 | H199: 4532.86719 | I199: 4960.760249
F200: Excellent_07 | G200: 3433.17312 | H200: 3359.975316 | I200: 3385.702078
F201: Excellent_08 | G201: 32444.38941 | H201: 24651.94265 | I201: 25089.78429
F202: Excellent_09 | G202: 219.7344127 | H202: 193.3919854 | I202: 209.3428533
... 95 more rows

Sheet 6000_9999
A1: Number | B1: Magazine Reference | C1: Title | D1: Microsoft Excel File | E1: Spreadsheet | F1: Dating Method | G1: MAXIMUM | H1: MINIMUM | I1: DIFFERENCE | J1: AVERAGE | K1: Model Age | L1: 4600 To 4999 | M1: 5000 To 5999 | N1: 6,000 To 9999 | O1: 10,000 To 19,999 | P1: Over 19,999 | Q1: Total
A2: 1 | B2: Meteoritics & Planetary Science, 2004, Volume 39, Number 12, Pages 2033 - 2041 | C2: Ion microprobe U-Th-Pb dating | D2: www.creationism/YEC/Plot_Index.xlsm | E2: Iso_Plot_001 | F2: Pb-208/Th-232 | G2: 23837.24623 | H2: 2963.327975 | I2: 20873.91825 | J2: 10861.72026 | K2: 1150 | M2: 2 | N2: 4 | O2: 10 | P2: 1 | Q2: =SUM(L2:P2) -> 17 | R2: =(A2) -> 1 | S2: =(C2 & ", " & B2) -> Ion microprobe U-Th-Pb dating, Meteoritics & Planetary Science, 2004, Volume 39, Number 12, Pages 2033 - 2041
A3: 2 | B3: Meteoritics & Planetary Science, 2004, Volume 39, Number 12, Pages 2033 - 2041 | C3: Ion microprobe U-Th-Pb dating | D3: www.creationism/YEC/Plot_Index.xlsm | E3: Iso_Plot_001 | F3: Pb-206⁄U-238 | G3: 11213.9226 | H3: 1841.714582 | I3: 9372.208018 | J3: 5179.563562 | K3: 1150 | L3: 3 | M3: 1 | N3: 5 | O3: 1 | Q3: 10 | R3: =(A3) -> 2 | S3: =(C3 & ", " & B3) -> Ion microprobe U-Th-Pb dating, Meteoritics & Planetary Science, 2004, Volume 39, Number 12, Pages 2033 - 2041
A4: 3 | B4: Meteoritics & Planetary Science, 2003, Volume 38, Number 11, Pages 1697 - 1703 | C4: Ion Microprobe U-Th-Pb Dating | D4: www.creationism/YEC/Plot_Index.xlsm | E4: Iso_Plot_003 | F4: Pb-208/Th-232 | G4: 6110.39041 | H4: 2894.87674 | I4: 3215.513671 | J4: 4172.897248 | K4: 4000 | M4: 2 | N4: 1 | Q4: 3 | R4: =(A4) -> 3 | S4: =(C4 & ", " & B4) -> Ion Microprobe U-Th-Pb Dating, Meteoritics & Planetary Science, 2003, Volume 38, Number 11, Pages 1697 - 1703
A5: 4 | B5: Geochimica et Cosmochimica Acta, 2008, Volume 72, Pages 2067 - 2089 | C5: U–Th–Pb Dating Of Secondary Minerals | D5: www.creationism/YEC/Plot_Index.xlsm | E5: Iso_Plot_018 | F5: Pb-207/Pb-206 | G5: 8125.856407 | H5: 282.291782 | I5: 7843.564625 | J5: 3714.192498 | K5: 10 | L5: 14 | M5: 4 | N5: 1 | Q5: 19 | R5: =(A5) -> 4 | S5: =(C5 & ", " & B5) -> U–Th–Pb Dating Of Secondary Minerals, Geochimica et Cosmochimica Acta, 2008, Volume 72, Pages 2067 - 2089
A6: 5 | B6: Geochimica et Cosmochimica Acta, 2008, Volume 72, Pages 2067 - 2089 | C6: U–Th–Pb Dating Of Secondary Minerals | D6: www.creationism/YEC/Plot_Index.xlsm | E6: Iso_Plot_018 | F6: Pb-206/U-238 | G6: 31192.5545 | H6: 0.5701576211 | I6: 31191.98435 | J6: 4890.692168 | K6: 10 | L6: 2 | M6: 1 | N6: 5 | O6: 6 | P6: 4 | Q6: 18 | R6: =(A6) -> 5 | S6: =(C6 & ", " & B6) -> U–Th–Pb Dating Of Secondary Minerals, Geochimica et Cosmochimica Acta, 2008, Volume 72, Pages 2067 - 2089
A7: 6 | B7: http://geosphere.gsapubs.org/content/suppl/2010/09/29/6.5.663.DC1/530_supp1.xls | C7: Hydrothermal Zebra Dolomite, Geosphere, October 2010, Volume 6, Number 5, Pages 663-690 | D7: =("www.creationism/YEC/" & E7 & ".xls") -> www.creationism/YEC/Very_Old_A.xls | E7: Very_Old_A | F7: Pb-208/Th-232 | G7: 277726.6262 | H7: 6643.450942 | I7: 271083.1753 | J7: 90689.60717 | K7: 416 | N7: 1 | O7: 1 | P7: 235 | Q7: 237 | R7: =(A7) -> 6 | S7: =(C7 & ", " & B7) -> Hydrothermal Zebra Dolomite, Geosphere, October 2010, Volume 6, Number 5, Pages 663-690, http://geosphere.gsapubs.org/content/suppl/2010/09/29/6.5.663.DC1/530_supp1.xls
A8: 7 | B8: http://www.nature.com/nature/journal/v485/n7400/extref/nature11140-s3.xls | C8: Continental Growth 3.2 Gyr Ago, Nature, 2012, Volume 485, Pages 627–630 | D8: =("www.creationism/YEC/" & E8 & ".xls") -> www.creationism/YEC/Very_Old_A_8.xls | E8: Very_Old_A_8 | F8: Pb-208/Th-232 | G8: 11517.37782 | H8: -24295.18185 | I8: 11059.86254 | J8: 3334.00713 | K8: 3200 | L8: 10 | M8: 9 | N8: 1 | O8: 1 | Q8: 21 | R8: =(A8) -> 7 | S8: =(C8 & ", " & B8) -> Continental Growth 3.2 Gyr Ago, Nature, 2012, Volume 485, Pages 627–630, http://www.nature.com/nature/journal/v485/n7400/extref/nature11140-s3.xls
A9: 8 | B9: http://pubs.usgs.gov/of/2008/1142/tables/table04.xls | C9: Uranium-Lead Zircon Ages | D9: =("www.creationism/YEC/" & E9 & ".xls") -> www.creationism/YEC/Very_Old_A_9.xls | E9: Very_Old_A_9 | F9: Pb-206/U-238 | G9: 27999.7918 | H9: 5165.77329 | I9: 22834.01851 | J9: 14820.31615 | K9: 250 | M9: 1 | N9: 5 | O9: 9 | P9: 5 | Q9: 20 | R9: =(A9) -> 8 | S9: =(C9 & ", " & B9) -> Uranium-Lead Zircon Ages, http://pubs.usgs.gov/of/2008/1142/tables/table04.xls
A10: 9 | B10: http://pubs.usgs.gov/of/2008/1142/tables/table04.xls | C10: Uranium-Lead Zircon Ages | D10: =("www.creationism/YEC/" & E10 & ".xls") -> www.creationism/YEC/Very_Old_A_9.xls | E10: Very_Old_A_9 | F10: Pb-208/Th-232 | G10: 55110.33562 | H10: 6129.91643 | I10: 48980.41919 | J10: 17193.12578 | K10: 250 | N10: 6 | O10: 9 | P10: 5 | Q10: 20 | R10: =(A10) -> 9 | S10: =(C10 & ", " & B10) -> Uranium-Lead Zircon Ages, http://pubs.usgs.gov/of/2008/1142/tables/table04.xls
A11: 10 | B11: http://www.geo.uu.nl/~kikeb/thesis/database/upb/KB746.xls | C11: Pilbara Craton in Western Australia | D11: =("www.creationism/YEC/" & E11 & ".xls") -> www.creationism/YEC/Very_Old_B.xls | E11: Very_Old_B | F11: Pb-208/Th-232 | G11: 8728 | H11: 3334 | I11: 5394 | J11: 5538.55 | K11: 3200 | L11: 3 | M11: 7 | N11: 6 | Q11: 16 | R11: =(A11) -> 10 | S11: =(C11 & ", " & B11) -> Pilbara Craton in Western Australia, http://www.geo.uu.nl/~kikeb/thesis/database/upb/KB746.xls
A12: 11 | B12: http://www.geo.uu.nl/~kikeb/thesis/database/upb/KB770.xls | C12: Pilbara Craton in Western Australia | D12: =("www.creationism/YEC/" & E12 & ".xls") -> www.creationism/YEC/Very_Old_C.xls | E12: Very_Old_C | F12: Pb-208/Th-232 | G12: 17500 | H12: 535 | I12: 16965 | J12: 6286.356436 | K12: 3200 | L12: 5 | M12: 17 | N12: 35 | O12: 11 | Q12: 68 | R12: =(A12) -> 11 | S12: =(C12 & ", " & B12) -> Pilbara Craton in Western Australia, http://www.geo.uu.nl/~kikeb/thesis/database/upb/KB770.xls
A13: 12 | B13: www.ldeo.columbia.edu/~cai/Pb.xls | C13: Pb Axiom Masterbook | D13: =("www.creationism/YEC/" & E13 & ".xls") -> www.creationism/YEC/Very_Old_D.xls | E13: Very_Old_D | F13: Pb-207/Pb-206 | G13: 7812.818105 | H13: 4972.139276 | I13: 2840.678828 | J13: 5522.072234 | L13: 23 | M13: 30 | N13: 19 | Q13: 72 | R13: =(A13) -> 12 | S13: =(C13 & ", " & B13) -> Pb Axiom Masterbook, www.ldeo.columbia.edu/~cai/Pb.xls
A14: 13 | B14: http://geosphere.gsapubs.org/content/suppl/2009/02/18/3.6.683.DC1/00138_App3.xls | C14: Timing of sedimentation, metamorphism, and plutonism | D14: =("www.creationism/YEC/" & E14 & ".xls") -> www.creationism/YEC/Very_Old_E.xls | E14: Very_Old_E | F14: Pb-208/Th-232 | G14: 80531.81235 | H14: 488.9463458 | I14: 80042.86601 | J14: 19539.45797 | K14: 478 | N14: 1 | O14: 5 | P14: 22 | Q14: 28 | R14: =(A14) -> 13 | S14: =(C14 & ", " & B14) -> Timing of sedimentation, metamorphism, and plutonism, http://geosphere.gsapubs.org/content/suppl/2009/02/18/3.6.683.DC1/00138_App3.xls
A15: 14 | B15: Earth and Planetary. Science Letters, Volume 94 (1989) Pages 78-96 | C15: Cenozoic-Cretaceous Magmatism | D15: www.creationism/YEC/Excellent.xlsm | E15: Excellent_08 | F15: Pb-207/Pb-206 | G15: 6488.877883 | H15: 4930.38853 | I15: 1558.489353 | J15: 5017.956859 | K15: 100 | L15: 28 | M15: 3 | N15: 1 | Q15: 32 | R15: =(A15) -> 14 | S15: =(C15 & ", " & B15) -> Cenozoic-Cretaceous Magmatism, Earth and Planetary. Science Letters, Volume 94 (1989) Pages 78-96
A16: 15 | B16: Geological Society Of London, Special Publications, 2004, Volume 229, Pages 133-150. | C16: Pin Procking The Elephant | D16: www.creationism/YEC/Excellent.xlsm | E16: Excellent_34 | F16: Pb-206/U-238 | G16: 6936 | H16: 4579 | I16: 2357 | J16: 5671 | K16: 100 | M16: 1 | N16: 1 | Q16: 2 | R16: =(A16) -> 15 | S16: =(C16 & ", " & B16) -> Pin Procking The Elephant, Geological Society Of London, Special Publications, 2004, Volume 229, Pages 133-150.
A17: 16 | B17: Journal Of Petrology, April 11, 2012, Pages 1-32 | C17: Chronology And Geochemistry Of Lavas | D17: www.creationism/YEC/Excellent.xlsm | E17: Excellent_39 | F17: Pb-206/U-238 | G17: 9644.596935 | H17: 1165.579048 | I17: 8479.017887 | J17: 3693.867514 | K17: 30 | N17: 3 | Q17: 3 | R17: =(A17) -> 16 | S17: =(C17 & ", " & B17) -> Chronology And Geochemistry Of Lavas, Journal Of Petrology, April 11, 2012, Pages 1-32
A18: 17 | B18: Journal Of Petrology, April 11, 2012, Pages 1-32 | C18: Chronology And Geochemistry Of Lavas | D18: www.creationism/YEC/Excellent.xlsm | E18: Excellent_39 | F18: Pb-208/Th-232 | G18: 23849.56676 | H18: 4129.335882 | I18: 19720.23088 | J18: 8325.003245 | K18: 30 | M18: 5 | N18: 12 | O18: 3 | P18: 1 | Q18: 21 | R18: =(A18) -> 17 | S18: =(C18 & ", " & B18) -> Chronology And Geochemistry Of Lavas, Journal Of Petrology, April 11, 2012, Pages 1-32
A19: 18 | B19: Earth and Planetary Science Letters, Volume 301 (2011) Pages 469–478 | C19: The Tethyan Realm Lamproites | D19: www.creationism/YEC/Research.xlsm | E19: Pb_207_01 | F19: Pb-207/Pb-206 | G19: 6194.367072 | H19: 969.7035437 | I19: 5224.663528 | J19: 4754.938813 | K19: 20 | L19: 16 | M19: 19 | N19: 2 | Q19: 37 | R19: =(A19) -> 18 | S19: =(C19 & ", " & B19) -> The Tethyan Realm Lamproites, Earth and Planetary Science Letters, Volume 301 (2011) Pages 469–478
A20: 19 | B20: Earth and Planetary Science Letters, Volume 306 (2011) Pages 86–97 | C20: South Atlantic Mid-Ocean-Ridge | D20: www.creationism/YEC/Research.xlsm | E20: Pb_207_06 | F20: Pb-207/Pb-206 | G20: 6214.394049 | H20: 4923.675688 | I20: 1290.718361 | J20: 4990.388372 | K20: 10 | L20: 74 | M20: 21 | N20: 1 | Q20: 96 | R20: =(A20) -> 19 | S20: =(C20 & ", " & B20) -> South Atlantic Mid-Ocean-Ridge, Earth and Planetary Science Letters, Volume 306 (2011) Pages 86–97
A21: 20 | B21: Meteoritics & Planetary Science, 2011, Volume 46, Number 1, Pages 35–52 | C21: Disturbance Of Isotope Systematics | D21: www.creationism/YEC/Lead_206_207.xlsm | E21: Pb-206_08 | F21: Pb-206⁄U-238 | G21: 22145.50286 | H21: 2268.117264 | I21: 19877.38559 | J21: 8087.999424 | K21: 3300 | L21: 1 | M21: 2 | N21: 5 | O21: 2 | P21: 1 | Q21: 11 | R21: =(A21) -> 20 | S21: =(C21 & ", " & B21) -> Disturbance Of Isotope Systematics, Meteoritics & Planetary Science, 2011, Volume 46, Number 1, Pages 35–52
A22: 21 | B22: Geochimica et Cosmochimica Acta, 1970, Volume 34, Pages 1039-1106. | C22: Model Lead And Radiometric Ages | D22: www.creationism/YEC/Lead_206_207.xlsm | E22: Pb-206_09 | F22: Pb-207/Pb-206 | G22: 7797.378331 | H22: 5138.691402 | I22: 2658.686929 | J22: 5828.101363 | K22: 2030 | M22: 3 | N22: 1 | Q22: 4 | R22: =(A22) -> 21 | S22: =(C22 & ", " & B22) -> Model Lead And Radiometric Ages, Geochimica et Cosmochimica Acta, 1970, Volume 34, Pages 1039-1106.
A23: 22 | B23: Geochimica et Cosmochimica Acta, 1970, Volume 34, Pages 1039- 1106. | C23: Model Lead And Radiometric Ages | D23: www.creationism/YEC/Lead_206_207.xlsm | E23: Pb-206_09 | F23: Pb-207/Pb-206 | G23: 6461.618858 | H23: 6338.489922 | I23: 123.1289358 | J23: 6385.837302 | K23: 2030 | N23: 32 | Q23: 32 | R23: =(A23) -> 22 | S23: =(C23 & ", " & B23) -> Model Lead And Radiometric Ages, Geochimica et Cosmochimica Acta, 1970, Volume 34, Pages 1039- 1106.
A24: 23 | B24: Geochimica et Cosmochimica Acta, Volume 62, Number 21/22, Pages 3527–3540, 1998 | C24: The Influence of High U-Th | D24: www.creationism/YEC/Lead_206_207.xlsm | E24: Pb-206_13 | F24: Pb-206⁄U-238 | G24: 29040.11258 | H24: 270.4886227 | I24: 28769.62396 | J24: 5341.968525 | K24: 500 | N24: 2 | O24: 1 | P24: 1 | Q24: 4 | R24: =(A24) -> 23 | S24: =(C24 & ", " & B24) -> The Influence of High U-Th, Geochimica et Cosmochimica Acta, Volume 62, Number 21/22, Pages 3527–3540, 1998
A25: 24 | B25: Earth and Planetary Science Letters, Volume 113 (1992) Pages 107-128 | C25: Sr, Nd, and Pb Isotopes | D25: www.creationism/YEC/Lead_206_207.xlsm | E25: Pb-206_18 | F25: Pb-206⁄U-238 | G25: 22200.70461 | H25: 58.13189039 | I25: 22142.57272 | J25: 6853.117731 | K25: 3300 | L25: 2 | M25: 5 | N25: 16 | O25: 5 | P25: 2 | Q25: 30 | R25: =(A25) -> 24 | S25: =(C25 & ", " & B25) -> Sr, Nd, and Pb Isotopes, Earth and Planetary Science Letters, Volume 113 (1992) Pages 107-128
A26: 25 | B26: Geochimica et Cosmochimica Acta, Volume 72 (2008) Pages 5799–5818 | C26: U, Th And Pb Isotope Compositions | D26: www.creationism/YEC/Lead_206_207.xlsm | E26: Pb-206_23 | F26: Pb-206⁄U-238 | G26: 15306.78499 | H26: 1436.962903 | I26: 13869.82208 | J26: 4270.628329 | K26: 2.588 | M26: 1 | N26: 1 | O26: 3 | Q26: 5 | R26: =(A26) -> 25 | S26: =(C26 & ", " & B26) -> U, Th And Pb Isotope Compositions, Geochimica et Cosmochimica Acta, Volume 72 (2008) Pages 5799–5818
A27: 26 | B27: Earth and Planetary Science Letters, Volume 319-320 (2012) Pages 197–206 | C27: U–Th–Pb Isotope Data | D27: www.creationism/YEC/Research.xlsm | E27: Th_232_01 | F27: Pb-206⁄U-238 | G27: 31005.38527 | H27: 7137.593565 | I27: 23867.79171 | J27: 15192.07831 | K27: 3300 | N27: 2 | O27: 8 | P27: 2 | Q27: 12 | R27: =(A27) -> 26 | S27: =(C27 & ", " & B27) -> U–Th–Pb Isotope Data, Earth and Planetary Science Letters, Volume 319-320 (2012) Pages 197–206
A28: 27 | B28: Earth and Planetary Science Letters, Volume 134 (1995) Pages 169-185 | C28: Evolution Of Reunion Hotspot Mantle | D28: www.creationism/YEC/Research.xlsm | E28: Th_232_03 | F28: Pb-206⁄U-238 | G28: 6285.48251 | H28: 3009.915661 | I28: 3275.56685 | J28: 4449.350323 | K28: 3300 | L28: 2 | M28: 3 | N28: 2 | Q28: 7 | R28: =(A28) -> 27 | S28: =(C28 & ", " & B28) -> Evolution Of Reunion Hotspot Mantle, Earth and Planetary Science Letters, Volume 134 (1995) Pages 169-185
A29: 28 | B29: Earth and Planetary Science Letters, Volume 134 (1995) Pages 169-185 | C29: Evolution Of Reunion Hotspot Mantle | D29: www.creationism/YEC/Research.xlsm | E29: Th_232_03 | F29: Pb-208/Th-232 | G29: 13286.71038 | H29: 5641.171063 | I29: 7645.539317 | J29: 8078.806169 | K29: 66 | M29: 2 | N29: 14 | O29: 4 | Q29: 20 | R29: =(A29) -> 28 | S29: =(C29 & ", " & B29) -> Evolution Of Reunion Hotspot Mantle, Earth and Planetary Science Letters, Volume 134 (1995) Pages 169-185
A30: 29 | B30: Precambrian Research, Volume 72 (1995) Pages 247-261 | C30: Carbonate Pb-Pb ages of the Wittenoom Formation | D30: www.creationism/YEC/Research.xlsm | E30: U_238_01 | F30: Pb-207/Pb-206 | G30: 6590.578713 | H30: 3959.403895 | I30: 2631.174818 | J30: 5593.608361 | K30: 2400 | L30: 6 | M30: 2 | N30: 17 | Q30: 25 | R30: =(A30) -> 29 | S30: =(C30 & ", " & B30) -> Carbonate Pb-Pb ages of the Wittenoom Formation, Precambrian Research, Volume 72 (1995) Pages 247-261
A31: 30 | B31: www.nature.com/ngeo/journal/v4/n12/extref/ngeo1331-s2.xls | C31: Origin of Indian Ocean Seamount Province, Nature Geoscience, 2011, Volume 4, Pages 883–887 | D31: =("www.creationism/YEC/" & E31 & ".xls") -> www.creationism/YEC/Very_Old_B_1.xls | E31: Very_Old_B_1 | F31: Pb-206/U-238 | G31: 18209.96405 | H31: 889.7232116 | I31: 17320.24084 | J31: 5191.16108 | K31: 2 | L31: 2 | M31: 11 | N31: 9 | O31: 8 | Q31: =SUM(L31:P31) -> 30 | R31: =(A31) -> 30 | S31: =(C31 & ", " & B31) -> Origin of Indian Ocean Seamount Province, Nature Geoscience, 2011, Volume 4, Pages 883–887, www.nature.com/ngeo/journal/v4/n12/extref/ngeo1331-s2.xls
A32: 31 | B32: www.nature.com/ngeo/journal/v4/n12/extref/ngeo1331-s2.xls | C32: Origin of Indian Ocean Seamount Province, Nature Geoscience, 2011, Volume 4, Pages 883–887 | D32: =("www.creationism/YEC/" & E32 & ".xls") -> www.creationism/YEC/Very_Old_B_1.xls | E32: Very_Old_B_1 | F32: Pb-208/Th-232 | G32: 28677.02802 | H32: 1943.20652 | I32: 26733.8215 | J32: 7739.957353 | K32: 6 | L32: 6 | M32: 4 | N32: 25 | O32: 16 | P32: 1 | Q32: =SUM(L32:P32) -> 52 | R32: =(A32) -> 31 | S32: =(C32 & ", " & B32) -> Origin of Indian Ocean Seamount Province, Nature Geoscience, 2011, Volume 4, Pages 883–887, www.nature.com/ngeo/journal/v4/n12/extref/ngeo1331-s2.xls
A33: 32 | B33: http://www.earthchem.org/deeplith/search | C33: None | D33: =("www.creationism/YEC/" & E33 & ".xls") -> www.creationism/YEC/Very_Old_C_1.xls | E33: Very_Old_C_1 | F33: Pb-206/U-238 | G33: 12617.7803 | H33: 653.4834372 | I33: 11964.29686 | J33: 5278.02166 | L33: 3 | M33: 8 | N33: 15 | O33: 3 | Q33: =SUM(L33:P33) -> 29 | R33: =(A33) -> 32 | S33: =(C33 & ", " & B33) -> None, http://www.earthchem.org/deeplith/search
A34: 33 | B34: http://www.earthchem.org/deeplith/search | C34: None | D34: =("www.creationism/YEC/" & E34 & ".xls") -> www.creationism/YEC/Very_Old_C_1.xls | E34: Very_Old_C_1 | F34: Pb-208/Th-232 | G34: 35177.37575 | H34: 1806.084833 | I34: 33371.29092 | J34: 13644.43785 | M34: 1 | N34: 1 | O34: 7 | P34: 1 | Q34: 10 | R34: =(A34) -> 33 | S34: =(C34 & ", " & B34) -> None, http://www.earthchem.org/deeplith/search
A35: 34 | B35: http://earthref.org/ERDA/download:147/ | C35: Geochemistry Geophysics Geosystems, 2003, Volume 4, Page 1089 | D35: =("www.creationism/YEC/" & E35 & ".xls") -> www.creationism/YEC/Very_Old_C_3.xls | E35: Very_Old_C_3 | F35: Pb-206/U-238 | G35: 38340 | H35: 3125 | I35: 35215 | J35: 15345.2381 | K35: 100 | L35: 1 | M35: 3 | N35: 11 | O35: 15 | P35: 11 | Q35: =SUM(L35:P35) -> 41 | R35: =(A35) -> 34 | S35: =(C35 & ", " & B35) -> Geochemistry Geophysics Geosystems, 2003, Volume 4, Page 1089 , http://earthref.org/ERDA/download:147/
A36: 35 | B36: http://earthref.org/ERDA/download:147/ | C36: Geochemistry Geophysics Geosystems, 2003, Volume 4, Page 1089 | D36: =("www.creationism/YEC/" & E36 & ".xls") -> www.creationism/YEC/Very_Old_C_3.xls | E36: Very_Old_C_3 | F36: Pb-207/U-235 | G36: 10872 | H36: 4385 | I36: 6487 | J36: 7019.375 | K36: 100 | L36: 3 | M36: 10 | N36: 23 | O36: 3 | Q36: 39 | R36: =(A36) -> 35 | S36: =(C36 & ", " & B36) -> Geochemistry Geophysics Geosystems, 2003, Volume 4, Page 1089 , http://earthref.org/ERDA/download:147/
A37: 36 | B37: http://earthref.org/ERDA/download:147/ | C37: Geochemistry Geophysics Geosystems, 2003, Volume 4, Page 1089 | D37: =("www.creationism/YEC/" & E37 & ".xls") -> www.creationism/YEC/Very_Old_C_3.xls | E37: Very_Old_C_3 | F37: Pb-208/Th-232 | G37: 82865 | H37: 5577 | I37: 77288 | J37: 39068.26087 | K37: 100 | M37: 2 | N37: 4 | O37: 2 | P37: 15 | Q37: 23 | R37: =(A37) -> 36 | S37: =(C37 & ", " & B37) -> Geochemistry Geophysics Geosystems, 2003, Volume 4, Page 1089 , http://earthref.org/ERDA/download:147/
N38: =SUM(N2:N37) -> 290
N39: 6,000 To 9999
L43: MAXIMUM | M43: MINIMUM | N43: AVERAGE
L44: Versus Model Age | M44: Versus Model Age | N44: Versus Model Age
K45: Spreadsheet | L45: Percentage Differ | M45: Percentage Differ | N45: Percentage Differ
K46: Iso_Plot_001 | L46: =(G2/K2) -> 20.7280402 | M46: =(H2/K2) -> 2.576806935 | N46: =(J2/K2) -> 9.444974138
K47: Iso_Plot_001 | L47: =(G3/K3) -> 9.751237043 | M47: =(H3/K3) -> 1.601490941 | N47: =(J3/K3) -> 4.503968315
K48: Iso_Plot_003 | L48: 1.527597603 | M48: 0.7237191849 | N48: 1.043224312
K49: Iso_Plot_018 | L49: 812.5856407 | M49: 28.2291782 | N49: 371.4192498
K50: Iso_Plot_018 | L50: 3119.25545 | M50: 0.05701576211 | N50: 489.0692168
K51: Very_Old_A | L51: 667.6120823 | M51: 15.969834 | N51: 218.0038634
K52: Very_Old_A_8 | L52: 3.599180569 | M52: -7.592244329 | N52: 1.041877228
K53: Very_Old_A_9 | L53: 111.9991672 | M53: 20.66309316 | N53: 59.28126459
K54: Very_Old_A_9 | L54: 220.4413425 | M54: 24.51966572 | N54: 68.77250313
K55: Very_Old_B | L55: 2.7275 | M55: 1.041875 | N55: 1.730796875
K56: Very_Old_C | L56: 5.46875 | M56: 0.1671875 | N56: 1.964486386
K57: Very_Old_D
K58: Very_Old_E | L58: 168.4765949 | M58: 1.022900305 | N58: 40.87752714
K59: Excellent_08 | L59: 64.88877883 | M59: 49.3038853 | N59: 50.17956859
K60: Excellent_34 | L60: 69.36 | M60: 45.79 | N60: 56.71
K61: Excellent_39 | L61: 321.4865645 | M61: 38.85263494 | N61: 123.1289171
K62: Excellent_39 | L62: 794.9855586 | M62: 137.6445294 | N62: 277.5001082
K63: Pb_207_01 | L63: 309.7183536 | M63: 48.48517719 | N63: 237.7469407
K64: Pb_207_06 | L64: 621.4394049 | M64: 492.3675688 | N64: 499.0388372
K65: Pb-206_08 | L65: 6.710758442 | M65: 0.6873082619 | N65: 2.450908916
K66: Pb-206_09 | L66: 3.84107307 | M66: 2.531375075 | N66: 2.870985893
K67: Pb-206_09 | L67: 3.183063477 | M67: 3.122408829 | N67: 3.145732661
K68: Pb-206_13 | L68: 58.08022516 | M68: 0.5409772455 | N68: 10.68393705
K69: Pb-206_18 | L69: 6.727486246 | M69: 0.01761572436 | N69: 2.076702343
K70: Pb-206_23 | L70: 5914.522792 | M70: 555.2406889 | N70: 1650.165506
K71: Th_232_01 | L71: 9.395571295 | M71: 2.162907141 | N71: 4.603660095
K72: Th_232_03 | L72: 1.90469167 | M72: 0.9120956547 | N72: 1.348287977
K73: Th_232_03 | L73: 201.3137936 | M73: 85.47228883 | N73: 122.4061541
K74: U_238_01 | L74: 2.746074464 | M74: 1.649751623 | N74: 2.33067015
K75: Very_Old_B_1 | L75: 9104.982027 | M75: 444.8616058 | N75: 2595.58054
K76: Very_Old_B_1 | L76: 4779.504669 | M76: 323.8677533 | N76: 1289.992892
K77: Very_Old_C_1
K78: Very_Old_C_1
K79: Very_Old_C_3 | L79: 383.4 | M79: 31.25 | N79: 153.452381
K80: Very_Old_C_3 | L80: 108.72 | M80: 43.85 | N80: 70.19375
K81: Very_Old_C_3 | L81: 828.65 | M81: 55.77 | N81: 390.6826087

Sheet 10000_19999
A1: Number | B1: Magazine Reference | C1: Title | D1: Microsoft Excel File | E1: Spreadsheet | F1: Dating Method | G1: MAXIMUM | H1: MINIMUM | I1: DIFFERENCE | J1: AVERAGE | K1: Model Age | L1: 4600 To 4999 | M1: 5000 To 5999 | N1: 6,000 To 9999 | O1: 10,000 To 19,999 | P1: Over 19,999 | Q1: Total
A2: 1 | B2: Meteoritics & Planetary Science, 2004, Volume 39, Number 12, Pages 2033 - 2041 | C2: Ion microprobe U-Th-Pb dating | D2: www.creationism/YEC/Plot_Index.xlsm | E2: Iso_Plot_001 | F2: Pb-206⁄U-238 | G2: 11213.9226 | H2: 1841.714582 | I2: 9372.208018 | J2: 5179.563562 | K2: 1150 | L2: 3 | M2: 1 | N2: 5 | O2: 1 | Q2: =SUM(L2:P2) -> 10 | R2: =(A2) -> 1 | S2: =(C2 & ", " & B2) -> Ion microprobe U-Th-Pb dating, Meteoritics & Planetary Science, 2004, Volume 39, Number 12, Pages 2033 - 2041
A3: 2 | B3: Meteoritics & Planetary Science, 2004, Volume 39, Number 12, Pages 2033 - 2041 | C3: Ion microprobe U-Th-Pb dating | D3: www.creationism/YEC/Plot_Index.xlsm | E3: Iso_Plot_001 | F3: Pb-208/Th-232 | G3: 23837.24623 | H3: 2963.327975 | I3: 20873.91825 | J3: 10861.72026 | K3: 1150 | M3: 2 | N3: 4 | O3: 10 | P3: 1 | Q3: 17 | R3: =(A3) -> 2 | S3: =(C3 & ", " & B3) -> Ion microprobe U-Th-Pb dating, Meteoritics & Planetary Science, 2004, Volume 39, Number 12, Pages 2033 - 2041
A4: 3 | B4: Geochimica et Cosmochimica Acta, 2008, Volume 72, Pages 2067 - 2089 | C4: U–Th–Pb Dating Of Secondary Minerals | D4: www.creationism/YEC/Plot_Index.xlsm | E4: Iso_Plot_018 | F4: Pb-206/U-238 | G4: 31192.5545 | H4: 0.5701576211 | I4: 31191.98435 | J4: 4890.692168 | K4: 13 | L4: 2 | M4: 1 | N4: 5 | O4: 6 | P4: 4 | Q4: 18 | R4: =(A4) -> 3 | S4: =(C4 & ", " & B4) -> U–Th–Pb Dating Of Secondary Minerals, Geochimica et Cosmochimica Acta, 2008, Volume 72, Pages 2067 - 2089
A5: 4 | B5: http://geosphere.gsapubs.org/content/suppl/2010/09/29/6.5.663.DC1/530_supp1.xls | C5: Hydrothermal Zebra Dolomite | D5: =("www.creationism/YEC/" & E5 & ".xls") -> www.creationism/YEC/Very_Old_A.xls | E5: Very_Old_A | F5: Pb-208/Th-232 | G5: 277726.6262 | H5: 6643.450942 | I5: 271083.1753 | J5: 90689.60717 | K5: 416 | N5: 1 | O5: 1 | P5: 235 | Q5: 237 | R5: =(A5) -> 4 | S5: =(C5 & ", " & B5) -> Hydrothermal Zebra Dolomite, http://geosphere.gsapubs.org/content/suppl/2010/09/29/6.5.663.DC1/530_supp1.xls
A6: 5 | B6: http://www.nature.com/nature/journal/v485/n7400/extref/nature11140-s3.xls | C6: Continental Growth 3.2 Gyr Ago, Nature, 2012, Volume 485, Pages 627–630 | D6: =("www.creationism/YEC/" & E6 & ".xls") -> www.creationism/YEC/Very_Old_A_8.xls | E6: Very_Old_A_8 | F6: Pb-208/Th-232 | G6: 11517.37782 | H6: -24295.18185 | I6: 11059.86254 | J6: 3334.00713 | K6: 3200 | L6: 10 | M6: 9 | N6: 1 | O6: 1 | Q6: 21 | R6: =(A6) -> 5 | S6: =(C6 & ", " & B6) -> Continental Growth 3.2 Gyr Ago, Nature, 2012, Volume 485, Pages 627–630, http://www.nature.com/nature/journal/v485/n7400/extref/nature11140-s3.xls
A7: 6 | B7: http://pubs.usgs.gov/of/2008/1142/tables/table04.xls | C7: Uranium-Lead Zircon Ages | D7: =("www.creationism/YEC/" & E7 & ".xls") -> www.creationism/YEC/Very_Old_A_9.xls | E7: Very_Old_A_9 | F7: Pb-206/U-238 | G7: 27999.7918 | H7: 5165.77329 | I7: 22834.01851 | J7: 14820.31615 | K7: 250 | M7: 1 | N7: 5 | O7: 9 | P7: 5 | Q7: 20 | R7: =(A7) -> 6 | S7: =(C7 & ", " & B7) -> Uranium-Lead Zircon Ages, http://pubs.usgs.gov/of/2008/1142/tables/table04.xls
A8: 7 | B8: http://pubs.usgs.gov/of/2008/1142/tables/table04.xls | C8: Uranium-Lead Zircon Ages | D8: =("www.creationism/YEC/" & E8 & ".xls") -> www.creationism/YEC/Very_Old_A_9.xls | E8: Very_Old_A_9 | F8: Pb-208/Th-232 | G8: 55110.33562 | H8: 6129.91643 | I8: 48980.41919 | J8: 17193.12578 | K8: 250 | N8: 6 | O8: 9 | P8: 5 | Q8: 20 | R8: =(A8) -> 7 | S8: =(C8 & ", " & B8) -> Uranium-Lead Zircon Ages, http://pubs.usgs.gov/of/2008/1142/tables/table04.xls
A9: 8 | B9: http://www.geo.uu.nl/~kikeb/thesis/database/upb/KB770.xls | C9: Pilbara Craton in Western Australia | D9: =("www.creationism/YEC/" & E9 & ".xls") -> www.creationism/YEC/Very_Old_C.xls | E9: Very_Old_C | F9: Pb-208/Th-232 | G9: 17500 | H9: 535 | I9: 16965 | J9: 6286.356436 | K9: 3200 | L9: 5 | M9: 17 | N9: 35 | O9: 11 | Q9: 68 | R9: =(A9) -> 8 | S9: =(C9 & ", " & B9) -> Pilbara Craton in Western Australia, http://www.geo.uu.nl/~kikeb/thesis/database/upb/KB770.xls
A10: 9 | B10: http://geosphere.gsapubs.org/content/suppl/2009/02/18/3.6.683.DC1/00138_App3.xls | C10: Timing of sedimentation, metamorphism, and plutonism, Geosphere December, 2007, Volume 3 Number 6, Pages 683-703 | D10: =("www.creationism/YEC/" & E10 & ".xls") -> www.creationism/YEC/Very_Old_E.xls | E10: Very_Old_E | F10: Pb-208/Th-232 | G10: 12738.45408 | H10: 11246.32831 | I10: 1492.125764 | J10: 11782.94559 | K10: 478 | O10: 70 | Q10: 70 | R10: =(A10) -> 9 | S10: =(C10 & ", " & B10) -> Timing of sedimentation, metamorphism, and plutonism, Geosphere December, 2007, Volume 3 Number 6, Pages 683-703, http://geosphere.gsapubs.org/content/suppl/2009/02/18/3.6.683.DC1/00138_App3.xls
A11: 10 | B11: http://petrology.oxfordjournals.org/content/suppl/2004/09/24/egh060.DC1/Table_3.xls | C11: U–Th and U–Pb Systematics in Zircons, Journal Petrology, January 1, 2005, volume 46, Number 1, Pages 3-32 | D11: =("www.creationism/YEC/" & E11 & ".xls") -> www.creationism/YEC/Very_Old_G.xls | E11: Very_Old_G | F11: Pb-208/Th-232 | G11: 41459.77337 | H11: 11390.29784 | I11: 30069.47553 | J11: 22846.94083 | K11: 0.1 | O11: 16 | P11: 29 | Q11: 45 | R11: =(A11) -> 10 | S11: =(C11 & ", " & B11) -> U–Th and U–Pb Systematics in Zircons, Journal Petrology, January 1, 2005, volume 46, Number 1, Pages 3-32, http://petrology.oxfordjournals.org/content/suppl/2004/09/24/egh060.DC1/Table_3.xls
A12: 11 | B12: www.ruf.rice.edu/~ctlee/BOXMODEL.xls | C12: Generic Box Model | D12: =("www.creationism/YEC/" & E12 & ".xls") -> www.creationism/YEC/Very_Old_R.xls | E12: Very_Old_R | F12: Pb-208/Th-232 | G12: 24919.30958 | H12: 9366.995126 | I12: 15552.31445 | J12: 17080.26318 | K12: 1500 | N12: 4 | O12: 318 | P12: 119 | Q12: 441 | R12: =(A12) -> 11 | S12: =(C12 & ", " & B12) -> Generic Box Model, www.ruf.rice.edu/~ctlee/BOXMODEL.xls
A13: 12 | B13: Earfh and Planetary Science Letters, Volume 94 (1989) Pages 236-244 | C13: U/Pb Whole-Rock And Mineral Dating | D13: www.creationism/YEC/Excellent.xlsm | E13: Excellent_13 | F13: Pb-206/U-238 | G13: 15172.53998 | H13: 204.4056528 | I13: 14968.13432 | J13: 2182.375248 | K13: 320 | O13: 3 | Q13: 3 | R13: =(A13) -> 12 | S13: =(C13 & ", " & B13) -> U/Pb Whole-Rock And Mineral Dating, Earfh and Planetary Science Letters, Volume 94 (1989) Pages 236-244
A14: 13 | B14: Geological Society Of London, Special Publications, 2004, Volume 229, Pages 133-150. | C14: Pin Procking The Elephant | D14: www.creationism/YEC/Excellent.xlsm | E14: Excellent_34 | F14: Pb-208/Th-232 | G14: 14459.00659 | H14: 12090.24204 | I14: 2368.764547 | J14: 13131.43645 | K14: 3500 | O14: 3 | Q14: 3 | R14: =(A14) -> 13 | S14: =(C14 & ", " & B14) -> Pin Procking The Elephant, Geological Society Of London, Special Publications, 2004, Volume 229, Pages 133-150.
A15: 14 | B15: Journal Of Petrology, April 11, 2012, Pages 1-32 | C15: Chronology And Geochemistry Of Lavas | D15: www.creationism/YEC/Excellent.xlsm | E15: Excellent_39 | F15: Pb-208/Th-232 | G15: 23849.56676 | H15: 4129.335882 | I15: 19720.23088 | J15: 8325.003245 | K15: 30 | M15: 5 | N15: 12 | O15: 3 | P15: 1 | Q15: 21 | R15: =(A15) -> 14 | S15: =(C15 & ", " & B15) -> Chronology And Geochemistry Of Lavas, Journal Of Petrology, April 11, 2012, Pages 1-32
A16: 15 | B16: Earth And Planetary Science Letters, Volume 7 (1969) , Pages 141-147 | C16: Uranium, Thorium, And Lead Systematics | D16: www.creationism/YEC/Research.xlsm | E16: Pb_207_07 | F16: Pb-206⁄U-238 | G16: 14794.01915 | H16: 12047.393 | I16: 2746.62615 | J16: 13298.86797 | K16: 2820 | O16: 8 | Q16: 8 | R16: =(A16) -> 15 | S16: =(C16 & ", " & B16) -> Uranium, Thorium, And Lead Systematics, Earth And Planetary Science Letters, Volume 7 (1969) , Pages 141-147
A17: 16 | B17: Meteoritics & Planetary Science, 2011, Volume 46, Nr 1, Pages 35–52 | C17: Disturbance Of Isotope Systematics | D17: www.creationism/YEC/Lead_206_207.xlsm | E17: Pb-206_08 | F17: Pb-206⁄U-238 | G17: 22145.50286 | H17: 2268.117264 | I17: 19877.38559 | J17: 8087.999424 | K17: 3500 | L17: 1 | M17: 2 | N17: 5 | O17: 2 | P17: 1 | Q17: 11 | R17: =(A17) -> 16 | S17: =(C17 & ", " & B17) -> Disturbance Of Isotope Systematics, Meteoritics & Planetary Science, 2011, Volume 46, Nr 1, Pages 35–52
A18: 17 | B18: Geochimica et Cosmochimica Acta, Vol. 62, No. 21/22, pp. 3527–3540, 1998 | C18: The Influence of High U-Th | D18: www.creationism/YEC/Lead_206_207.xlsm | E18: Pb-206_13 | F18: Pb-206⁄U-238 | G18: 14007.74335 | H18: 177.3488787 | I18: 13830.39447 | J18: 1620.738044 | K18: 500 | O18: 1 | Q18: 1 | R18: =(A18) -> 17 | S18: =(C18 & ", " & B18) -> The Influence of High U-Th, Geochimica et Cosmochimica Acta, Vol. 62, No. 21/22, pp. 3527–3540, 1998
A19: 18 | B19: Geochimica et Cosmochimica Acta, Vol. 62, No. 21/22, pp. 3527–3540, 1998 | C19: The Influence of High U-Th | D19: www.creationism/YEC/Lead_206_207.xlsm | E19: Pb-206_13 | F19: Pb-206⁄U-238 | G19: 29040.11258 | H19: 270.4886227 | I19: 28769.62396 | J19: 5341.968525 | K19: 500 | N19: 2 | O19: 1 | P19: 1 | Q19: 4 | R19: =(A19) -> 18 | S19: =(C19 & ", " & B19) -> The Influence of High U-Th, Geochimica et Cosmochimica Acta, Vol. 62, No. 21/22, pp. 3527–3540, 1998
A20: 19 | B20: Geochimica et Cosmochimica Acta, 1998, Volume 62, Number 21/22, Pages 3527–3540 | C20: The Influence of High U-Th | D20: www.creationism/YEC/Lead_206_207.xlsm | E20: Pb-206_13 | F20: Pb-208/Th-232 | G20: 14316.14094 | H20: 287.9090841 | I20: 14028.23186 | J20: 3578.807917 | K20: 500 | O20: 2 | Q20: 2 | R20: =(A20) -> 19 | S20: =(C20 & ", " & B20) -> The Influence of High U-Th, Geochimica et Cosmochimica Acta, 1998, Volume 62, Number 21/22, Pages 3527–3540
A21: 20 | B21: Earth and Planetary Science Letters, Volume 113 (1992) , Pages 107-128 | C21: Sr, Nd, and Pb Isotopes | D21: www.creationism/YEC/Lead_206_207.xlsm | E21: Pb-206_18 | F21: Pb-206⁄U-238 | G21: 22200.70461 | H21: 58.13189039 | I21: 22142.57272 | J21: 6853.117731 | K21: 2650 | L21: 2 | M21: 5 | N21: 16 | O21: 5 | P21: 2 | Q21: 30 | R21: =(A21) -> 20 | S21: =(C21 & ", " & B21) -> Sr, Nd, and Pb Isotopes, Earth and Planetary Science Letters, Volume 113 (1992) , Pages 107-128
A22: 21 | B22: Geochimica et Cosmochimica Acta, Volume 72 (2008) , Pages 5799–5818 | C22: U, Th And Pb Isotope Compositions | D22: www.creationism/YEC/Lead_206_207.xlsm | E22: Pb-206_23 | F22: Pb-206⁄U-238 | G22: 15306.78499 | H22: 1436.962903 | I22: 13869.82208 | J22: 4270.628329 | K22: 2.588 | M22: 1 | N22: 1 | O22: 3 | Q22: 5 | R22: =(A22) -> 21 | S22: =(C22 & ", " & B22) -> U, Th And Pb Isotope Compositions, Geochimica et Cosmochimica Acta, Volume 72 (2008) , Pages 5799–5818
A23: 22 | B23: Geochimica et Cosmochimica Acta, Volume 72 (2008), Pages 5799–5818 | C23: U, Th And Pb Isotope Compositions | D23: www.creationism/YEC/Lead_206_207.xlsm | E23: Pb-206_23 | F23: Pb-208/Th-232 | G23: 42037.68124 | H23: 1938.689533 | I23: 40098.9917 | J23: 8096.51606 | K23: 2.588 | L23: 1 | M23: 1 | O23: 4 | P23: 2 | Q23: 8 | R23: =(A23) -> 22 | S23: =(C23 & ", " & B23) -> U, Th And Pb Isotope Compositions, Geochimica et Cosmochimica Acta, Volume 72 (2008), Pages 5799–5818
A24: 23 | B24: Earth and Planetary Science Letters, Volume 319-320 (2012) , Pages 197–206 | C24: U–Th–Pb Isotope Data | D24: www.creationism/YEC/Research.xlsm | E24: Th_232_01 | F24: Pb-206⁄U-238 | G24: 31005.38527 | H24: 7137.593565 | I24: 23867.79171 | J24: 15192.07831 | K24: 3500 | N24: 2 | O24: 8 | P24: 2 | Q24: 12 | R24: =(A24) -> 23 | S24: =(C24 & ", " & B24) -> U–Th–Pb Isotope Data, Earth and Planetary Science Letters, Volume 319-320 (2012) , Pages 197–206
A25: 24 | B25: Earth and Planetary Science Letters, Volume 134 (1995) , Pages 169-185 | C25: Evolution Of Reunion Hotspot Mantle | D25: www.creationism/YEC/Research.xlsm | E25: Th_232_03 | F25: Pb-208/Th-232 | G25: 13286.71038 | H25: 5641.171063 | I25: 7645.539317 | J25: 8078.806169 | K25: 66 | M25: 2 | N25: 14 | O25: 4 | Q25: 20 | R25: =(A25) -> 24 | S25: =(C25 & ", " & B25) -> Evolution Of Reunion Hotspot Mantle, Earth and Planetary Science Letters, Volume 134 (1995) , Pages 169-185
A26: 25 | B26: www.nature.com/ngeo/journal/v4/n12/extref/ngeo1331-s2.xls | C26: Origin of Indian Ocean Seamount Province, Nature Geoscience, 2011, Volume 4, Pages 883–887 | D26: =("www.creationism/YEC/" & E26 & ".xls") -> www.creationism/YEC/Very_Old_B_1.xls | E26: Very_Old_B_1 | F26: Pb-206/U-238 | G26: 18209.96405 | H26: 889.7232116 | I26: 17320.24084 | J26: 5191.16108 | K26: 2 | L26: 2 | M26: 11 | N26: 9 | O26: 8 | Q26: =SUM(L26:P26) -> 30 | R26: =(A26) -> 25 | S26: =(C26 & ", " & B26) -> Origin of Indian Ocean Seamount Province, Nature Geoscience, 2011, Volume 4, Pages 883–887, www.nature.com/ngeo/journal/v4/n12/extref/ngeo1331-s2.xls
A27: 26 | B27: www.nature.com/ngeo/journal/v4/n12/extref/ngeo1331-s2.xls | C27: Origin of Indian Ocean Seamount Province, Nature Geoscience, 2011, Volume 4, Pages 883–887 | D27: =("www.creationism/YEC/" & E27 & ".xls") -> www.creationism/YEC/Very_Old_B_1.xls | E27: Very_Old_B_1 | F27: Pb-208/Th-232 | G27: 28677.02802 | H27: 1943.20652 | I27: 26733.8215 | J27: 7739.957353 | K27: 2 | L27: 6 | M27: 4 | N27: 25 | O27: 16 | P27: 1 | Q27: =SUM(L27:P27) -> 52 | R27: =(A27) -> 26 | S27: =(C27 & ", " & B27) -> Origin of Indian Ocean Seamount Province, Nature Geoscience, 2011, Volume 4, Pages 883–887, www.nature.com/ngeo/journal/v4/n12/extref/ngeo1331-s2.xls
A28: 27 | B28: http://www.earthchem.org/deeplith/search | C28: None | D28: =("www.creationism/YEC/" & E28 & ".xls") -> www.creationism/YEC/Very_Old_C_1.xls | E28: Very_Old_C_1 | F28: Pb-206/U-238 | G28: 12617.7803 | H28: 653.4834372 | I28: 11964.29686 | J28: 5278.02166 | L28: 3 | M28: 8 | N28: 15 | O28: 3 | Q28: =SUM(L28:P28) -> 29 | R28: =(A28) -> 27 | S28: =(C28 & ", " & B28) -> None, http://www.earthchem.org/deeplith/search
A29: 28 | B29: http://www.earthchem.org/deeplith/search | C29: None | D29: =("www.creationism/YEC/" & E29 & ".xls") -> www.creationism/YEC/Very_Old_C_1.xls | E29: Very_Old_C_1 | F29: Pb-208/Th-232 | G29: 35177.37575 | H29: 1806.084833 | I29: 33371.29092 | J29: 13644.43785 | M29: 1 | N29: 1 | O29: 7 | P29: 1 | Q29: 10 | R29: =(A29) -> 28 | S29: =(C29 & ", " & B29) -> None, http://www.earthchem.org/deeplith/search
A30: 29 | B30: http://earthref.org/ERDA/download:147/ | C30: Geochemistry Geophysics Geosystems, 2003, Volume 4, Page 1089, | D30: =("www.creationism/YEC/" & E30 & ".xls") -> www.creationism/YEC/Very_Old_C_3.xls | E30: Very_Old_C_3 | F30: Pb-206/U-238 | G30: 38340 | H30: 3125 | I30: 35215 | J30: 15345.2381 | K30: 100 | L30: 1 | M30: 3 | N30: 11 | O30: 15 | P30: 11 | Q30: =SUM(L30:P30) -> 41 | R30: =(A30) -> 29 | S30: =(C30 & ", " & B30) -> Geochemistry Geophysics Geosystems, 2003, Volume 4, Page 1089, , http://earthref.org/ERDA/download:147/
A31: 30 | B31: http://earthref.org/ERDA/download:147/ | C31: Geochemistry Geophysics Geosystems, 2003, Volume 4, Page 1089, | D31: =("www.creationism/YEC/" & E31 & ".xls") -> www.creationism/YEC/Very_Old_C_3.xls | E31: Very_Old_C_3 | F31: Pb-207/U-235 | G31: 10872 | H31: 4385 | I31: 6487 | J31: 7019.375 | K31: 100 | L31: 3 | M31: 10 | N31: 23 | O31: 3 | Q31: 39 | R31: =(A31) -> 30 | S31: =(C31 & ", " & B31) -> Geochemistry Geophysics Geosystems, 2003, Volume 4, Page 1089, , http://earthref.org/ERDA/download:147/
A32: 31 | B32: http://earthref.org/ERDA/download:147/ | C32: Geochemistry Geophysics Geosystems, 2003, Volume 4, Page 1089, | D32: =("www.creationism/YEC/" & E32 & ".xls") -> www.creationism/YEC/Very_Old_C_3.xls | E32: Very_Old_C_3 | F32: Pb-208/Th-232 | G32: 82865 | H32: 5577 | I32: 77288 | J32: 39068.26087 | K32: 100 | M32: 2 | N32: 4 | O32: 2 | P32: 15 | Q32: 23 | R32: =(A32) -> 31 | S32: =(C32 & ", " & B32) -> Geochemistry Geophysics Geosystems, 2003, Volume 4, Page 1089, , http://earthref.org/ERDA/download:147/
O33: =SUM(O1:O32) -> 553
O34: 10,000 To 19,999
L37: MAXIMUM | M37: MINIMUM | N37: AVERAGE
L38: Versus Model Age | M38: Versus Model Age | N38: Versus Model Age
K39: Spreadsheet | L39: Percentage Differ | M39: Percentage Differ | N39: Percentage Differ
K40: Iso_Plot_001 | L40: =(G2/K2) -> 9.751237043 | M40: =(H2/K2) -> 1.601490941 | N40: =(J2/K2) -> 4.503968315
K41: Iso_Plot_001 | L41: =(G3/K3) -> 20.7280402 | M41: =(H3/K3) -> 2.576806935 | N41: =(J3/K3) -> 9.444974138
K42: Iso_Plot_018 | L42: 2399.42727 | M42: 0.04385827854 | N42: 376.2070898
K43: Very_Old_A | L43: 667.6120823 | M43: 15.969834 | N43: 218.0038634
K44: Very_Old_A_8 | L44: 3.599180569 | M44: -7.592244329 | N44: 1.041877228
K45: Very_Old_A_9 | L45: 111.9991672 | M45: 20.66309316 | N45: 59.28126459
K46: Very_Old_A_9 | L46: 220.4413425 | M46: 24.51966572 | N46: 68.77250313
K47: Very_Old_C | L47: 5.46875 | M47: 0.1671875 | N47: 1.964486386
K48: Very_Old_E | L48: 26.64948552 | M48: 23.5278835 | N48: 24.65051378
K49: Very_Old_G | L49: 414597.7337 | M49: 113902.9784 | N49: 228469.4083
K50: Very_Old_R | L50: 16.61287305 | M50: 6.244663417 | N50: 11.38684212
K51: Excellent_13 | L51: 47.41418743 | M51: 0.6387676649 | N51: 6.819922651
K52: Excellent_34 | L52: 4.131144739 | M52: 3.454354868 | N52: 3.751838984
K53: Excellent_39 | L53: 794.9855586 | M53: 137.6445294 | N53: 277.5001082
K54: Pb_207_07 | L54: 5.246106081 | M54: 4.272125176 | N54: 4.715910627
K55: Pb-206_08 | L55: 6.327286531 | M55: 0.6480335041 | N55: 2.310856978
K56: Pb-206_13 | L56: 28.01548669 | M56: 0.3546977574 | N56: 3.241476088
K57: Pb-206_13 | L57: 58.08022516 | M57: 0.5409772455 | N57: 10.68393705
K58: Pb-206_13 | L58: 28.63228188 | M58: 0.5758181682 | N58: 7.157615834
K59: Pb-206_18 | L59: 8.377624382 | M59: 0.02193656241 | N59: 2.586082163
K60: Pb-206_23 | L60: 5914.522792 | M60: 555.2406889 | N60: 1650.165506
K61: Pb-206_23 | L61: 16243.30805 | M61: 749.1072384 | N61: 3128.483795
K62: Th_232_01 | L62: 8.858681507 | M62: 2.039312447 | N62: 4.340593804
K63: Th_232_03 | L63: 201.3137936 | M63: 85.47228883 | N63: 122.4061541
K64: Very_Old_B_1
K65: Very_Old_B_1
K66: Very_Old_B_4
K67: Very_Old_C_1
K68: Very_Old_C_1
K69: Very_Old_C_3
K70: Very_Old_C_3
K71: Very_Old_C_3

Sheet 20000
A1: Number | B1: Magazine Reference | C1: Title | D1: Microsoft Excel File | E1: Spreadsheet | F1: Dating Method | G1: MAXIMUM | H1: MINIMUM | I1: DIFFERENCE | J1: AVERAGE | K1: Model Age | L1: 4600 To 4999 | M1: 5000 To 5999 | N1: 6,000 To 9999 | O1: 10,000 To 19,999 | P1: Over 19,999 | Q1: Total
A2: 1 | B2: Meteoritics & Planetary Science, 2004, Volume 39, Number 12, Pages 2033 - 2041 | C2: Ion microprobe U-Th-Pb dating | D2: www.creationism/YEC/Plot_Index.xlsm | E2: Iso_Plot_001 | F2: Pb-208/Th-232 | G2: 23837.24623 | H2: 2963.327975 | I2: 20873.91825 | J2: 10861.72026 | K2: 1200 | M2: 2 | N2: 4 | O2: 10 | P2: 1 | Q2: =SUM(L2:P2) -> 17 | R2: =(A2) -> 1 | S2: =(C2 & ", " & B2) -> Ion microprobe U-Th-Pb dating, Meteoritics & Planetary Science, 2004, Volume 39, Number 12, Pages 2033 - 2041
A3: 2 | B3: Geochimica et Cosmochimica Acta, 2008, Volume 72, Pages 2067 - 2089 | C3: U–Th–Pb Dating Of Secondary Minerals | D3: www.creationism/YEC/Plot_Index.xlsm | E3: Iso_Plot_018 | F3: Pb-208/Th-232 | G3: 352962.1923 | H3: 2.268970373 | I3: 352959.9233 | J3: 9983.642069 | K3: 1338 | M3: 1 | P3: 1 | Q3: 2 | R3: =(A3) -> 2 | S3: =(C3 & ", " & B3) -> U–Th–Pb Dating Of Secondary Minerals, Geochimica et Cosmochimica Acta, 2008, Volume 72, Pages 2067 - 2089
A4: 3 | B4: Geochimica et Cosmochimica Acta, 2008, Volume 72, Pages 2067 - 2089 | C4: U–Th–Pb Dating Of Secondary Minerals | D4: www.creationism/YEC/Plot_Index.xlsm | E4: Iso_Plot_018 | F4: Pb-206/U-238 | G4: 31192.5545 | H4: 0.5701576211 | I4: 31191.98435 | J4: 4890.692168 | K4: 1338 | L4: 2 | M4: 1 | N4: 5 | O4: 6 | P4: 4 | Q4: 18 | R4: =(A4) -> 3 | S4: =(C4 & ", " & B4) -> U–Th–Pb Dating Of Secondary Minerals, Geochimica et Cosmochimica Acta, 2008, Volume 72, Pages 2067 - 2089
A5: 4 | B5: http://geosphere.gsapubs.org/content/suppl/2010/09/29/6.5.663.DC1/530_supp1.xls | C5: Hydrothermal Zebra Dolomite, Geosphere, October 2010, Volume 6, Number 5, Pages 663-690 | D5: =("www.creationism/YEC/" & E5 & ".xls") -> www.creationism/YEC/Very_Old_A.xls | E5: Very_Old_A | F5: Pb-208/Th-232 | G5: 277726.6262 | H5: 6643.450942 | I5: 271083.1753 | J5: 90689.60717 | K5: 416 | N5: 1 | O5: 1 | P5: 235 | Q5: 237 | R5: =(A5) -> 4 | S5: =(C5 & ", " & B5) -> Hydrothermal Zebra Dolomite, Geosphere, October 2010, Volume 6, Number 5, Pages 663-690, http://geosphere.gsapubs.org/content/suppl/2010/09/29/6.5.663.DC1/530_supp1.xls
A6: 5 | B6: http://pubs.usgs.gov/of/2008/1142/tables/table04.xls | C6: Uranium-Lead Zircon Ages | D6: =("www.creationism/YEC/" & E6 & ".xls") -> www.creationism/YEC/Very_Old_A_9.xls | E6: Very_Old_A_9 | F6: Pb-206/U-238 | G6: 27999.7918 | H6: 5165.77329 | I6: 22834.01851 | J6: 14820.31615 | K6: 250 | M6: 1 | N6: 5 | O6: 9 | P6: 5 | Q6: 20 | R6: =(A6) -> 5 | S6: =(C6 & ", " & B6) -> Uranium-Lead Zircon Ages, http://pubs.usgs.gov/of/2008/1142/tables/table04.xls
A7: 5 | B7: http://pubs.usgs.gov/of/2008/1142/tables/table04.xls | C7: Uranium-Lead Zircon Ages | D7: =("www.creationism/YEC/" & E7 & ".xls") -> www.creationism/YEC/Very_Old_A_9.xls | E7: Very_Old_A_9 | F7: Pb-208/Th-232 | G7: 55110.33562 | H7: 6129.91643 | I7: 48980.41919 | J7: 17193.12578 | K7: 250 | N7: 6 | O7: 9 | P7: 5 | Q7: 20 | R7: =(A7) -> 5 | S7: =(C7 & ", " & B7) -> Uranium-Lead Zircon Ages, http://pubs.usgs.gov/of/2008/1142/tables/table04.xls
A8: 6 | B8: http://pubs.usgs.gov/of/2008/1142/pdf/OF08-1142_508.pdf | C8: Uranium-Lead Zircon Ages | D8: =("www.creationism/YEC/" & E8 & ".xls") -> www.creationism/YEC/Very_Old_A.xls | E8: Very_Old_A | F8: Pb-206⁄U-238 | G8: 23420.82389 | H8: 1714.841773 | I8: 21705.98211 | J8: 11352.88129 | K8: 250 | M8: 1 | N8: 7 | O8: 10 | P8: 1 | Q8: =SUM(L8:P8) -> 19 | R8: =(A8) -> 6 | S8: =(C8 & ", " & B8) -> Uranium-Lead Zircon Ages, http://pubs.usgs.gov/of/2008/1142/pdf/OF08-1142_508.pdf
A9: 6 | B9: http://pubs.usgs.gov/of/2008/1142/pdf/OF08-1142_508.pdf | C9: Uranium-Lead Zircon Ages | D9: =("www.creationism/YEC/" & E9 & ".xls") -> www.creationism/YEC/Very_Old_A.xls | E9: Very_Old_A | F9: Pb-208/Th-232 | G9: 55110.33562 | H9: 6129.91643 | I9: 48980.41919 | J9: 17193.12578 | K9: 250 | N9: 6 | O9: 9 | P9: 5 | Q9: =SUM(L9:P9) -> 20 | R9: =(A9) -> 6 | S9: =(C9 & ", " & B9) -> Uranium-Lead Zircon Ages, http://pubs.usgs.gov/of/2008/1142/pdf/OF08-1142_508.pdf
A10: 6 | B10: http://pubs.usgs.gov/of/2008/1142/pdf/OF08-1142_508.pdf | C10: Uranium-Lead Zircon Ages | D10: =("www.creationism/YEC/" & E10 & ".xls") -> www.creationism/YEC/Very_Old_A.xls | E10: Very_Old_A | F10: Pb-207⁄Pb-206 | G10: 4997.441905 | H10: 4798.877724 | I10: 198.5641809 | J10: 4932.677801 | K10: 250 | L10: 20 | P10: 0 | Q10: =SUM(L10:P10) -> 20 | R10: =(A10) -> 6 | S10: =(C10 & ", " & B10) -> Uranium-Lead Zircon Ages, http://pubs.usgs.gov/of/2008/1142/pdf/OF08-1142_508.pdf
A11: 7 | B11: http://geosphere.gsapubs.org/content/suppl/2009/02/18/3.6.683.DC1/00138_App3.xls | C11: Timing of sedimentation, metamorphism, and plutonism | D11: =("www.creationism/YEC/" & E11 & ".xls") -> www.creationism/YEC/Very_Old_E.xls | E11: Very_Old_E | F11: Pb-208/Th-232 | G11: 80531.81235 | H11: 488.9463458 | I11: 80042.86601 | J11: 15661.20178 | K11: 478 | N11: 1 | O11: 75 | P11: 22 | Q11: 98 | R11: =(A11) -> 7 | S11: =(C11 & ", " & B11) -> Timing of sedimentation, metamorphism, and plutonism, http://geosphere.gsapubs.org/content/suppl/2009/02/18/3.6.683.DC1/00138_App3.xls
A12: 8 | B12: http://petrology.oxfordjournals.org/content/suppl/2004/09/24/egh060.DC1/Table_3.xls | C12: U–Th and U–Pb Systematics in Zircons, Journal Petrology, January 1, 2005, volume 46, Number 1, Pages 3-32 | D12: =("www.creationism/YEC/" & E12 & ".xls") -> www.creationism/YEC/Very_Old_G.xls | E12: Very_Old_G | F12: Pb-208/Th-232 | G12: 41459.77337 | H12: 11390.29784 | I12: 30069.47553 | J12: 22846.94083 | K12: 0.1 | O12: 16 | P12: 29 | Q12: 45 | R12: =(A12) -> 8 | S12: =(C12 & ", " & B12) -> U–Th and U–Pb Systematics in Zircons, Journal Petrology, January 1, 2005, volume 46, Number 1, Pages 3-32, http://petrology.oxfordjournals.org/content/suppl/2004/09/24/egh060.DC1/Table_3.xls
A13: 9 | B13: www.ruf.rice.edu/~ctlee/BOXMODEL.xls | C13: Generic Box Model | D13: =("www.creationism/YEC/" & E13 & ".xls") -> www.creationism/YEC/Very_Old_R.xls | E13: Very_Old_R | F13: Pb-208/Th-232 | G13: 24919.30958 | H13: 9366.995126 | I13: 15552.31445 | J13: 17080.26318 | K13: 1500 | N13: 4 | O13: 318 | P13: 119 | Q13: 441 | R13: =(A13) -> 9 | S13: =(C13 & ", " & B13) -> Generic Box Model, www.ruf.rice.edu/~ctlee/BOXMODEL.xls
A14: 10 | B14: Journal Of Petrology, April 11, 2012, Pages 1-32 | C14: Chronology And Geochemistry Of Lavas | D14: www.creationism/YEC/Excellent.xlsm | E14: Excellent_39 | F14: Pb-208/Th-232 | G14: 23849.56676 | H14: 4129.335882 | I14: 19720.23088 | J14: 8325.003245 | K14: 30 | M14: 5 | N14: 12 | O14: 3 | P14: 1 | Q14: 21 | R14: =(A14) -> 10 | S14: =(C14 & ", " & B14) -> Chronology And Geochemistry Of Lavas, Journal Of Petrology, April 11, 2012, Pages 1-32
A15: 11 | B15: Meteoritics & Planetary Science, 2011, Volume 46, Number 1, Pages 35–52 | C15: Disturbance Of Isotope Systematics | D15: www.creationism/YEC/Lead_206_207.xlsm | E15: Pb-206_08 | F15: Pb-206⁄U-238 | G15: 22145.50286 | H15: 2268.117264 | I15: 19877.38559 | J15: 8087.999424 | K15: 4000 | L15: 1 | M15: 2 | N15: 5 | O15: 2 | P15: 1 | Q15: 11 | R15: =(A15) -> 11 | S15: =(C15 & ", " & B15) -> Disturbance Of Isotope Systematics, Meteoritics & Planetary Science, 2011, Volume 46, Number 1, Pages 35–52
A16: 12 | B16: Geochimica et Cosmochimica Acta, 1998, Volume 62, Number 21/22, Pages 3527–3540 | C16: The Influence of High U-Th | D16: www.creationism/YEC/Lead_206_207.xlsm | E16: Pb-206_13 | F16: Pb-206⁄U-238 | G16: 29040.11258 | H16: 270.4886227 | I16: 28769.62396 | J16: 5341.968525 | K16: 500 | N16: 2 | O16: 1 | P16: 1 | Q16: 4 | R16: =(A16) -> 12 | S16: =(C16 & ", " & B16) -> The Influence of High U-Th, Geochimica et Cosmochimica Acta, 1998, Volume 62, Number 21/22, Pages 3527–3540
A17: 13 | B17: Geochimica et Cosmochimica Acta, 1998, Volume 62, Number 21/22, Pages 3527–3540 | C17: The Influence of High U-Th | D17: www.creationism/YEC/Lead_206_207.xlsm | E17: Pb-206_13 | F17: Pb-208/Th-232 | G17: 37154.25956 | H17: 160.9635038 | I17: 36993.29606 | J17: 4084.078007 | K17: 500 | P17: 1 | Q17: 1 | R17: =(A17) -> 13 | S17: =(C17 & ", " & B17) -> The Influence of High U-Th, Geochimica et Cosmochimica Acta, 1998, Volume 62, Number 21/22, Pages 3527–3540
A18: 14 | B18: Earth and Planetary Sctence Letters, Volume 113 (1992) Pages 107-128 | C18: Sr, Nd, and Pb Isotopes | D18: www.creationism/YEC/Lead_206_207.xlsm | E18: Pb-206_18 | F18: Pb-206⁄U-238 | G18: 22200.70461 | H18: 58.13189039 | I18: 22142.57272 | J18: 6853.117731 | K18: 2900 | L18: 2 | M18: 5 | N18: 16 | O18: 5 | P18: 2 | Q18: 30 | R18: =(A18) -> 14 | S18: =(C18 & ", " & B18) -> Sr, Nd, and Pb Isotopes, Earth and Planetary Sctence Letters, Volume 113 (1992) Pages 107-128
A19: 15 | B19: Geochimica et Cosmochimica Acta, Volume 72 (2008) Pages 5799–5818 | C19: U, Th And Pb Isotope Compositions | D19: www.creationism/YEC/Research.xlsm | E19: Pb-206_23 | F19: Pb-208/Th-232 | G19: 42037.68124 | H19: 1938.689533 | I19: 40098.9917 | J19: 8096.51606 | K19: 2.588 | L19: 1 | M19: 1 | O19: 4 | P19: 2 | Q19: 8 | R19: =(A19) -> 15 | S19: =(C19 & ", " & B19) -> U, Th And Pb Isotope Compositions, Geochimica et Cosmochimica Acta, Volume 72 (2008) Pages 5799–5818
A20: 16 | B20: Earth and Planetary Science Letters, Volume 319-320 (2012) Pages 197–206 | C20: U–Th–Pb Isotope Data | D20: www.creationism/YEC/Research.xlsm | E20: Th_232_01 | F20: Pb-206⁄U-238 | G20: 31005.38527 | H20: 7137.593565 | I20: 23867.79171 | J20: 15192.07831 | K20: 3500 | N20: 2 | O20: 8 | P20: 2 | Q20: 12 | R20: =(A20) -> 16 | S20: =(C20 & ", " & B20) -> U–Th–Pb Isotope Data, Earth and Planetary Science Letters, Volume 319-320 (2012) Pages 197–206
A21: 17 | B21: Earth and Planetary Science Letters, Volume 319-320 (2012) Pages 197–206 | C21: U–Th–Pb Isotope Data | D21: www.creationism/YEC/Research.xlsm | E21: Th_232_01 | F21: Pb-208/Th-232 | G21: 100601.1795 | H21: 24979.57154 | I21: 75621.60799 | J21: 56975.513 | K21: 3500 | P21: 12 | Q21: 12 | R21: =(A21) -> 17 | S21: =(C21 & ", " & B21) -> U–Th–Pb Isotope Data, Earth and Planetary Science Letters, Volume 319-320 (2012) Pages 197–206
A22: 19 | B22: http://www.earthchem.org/deeplith/search | C22: None | D22: =("www.creationism/YEC/" & E22 & ".xls") -> www.creationism/YEC/Very_Old_C_1.xls | E22: Very_Old_C_1 | F22: Pb-208/Th-232 | G22: 35177.37575 | H22: 1806.084833 | I22: 33371.29092 | J22: 13644.43785 | M22: 1 | N22: 1 | O22: 7 | P22: 1 | Q22: =SUM(L22:P22) -> 10 | R22: =(A22) -> 19 | S22: =(C22 & ", " & B22) -> None, http://www.earthchem.org/deeplith/search
A23: 20 | B23: http://earthref.org/ERDA/download:147/ | C23: Geochemistry Geophysics Geosystems, 2003, Volume 4, Page 1089, | D23: =("www.creationism/YEC/" & E23 & ".xls") -> www.creationism/YEC/Very_Old_C_3.xls | E23: Very_Old_C_3 | F23: Pb-206/U-238 | G23: 38340 | H23: 3125 | I23: 35215 | J23: 15345.2381 | L23: 1 | M23: 3 | N23: 11 | O23: 15 | P23: 11 | Q23: =SUM(L23:P23) -> 41 | R23: =(A23) -> 20 | S23: =(C23 & ", " & B23) -> Geochemistry Geophysics Geosystems, 2003, Volume 4, Page 1089, , http://earthref.org/ERDA/download:147/
A24: 21 | B24: http://earthref.org/ERDA/download:147/ | C24: Geochemistry Geophysics Geosystems, 2003, Volume 4, Page 1089, | D24: =("www.creationism/YEC/" & E24 & ".xls") -> www.creationism/YEC/Very_Old_C_3.xls | E24: Very_Old_C_3 | F24: Pb-208/Th-232 | G24: 82865 | H24: 5577 | I24: 77288 | J24: 39068.26087 | M24: 2 | N24: 4 | O24: 2 | P24: 15 | Q24: =SUM(L24:P24) -> 23 | R24: =(A24) -> 21 | S24: =(C24 & ", " & B24) -> Geochemistry Geophysics Geosystems, 2003, Volume 4, Page 1089, , http://earthref.org/ERDA/download:147/
P25: =SUM(P2:P24) -> 476
P26: Over 19,999
L27: MAXIMUM | M27: MINIMUM | N27: AVERAGE
L28: Versus Model Age | M28: Versus Model Age | N28: Versus Model Age
K29: Spreadsheet | L29: Percentage Differ | M29: Percentage Differ | N29: Percentage Differ
K30: Iso_Plot_001 | L30: =(G2/K2) -> 19.86437185 | M30: =(H2/K2) -> 2.469439979 | N30: =(J2/K2) -> 9.051433549
K31: Iso_Plot_018 | L31: =(G3/K3) -> 263.79835 | M31: =(K3/H3) -> 589.6947865 | N31: =(J3/K3) -> 7.461615896
K32: Iso_Plot_018 | L32: =(G4/K4) -> 23.312821 | M32: =(K4/H4) -> 2346.719487 | N32: 3.655225835
K33: Very_Old_A | L33: =(G5/K5) -> 667.6120823 | M33: =(H5/K5) -> 15.969834 | N33: 218.0038634
K34: Very_Old_A_9 | L34: =(G6/K6) -> 111.9991672 | M34: 20.66309316 | N34: 59.28126459
K35: Very_Old_A_9 | L35: 220.4413425 | M35: 24.51966572 | N35: 68.77250313
K36: Very_Old_A | L36: 93.68329554 | M36: 6.859367091 | N36: 45.41152516
K37: Very_Old_A | L37: 220.4413425 | M37: 24.51966572 | N37: 68.77250313
K38: Very_Old_A | L38: 19.98976762 | M38: 19.1955109 | N38: 19.7307112
K39: Very_Old_E | L39: 168.4765949 | M39: 1.022900305 | N39: 32.76402046
K40: Very_Old_G | L40: 414597.7337 | M40: 113902.9784 | N40: 228469.4083
K41: Very_Old_R | L41: 16.61287305 | M41: 6.244663417 | N41: 11.38684212
K42: Excellent_39 | L42: 794.9855586 | M42: 137.6445294 | N42: 277.5001082
K43: Pb-206_08 | L43: 5.536375715 | M43: =(K15/H15) -> 1.763577247 | N43: 2.021999856
K44: Pb-206_13 | L44: 58.08022516 | M44: =(K16/H16) -> 1.848506584 | N44: 10.68393705
K45: Pb-206_13 | L45: 74.30851913 | M45: =(K17/H17) -> 3.106294211 | N45: 8.168156015
K46: Pb-206_18 | L46: 7.655415383 | M46: =(K18/H18) -> 49.88655935 | N46: 2.363144045
K47: Pb-206_23 | L47: 16243.30805 | M47: 749.1072384 | N47: 3128.483795
K48: Th_232_01 | L48: 8.858681507 | M48: 2.039312447 | N48: 4.340593804
K49: Th_232_01 | L49: 28.74319415 | M49: 7.137020441 | N49: 16.278718
K50: Very_Old_B_4
K51: Very_Old_C_1
K52: Very_Old_C_3
K53: Very_Old_C_3

Sheet 206Pb_238U
A1: Number | B1: Magazine Reference | C1: Title | D1: Microsoft Excel File | E1: Spreadsheet | F1: Dating Method | G1: MAXIMUM | H1: MINIMUM | I1: DIFFERENCE | J1: AVERAGE | K1: Model Age | L1: 4600 To 4999 | M1: 5000 To 5999 | N1: 6,000 To 9999 | O1: 10,000 To 19,999 | P1: Over 19,999 | Q1: Total
A2: 1 | B2: Earfh and Planetary Science Letters, 1989, Volume 94, Pages 236-244 | C2: U/Pb Whole-Rock And Mineral Dating | D2: www.creationism/YEC/Excellent.xlsm | E2: Excellent_13 | F2: Pb-206/U-238 | G2: 15172.53998 | H2: 204.4056528 | I2: 14968.13432 | J2: 2182.375248 | K2: 320 | O2: 3 | Q2: =SUM(L2:P2) -> 3
A3: 2 | B3: Geological Society Of London, Special Publications, 2004, Volume 229, Pages 133-150. | C3: Pin Procking The Elephant | D3: www.creationism/YEC/Excellent.xlsm | E3: Excellent_34 | F3: Pb-206/U-238 | G3: 6936 | H3: 4579 | I3: 2357 | J3: 5671 | K3: 100 | M3: 1 | N3: 1 | Q3: 2
A4: 3 | B4: Journal Of Petrology, April 11, 2012, Pages 1-32 | C4: Chronology And Geochemistry Of Lavas | D4: www.creationism/YEC/Excellent.xlsm | E4: Excellent_39 | F4: Pb-206/U-238 | G4: 9644.596935 | H4: 1165.579048 | I4: 8479.017887 | J4: 3693.867514 | K4: 30 | N4: 3 | Q4: 3
A5: 4 | B5: Geochimica et Cosmochimica Acta, 2008, Volume 72, Pages 2067 - 2089 | C5: U–Th–Pb Dating Of Secondary Minerals | D5: www.creationism/YEC/Plot_Index.xlsm | E5: Iso_Plot_018 | F5: Pb-206/U-238 | G5: 31192.5545 | H5: 0.5701576211 | I5: 31191.98435 | J5: 4890.692168 | K5: 10 | L5: 2 | M5: 1 | N5: 5 | O5: 6 | P5: 4 | Q5: 18
A6: 5 | B6: www.ruf.rice.edu/~ctlee/BOXMODEL.xls | C6: Box Model | D6: =("www.creationism/YEC/" & E6 & ".xls") -> www.creationism/YEC/Very_Old_R.xls | E6: Very_Old_R | F6: Pb-206/U-238 | G6: 7630.559589 | H6: 2040.11984 | I6: 5590.43975 | J6: 4419.134578 | K6: 1500 | L6: 42 | M6: 105 | N6: 51 | Q6: 198
A7: 6 | B7: http://geosphere.gsapubs.org/content/suppl/2009/02/18/3.6.683.DC1/00138_App3.xls | C7: Timing of sedimentation, metamorphism, and plutonism | D7: =("www.creationism/YEC/" & E7 & ".xls") -> www.creationism/YEC/Very_Old_E.xls | E7: Very_Old_E | F7: Pb-206/U-238 | G7: 5100.69249 | H7: 4497.154071 | I7: 603.5384193 | J7: 4695.640208 | K7: 478 | L7: 52 | M7: 5 | Q7: 57
A8: 7 | B8: www.nature.com/ngeo/journal/v4/n12/extref/ngeo1331-s2.xls | C8: Origin of Indian Ocean Seamount Province, Nature Geoscience, 2011, Volume 4, Pages 883-887 | D8: =("www.creationism/YEC/" & E8 & ".xls") -> www.creationism/YEC/Very_Old_B_1.xls | E8: Very_Old_B_1 | F8: Pb-206/U-238 | G8: 18209.96405 | H8: 889.7232116 | I8: 17320.24084 | J8: 5191.16108 | K8: 6 | L8: 2 | M8: 11 | N8: 9 | O8: 8 | Q8: 30
A9: 8 | B9: http://www.earthchem.org/deeplith/search | C9: None | D9: =("www.creationism/YEC/" & E9 & ".xls") -> www.creationism/YEC/Very_Old_C_1.xls | E9: Very_Old_C_1 | F9: Pb-206/U-238 | G9: 12617.7803 | H9: 653.4834372 | I9: 11964.29686 | J9: 5278.02166 | K9: 0 | L9: 3 | M9: 8 | N9: 15 | O9: 3 | Q9: 29
A10: 9 | B10: http://earthref.org/ERDA/download:147/ | C10: Geochemistry Geophysics Geosystems, 2003, Volume 4, Page 1089, | D10: =("www.creationism/YEC/" & E10 & ".xls") -> www.creationism/YEC/Very_Old_C_3.xls | E10: Very_Old_C_3 | F10: Pb-206/U-238 | G10: 38340 | H10: 3125 | I10: 35215 | J10: 15345.2381 | K10: 100 | L10: 1 | M10: 3 | N10: 11 | O10: 15 | P10: 11 | Q10: 41
A11: 10 | B11: Journal Of Petrology, 1998, Volume 39, Number 7, Pages 1285-1306 | C11: Tracing the Indian Ocean Mantle | D11: www.creationism/YEC/Plot_Index.xlsm | E11: Iso_Plot_004 | F11: Pb-206⁄U-238 | G11: 13307.51268 | H11: 758.3904012 | I11: 12549.12227 | J11: 5013.734024 | K11: 100 | L11: 4 | M11: 5 | N11: 17 | O11: 4 | Q11: 30
A12: 11 | B12: Journal Of Petrology, 1998, Volume 39, Number 4, Pages 711-748 | C12: Petrogenesis of the Flood Basalts | D12: www.creationism/YEC/Plot_Index.xlsm | E12: Iso_Plot_005 | F12: Pb-206⁄U-238 | G12: 23366.409 | H12: 3335.366761 | I12: 20031.04224 | J12: 5571.900067 | K12: 30 | L12: 5 | M12: 12 | N12: 3 | P12: 1 | Q12: 21
A13: 12 | B13: Journal Of Petrology, 2004, Volume 45, Number 3, Pages 555-607 | C13: Nature of the Source Regions | D13: www.creationism/YEC/Plot_Index.xlsm | E13: Iso_Plot_006 | F13: Pb-206⁄U-238 | G13: 33751.1969 | H13: 4085.867609 | I13: 29665.32929 | J13: 11984.57635 | K13: 20 | M13: 2 | N13: 6 | O13: 2 | P13: 2 | Q13: 12
A14: 13 | B14: Journal Of Petrology, 2007, Volume 48, Number 4, Pages 661-692 | C14: Generation of Palaeocene Adakitic Andesites | D14: www.creationism/YEC/Plot_Index.xlsm | E14: Iso_Plot_007 | F14: Pb-206⁄U-238 | G14: 9668.860998 | H14: 7402.789949 | I14: 2266.071049 | J14: 8753.552921 | K14: 60 | N14: 6 | Q14: 6
A15: 14 | B15: Journal Of Petrology, 2005, Volume 46, Number 4, Pages 829-858 | C15: Evidence for a Widespread Tethyan | D15: www.creationism/YEC/Plot_Index.xlsm | E15: Iso_Plot_009 | F15: Pb-206⁄U-238 | G15: 15747.08148 | H15: 1063.397808 | I15: 14683.68368 | J15: 7014.140251 | K15: 140 | L15: 3 | M15: 15 | N15: 24 | O15: 13 | Q15: 55
A16: 15 | B16: Journal Of Petrology, 2001, Volume 42, Number 4, Pages 731-763 | C16: Garnet Granulite Xenoliths | D16: www.creationism/YEC/Plot_Index.xlsm | E16: Iso_Plot_013 | F16: Pb-206⁄U-238 | G16: 40059.3587 | H16: 1607.800416 | I16: 38451.55828 | J16: 15308.42907 | K16: 1000 | L16: 1 | M16: 2 | N16: 6 | O16: 18 | P16: 10 | Q16: 37
A17: 16 | B17: Journal Of Petrology, 1999, Volume 40, Number 9, Pages 1399-1424 | C17: Post-Collisional Potassic and Ultrapotassic | D17: www.creationism/YEC/Plot_Index.xlsm | E17: Iso_Plot_016 | F17: Pb-206⁄U-238 | G17: 6943.92153 | H17: 2646.359056 | I17: 4297.562474 | J17: 4770.633445 | K17: 471 | L17: 1 | M17: 2 | N17: 1 | Q17: 4
A18: 17 | B18: Journal Of Petrology, 1997, Volume 38, Number 1, Pages 115-132 | C18: Continental Lithospheric Contribution to Alkaline | D18: www.creationism/YEC/Plot_Index.xlsm | E18: Iso_Plot_017 | F18: Pb-206⁄U-238 | G18: 7742.916367 | H18: 2305.914893 | I18: 5437.001474 | J18: 4540.739074 | K18: 72 | L18: 1 | M18: 1 | N18: 5 | Q18: 7
A19: 18 | B19: Meteoritics & Planetary Science, 2004, Volume 39, Number 12, Pages 2033 - 2041 | C19: Ion microprobe U-Th-Pb Dating and REE Analyses | D19: www.creationism/YEC/Plot_Index.xlsm | E19: Iso_Plot_001 | F19: Pb-206⁄U-238 | G19: 11213.9226 | H19: 1841.714582 | I19: 9372.208018 | J19: 5179.563562 | K19: 1150 | L19: 3 | M19: 1 | N19: 5 | O19: 1 | Q19: 10
A20: 19 | B20: Meteoritics & Planetary Science, 2003, Volume 38, Number 11, Pages 1697 - 1703 | C20: Ion Microprobe U-Th-Pb Dating of Phosphates | D20: www.creationism/YEC/Plot_Index.xlsm | E20: Iso_Plot_003 | F20: Pb-206⁄U-238 | G20: 5650.411461 | H20: 2964.118062 | I20: 2686.293399 | J20: 4299.474308 | K20: 4000 | L20: 1 | M20: 3 | Q20: 4
A21: 20 | B21: Earth And Planetary Science Letters, 1969, Volume 7, Pages 141-147 | C21: Uranium, Thorium, And Lead Systematics | D21: www.creationism/YEC/Research.xlsm | E21: Pb_207_07 | F21: Pb-206⁄U-238 | G21: 14794.01915 | H21: 12047.393 | I21: 2746.62615 | J21: 13298.86797 | K21: 2820 | O21: 8 | Q21: 8
A22: 21 | B22: Meteoritics & Planetary Science, 2011, Volume 46, Number 1, Pages 35–52 | C22: Disturbance Of Isotope Systematics | D22: www.creationism/YEC/Lead_206_207.xlsm | E22: Pb-206_08 | F22: Pb-206⁄U-238 | G22: 22145.50286 | H22: 2268.117264 | I22: 19877.38559 | J22: 8087.999424 | K22: 3300 | L22: 1 | M22: 2 | N22: 5 | O22: 2 | P22: 1 | Q22: 11
A23: 22 | B23: Geochimica et Cosmochimica Acta, 1998, Volume 62, Numbers 21/22, Pages 3527–3540 | C23: The Influence of High U-Th | D23: www.creationism/YEC/Lead_206_207.xlsm | E23: Pb-206_13 | F23: Pb-206⁄U-238 | G23: 29040.11258 | H23: 270.4886227 | I23: 28769.62396 | J23: 5341.968525 | K23: 500 | N23: 2 | O23: 1 | P23: 1 | Q23: 4
A24: 23 | B24: Geochimica et Cosmochimica Acta, 1998, Volume 62, Numbers 21/22, Pages 3527–3540 | C24: The Influence of High U-Th | D24: www.creationism/YEC/Lead_206_207.xlsm | E24: Pb-206_13 | F24: Pb-206⁄U-238 | G24: 14007.74335 | H24: 177.3488787 | I24: 13830.39447 | J24: 1620.738044 | K24: 500 | O24: 1 | Q24: 1
A25: 24 | B25: Earth and Planetary Sctence Letters, 1992, Volume 113, Pages 107-128 | C25: Sr, Nd, and Pb Isotopes | D25: www.creationism/YEC/Lead_206_207.xlsm | E25: Pb-206_18 | F25: Pb-206⁄U-238 | G25: 22200.70461 | H25: 58.13189039 | I25: 22142.57272 | J25: 6853.117731 | K25: 3300 | L25: 2 | M25: 5 | N25: 16 | O25: 5 | P25: 2 | Q25: 30
A26: 25 | B26: Geochimica et Cosmochimica Acta, 2008, Volume 72, Pages 5799–5818 | C26: U, Th And Pb Isotope Compositions | D26: www.creationism/YEC/Lead_206_207.xlsm | E26: Pb-206_23 | F26: Pb-206⁄U-238 | G26: 15306.78499 | H26: 1436.962903 | I26: 13869.82208 | J26: 4270.628329 | K26: 2.588 | M26: 1 | N26: 1 | O26: 3 | Q26: 5
A27: 26 | B27: Earth and Planetary Science Letters, 2012, Volume 319-320, Pages 197–206 | C27: U–Th–Pb Isotope Data | D27: www.creationism/YEC/Research.xlsm | E27: Th_232_01 | F27: Pb-206⁄U-238 | G27: 31005.38527 | H27: 7137.593565 | I27: 23867.79171 | J27: 15192.07831 | K27: 3300 | N27: 2 | O27: 8 | P27: 2 | Q27: 12
A28: 27 | B28: Earth and Planetary Science Letters, 1995, Volume 134, Pages 169-185 | C28: Evolution Of Reunion Hotspot Mantle | D28: www.creationism/YEC/Research.xlsm | E28: Th_232_03 | F28: Pb-206⁄U-238 | G28: 6285.48251 | H28: 3009.915661 | I28: 3275.56685 | J28: 4449.350323 | K28: 66 | L28: 2 | M28: 3 | N28: 2 | Q28: 7
A29: 28 | B29: http://pubs.usgs.gov/of/2008/1142/tables/table04.xls | C29: Uranium-Lead Zircon Ages Of Western Idaho | D29: =("www.creationism/YEC/" & E29 & ".xls") -> www.creationism/YEC/Very_Old_A_9.xls | E29: Very_Old_A_9 | F29: Pb-206⁄U-238 | G29: 23420.82389 | H29: 3108.390029 | I29: 20312.43386 | J29: 11159.30983 | K29: 250 | L29: 1 | M29: 2 | N29: 6 | O29: 7 | P29: 2 | Q29: 18
A30: 29 | B30: http://pubs.usgs.gov/of/2008/1142/pdf/OF08-1142_508.pdf | C30: Uranium-Lead Zircon Ages | D30: =("www.creationism/YEC/" & E30 & ".xls") -> www.creationism/YEC/Very_Old_A.xls | E30: Very_Old_A | F30: Pb-206⁄U-238 | G30: 23420.82389 | H30: 1714.841773 | I30: 21705.98211 | J30: 11352.88129 | K30: 416 | M30: 1 | N30: 7 | O30: 10 | P30: 1 | Q30: 19
A31: 30 | B31: Canadian Journal Of Earth Science, 2006, Volume 43, Pages 1419-1444 | C31: Rocks of the Central Wyoming Province | D31: www.creationism/YEC/Rubidium_Strontium_01.xlsm | E31: Rb-Sr_07 | F31: Pb-206⁄U-238 | L31: =SUM(L2:L30) -> 127 | M31: =SUM(M2:M30) -> 191 | N31: 209 | O31: 118 | P31: 37 | Q31: 682
A32: 31 | B32: Earth and Planetary Science Letters, Volume 37, 1977, Pages 1-12 | C32: History Of The Pasamonte Achondrite | D32: www.creationism/YEC/Rubidium_Strontium_01.xlsm | E32: Rb-Sr_09 | F32: Pb-206⁄U-238 | L32: 4600 To 4999 | M32: 5000 To 5999 | N32: 6,000 To 9999 | O32: 10,000 To 19,999 | P32: Over 19,999 | Q32: Total
A33: 32 | B33: Earth and Planetary Science Letters, Volume 73, 1985, Pages 269-277 | C33: A Depleted Mantle Source For Kimberlites | D33: www.creationism/YEC/Rubidium_Strontium_01.xlsm | E33: Rb-Sr_15 | F33: Pb-206⁄U-238
A34: 33 | B34: Earth and Planetary Science Letters, Volume 105, 1991, Pages 149-169 | C34: Pb, Nd and Sr isotopic geochemistry | D34: www.creationism/YEC/Rubidium_Strontium_01.xlsm | E34: Rb-Sr_22 | F34: Pb-206⁄U-238
A35: 34 | B35: Earth and Planetary Science Letters, Volume 113, 1992, Pages 107-128 | C35: Sr, Nd, and Pb isotopes | D35: www.creationism/YEC/Rubidium_Strontium_01.xlsm | E35: Rb-Sr_23 | F35: Pb-206⁄U-238 | K35: Reference | L35: Maximum Age | M35: Minimum Age | N35: Average Age
A36: 35 | B36: Earth and Planetary Science Letters, Volume 134, 1995, Pages 169-185 | C36: Evolution of Reunion Hotspot Mantle | D36: www.creationism/YEC/Rubidium_Strontium_01.xlsm | E36: Rb-Sr_25 | F36: Pb-206⁄U-238 | K36: Number | L36: Versus Model Age | M36: Versus Model Age | N36: Versus Model Age
A37: 36 | B37: Geochimica et Cosmochimica Acta, 1993, Volume 57, Pages 4687-4702 | C37: An extremely low U/Pb source | D37: www.creationism/YEC/Rubidium_Strontium_01.xlsm | E37: Rb-Sr_26 | F37: Pb-206⁄U-238 | L37: % Difference | M37: % Difference | N37: % Difference
A38: 37 | B38: Geochimica et Cosmochimica Acta, Volume 71, 2007, Pages 3656–3671 | C38: The origin of geochemical diversity | D38: www.creationism/YEC/Rubidium_Strontium_01.xlsm | E38: Rb-Sr_30 | F38: Pb-206⁄U-238 | K38: 1 | L38: =(G2/K2)*100 -> 4741.418743 | M38: =(H2/K2)*100 -> 63.87676649 | N38: =(J2/K2)*100 -> 681.9922651
A39: 38 | B39: Journal Of Petrology, 1997, Volume 38, Number 1, Pages 115-132 | C39: Continental Lithospheric Contribution | D39: www.creationism/YEC/Rubidium_Strontium_01.xlsm | E39: Rb-Sr_34 | F39: Pb-206⁄U-238 | K39: 2 | L39: =(G3/K3)*100 -> 6936 | M39: =(H3/K3)*100 -> 4579 | N39: =(J3/K3)*100 -> 5671
A40: 39 | B40: Journal Of Petrology, 2001, Volume 42, Number 4, Pages 731-763 | C40: Garnet Granulite Xenoliths | D40: www.creationism/YEC/Rubidium_Strontium_01.xlsm | E40: Rb-Sr_35 | F40: Pb-206⁄U-238 | K40: 3 | L40: 32148.65645 | M40: 3885.263494 | N40: 12312.89171
A41: 40 | B41: Journal Of Petrology, 2000, Volume 41, Number 6, Pages 759–788 | C41: The Isotope and Trace Element Budget | D41: www.creationism/YEC/Rubidium_Strontium_01.xlsm | E41: Rb-Sr_36 | F41: Pb-206⁄U-238 | K41: 4 | L41: 311925.545 | M41: 5.701576211 | N41: 48906.92168
A42: 41 | B42: Journal Of Petrology, 2010, Volume 51, Number 10, Pages 2003-2045 | C42: Petrogenesis and Origins of Mid-Cretaceous | D42: www.creationism/YEC/Rubidium_Strontium_01.xlsm | E42: Rb-Sr_39 | F42: Pb-206⁄U-238 | K42: 5 | L42: 508.7039726 | M42: 136.0079893 | N42: 294.6089719
A43: 42 | B43: Journal Of Petrology, 1998, Volume 39, Number 4, Pages 711–748 | C43: Petrogenesis of the Flood Basalts | D43: www.creationism/YEC/Rubidium_Strontium_01.xlsm | E43: Rb-Sr_44 | F43: Pb-206⁄U-238 | K43: 6 | L43: 1067.090479 | M43: 940.8272115 | N43: 982.351508
A44: 43 | B44: Journal Of Petrology, 2004, Volume 45, Number 3, Pages 555-607 | C44: Nature of the Source Regions | D44: www.creationism/YEC/Rubidium_Strontium_01.xlsm | E44: Rb-Sr_45 | F44: Pb-206⁄U-238 | K44: 7 | L44: 303499.4009 | M44: 14828.72019 | N44: 86519.35133
A45: 44 | B45: Journal Of Petrology, 2007, Volume 48, Number 4, Pages 661-692 | C45: Generation of Palaeocene Adakitic Andesites | D45: www.creationism/YEC/Rubidium_Strontium_01.xlsm | E45: Rb-Sr_46 | F45: Pb-206⁄U-238 | K45: 8 | L45: 0 | M45: 0 | N45: 0
A46: 45 | B46: Journal Of Petrology, 2005, Volume 46, Number 4, Pages 829-858 | C46: Evidence for a Widespread Tethyan | D46: www.creationism/YEC/Rubidium_Strontium_01.xlsm | E46: Rb-Sr_47 | F46: Pb-206⁄U-238 | K46: 9 | L46: 38340 | M46: 3125 | N46: 15345.2381
A47: 46 | B47: Journal Of Geophysical Research, 1998, Volume 103, Number B9, Pages 20,963-20,979 | C47: Origin of the Indian Ocean-type isotopic signature | D47: www.creationism/YEC/Rubidium_Strontium_01.xlsm | E47: Rb-Sr_49 | F47: Pb-206⁄U-238 | K47: 10 | L47: 13307.51268 | M47: 758.3904012 | N47: 5013.734024
A48: 47 | B48: Geochimica et Cosmochimica Acta, 2008, Volume 72, Pages 2067 - 2089 | C48: U–Th–Pb Dating Of Secondary Minerals | D48: www.creationism/YEC/Rubidium_Strontium_01.xlsm | E48: Rb-Sr_50 | F48: Pb-206⁄U-238 | K48: 11 | L48: 77888.03001 | M48: 11117.8892 | N48: 18573.00022
K49: 12 | L49: 168755.9845 | M49: 20429.33805 | N49: 59922.88176
K50: 13 | L50: 16114.76833 | M50: 12337.98325 | N50: 14589.25487
K51: 14 | L51: 11247.91535 | M51: 759.5698632 | N51: 5010.10018
K52: 15 | L52: 4005.93587 | M52: 160.7800416 | N52: 1530.842907
K53: 16 | L53: 1474.293319 | M53: 561.8596723 | N53: 1012.873343
K54: 17 | L54: 10754.05051 | M54: 3202.659574 | N54: 6306.582047
K55: 18 | L55: 975.1237043 | M55: 160.1490941 | N55: 450.3968315
K56: 19 | L56: 141.2602865 | M56: 74.10295154 | N56: 107.4868577
K57: 20 | L57: 524.6106081 | M57: 427.2125176 | N57: 471.5910627
K58: 21 | L58: 671.0758442 | M58: 68.73082619 | N58: 245.0908916
K59: 22 | L59: 5808.022516 | M59: 54.09772455 | N59: 1068.393705
K60: 23 | L60: 2801.548669 | M60: 35.46977574 | N60: 324.1476088
K61: 24 | L61: 672.7486246 | M61: 1.761572436 | N61: 207.6702343
K62: 25 | L62: 591452.2792 | M62: 55524.06889 | N62: 165016.5506
K63: 26 | L63: 939.5571295 | M63: 216.2907141 | N63: 460.3660095
K64: 27 | L64: 9523.458349 | M64: 4560.478274 | N64: 6741.439883
K65: 28 | L65: 9368.329554 | M65: 1243.356012 | N65: 4463.723933
K66: 29 | L66: 5630.005742 | M66: 412.22158 | N66: 2729.058003

Sheet Pb-208_Th-232
A1: Number | B1: Magazine Reference | C1: Title | D1: Microsoft Excel File | E1: Spreadsheet | F1: Dating Method | G1: MAXIMUM | H1: MINIMUM | I1: DIFFERENCE | J1: AVERAGE | K1: Model Age | L1: 4600 To 4999 | M1: 5000 To 5999 | N1: 6,000 To 9999 | O1: 10,000 To 19,999 | P1: Over 19,999 | Q1: Total
A2: 1 | B2: Journal Of Petrology, 1998, Volume 39, Number 7, Pages 1285-1306 | C2: Tracing the Indian Ocean Mantle | D2: www.creationism/YEC/Plot_Index.xlsm | E2: Iso_Plot_004 | F2: Pb-208/Th-232 | G2: 82560.93511 | H2: 1139.239664 | I2: 81421.69545 | J2: 16890.42678 | K2: 100 | M2: 1 | N2: 10 | O2: 14 | P2: 20 | Q2: =SUM(L2:P2) -> 45 | R2: =(A2) -> 1 | S2: =(C2 & ", " & B2) -> Tracing the Indian Ocean Mantle , Journal Of Petrology, 1998, Volume 39, Number 7, Pages 1285-1306
A3: 2 | B3: Journal Of Petrology, 1998, Volume 39, Number 4, Pages 711-748 | C3: Petrogenesis of the Flood Basalts | D3: www.creationism/YEC/Plot_Index.xlsm | E3: Iso_Plot_005 | F3: Pb-208/Th-232 | G3: 44378.16326 | H3: 2649.904309 | I3: 41728.25895 | J3: 7654.225991 | K3: 30 | M3: 6 | N3: 18 | P3: 1 | Q3: 25 | R3: =(A3) -> 2 | S3: =(C3 & ", " & B3) -> Petrogenesis of the Flood Basalts, Journal Of Petrology, 1998, Volume 39, Number 4, Pages 711-748
A4: 3 | B4: Journal Of Petrology, 2004, Volume 45, Number 3, Pages 555-607 | C4: Nature of the Source Regions | D4: www.creationism/YEC/Plot_Index.xlsm | E4: Iso_Plot_006 | F4: Pb-208/Th-232 | G4: 88294.2628 | H4: 4825.639072 | I4: 83468.62373 | J4: 24257.79182 | K4: 20 | L4: 1 | N4: 3 | O4: 5 | P4: 4 | Q4: 13 | R4: =(A4) -> 3 | S4: =(C4 & ", " & B4) -> Nature of the Source Regions, Journal Of Petrology, 2004, Volume 45, Number 3, Pages 555-607
A5: 4 | B5: Journal Of Petrology, 2007, Volume 48, Number 4, Pages 661-692 | C5: Generation of Palaeocene Adakitic Andesites | D5: www.creationism/YEC/Plot_Index.xlsm | E5: Iso_Plot_007 | F5: Pb-208/Th-232 | G5: 10517.8546 | H5: 7800.086209 | I5: 2717.768391 | J5: 8941.355061 | K5: 60 | N5: 4 | O5: 2 | Q5: 6 | R5: =(A5) -> 4 | S5: =(C5 & ", " & B5) -> Generation of Palaeocene Adakitic Andesites, Journal Of Petrology, 2007, Volume 48, Number 4, Pages 661-692
A6: 5 | B6: Journal Of Petrology, 2005, Volume 46, Number 4, Pages 829-858 | C6: Evidence for a Widespread Tethyan | D6: www.creationism/YEC/Plot_Index.xlsm | E6: Iso_Plot_009 | F6: Pb-208/Th-232 | G6: 58795.28338 | H6: 4869.182574 | I6: 53926.10081 | J6: 22675.35889 | K6: 140 | L6: 1 | M6: 2 | N6: 5 | O6: 30 | P6: 32 | Q6: 70 | R6: =(A6) -> 5 | S6: =(C6 & ", " & B6) -> Evidence for a Widespread Tethyan , Journal Of Petrology, 2005, Volume 46, Number 4, Pages 829-858
A7: 6 | B7: Journal Of Petrology, 1999, Volume 40, Number 9, Pages 1399-1424 | C7: Post-Collisional Potassic and Ultrapotassic | D7: www.creationism/YEC/Plot_Index.xlsm | E7: Iso_Plot_016 | F7: Pb-208/Th-232 | G7: 99274.74573 | H7: 67704.35205 | I7: 31570.39367 | J7: 78807.62265 | K7: 471 | P7: 6 | Q7: 6 | R7: =(A7) -> 6 | S7: =(C7 & ", " & B7) -> Post-Collisional Potassic and Ultrapotassic , Journal Of Petrology, 1999, Volume 40, Number 9, Pages 1399-1424
A8: 7 | B8: Journal Of Petrology, 1997, Volume 38, Number 1, Pages 115-132 | C8: Continental Lithospheric Contribution to Alkaline | D8: www.creationism/YEC/Plot_Index.xlsm | E8: Iso_Plot_017 | F8: Pb-208/Th-232 | G8: 10083.59321 | H8: 2616.335244 | I8: 7467.257968 | J8: 6126.375548 | K8: 72 | M8: 3 | N8: 7 | O8: 1 | Q8: 11 | R8: =(A8) -> 7 | S8: =(C8 & ", " & B8) -> Continental Lithospheric Contribution to Alkaline, Journal Of Petrology, 1997, Volume 38, Number 1, Pages 115-132
A9: 8 | B9: Geological Society Of London, Special Publications, 2004, Volume 229, Pages 133-150. | C9: Pin Procking The Elephant | D9: www.creationism/YEC/Excellent.xlsm | E9: Excellent_34 | F9: Pb-208/Th-232 | G9: 14459.00659 | H9: 12090.24204 | I9: 2368.764547 | J9: 13131.43645 | K9: 100 | O9: 3 | Q9: 3 | R9: =(A9) -> 8 | S9: =(C9 & ", " & B9) -> Pin Procking The Elephant, Geological Society Of London, Special Publications, 2004, Volume 229, Pages 133-150.
A10: 9 | B10: Journal Of Petrology, April 11, 2012, Pages 1-32 | C10: Chronology And Geochemistry Of Lavas | D10: www.creationism/YEC/Excellent.xlsm | E10: Excellent_39 | F10: Pb-208/Th-232 | G10: 23849.56676 | H10: 4129.335882 | I10: 19720.23088 | J10: 8325.003245 | K10: 30 | M10: 5 | N10: 12 | O10: 3 | P10: 1 | Q10: 21 | R10: =(A10) -> 9 | S10: =(C10 & ", " & B10) -> Chronology And Geochemistry Of Lavas, Journal Of Petrology, April 11, 2012, Pages 1-32
A11: 10 | B11: Meteoritics & Planetary Science, 2004, Volume 39, Number 12, Pages 2033 - 2041 | C11: Ion microprobe U-Th-Pb dating | D11: www.creationism/YEC/Plot_Index.xlsm | E11: Iso_Plot_001 | F11: Pb-208/Th-232 | G11: 23837.24623 | H11: 2963.327975 | I11: 20873.91825 | J11: 10861.72026 | K11: 1150 | M11: 2 | N11: 4 | O11: 10 | P11: 1 | Q11: 17 | R11: =(A11) -> 10 | S11: =(C11 & ", " & B11) -> Ion microprobe U-Th-Pb dating, Meteoritics & Planetary Science, 2004, Volume 39, Number 12, Pages 2033 - 2041
A12: 11 | B12: Meteoritics & Planetary Science, 2003, Volume 38, Number 11, Pages 1697 - 1703 | C12: Ion Microprobe U-Th-Pb Dating | D12: www.creationism/YEC/Plot_Index.xlsm | E12: Iso_Plot_003 | F12: Pb-208/Th-232 | G12: 6110.39041 | H12: 2894.87674 | I12: 3215.513671 | J12: 4172.897248 | K12: 4000 | M12: 2 | N12: 1 | Q12: 3 | R12: =(A12) -> 11 | S12: =(C12 & ", " & B12) -> Ion Microprobe U-Th-Pb Dating, Meteoritics & Planetary Science, 2003, Volume 38, Number 11, Pages 1697 - 1703
A13: 12 | B13: Geochimica et Cosmochimica Acta, 2008, Volume 72, Pages 2067 - 2089 | C13: U–Th–Pb Dating Of Secondary Minerals | D13: www.creationism/YEC/Plot_Index.xlsm | E13: Iso_Plot_018 | F13: Pb-208/Th-232 | G13: 352962.1923 | H13: 2.268970373 | I13: 352959.9233 | J13: 9983.642069 | K13: 10 | M13: 1 | P13: 1 | Q13: 2 | R13: =(A13) -> 12 | S13: =(C13 & ", " & B13) -> U–Th–Pb Dating Of Secondary Minerals, Geochimica et Cosmochimica Acta, 2008, Volume 72, Pages 2067 - 2089
A14: 13 | B14: Geochimica et Cosmochimica Acta, 1998, Volume 62, Numbers 21/22, Pages 3527–3540 | C14: The Influence of High U-Th | D14: www.creationism/YEC/Lead_206_207.xlsm | E14: Pb-206_13 | F14: Pb-208/Th-232 | G14: 37154.25956 | H14: 160.9635038 | I14: 36993.29606 | J14: 4084.078007 | K14: 500 | P14: 1 | Q14: 1 | R14: =(A14) -> 13 | S14: =(C14 & ", " & B14) -> The Influence of High U-Th, Geochimica et Cosmochimica Acta, 1998, Volume 62, Numbers 21/22, Pages 3527–3540
A15: 14 | B15: Geochimica et Cosmochimica Acta, 1998, Volume 62, Numbers 21/22, Pages 3527–3540 | C15: The Influence of High U-Th | D15: www.creationism/YEC/Lead_206_207.xlsm | E15: Pb-206_13 | F15: Pb-208/Th-232 | G15: 14316.14094 | H15: 287.9090841 | I15: 14028.23186 | J15: 3578.807917 | K15: 500 | O15: 2 | Q15: 2 | R15: =(A15) -> 14 | S15: =(C15 & ", " & B15) -> The Influence of High U-Th, Geochimica et Cosmochimica Acta, 1998, Volume 62, Numbers 21/22, Pages 3527–3540
A16: 15 | B16: Geochimica et Cosmochimica Acta, 2009, Volume 73, Pages 469–488 | C16: U, Th And Pb Isotope Compositions | D16: www.creationism/YEC/Lead_206_207.xlsm | E16: Pb-206_23 | F16: Pb-208/Th-232 | G16: 42037.68124 | H16: 1938.689533 | I16: 40098.9917 | J16: 8096.51606 | K16: 2.588 | L16: 1 | M16: 1 | O16: 4 | P16: 2 | Q16: 8 | R16: =(A16) -> 15 | S16: =(C16 & ", " & B16) -> U, Th And Pb Isotope Compositions, Geochimica et Cosmochimica Acta, 2009, Volume 73, Pages 469–488
A17: 16 | B17: Earth and Planetary Science Letters, 2012, Volume 319-320, Pages 197–206 | C17: U–Th–Pb Isotope Data | D17: www.creationism/YEC/Research.xlsm | E17: Th_232_01 | F17: Pb-208/Th-232 | G17: 100601.1795 | H17: 24979.57154 | I17: 75621.60799 | J17: 56975.513 | K17: 3300 | P17: 12 | Q17: 12 | R17: =(A17) -> 16 | S17: =(C17 & ", " & B17) -> U–Th–Pb Isotope Data, Earth and Planetary Science Letters, 2012, Volume 319-320, Pages 197–206
A18: 17 | B18: Earth and Planetary Science Letters, 2000, Volume 183, Pages 93-106 | C18: The Age Of The Lithospheric Mantle | D18: www.creationism/YEC/Research.xlsm | E18: Th_232_02 | F18: Pb-208/Th-232 | G18: 4677.965723 | H18: 169.9945126 | I18: 4507.97121 | J18: 1785.832126 | K18: 267 | L18: 1 | Q18: 1 | R18: =(A18) -> 17 | S18: =(C18 & ", " & B18) -> The Age Of The Lithospheric Mantle, Earth and Planetary Science Letters, 2000, Volume 183, Pages 93-106
A19: 18 | B19: Earth and Planetary Science Letters, 1995, Volume 134, Pages 169-185 | C19: Evolution Of Reunion Hotspot Mantle | D19: www.creationism/YEC/Research.xlsm | E19: Th_232_03 | F19: Pb-208/Th-232 | G19: 13286.71038 | H19: 5641.171063 | I19: 7645.539317 | J19: 8078.806169 | K19: 66 | M19: 2 | N19: 14 | O19: 4 | Q19: 20 | R19: =(A19) -> 18 | S19: =(C19 & ", " & B19) -> Evolution Of Reunion Hotspot Mantle, Earth and Planetary Science Letters, 1995, Volume 134, Pages 169-185
A20: 19 | B20: http://geosphere.gsapubs.org/content/suppl/2010/09/29/6.5.663.DC1/530_supp1.xls | F20: Pb-208/Th-232 | G20: 277726.6262 | H20: 6643.450942 | I20: 271083.1753 | J20: 90689.60717 | K20: 416 | N20: 1 | O20: 1 | P20: 235 | Q20: 237 | R20: =(A20) -> 19 | S20: =(C20 & ", " & B20) -> , http://geosphere.gsapubs.org/content/suppl/2010/09/29/6.5.663.DC1/530_supp1.xls
A21: 20 | B21: http://www.nature.com/nature/journal/v485/n7400/extref/nature11140-s3.xls | C21: Continental Growth 3.2 Gyr Ago, Nature, 2012, Volume 485, Pages 627–630 | D21: =("www.creationism/YEC/" & E21 & ".xls") -> www.creationism/YEC/Very_Old_A_8.xls | E21: Very_Old_A_8 | F21: Pb-208/Th-232 | G21: 11517.37782 | H21: -24295.18185 | I21: 11059.86254 | J21: 3334.00713 | K21: 3200 | L21: 10 | M21: 9 | N21: 1 | O21: 1 | Q21: 21 | R21: =(A21) -> 20 | S21: =(C21 & ", " & B21) -> Continental Growth 3.2 Gyr Ago, Nature, 2012, Volume 485, Pages 627–630, http://www.nature.com/nature/journal/v485/n7400/extref/nature11140-s3.xls
A22: 21 | B22: http://pubs.usgs.gov/of/2008/1142/tables/table04.xls | C22: Uranium-Lead Zircon Ages | D22: =("www.creationism/YEC/" & E22 & ".xls") -> www.creationism/YEC/Very_Old_A_9.xls | E22: Very_Old_A_9 | F22: Pb-208/Th-232 | G22: 55110.33562 | H22: 6129.91643 | I22: 48980.41919 | J22: 17193.12578 | K22: 250 | N22: 6 | O22: 9 | P22: 5 | Q22: 20 | R22: =(A22) -> 21 | S22: =(C22 & ", " & B22) -> Uranium-Lead Zircon Ages, http://pubs.usgs.gov/of/2008/1142/tables/table04.xls
A23: 22 | B23: http://www.geo.uu.nl/~kikeb/thesis/database/upb/KB746.xls | C23: Pilbara Craton in Western Australia | D23: =("www.creationism/YEC/" & E23 & ".xls") -> www.creationism/YEC/Very_Old_B.xls | E23: Very_Old_B | F23: Pb-208/Th-232 | G23: 8728 | H23: 3334 | I23: 5394 | J23: 5538.55 | K23: 3200 | L23: 3 | M23: 7 | N23: 6 | Q23: 16 | R23: =(A23) -> 22 | S23: =(C23 & ", " & B23) -> Pilbara Craton in Western Australia, http://www.geo.uu.nl/~kikeb/thesis/database/upb/KB746.xls
A24: 23 | B24: www.geo.uu.nl/~kikeb/thesis/database/upb/KB770.xls | C24: Pilbara Craton in Western Australia | D24: =("www.creationism/YEC/" & E24 & ".xls") -> www.creationism/YEC/Very_Old_C.xls | E24: Very_Old_C | F24: Pb-208/Th-232 | G24: 17500 | H24: 535 | I24: 16965 | J24: 6286.356436 | K24: 3200 | L24: 5 | M24: 17 | N24: 35 | O24: 11 | Q24: 68 | R24: =(A24) -> 23 | S24: =(C24 & ", " & B24) -> Pilbara Craton in Western Australia, www.geo.uu.nl/~kikeb/thesis/database/upb/KB770.xls
A25: 24 | B25: http://geosphere.gsapubs.org/content/suppl/2009/02/18/3.6.683.DC1/00138_App3.xls | C25: Timing of sedimentation, metamorphism, and plutonism | D25: =("www.creationism/YEC/" & E25 & ".xls") -> www.creationism/YEC/Very_Old_E.xls | E25: Very_Old_E | F25: Pb-208/Th-232 | G25: 80531.81235 | H25: 488.9463458 | I25: 80042.86601 | J25: 19539.45797 | K25: 478 | N25: 1 | O25: 5 | P25: 22 | Q25: 28 | R25: =(A25) -> 24 | S25: =(C25 & ", " & B25) -> Timing of sedimentation, metamorphism, and plutonism, http://geosphere.gsapubs.org/content/suppl/2009/02/18/3.6.683.DC1/00138_App3.xls
A26: 25 | B26: http://geosphere.gsapubs.org/content/suppl/2009/02/18/3.6.683.DC1/00138_App3.xls | C26: Timing of sedimentation, metamorphism, and plutonism | D26: =("www.creationism/YEC/" & E26 & ".xls") -> www.creationism/YEC/Very_Old_E.xls | E26: Very_Old_E | F26: Pb-208/Th-232 | G26: 80531.81235 | H26: 488.9463458 | I26: 80042.86601 | J26: 15661.20178 | K26: 478 | N26: 1 | O26: 75 | P26: 22 | Q26: 98 | R26: =(A26) -> 25 | S26: =(C26 & ", " & B26) -> Timing of sedimentation, metamorphism, and plutonism, http://geosphere.gsapubs.org/content/suppl/2009/02/18/3.6.683.DC1/00138_App3.xls
A27: 26 | B27: http://petrology.oxfordjournals.org/content/suppl/2004/09/24/egh060.DC1/Table_3.xls | C27: U–Th and U–Pb Systematics in Zircons, Journal Petrology, January 1, 2005, volume 46, Number 1, Pages 3-32 | D27: =("www.creationism/YEC/" & E27 & ".xls") -> www.creationism/YEC/Very_Old_G.xls | E27: Very_Old_G | F27: Pb-208/Th-232 | G27: 41459.77337 | H27: 11390.29784 | I27: 30069.47553 | J27: 22846.94083 | K27: 500 | O27: 16 | P27: 29 | Q27: 45 | R27: =(A27) -> 26 | S27: =(C27 & ", " & B27) -> U–Th and U–Pb Systematics in Zircons, Journal Petrology, January 1, 2005, volume 46, Number 1, Pages 3-32, http://petrology.oxfordjournals.org/content/suppl/2004/09/24/egh060.DC1/Table_3.xls
A28: 27 | B28: www.ruf.rice.edu/~ctlee/BOXMODEL.xls | C28: Box Model | D28: =("www.creationism/YEC/" & E28 & ".xls") -> www.creationism/YEC/Very_Old_R.xls | E28: Very_Old_R | F28: Pb-208/Th-232 | G28: 24919.30958 | H28: 9366.995126 | I28: 15552.31445 | J28: 17080.26318 | K28: 1500 | N28: 4 | O28: 318 | P28: 119 | Q28: 441 | R28: =(A28) -> 27 | S28: =(C28 & ", " & B28) -> Box Model, www.ruf.rice.edu/~ctlee/BOXMODEL.xls
A29: 28 | B29: http://pubs.usgs.gov/of/2008/1142/pdf/OF08-1142_508.pdf | C29: Hydrothermal Zebra Dolomite, Geosphere, October 2010, Volume 6, Number 5, Pages 663-690 | D29: =("www.creationism/YEC/" & E29 & ".xls") -> www.creationism/YEC/Very_Old_A.xls | E29: Very_Old_A | F29: Pb-208/Th-232 | G29: 55110.33562 | H29: 6129.91643 | I29: 48980.41919 | J29: 17193.12578 | K29: 416 | N29: 6 | O29: 9 | P29: 5 | Q29: 20 | R29: =(A29) -> 28 | S29: =(C29 & ", " & B29) -> Hydrothermal Zebra Dolomite, Geosphere, October 2010, Volume 6, Number 5, Pages 663-690, http://pubs.usgs.gov/of/2008/1142/pdf/OF08-1142_508.pdf
A30: 29 | B30: www.nature.com/ngeo/journal/v4/n12/extref/ngeo1331-s2.xls | C30: Origin of Indian Ocean Seamount Province, Nature Geoscience, 2011, Volume 4, Pages 883-887 | D30: =("www.creationism/YEC/" & E30 & ".xls") -> www.creationism/YEC/Very_Old_B_1.xls | E30: Very_Old_B_1 | F30: Pb-208/Th-232 | G30: 28677.02802 | H30: 1943.20652 | I30: 26733.8215 | J30: 7739.957353 | K30: 6 | L30: 6 | M30: 4 | N30: 25 | O30: 16 | P30: 1 | Q30: 52 | R30: =(A30) -> 29 | S30: =(C30 & ", " & B30) -> Origin of Indian Ocean Seamount Province, Nature Geoscience, 2011, Volume 4, Pages 883-887, www.nature.com/ngeo/journal/v4/n12/extref/ngeo1331-s2.xls
A31: 30 | B31: www.nature.com/nature/journal/v485/n7400/extref/nature11140-s3.xls | C31: Continental Growth 3.2 Gyr Ago, Nature, 2012, Volume 485, Pages 627–630 | D31: =("www.creationism/YEC/" & E31 & ".xls") -> www.creationism/YEC/Very_Old_B_4.xls | E31: Very_Old_B_4 | F31: Pb-208/Th-232 | G31: 11517.37782 | H31: 457.5152838 | I31: 11059.86254 | J31: 3334.00713 | K31: 3200 | L31: 10 | M31: 9 | N31: 1 | O31: 1 | P31: 0 | Q31: 21 | R31: =(A31) -> 30 | S31: =(C31 & ", " & B31) -> Continental Growth 3.2 Gyr Ago, Nature, 2012, Volume 485, Pages 627–630, www.nature.com/nature/journal/v485/n7400/extref/nature11140-s3.xls
A32: 31 | B32: http://www.earthchem.org/deeplith/search | C32: None | D32: =("www.creationism/YEC/" & E32 & ".xls") -> www.creationism/YEC/Very_Old_C_1.xls | E32: Very_Old_C_1 | F32: Pb-208/Th-232 | G32: 35177.37575 | H32: 1806.084833 | I32: 33371.29092 | J32: 13644.43785 | K32: 0 | M32: 1 | N32: 1 | O32: 7 | P32: 1 | Q32: 10 | R32: =(A32) -> 31 | S32: =(C32 & ", " & B32) -> None, http://www.earthchem.org/deeplith/search
A33: 32 | B33: http://earthref.org/ERDA/download:147/ | C33: Geochemistry Geophysics Geosystems, 2003, Volume 4, Page 1089, | D33: =("www.creationism/YEC/" & E33 & ".xls") -> www.creationism/YEC/Very_Old_C_3.xls | E33: Very_Old_C_3 | F33: Pb-208/Th-232 | G33: 82865 | H33: 5577 | I33: 77288 | J33: 39068.26087 | K33: 100 | M33: 2 | N33: 4 | O33: 2 | P33: 15 | Q33: 23 | R33: =(A33) -> 32 | S33: =(C33 & ", " & B33) -> Geochemistry Geophysics Geosystems, 2003, Volume 4, Page 1089, , http://earthref.org/ERDA/download:147/
A34: 33 | B34: Journal Of Petrology, 1997, Volume 38, Number 1, Pages 115-132 | C34: Continental Lithospheric Contribution | D34: www.creationism/YEC/Rubidium_Strontium.xlsm | E34: Rb-Sr _34 | F34: Pb-208/Th-232 | R34: =(A34) -> 33
A35: 34 | B35: Earth and Planetary Science Letters, Volume 105 (1991), Pages 149-169 | C35: Cenozoic Volcanic Rocks of Eastern China | D35: www.creationism/YEC/Rubidium_Strontium.xlsm | E35: Rb-Sr _22 | F35: Pb-208/Th-232 | R35: =(A35) -> 34
A36: 35 | B36: Earth and Planetary Science Letters, Volume 113 (1992), Pages 107-128 | C36: Sr, Nd, and Pb isotopes | D36: www.creationism/YEC/Rubidium_Strontium.xlsm | E36: Rb-Sr _23 | F36: Pb-208/Th-232 | R36: =(A36) -> 35
A37: 36 | B37: Earth and Planetary Science Letters, Volume 134 (1995), Pages 169-185 | C37: Evolution of Reunion Hotspot Mantle | D37: www.creationism/YEC/Rubidium_Strontium.xlsm | E37: Rb-Sr _25 | F37: Pb-208/Th-232
A38: 37 | B38: Geochimica et Cosmochimica Acta, 1993, Volume 57, Pages 4687-4702 | C38: An extremely low U/Pb source | D38: www.creationism/YEC/Rubidium_Strontium.xlsm | E38: Rb-Sr _26 | F38: Pb-208/Th-232
A39: 38 | B39: Journal Of Petrology, 2010, Volume 51, Number 10, Pages 2003-2045 | C39: Petrogenesis and Origins of Mid-Cretaceous | D39: www.creationism/YEC/Rubidium_Strontium.xlsm | E39: Rb-Sr _39 | F39: Pb-208/Th-232
A40: 39 | F40: Pb-208/Th-232 | L40: =SUM(L3:L34) -> 38 | M40: 73 | N40: 160 | O40: 535 | P40: 515 | Q40: 1321
L41: 4600 To 4999 | M41: 5000 To 5999 | N41: 6,000 To 9999 | O41: 10,000 To 19,999 | P41: Over 19,999 | Q41: Total
L43: MAXIMUM | M43: MINIMUM | N43: AVERAGE
K44: Reference | L44: Versus Model Age | M44: Versus Model Age | N44: Versus Model Age | O44: Reference | P44: 4600 To 4999 | Q44: 5000 To 5999 | R44: 6,000 To 9999 | S44: 10,000 To 19,999 | T44: Over 19,999 | U44: Total
C45: Uranium-Lead Zircon Ages | K45: Number | L45: Percentage Differ | M45: Percentage Differ | N45: Percentage Differ | O45: Number | P45: Million Years | Q45: Million Years | R45: Million Years | S45: Million Years | T45: Million Years | U45: Count
K46: 1 | L46: =(G2/K2)*100 -> 82560.93511 | M46: =(H2/K2)*100 -> 1139.239664 | N46: =(J2/K2)*100 -> 16890.42678 | O46: 1 | Q46: 1 | R46: 10 | S46: 14 | T46: 20 | U46: =SUM(P46:T46) -> 45
K47: 2 | L47: =(G3/K3)*100 -> 147927.2109 | M47: =(H3/K3)*100 -> 8833.014363 | N47: =(J3/K3)*100 -> 25514.08664 | O47: 2 | Q47: 6 | R47: 18 | T47: 1 | U47: 25
K48: 3 | L48: 441471.314 | M48: 24128.19536 | N48: 121288.9591 | O48: 3 | P48: 1 | R48: 3 | S48: 5 | T48: 4 | U48: 13
K49: 4 | L49: 17529.75767 | M49: 13000.14368 | N49: 14902.25843 | O49: 4 | R49: 4 | S49: 2 | U49: 6
K50: 5 | L50: 41996.63099 | M50: 3477.987553 | N50: 16196.68492 | O50: 5 | P50: 1 | Q50: 2 | R50: 5 | S50: 30 | T50: 32 | U50: 70
K51: 6 | L51: 21077.44071 | M51: 14374.59704 | N51: 16731.97933 | O51: 6 | T51: 6 | U51: 6
K52: 7 | L52: 14004.99057 | M52: 3633.798949 | N52: 8508.854927 | O52: 7 | Q52: 3 | R52: 7 | S52: 1 | U52: 11
K53: 8 | L53: 14459.00659 | M53: 12090.24204 | N53: 13131.43645 | O53: 8 | S53: 3 | U53: 3
K54: 9 | L54: 79498.55586 | M54: 13764.45294 | N54: 27750.01082 | O54: 9 | Q54: 5 | R54: 12 | S54: 3 | T54: 1 | U54: 21
K55: 10 | L55: 2072.80402 | M55: 257.6806935 | N55: 944.4974138 | O55: 10 | Q55: 2 | R55: 4 | S55: 10 | T55: 1 | U55: 17
K56: 11 | L56: 152.7597603 | M56: 72.37191849 | N56: 104.3224312 | O56: 11 | Q56: 2 | R56: 1 | U56: 3
K57: 12 | L57: 3529621.923 | M57: 22.68970373 | N57: 99836.42069 | O57: 12 | Q57: 1 | T57: 1 | U57: 2
K58: 13 | L58: 7430.851913 | M58: 32.19270076 | N58: 816.8156015 | O58: 13 | T58: 1 | U58: 1
K59: 14 | L59: 2863.228188 | M59: 57.58181682 | N59: 715.7615834 | O59: 14 | S59: 2 | U59: 2
K60: 15 | L60: 1624330.805 | M60: 74910.72384 | N60: 312848.3795 | O60: 15 | P60: 1 | Q60: 1 | S60: 4 | T60: 2 | U60: 8
K61: 16 | L61: 3048.520592 | M61: 756.9567135 | N61: 1726.530697 | O61: 16 | T61: 12 | U61: 12
K62: 17 | L62: 1752.047087 | M62: 63.66835676 | N62: 668.8509836 | O62: 17 | P62: 1 | U62: 1
K63: 18 | L63: 20131.37936 | M63: 8547.228883 | N63: 12240.61541 | O63: 18 | Q63: 2 | R63: 14 | S63: 4 | U63: 20
K64: 19 | L64: 66761.20823 | M64: 1596.9834 | N64: 21800.38634 | O64: 19 | R64: 1 | S64: 1 | T64: 235 | U64: 237
K65: 20 | L65: 359.9180569 | M65: -759.2244329 | N65: 104.1877228 | O65: 20 | P65: 10 | Q65: 9 | R65: 1 | S65: 1 | U65: 21
K66: 21 | L66: 22044.13425 | M66: 2451.966572 | N66: 6877.250313 | O66: 21 | R66: 6 | S66: 9 | T66: 5 | U66: 20
K67: 22 | L67: 272.75 | M67: 104.1875 | N67: 173.0796875 | O67: 22 | P67: 3 | Q67: 7 | R67: 6 | U67: 16
K68: 23 | L68: 546.875 | M68: 16.71875 | N68: 196.4486386 | O68: 23 | P68: 5 | Q68: 17 | R68: 35 | S68: 11 | U68: 68
K69: 24 | L69: 16847.65949 | M69: 102.2900305 | N69: 4087.752714 | O69: 24 | R69: 1 | S69: 5 | T69: 22 | U69: 28
K70: 25 | L70: 16847.65949 | M70: 102.2900305 | N70: 3276.402046 | O70: 25 | R70: 1 | S70: 75 | T70: 22 | U70: 98
K71: 26 | L71: 8291.954675 | M71: 2278.059568 | N71: 4569.388166 | O71: 26 | S71: 16 | T71: 29 | U71: 45
K72: 27 | L72: 1661.287305 | M72: 624.4663417 | N72: 1138.684212 | O72: 27 | R72: 4 | S72: 318 | T72: 119 | U72: 441
K73: 28 | L73: 13247.67683 | M73: 1473.537603 | N73: 4132.962929 | O73: 28 | R73: 6 | S73: 9 | T73: 5 | U73: 20
K74: 29 | L74: 477950.4669 | M74: 32386.77533 | N74: 128999.2892 | O74: 29 | P74: 6 | Q74: 4 | R74: 25 | S74: 16 | T74: 1 | U74: 52
K75: 30 | L75: 359.9180569 | M75: 14.29735262 | N75: 104.1877228 | O75: 30 | P75: 10 | Q75: 9 | R75: 1 | S75: 1 | T75: 0 | U75: 21
K76: 31 | L76: 0 | M76: 0 | N76: 0 | O76: 31 | Q76: 1 | R76: 1 | S76: 7 | T76: 1 | U76: 10
K77: 32 | L77: 82865 | M77: 5577 | N77: 39068.26087 | O77: 32 | Q77: 2 | R77: 4 | S77: 2 | T77: 15 | U77: 23
O78: Total | P78: =SUM(P46:P77) -> 38 | Q78: 74 | R78: 170 | S78: 549 | T78: 535 | U78: 1366
F84: Reference | G84: MAXIMUM | H84: MINIMUM | I84: DIFFERENCE | J84: AVERAGE | K84: Model Age
F85: 1 | G85: 82560.93511 | H85: 1139.239664 | I85: 81421.69545 | J85: 16890.42678 | K85: 100
F86: 2 | G86: 44378.16326 | H86: 2649.904309 | I86: 41728.25895 | J86: 7654.225991 | K86: 30
F87: 3 | G87: 88294.2628 | H87: 4825.639072 | I87: 83468.62373 | J87: 24257.79182 | K87: 20
F88: 4 | G88: 10517.8546 | H88: 7800.086209 | I88: 2717.768391 | J88: 8941.355061 | K88: 60
F89: 5 | G89: 58795.28338 | H89: 4869.182574 | I89: 53926.10081 | J89: 22675.35889 | K89: 140
F90: 6 | G90: 99274.74573 | H90: 67704.35205 | I90: 31570.39367 | J90: 78807.62265 | K90: 471
F91: 7 | G91: 10083.59321 | H91: 2616.335244 | I91: 7467.257968 | J91: 6126.375548 | K91: 72
F92: 8 | G92: 14459.00659 | H92: 12090.24204 | I92: 2368.764547 | J92: 13131.43645 | K92: 100
F93: 9 | G93: 23849.56676 | H93: 4129.335882 | I93: 19720.23088 | J93: 8325.003245 | K93: 30
F94: 10 | G94: 23837.24623 | H94: 2963.327975 | I94: 20873.91825 | J94: 10861.72026 | K94: 1150
F95: 11 | G95: 6110.39041 | H95: 2894.87674 | I95: 3215.513671 | J95: 4172.897248 | K95: 4000
F96: 12 | G96: 352962.1923 | H96: 2.268970373 | I96: 352959.9233 | J96: 9983.642069 | K96: 10
F97: 13 | G97: 37154.25956 | H97: 160.9635038 | I97: 36993.29606 | J97: 4084.078007 | K97: 500
F98: 14 | G98: 14316.14094 | H98: 287.9090841 | I98: 14028.23186 | J98: 3578.807917 | K98: 500
F99: 15 | G99: 42037.68124 | H99: 1938.689533 | I99: 40098.9917 | J99: 8096.51606 | K99: 2.588
F100: 16 | G100: 100601.1795 | H100: 24979.57154 | I100: 75621.60799 | J100: 56975.513 | K100: 3300
F101: 17 | G101: 4677.965723 | H101: 169.9945126 | I101: 4507.97121 | J101: 1785.832126 | K101: 267
F102: 18 | G102: 13286.71038 | H102: 5641.171063 | I102: 7645.539317 | J102: 8078.806169 | K102: 66
F103: 19 | G103: 277726.6262 | H103: 6643.450942 | I103: 271083.1753 | J103: 90689.60717 | K103: 416
F104: 20 | G104: 11517.37782 | H104: -24295.18185 | I104: 11059.86254 | J104: 3334.00713 | K104: 3200
F105: 21 | G105: 55110.33562 | H105: 6129.91643 | I105: 48980.41919 | J105: 17193.12578 | K105: 250
F106: 22 | G106: 8728 | H106: 3334 | I106: 5394 | J106: 5538.55 | K106: 3200
F107: 23 | G107: 17500 | H107: 535 | I107: 16965 | J107: 6286.356436 | K107: 3200
F108: 24 | G108: 80531.81235 | H108: 488.9463458 | I108: 80042.86601 | J108: 19539.45797 | K108: 478
F109: 25 | G109: 80531.81235 | H109: 488.9463458 | I109: 80042.86601 | J109: 15661.20178 | K109: 478
F110: 26 | G110: 41459.77337 | H110: 11390.29784 | I110: 30069.47553 | J110: 22846.94083 | K110: 500
F111: 27 | G111: 24919.30958 | H111: 9366.995126 | I111: 15552.31445 | J111: 17080.26318 | K111: 1500
F112: 28 | G112: 55110.33562 | H112: 6129.91643 | I112: 48980.41919 | J112: 17193.12578 | K112: 416
F113: 29 | G113: 28677.02802 | H113: 1943.20652 | I113: 26733.8215 | J113: 7739.957353 | K113: 6
F114: 30 | G114: 11517.37782 | H114: 457.5152838 | I114: 11059.86254 | J114: 3334.00713 | K114: 3200
F115: 31 | G115: 35177.37575 | H115: 1806.084833 | I115: 33371.29092 | J115: 13644.43785 | K115: 0
F116: 32 | G116: 82865 | H116: 5577 | I116: 77288 | J116: 39068.26087 | K116: 100

Sheet Pb-207_206
A1: Number | B1: Magazine Reference | C1: Title | D1: Microsoft Excel File | E1: Spreadsheet | F1: Dating Method | G1: MAXIMUM | H1: MINIMUM | I1: DIFFERENCE | J1: AVERAGE | K1: Model Age | L1: 4600 To 4999 | M1: 5000 To 5999
A2: 1 | B2: Chemical Geology, Volume 211 (2004) Pages 87–109 | C2: U–Pb Zircon Ages | D2: www.creationism/YEC/Excellent.xlsm | E2: Excellent_07 | F2: Pb-207/Pb-206 | G2: 5149.75968 | H2: 5039.962975 | I2: 109.7967052 | J2: 5078.553117 | K2: 100 | M2: 15
A3: 2 | B3: Chemical Geology, Volume 233 (2006) Pages 1–45 | C3: Lead Isotope Planetary Profiling | D3: www.creationism/YEC/Excellent.xlsm | E3: Excellent_09 | F3: Pb-207/Pb-206 | G3: 5493.360318 | H3: 4834.799635 | I3: 658.5606829 | J3: 5233.571334 | K3: 4420 | L3: 3 | M3: 10
A4: 3 | B4: Chemical Geology, Volume 236 (2007) Pages 27–41 | C4: U–Pb Step-Leaching Ages | D4: www.creationism/YEC/Excellent.xlsm | E4: Excellent_10 | F4: Pb-207/Pb-206 | G4: 5014.229252 | H4: 3978.446751 | I4: 1035.7825 | J4: 4671.248179 | K4: 280 | L4: 14 | M4: 4
A5: 4 | B5: Chemical Geology, 2009, Volume 259, Pages 143 - 151 | C5: Pb–Pb Dating Of Chondrules | D5: www.creationism/YEC/Plot_Index.xlsm | E5: Iso_Plot_014 | F5: Pb-207/Pb-206 | G5: 5206.108213 | H5: 4577.403489 | I5: 628.7047246 | J5: 4910.819581 | K5: 4565 | L5: 26 | M5: 15
A6: 5 | B6: Chemical Geology, Volume 66 (1987) Pages 193-208 | C6: Pb-Pb Isotope Systematics | D6: www.creationism/YEC/Excellent.xlsm | E6: Excellent_11 | F6: Pb-207/Pb-206 | G6: 4756.496627 | H6: 4604.029662 | I6: 152.4669648 | J6: 4657.068403 | K6: 2700 | L6: 8
A7: 9 | B7: Chemical Geology, Volume 93 (1991) Pages 231-243 | C7: Pb Isotopic Systematics Of Volcanic Rocks | D7: www.creationism/YEC/Excellent.xlsm | E7: Excellent_12 | F7: Pb-207/Pb-206 | G7: 4964.253304 | H7: 4909.339018 | I7: 54.91428575 | J7: 4934.492997 | K7: 20 | L7: 41
A8: 10 | B8: Chinese Journal Of Geochemistry, Volume 16, Number 1, 1997, Pages 80-85 | C8: Bayan Obo Deposit | D8: www.creationism/YEC/Excellent.xlsm | E8: Excellent_05 | F8: Pb-207/Pb-206 | G8: 5237.372407 | H8: 5065.113389 | I8: 172.2590186 | J8: 5151.242898 | K8: 700 | M8: 2
A9: 11 | B9: Contributions Mineral Petrology (1984) 85, Pages 376-390 | C9: Pb isotopic and REE geochemistry | D9: www.creationism/YEC/Excellent.xlsm | E9: Excellent_03 | F9: Pb-207/Pb-206 | G9: 4987.495393 | H9: 4904.868945 | I9: 82.62644756 | J9: 4931.930175 | K9: 155 | L9: 6
A10: 12 | B10: Contributions Mineral Petrology (1985) 90, Pages 162-171 | C10: Pre-Hercynian mantle lead transfer | D10: www.creationism/YEC/Excellent.xlsm | E10: Excellent_01 | F10: Pb-207/Pb-206 | G10: 5038.389195 | H10: 5021.354203 | I10: 17.03499179 | J10: 5026.166672 | K10: 3000 | M10: 16
A11: 13 | B11: Contributions to Mineralogy and Petrology, Volume 114, 1993, Pages 171 - 188 | C11: Sr, Nd And Pb Isotope Evidence | D11: www.creationism/YEC/Excellent.xlsm | E11: Excellent_29 | F11: Pb-207/Pb-206 | G11: 5060.546668 | H11: 4929.525745 | I11: 131.0209237 | J11: 5008.551799 | K11: 2900 | L11: 8 | M11: 14
A12: 14 | B12: Earth and Planetary Science Letters, Volume 94 (1989) Pages 236-244 | C12: U/Pb Whole-Rock And Mineral Dating | D12: www.creationism/YEC/Excellent.xlsm | E12: Excellent_13 | F12: Pb-207/Pb-206 | G12: 5016.384572 | H12: 667.5413667 | I12: 4348.843205 | J12: 3643.556374 | K12: 320 | L12: 10 | M12: 3
A13: 15 | B13: Earth and Planetarv Science Letters, Volume 46 (1980) Pages 221-232 | C13: U-Pb Ages Of Uraniferous Opals | D13: www.creationism/YEC/Excellent.xlsm | E13: Excellent_16 | F13: Pb-207/Pb-206 | G13: 5039.62847 | H13: 4711.61124 | I13: 328.0172306 | J13: 4910.083141 | K13: 20 | L13: 18 | M13: 2
A14: 17 | B14: Earth and Planetary Science Letters, Volume 134 (1995) 169-185 | C14: Evolution Of Reunion Hotspot Mantle | D14: www.creationism/YEC/Research.xlsm | E14: Th_232_03 | F14: Pb-207/Pb-206 | G14: 5015.84652 | H14: 4952.643131 | I14: 63.20338883 | J14: 4976.298047 | K14: 66 | L14: 19 | M14: 1
A15: 18 | B15: Earth and Planetary Science Letters, Volume 142 (1996) 501-512 | C15: Pb Isotope Constraints | D15: www.creationism/YEC/Lead_206_207.xlsm | E15: Pb-206_02 | F15: Pb-207/Pb-206 | G15: 5346.616532 | H15: 4861.767841 | I15: 484.8486918 | J15: 5180.140406 | K15: 1800 | L15: 8 | M15: 22
A16: 19 | B16: Earth and Planetary Science Letters, Volume 165 (1999) 117–127 | C16: Iceland Pb-Isotopic Array | D16: www.creationism/YEC/Research.xlsm | E16: Pb_207_08 | F16: Pb-207/Pb-206 | G16: 4974.855842 | H16: 4932.502492 | I16: 42.35335005 | J16: 4939.38909 | K16: 10 | L16: 9
A17: 20 | B17: Earth and Planetary Science Letters, Volume 183 (2000) 93-106 | C17: The Age Of The Lithospheric Mantle | D17: www.creationism/YEC/Research.xlsm | E17: Th_232_02 | F17: Pb-207/Pb-206 | G17: 5235.002558 | H17: 5076.99591 | I17: 158.0066481 | J17: 5161.231745 | K17: 267 | M17: 3
A18: 21 | B18: Earth and Planetary Science Letters, Volume 240 (2005) 605– 620 | C18: Pb Isotopic Variability in Melt Inclusions | D18: www.creationism/YEC/Research.xlsm | E18: Pb_207_04 | F18: Pb-207/Pb-206 | G18: 5049.006386 | H18: 4742.979152 | I18: 306.0272332 | J18: 4909.764277 | K18: 1 | L18: 88 | M18: 16
A19: 22 | B19: Earth and Planetary Science Letters, Volume 244 (2006) Page 251–269 | C19: The South Pacific Superplume Activity | D19: www.creationism/YEC/Excellent.xlsm | E19: Excellent_17 | F19: Pb-207/Pb-206 | G19: 5056.862759 | H19: 4838.276971 | I19: 218.585788 | J19: 4945.531714 | K19: 100 | L19: 17 | M19: 6
A20: 24 | B20: Earth and Planetary Science Letters, Volume 245 (2006) 137–152 | C20: Trace Element-Pb Isotope Enrichments | D20: www.creationism/YEC/Research.xlsm | E20: Pb_207_12 | F20: Pb-207/Pb-206 | G20: 5004.789546 | H20: 4958.996095 | I20: 45.7934508 | J20: 4987.928897 | K20: 0 | L20: 33 | M20: 3
A21: 25 | B21: Earth and Planetary Science Letters, Volume 245 (2006) 743–761 | C21: Comparison of Th, Sr, Nd and Pb isotopes | D21: www.creationism/YEC/Research.xlsm | E21: Pb_207_03 | F21: Pb-207/Pb-206 | G21: 4975.787742 | H21: 4893.977592 | I21: 81.81015051 | J21: 4929.258378 | K21: 0.3 | L21: 17
A22: 26 | B22: Earth and Planetary Science Letters, Volume 267 (2008) 236–246 | C22: U–Pb Dating Of Fossil Enamel | D22: www.creationism/YEC/Research.xlsm | E22: Pb_207_10 | F22: Pb-207/Pb-206 | G22: 5002.10558 | H22: 4852.091101 | I22: 150.0144791 | J22: 4956.050565 | K22: 4 | L22: 8 | M22: 1
A23: 27 | B23: Earth and Planetary Science Letters, Volume 296 (2010) 267–277 | C23: Microanalysis Of Individual Fluid Inclusions | D23: www.creationism/YEC/Research.xlsm | E23: Pb_207_05 | F23: Pb-207/Pb-206 | G23: 5074.544863 | H23: 5069.453808 | I23: 5.091055319 | J23: 5071.163458 | K23: 1000 | M23: 36
A24: 28 | B24: Earth and Planetary Science Letters, Volume 300 (2010) 152–163 | C24: The Solar System Primordial Lead | D24: www.creationism/YEC/Lead_206_207.xlsm | E24: Pb-206_05 | F24: Pb-207/Pb-206 | G24: 5381.042629 | H24: 4964.451392 | I24: 416.5912368 | J24: 5259.109615 | K24: 4500 | L24: 3 | M24: 70
A25: 29 | B25: Earth and Planetary Science Letters, Volume 301 (2011) 469–478 | C25: The Tethyan Realm Lamproites | D25: www.creationism/YEC/Research.xlsm | E25: Pb_207_01 | F25: Pb-207/Pb-206 | G25: 6194.367072 | H25: 969.7035437 | I25: 5224.663528 | J25: 4754.938813 | K25: 20 | L25: 16 | M25: 19
A26: 30 | B26: Earth and Planetary Science Letters, Volume 306 (2011) 86–97 | C26: South Atlantic Mid-Ocean-Ridge | D26: www.creationism/YEC/Research.xlsm | E26: Pb_207_06 | F26: Pb-207/Pb-206 | G26: 6214.394049 | H26: 4923.675688 | I26: 1290.718361 | J26: 4990.388372 | K26: 10 | L26: 74 | M26: 21
A27: 31 | B27: Earth and Planetary Science Letters, Volume 319-320 (2012) 197–206 | C27: U–Th–Pb Isotope Data | D27: www.creationism/YEC/Research.xlsm | E27: Th_232_01 | F27: Pb-207/Pb-206 | G27: 5403.170217 | H27: 5222.336113 | I27: 180.8341036 | J27: 5325.2282 | K27: 3300 | M27: 13
A28: 32 | B28: Earth and Planetary Science Letters, Volume 7 (1969) 141-147 | C28: Uranium, Thorium, And Lead Systematics | D28: www.creationism/YEC/Research.xlsm | E28: Pb_207_07 | F28: Pb-207/Pb-206 | G28: 4821.5498 | H28: 3279.347581 | I28: 1542.202219 | J28: 4213.715491 | K28: 2820 | L28: 1
A29: 33 | B29: Earth and Planetary Science Letters, Volume 104 (1991) 1-15 | C29: Th, Pb, and Sr Isotope Variations | D29: www.creationism/YEC/Research.xlsm | E29: Pb_207_02 | F29: Pb-207/Pb-206 | G29: 5145.413482 | H29: 4947.453232 | I29: 197.9602503 | J29: 4983.751051 | K29: 300 | L29: 33 | M29: 4
A30: 34 | B30: Earth and Planetary Science Letters, 1983, Volume 62, Pages 132 - 146 | C30: 40ar/39ar And U-Th-Pb Dating | D30: www.creationism/YEC/Plot_Index.xlsm | E30: Iso_Plot_019 | F30: Pb-207/Pb-206 | G30: 5370.941308 | H30: 4410 | I30: 960.9413083 | J30: 4948.437496 | K30: 4580 | L30: 3 | M30: 10
A31: 38 | B31: Earth and Planetary Science Letters, Volume 34 (1977) 419-431 | C31: Lead And Strontium Isotopes In Cretaceous Kimberlites | D31: www.creationism/YEC/Research.xlsm | E31: Pb_207_11 | F31: Pb-207/Pb-206 | G31: 5060.586575 | H31: 4897.870607 | I31: 162.7159675 | J31: 4969.123779 | K31: 100 | L31: 7 | M31: 5
A32: 39 | B32: Earth and Planetary Science Letters, Volume 42 (1979) 58-70 | C32: Diamonds And Mantle-Derived Xenoliths | D32: www.creationism/YEC/Lead_206_207.xlsm | E32: Pb-206_06 | F32: Pb-207/Pb-206 | G32: 5248.732347 | H32: 4884.5053 | I32: 364.2270471 | J32: 4994.997779 | K32: 2500 | L32: 9 | M32: 5
A33: 40 | B33: Earth and Planetary Science Letters, Volume 42 (1979) Pages 368-378 | C33: Rb-Sr And U-Th-Pb Isotopic Study | D33: www.creationism/YEC/Excellent.xlsm | E33: Excellent_15 | F33: Pb-207/Pb-206 | G33: 5127.244714 | H33: 4845.352334 | I33: 281.8923801 | J33: 5035.002128 | K33: 2000 | L33: 5 | M33: 7
A34: 42 | B34: Earth and Planetary Science Letters, Volume 47 (1980) Pages 370-382 | C34: Speculations About The Age Of The Earth | D34: www.creationism/YEC/Excellent.xlsm | E34: Excellent_14 | F34: Pb-207/Pb-206 | G34: 5300.312251 | H34: 4373.888961 | I34: 926.4232902 | J34: 5078.741108 | K34: 2662 | L34: 6 | M34: 30
A35: 45 | B35: Earth and Planetary Science Letters, Volume 59 (1982) Pages 327-342 | C35: Correlated Nd, Sr And Pb Isotope Variations | D35: www.creationism/YEC/Excellent.xlsm | E35: Excellent_32 | F35: Pb-207/Pb-206 | G35: 5060.758281 | H35: 5003.922048 | I35: 56.83623276 | J35: 5032.522484 | K35: 70 | M35: 9
A36: 46 | B36: Earth and Planetary Science Letters, Volume 76 (1985) Pages 57-70 | C36: Sr, Nd And Pb Isotopes In Minor Elements | D36: www.creationism/YEC/Excellent.xlsm | E36: Excellent_33 | F36: Pb-207/Pb-206 | G36: 5163 | H36: 5014 | I36: 149 | J36: 5097.125 | K36: 100 | M36: 16
A37: 47 | B37: Earth and Planetary Science Letters, Volume 94 (1989) Pages 239 | C37: U/Pb Whole-Rock and Mineral Dating | D37: =("www.creationism/YEC/" & E37 & ".xls") -> www.creationism/YEC/Very_Old_A_4.xls | E37: Very_Old_A_4 | F37: Pb-207/Pb-206 | G37: 5016.384572 | H37: 667.5413667 | I37: 4348.843205 | J37: 3643.556374 | K37: 316 | L37: 10 | M37: 3
A38: 48 | B38: Earth and Planetary Sctence Letters, 113 (1992) 107-128 | C38: Sr, Nd, and Pb Isotopes | D38: www.creationism/YEC/Lead_206_207.xlsm | E38: Pb-206_18 | F38: Pb-207/Pb-206 | G38: 5076.583029 | H38: 4945.156008 | I38: 131.4270206 | J38: 5013.656546 | K38: 3300 | L38: 18 | M38: 32
A39: 49 | B39: Earth and Planetary. Science Letters, 94 (1989) Pages 78-96 | C39: Cenozoic-Cretaceous Magmatism | D39: www.creationism/YEC/Excellent.xlsm | E39: Excellent_08 | F39: Pb-207/Pb-206 | G39: 6488.877883 | H39: 4930.38853 | I39: 1558.489353 | J39: 5017.956859 | K39: 100 | L39: 28 | M39: 3
A40: 50 | B40: ftp://rock.geosociety.org/pub/reposit/2006/2006049.xls | C40: None | D40: =("www.creationism/YEC/" & E40 & ".xls") -> www.creationism/YEC/Very_Old_C_5.xls | E40: Very_Old_C_5 | F40: Pb-207/Pb-206 | G40: 4988.573482 | H40: 4915.420498 | I40: 73.15298351 | J40: 4968.364788 | K40: 0 | L40: 184
A41: 51 | B41: ftp://rock.geosociety.org/pub/reposit/2008/2008019.xls | C41: None | D41: =("www.creationism/YEC/" & E41 & ".xls") -> www.creationism/YEC/Very_Old_C_4.xls | E41: Very_Old_C_4 | F41: Pb-207/Pb-206 | G41: 5022.183716 | H41: 4897.260899 | I41: 124.9228168 | J41: 4968.822586 | K41: 0 | L41: 132 | M41: 14
A42: 52 | B42: Geochemistry And Geophysics Geosystems, 2006, Volume 7, Number 8, Pages 1-29 | C42: Contribution Of Slab Melting | D42: www.creationism/YEC/Excellent.xlsm | E42: Excellent_21 | F42: Pb-207/Pb-206 | G42: 5008.874255 | H42: 4991.697772 | I42: 17.17648345 | J42: 5001.330769 | K42: 20 | L42: 13 | M42: 31
A43: 54 | B43: Geochimica et Cosmochimica Acta 71 (2007) 5514–5527 | C43: Pb Isotopic Compositions Of Rocks | D43: www.creationism/YEC/Lead_206_207.xlsm | E43: Pb-206_25 | F43: Pb-207/Pb-206 | G43: 5265.041568 | H43: 5054.790103 | I43: 210.2514652 | J43: 5243.360864 | K43: 2010 | M43: 113
A44: 55 | B44: Geochimica et Cosmochimica Acta 72 (2008) 5799–5818 | C44: U, Th And Pb Isotope Compositions | D44: www.creationism/YEC/Lead_206_207.xlsm | E44: Pb-206_23 | F44: Pb-207/Pb-206 | G44: 5007.992406 | H44: 4871.481281 | I44: 136.511125 | J44: 4915.273431 | K44: 2.588 | L44: 22 | M44: 3
A45: 56 | B45: Geochimica et Cosmochimica Acta 73 (2009) 469–488 | C45: Pb/Pb Geochronology | D45: www.creationism/YEC/Lead_206_207.xlsm | E45: Pb-206_22 | F45: Pb-207/Pb-206 | G45: 5860.201579 | H45: 4397.017993 | I45: 1463.183587 | J45: 5506.994909 | K45: 3710 | M45: 22
A46: 60 | B46: Geochimica et Cosmochimica Acta, 1970, Volume 34, Pages 1039 to 1106. | C46: Model Lead And Radiometric Ages | D46: www.creationism/YEC/Lead_206_207.xlsm | E46: Pb-206_09 | F46: Pb-207/Pb-206 | G46: 6461.618858 | H46: 6338.489922 | I46: 123.1289358 | J46: 6385.837302 | K46: 2030
A47: 61 | B47: Geochimica et Cosmochimica Acta, 1976, Volume 40, Pages 635 - 643 | C47: Isotopic Lead Investigations | D47: www.creationism/YEC/Plot_Index.xlsm | E47: Iso_Plot_020 | F47: Pb-207/Pb-206 | G47: 5345.618224 | H47: 4637.576867 | I47: 708.0413566 | J47: 5125.863023 | K47: 4565 | L47: 8 | M47: 19
A48: 62 | B48: Geochimica et Cosmochimica Acta, 1992, Volume 56, Pages 347-368 | C48: New Aspects Of Dating Eclogites | D48: www.creationism/YEC/Lead_206_207.xlsm | E48: Pb-206_16 | F48: Pb-207/Pb-206 | G48: 5066.498794 | H48: 4986.922194 | I48: 79.57660029 | J48: 5016.166887 | K48: 150 | L48: 11 | M48: 11
A49: 67 | B49: Geochimica et Cosmochimica Acta, 2007, Volume 71, Pages 1583 - 1604 | C49: Pb–Pb Dating Constraints | D49: www.creationism/YEC/Plot_Index.xlsm | E49: Iso_Plot_015 | F49: Pb-207/Pb-206 | G49: 5259.100314 | H49: 4618.765866 | I49: 640.3344476 | J49: 5024.109064 | K49: 4568 | L49: 6 | M49: 11
A50: 68 | B50: Geochimica et Cosmochimica Acta, 2008, Volume 72, Pages 2067 - 2089 | C50: U–Th–Pb Dating Of Secondary Minerals | D50: www.creationism/YEC/Plot_Index.xlsm | E50: Iso_Plot_018 | F50: Pb-207/Pb-206 | G50: 8125.856407 | H50: 282.291782 | I50: 7843.564625 | J50: 3714.192498 | K50: 10 | L50: 14 | M50: 4
A51: 69 | B51: Geochimica et Cosmochimica Acta, Volume 45. Pages 635 to 645, 1981 | C51: U-Th-Pb Systematics | D51: www.creationism/YEC/Lead_206_207.xlsm | E51: Pb-206_12 | F51: Pb-207/Pb-206 | G51: 4747.166785 | H51: 2567.626082 | I51: 2179.540704 | J51: 3774.731199 | K51: 2030 | L51: 2
A52: 70 | B52: Geochimica et Cosmochimica Acta, Volume 61, Number 23, Pages 5005-5022, 1997 | C52: Dating Scheelite Stages | D52: www.creationism/YEC/Lead_206_207.xlsm | E52: Pb-206_17 | F52: Pb-207/Pb-206 | G52: 5025.904928 | H52: 3830.537865 | I52: 1195.367063 | J52: 4914.361575 | K52: 600 | L52: 4 | M52: 13
A53: 72 | B53: Geochimica et Cosmochimica Acta, Volume 61, Number 8, Pages 1713-1731, 1997 | C53: Ages Of Basaltic Achondrites | D53: www.creationism/YEC/Lead_206_207.xlsm | E53: Pb-206_15 | F53: Pb-207/Pb-206 | G53: 5081.418707 | H53: 4370.528155 | I53: 710.8905522 | J53: 4685.629756 | K53: 4480 | L53: 14 | M53: 3
A54: 73 | B54: Geochimica et Cosmochimica Acta, Volume 62, Number 16, Pages 2823–2835, 1998 | C54: Using The U-Pb System | D54: www.creationism/YEC/Lead_206_207.xlsm | E54: Pb-206_24 | F54: Pb-207/Pb-206 | G54: 4982.058295 | H54: 4024.356321 | I54: 957.7019739 | J54: 4615.922594 | K54: 220 | L54: 34
A55: 75 | B55: Geochimica et Cosmochimica Acta, Volume 62, Number 21/22, Pages 3527–3540, 1998 | C55: The Influence of High U-Th | D55: www.creationism/YEC/Lead_206_207.xlsm | E55: Pb-206_13 | F55: Pb-207/Pb-206 | G55: 4999.781335 | H55: 3923.956871 | I55: 1075.824465 | J55: 4708.883051 | K55: 500 | L55: 9
A56: 76 | B56: Geochimica et Cosmochimica Acta, Volume 63, Number 3/4, Pages 473–488, 1999 | C56: Pb-Pb and Sm-Nd Isotope Results | D56: www.creationism/YEC/Lead_206_207.xlsm | E56: Pb-206_14 | F56: Pb-207/Pb-206 | G56: 5402.485252 | H56: 4342.063203 | I56: 1060.422049 | J56: 5173.115208 | K56: 2800 | L56: 4 | M56: 26
A57: 77 | B57: Geological Society Of London, Special Publications, 2004, Volume 229, Pages 133-150. | C57: Pin Procking The Elephant | D57: www.creationism/YEC/Excellent.xlsm | E57: Excellent_34 | F57: Pb-207/Pb-206 | G57: 5005.616685 | H57: 4941.790802 | I57: 63.82588315 | J57: 4986.874176 | K57: 100 | L57: 32 | M57: 8
A58: 79 | B58: Gondwana Research 11 (2007) Page 382–395 | C58: High Precision U-Pb Geochronology | D58: www.creationism/YEC/Excellent.xlsm | E58: Excellent_26 | F58: Pb-207/Pb-206 | G58: 5071.701928 | H58: 5053.645576 | I58: 18.05635172 | J58: 5063.535624 | K58: 30 | M58: 47
A59: 81 | B59: Gondwana Research 14 (2008) Page 644–662 | C59: Precise Lead Isotope Ratios | D59: www.creationism/YEC/Excellent.xlsm | E59: Excellent_27 | F59: Pb-207/Pb-206 | G59: 4897.891103 | H59: 2613.644242 | I59: 2284.246861 | J59: 4063.353958 | K59: 1700 | L59: 8
A60: 82 | B60: http://earthref.org/ERDA/download:147/ | C60: Geochemistry Geophysics Geosystems, 2003, Volume 4, Page 1089, | D60: =("www.creationism/YEC/" & E60 & ".xls") -> www.creationism/YEC/Very_Old_C_3.xls | E60: Very_Old_C_3 | F60: Pb-207/Pb-206 | G60: 5043.007487 | H60: 4759.912027 | I60: 283.0954604 | J60: 4935.721475 | K60: 100 | L60: 88 | M60: 14
